Workbook

Sheet Resumo
B2: RESUMO - VALOR TOTAL UNITARIO E GLOBAL DO CONTRATO
B4: Item | C4: Cargo | D4: Qtd por Posto | E4: Valor por Empregado | F4: Qtd de Postos | G4: Valor Mensal por Posto | H4: Valor Total Mensal | I4: Valor Total (12 meses) | J4: Valor Total (36 meses)
B5: 1 | C5: Bombeiro Civil 12 x 36 Diurno | D5: 4 | E5: ='Brigadista 12X36 Diurno'!C95 -> 13002.91641 | F5: 2 | G5: =E5*D5 -> 52011.66563 | H5: =G5*F5 -> 104023.3313 | I5: =H5*12 -> 1248279.975 | J5: =H5*36 -> 3744839.925
F6: =SUM(F5) -> 2 | H6: =SUM(H5:H5) -> 104023.3313 | I6: =SUM(I5:I5) -> 1248279.975 | J6: =SUM(J5:J5) -> 3744839.925
B8: VALOR TOTAL GLOBAL DA PROPOSTA

Sheet Brigadista 12X36 Diurno
A1: POSTO: BRIGADISTA DIURNO 12 X36 ESCALA: DE SEGUNDA A SABADO
A2: Planilha de Proposta de Preço
A3: Processo nº:59500.001028/2026-13
A4: Pregão Eletrônico nº:
A5: Data da abertura: | F5: 2
A6: DESCRIMINAÇÃO DOS SERVIÇOS
A7: A | B7: Data da Apresentação da Proposta
A8: B | B8: Município/UF | C8: Brasília/DF
A9: C | B9: Ano Acordo, Convenção Coletiva ou Sentença Normativa em Dissídio Coletivo. | C9: SINDBOMBEIROS/DF 2026 REGISTRO NO MTE: DF000032/2026
A10: D | B10: N° de meses de execução contratual | C10: 36 meses
A11: IDENTIFICAÇÃO DOS SERVIÇOS
A12: 1 | B12: Tipo de Serviço | C12: Brigada de Incêndio
A13: 2 | B13: Salário normativo da categoria profissional | C13: 4033.04
A14: 3 | B14: Categoria profissional | C14: Bombeiro Civil
A15: 4 | B15: Classificação Brasileira de Ocupações (CBO) | C15: 5171-10
A16: 5 | B16: Data base da categoria | C16: 2026-01-01
A17: MÓDULO 1:COMPOSIÇÃO DA REMUNERAÇÃO
A18: 1 | B18: Composição da Remuneração | C18: % | D18: Valor (R$)
A19: A | B19: Salário Base da Categoria | C19: 1 | D19: =C13 -> 4033.04
A20: B | B20: Adicional de Periculosidade | C20: 0.3 | D20: =D19*C20 -> 1209.912
A21: C | B21: Adicional noturno | C21: 0 | D21: =(D19+D20)*C21 -> 0
A22: TOTAL DA REMUNERAÇÃO | C22: =SUM(C19:C21) -> 1.3 | D22: =SUM(D19:D21) -> 5242.952
A23: MÓDULO 2: BENEFICIOS MENSAIS E DIÁRIOS
A24: 2.1 | B24: GPS, FGTS e outras contribuições | C24: % | D24: Valor (R$)
B25: INSS | C25: 0.2 | D25: =$D$22*C25 -> 1048.5904
B26: FGTS | C26: 0.08 | D26: =$D$22*C26 -> 419.43616
B27: SESC OU SESI | C27: 0.015 | D27: 78.64428
B28: SENAI-SENAC | C28: 0.01 | D28: 52.42952
B29: SEBRAE | C29: 0.006 | D29: 31.457712
B30: INCRA | C30: 0.002 | D30: 10.485904
B31: Salário Educação | C31: 0.025 | D31: 131.0738
B32: SAT | C32: 0.0349 | D32: 182.9790248
A33: TOTAL | C33: =SUM(C25:C32) -> 0.3729 | D33: =SUM(D25:D32) -> 1955.096801
A34: 2.2 | B34: Ausencias Legais | C34: % | D34: Valor (R$)
B35: Reposição de Férias Gozadas | C35: 0.0729 | D35: =$D$22*C35 -> 382.2112008
B36: Reposição de Faltas e Ausências | C36: 0.0378 | D36: =$D$22*C36 -> 198.1835856
B37: Reposição de Afastamentos por Doenças e Acidentes | C37: 0.0012 | D37: 6.2915424
A38: TOTAL | C38: =SUM(C35:C37) -> 0.1119 | D38: =SUM(D35:D37) -> 586.6863288
A39: 2.3 | B39: 13º Salário, Férias e Adicional de Férias | C39: % | D39: Valor (R$)
B40: 13° Salário | C40: 0.0833 | D40: =$D$22*C40 -> 436.7379016
B41: Adicional de Férias | C41: 0.0238 | D41: =$D$22*C41 -> 124.7822576
A42: TOTAL | C42: =SUM(C40:C41) -> 0.1071 | D42: =SUM(D40:D41) -> 561.5201592
A43: 2.4 | B43: Provisão para Rescisão e Indenizações | C43: % | D43: Valor (R$)
B44: Aviso Prévio Indenizado | C44: 0.0128 | D44: =$D$22*C44 -> 67.1097856
B45: Aviso Prévio Complementar | C45: 0.0083 | D45: =$D$22*C45 -> 43.5165016
B46: Reflexos sobre os Avisos Prévios Indenizados | C46: 0.0041 | D46: 21.4961032
B47: FGTS Sobre Aviso Prévio Indenizado e Complementar | C47: 0.0018 | D47: 9.4373136
B48: Aviso Prévio Trabalhado | C48: 0.0016 | D48: 8.3887232
B49: Encargos Sobre Aviso Prévio Trabalhado | C49: 0.0006 | D49: 3.1457712
B50: Multa do FGTS | C50: 0.032 | D50: 167.774464
B51: Férias Indenizadsas | C51: 0.0167 | D51: 87.5572984
B52: Adicional sobre Férias Indenizadas | C52: 0.0056 | D52: 29.3605312
A53: TOTAL | C53: =SUM(C44:C52) -> 0.0835 | D53: =SUM(D44:D52) -> 437.786492
A54: 2.5 | B54: Direitos sobre o Abono Pecuniário | C54: % | D54: Valor (R$)
B55: Abono Pecuniário | C55: 0.0052 | D55: =$D$22*C55 -> 27.2633504
B56: 1\3 Constitucional do Abono Pecuniário | C56: 0.0017 | D56: 8.9130184
A57: TOTAL | C57: =SUM(C55:C56) -> 0.0069 | D57: =SUM(D55:D56) -> 36.1763688
A58: 2.6 | B58: Custos decorrentes das incidências | C58: % | D58: Valor (R$)
B59: Incidência Grupo "A" Sobre os Grupos "B" e "C" | C59: 0.0874 | D59: =$D$22*C59 -> 458.2340048
B60: FGTS sobre Aviso Prévio Indenizado | C60: 0.0024 | D60: 12.5830848
B61: Incidência sobre Salário Maternidade | C61: 0.0005 | D61: 2.621476
A62: TOTAL | C62: =SUM(C59:C61) -> 0.0903 | D62: =SUM(D59:D61) -> 473.4385656
A63: TOTAL DOS ENCARGOS SOCIAIS | C63: =C62+C57+C53+C42+C38+C33 -> 0.7726 | D63: 4050.704715
A64: 2.3 | B64: Benefícios Mensais e Diários | D64: Valor (R$)
A65: A | B65: Transporte | D65: 0
A66: B | B66: Auxílio Refeição/Alimentação | D66: =E66*13.58 -> 674.3828 | E66: 49.66
A67: C | B67: Plano de Saúde | D67: =E67 -> 209.4 | E67: 209.4 | F67: MENSAL POR FUNCIONARIOS
A68: D | B68: Fundo social odontológico | D68: =E68 -> 25 | E68: 25 | F68: MENSAL POR FUNCIONARIOS
A69: E | B69: Auxilio Morte/Funeral | D69: =E69 -> 25.23 | E69: 25.23 | F69: MENSAL POR FUNCIONARIOS
A70: F | B70: Seguro de Vida | D70: 0
A71: G | B71: Auxilio Lazer Cultura | D71: =E71 -> 31 | E71: 31 | F71: MENSAL POR FUNCIONARIOS
A72: H | B72: Auxílio Creche | D72: 65.83 | F72: Guia Prático para Órgãos Públicos e Empresas Fornecedoras, considerou-se a incidência em 10% do quadro, 1 (empregado) | G72: 526.66
A73: TOTAL | D73: =SUM(D65:D72) -> 1030.8428
A74: MÓDULO 5: INSUMOS DIVERSOS
A75: A | B75: Uniformes | D75: =Uniformes!F13 -> 209.4819444
A76: B | B76: Materiais e equipamentos | D76: ='Mat. e Equip. Salvamento'!F32+'Mat. e Equip. Prim. Socorros'!F40+'Equip. cont. ronda eletrônica'!F8 -> 154.8113125
A77: TOTAL | D77: =SUM(D75:D76) -> 364.293257
A78: MÓDULO 6:CUSTOS INDIRETOS, LUCROS E TRIBUTOS
A79: A | B79: Custos Indiretos (administração) | C79: 0.05 | D79: =($D$22+$D$63+$D$73+$D$77)*C79 -> 534.4396386
A80: B | B80: Lucros | C80: 0.08 | D80: =($D$22+$D$63+$D$73+$D$77)*C80 -> 855.1034218
A81: SUBTOTAL (A+B) | C81: =SUM(C79:C80) -> 0.13 | D81: =SUM(D79:D80) -> 1389.54306
A82: C | B82: Tributos
A83: C.1 | B83: PIS | C83: 0.0065 | D83: =($D$22+$D$63+$D$73+$D$77)*C83 -> 69.47715302
A84: C.2 | B84: COFINS | C84: 0.03 | D84: =($D$22+$D$63+$D$73+$D$77)*C84 -> 320.6637832
A85: C.3 | B85: ISS | C85: 0.05 | D85: =($D$22+$D$63+$D$73+$D$77)*C85 -> 534.4396386
A86: SUBTOTAL (C.1+C.2+C.3) | C86: =SUM(C83:C85) -> 0.0865 | D86: =SUM(D83:D85) -> 924.5805748
A87: TOTAL | D87: =D81+D86 -> 2314.123635
A88: QUADRO RESUMO: CUSTO POR EMPREGADO
A89: MÃO DE OBRA VINCULADA À EXECUÇÃO CONTRATUAL | C89: Valor (R$)
A90: A | B90: COMPOSIÇÃO DA REMUNERAÇÃO | C90: =D22 -> 5242.952
A91: B | B91: TOTAL DOS ENCARGOS SOCIAIS | C91: =D63 -> 4050.704715
A92: C | B92: BENEFÍCIOS MENSAIS E DIÁRIOS | C92: =D73 -> 1030.8428
A93: D | B93: INSUMOS DIVERSOS | C93: =D77 -> 364.293257
A94: E | B94: CUSTOS INDIRETOS, LUCROS E TRIBUTOS | C94: =D87 -> 2314.123635
A95: TOTAL | C95: =SUM(C90:C94) -> 13002.91641

Sheet Uniformes
A1: PLANILHA DE PESQUISA DE PREÇOS Detalhamento do custo do Uniforme
A3: ITEM | B3: UNIFORME | C3: MATERIAL | D3: QTD. ANUAL | E3: Codevasf - Preço Unitário | F3: Codevasf - Custo Total
A4: 1 | B4: Gandola | C4: Blusa com manga longa, tecido "Ripstop" padrão estipulado pelo CBMDF | D4: 2 | E4: =Gandola!L37 -> 198.55 | F4: =E4*D4 -> 397.1
A5: 2 | B5: Calça | C5: Tecido "Ripstop" padrão estipulado pelo CBMDF | D5: 4 | E5: =Calça!L37 -> 219.9 | F5: =E5*D5 -> 879.6
A6: 3 | B6: Cinto | C6: Confeccionado em nylon e/ou poliéster, com fivela e ponteira prata | D6: 1 | E6: =Cinto!L37 -> 18.76 | F6: 18.76
A7: 4 | B7: Blusão de frio | C7: Tipo japona- Padrão aprovado pelo Corpo de Bombeiros Militar | D7: 1 | E7: =Japona!L37 -> 268.14 | F7: 268.14
A8: 5 | B8: Camiseta | C8: 100% Algodão, manga curta, aprovado com logotipo da prestadora de serviço e nome fantasia | D8: 6 | E8: =Camisa!L37 -> 24.99 | F8: 149.94
A9: 6 | B9: Coturno (par) | C9: Cabedal em couro nobuk hidrofugado, espessura de 2mm, dublado com tecido sintético e colarinho de couro pelica;forração interna de acrílico automotivo, com isolamento térmico em EVA; reforço interno de material termoplástico leve e resistente, no bico e calcanhar, solado de borracha macio, vulcanizado ao cabedal, resistente à corrente elétrica;vedação resistente à água ou 100% impermeável; marca guartelá Attack II Dry Impermeável ou similar. | D9: 1 | E9: =Bota!L37 -> 587.2666667 | F9: 587.2666667
A10: 7 | B10: Pochete | C10: confeccionada em tecido nylon, com duas divisórias para colocar tesoura, luvas, RCP, gaze e atadura. | D10: 1 | E10: =Pochete!L37 -> 64.99 | F10: 64.99
A11: 8 | B11: Meias (par) | C11: Confeccionado em algodão e lycra- cor preta | D11: 4 | E11: ='Meia '!L37 -> 36.99666667 | F11: 147.9866667
A12: Custo para 1 (um) ano de uniforme para um profissional | F12: =SUM(F4:F11) -> 2513.783333
A13: Custo Mensal do uniforme para um profissional | F13: =F12/12 -> 209.4819444 | G13: =F13*12 -> 2513.783333

Sheet Mat. e Equip. Salvamento
A1: PLANILHA DE PESQUISA DE PREÇOS MATERIAIS E EQUIPAMENTOS PARA SALVAMENTO E ISOLAMENTO
A2: Item | B2: Descrição | C2: Unidade de Fornecimento | D2: QTD Total | E2: Preço Unit. CODEVASF | F2: Preço Total Codevasf
A3: 1 | B3: ALICATE bico meia cana 6 polegadas | C3: Und | D3: 1 | E3: ='Alicate reto'!L37 -> 32.99333333 | F3: =E3*D3 -> 32.99333333
A4: 2 | B4: ALICATE corte diagonal 6 polegadas | C4: Und | D4: 1 | E4: ='Alicate de corte'!L37 -> 31.76666667 | F4: =E4*D4 -> 31.76666667
A5: 3 | B5: ALICATE universal 8 polegadas | C5: Und | D5: 1 | E5: ='Alicate universal'!L37 -> 38.30333333 | F5: 38.30333333
A6: 4 | B6: ARCO DE SERRA fixo de 12'' com lâmina | C6: Und | D6: 1 | E6: ='Arco de serra'!L37 -> 56.44 | F6: 56.44
A7: 5 | B7: CHAVE DE FENDA TESTE , com "neon", de 100 a 500 volts | C7: Und | D7: 1 | E7: ='Chave teste'!L37 -> 7.9 | F7: 7.9
A8: 6 | B8: CHAVES DE FENDA : 1/8 x 4'', 3/16 x 4' e 1/4 x 5'' | C8: Jogo | D8: 1 | F8: 0
A9: 7 | B9: CHAVES PHILIPS : 1/4 x 4'', 1/4 x 6'', 1/8 x 3'' e 3/16 x 3'' | C9: Jogo | D9: 1 | E9: ='Chave de fenda'!L37 -> 88.21 | F9: 88.21
A10: 8 | B10: FACÃO de 18'', em aço carbono, com cabo em polipropileno | C10: Und | D10: 1 | E10: =Facão!L37 -> 28.95 | F10: 28.95
A11: 9 | B11: MACHADO para bombeiro, com cabeça chata,cunha de ferro cortante e cabo de madeira | C11: Und | D11: 1 | E11: =Machado!L37 -> 520.575 | F11: 520.575
A12: 10 | B12: MARRETA de 5kg, com base polida, cabo curto de madeira fixado com cunhas metálicas | C12: Und | D12: 1 | E12: =Marreta!L37 -> 184.58 | F12: 184.58
A13: 11 | B13: MARTELO de aço com cabo e madeira e mínio de 250mm de comprimento | C13: Und | D13: 1 | E13: =Martelo!L37 -> 35.98 | F13: 35.98
A14: 12 | B14: PÉ DE CABRA 3/4'' x 80cm | C14: Und | D14: 1 | E14: ='Pé de cabra'!L37 -> 57.7 | F14: 57.7
A15: 13 | B15: TALHADEIRA em aço especial com empunhadura | C15: Und | D15: 1 | E15: =Talhadeira!L37 -> 61.11 | F15: 61.11
A16: 14 | B16: CORDA para resgate com 150m de comprimento, com 10mm de espessura | C16: Und | D16: 1 | E16: =Corda!L37 -> 404.9566667 | F16: 404.9566667
A17: 15 | B17: ESCADA com 6 (seis) degraus em fibra de vidro ou aluminio, com pés e degraus emborrachados | C17: Und | D17: 1 | E17: =Escada!L37 -> 413.99 | F17: 413.99
A18: 16 | B18: LANTERNA de mão tipo farolete, com capacidade de luminosidade de 500.000 velas, com recarregador e transformador bivolt automático | C18: Und | D18: 2 | E18: =Holofote!L37 -> 235.55 | F18: 471.1
A19: 17 | B19: FITA ZEBRADA plástica utilizada para isolamento, rolo com dimensões 7cmx 200 m | C19: Und | D19: 12 | E19: ='Fita zebrada'!L37 -> 17.79 | F19: 213.48
A20: 18 | B20: MEGAOFONE com potência de no mínimo 35W, alimentação com bateria de 12v, alcance de no mínimo 600m, peso de 2,5Kg, com manopla e alça de carregamento | C20: Und | D20: 2 | E20: =Megafone!L37 -> 274.2166667 | F20: 548.4333333
A21: 19 | B21: ÓCULOS DE PROTEÇÃO de proteção individual para trabalho sujeitas a particulas e poeiras | C21: Und | D21: 4 | E21: =Oculos!L37 -> 19 | F21: 76
A22: 20 | B22: CAPACETE DE SEGURANÇA com catraca e jugular Tipo III, classe A, de polipropileno injetado | C22: Und | D22: 4 | E22: =Capacete!L37 -> 46.6 | F22: 186.4
A23: 21 | B23: ESPATULA | C23: Und | D23: 1 | E23: =Espatula!L37 -> 12.28333333 | F23: 12.28333333
A24: 22 | B24: EQUIPAMENTO DE RADIOCOMUNICAÇÃO de boa qualidade de recepção/transmissão, inclusive em subsolos, licença da ANATEL, compostos por rádio, bateria recarregável, carregadores e baterias sobressalentes. Equipamento deve ser compativel com o equipamento de radiocomunicação da equipe de Vigilância contratada pela Codevasf. | C24: Und | D24: 4 | E24: =Rádiocomunicador!L37 -> 188.3252512 | F24: 753.3010048
A25: 23 | B25: TRENA de 30m | C25: Und | D25: 1 | E25: =Trena!L37 -> 117.9 | F25: 117.9
A26: 24 | B26: LUVAS PARA COMBATE DE INCENDIO | C26: Und | D26: 4 | E26: =Luvas!L37 -> 154.48 | F26: 617.92
A27: 25 | B27: DESCENSOR TIPO 8 para resgate, confeccionado em duraluminio de alta resistência, tensão mínima de ruptura de 22KN. | C27: Und | D27: 2 | E27: =Descensor!L37 -> 102 | F27: 204
A28: 26 | B28: MOSQUETÃO TIPO DELTA (assimetrico), fabircado em duraluminio, com trava de rosca, tensão minima de ruptura de 22KN, para ser usado em sistemas de descensor. | C28: Und | D28: 4 | E28: =Mosquetão!L37 -> 137.04 | F28: 548.16
A30: VALOR TOTAL ANUAL | F30: =SUM(F3:F29) -> 5712.432671
A32: CUSTO MENSAL POR FUNCIONÁRIO (VALOR MENSAL / 08/12) | F32: =F30/8/12 -> 59.50450699 | G32: =F32*8 -> 476.036056 | H32: =G32*12 -> 5712.432671

Sheet Mat. e Equip. Prim. Socorros
A1: MATERIAS E EQUIPAMENTOS PRIMEIROS SOCORROS
A2: Item | B2: Descrição | C2: Unidade de Fornecimento | D2: QTD Total | E2: Preço Unit. CODEVASF | F2: Preço Total Codevasf
A3: 1 | B3: ÁGUA OXIGENADA 10 volumes embalada em frascos de plástico de 200ml | C3: Und | D3: 2 | E3: ='Agua Oxigenada'!L37 -> 3.366666667 | F3: =E3*D3 -> 6.733333333
A4: 2 | B4: ÁLCOOL (70% - litro) | C4: Und | D4: 6 | E4: =Alcool!L37 -> 9.9 | F4: =E4*D4 -> 59.4
A5: 3 | B5: ÁLCOOL IODADO para superfícies fixas, antissepsia da pele em procedimentos de médio e baixo risco, embalado em frascos plásticos de 500ml | C5: Und | D5: 2 | E5: ='Alcool Iodado'!L37 -> 5.87 | F5: 11.74
A6: 4 | B6: ATADURA CREPE 10cm de largura, 1,80m. | C6: Und | D6: 10 | E6: ='Atadura 10cm'!L37 -> 4.213333333 | F6: 42.13333333
A7: 5 | B7: ATADURA CREPE 20cm de largura, 1,80m. | C7: Und | D7: 10 | E7: ='Atadura 20cm'!L37 -> 5.01 | F7: 50.1
A8: 6 | B8: BANDAGENS TRIANGULARES (142 cm x 100 cm x 100 cm) | C8: Und | D8: 3 | E8: =Bandagem!L37 -> 20.39 | F8: 61.17
A9: 7 | B9: CAIXA DE PRIMEIROS SOCORROS | C9: Und | D9: 2 | E9: ='Maleta '!L37 -> 42.9 | F9: 85.8
A10: 8 | B10: COBERTOR/LENÇOL TÉRMICO DE EMERGÊNCIA | C10: Und | D10: 10 | E10: =Cobertor!L37 -> 24.55 | F10: 245.5
A11: 9 | B11: COLAR CERVICAL 4x1 em polietileno de alta densidade, com espessura mínima de 1,5mm, revestido em espuma macia tipo "E.V.A", fecho em velcro de 05mm em um dos lados, abertura frontal que permite a palpação do pulso carotídeo e acesso a traqueia, botões em plástico resistente, possibilita rádio-transparência, tamanho universal. | C11: Und | D11: 2 | E11: ='Colar cervic'!L37 -> 50.39 | F11: 100.78
A12: 10 | B12: COLETE DE IMOBILIZAÇÃO dorsal tipo KED, em nylon, para imobilização desde a cabeça até a região do coccix, com 3 (três) tirantes em cores diferentes para imbilização do tronco e outros 02 (dois) tirantes para fixação dos membros inferiores, regulagem para fixação da tesa e queixo, almofada para apoio da cabeça, todos com engate rápido, acondicionado em sacola de nylon. | C12: Und | D12: 1 | E12: ='Colete Dorsal'!L37 -> 289.82 | F12: 289.82
A13: 11 | B13: COMPRESSAS DE GAZE ESTERILIZADAS (10 cm x 15 cm) – pacote com 10 unidades | C13: Und | D13: 20 | E13: =Gaze!L37 -> 17.99 | F13: 359.8
A14: 12 | B14: CURATIVO ADESIVO protetor retangular (caixa com 40) | C14: Und | D14: 5 | E14: ='Band-aid'!L37 -> 14.29 | F14: 71.45
A15: 13 | B15: ESPARADRAPO IMPERMEÁVEL 10cmx4,5m. | C15: Und | D15: 4 | E15: =Esparadrapo!L37 -> 15.38 | F15: 61.52
A16: 14 | B16: FITA ADESIVA (CREPE) 25mm x 50m | C16: Und | D16: 2 | E16: ='Fita Crepe'!L37 -> 9.6 | F16: 19.2
A17: 15 | B17: GAZE 8 DOBRAS 7,5cm X 7,5cm. 100 unidades cada pacote | C17: Und | D17: 5 | E17: =Compressa!L37 -> 61.15333333 | F17: 305.7666667
A18: 16 | B18: Lençol Descartável Uso Hospitalar; Matéria Prima: 100% Fibra Celulose Natural; Dimensões: 50 Cm X 50 M; Apresentação 1: Em Rolo | C18: Und | D18: 3 | E18: =Lençol!L37 -> 28.59666667 | F18: 85.79
A19: 17 | B19: LUVAS PROCEDIMENTO. Caixa com 50 unidades | C19: Und | D19: 3 | E19: ='Luva Látex'!L37 -> 29.9 | F19: 89.7
A20: 18 | B20: MACA DOBRÁVEL tipo maleta, leve, estrutura em alumínio polido, espuma de densidade D28, revestido em courvim com verniz, com duas alças e rodinhas para transporte, trava de segurança em todos os pés, capacidade de até 130 Kg (170Kg), dimensões: abeta: 1,80 mt 0,60 cm, altura 0,75cm em relação ao solo e dimensões fechadas de 0,90 cm x 0,60 cm. | C20: Und | D20: 1 | E20: =Maca!L37 -> 479.97 | F20: 479.97
A21: 19 | B21: MÁSCARA CIRÚRGICA (caixa com 50) | C21: Und | D21: 3 | E21: =Mascara!L37 -> 44.56 | F21: 133.68
A22: 20 | B22: MÁSCARA RCP DESCARTÁVEL (unidade) | C22: Und | D22: 10 | E22: ='Mascara RCP'!L37 -> 17.83666667 | F22: 178.3666667
A23: 21 | B23: MONITOR DE PRESSÃO ARTERIAL e batimentos cardíacos, ajuste da insuflação automático, de braço, digital, com braçadeira pequena e grande, indicador de nível de carga de bateria, data e hora, memória, visor de cristal líquido. | C23: Und | D23: 2 | E23: ='Medidor de pressão'!L37 -> 167.3966667 | F23: 334.7933333
A24: 22 | B24: PINÇA DISSECÇÃO 16cm, sem dente | C24: Und | D24: 2 | E24: =Pinça!L37 -> 23.48 | F24: 46.96
A25: 23 | B25: PRANCHA longa de madeira ou material similar resistência (190cm x 45cm) com imobilizador lateral de cabeça confeccionado em espuma injetada e com tirantes para fixação da testa e queixo e cinto aranha. | C25: Und | D25: 2 | E25: =Prancha!L37 -> 591.6666667 | F25: 1183.333333
A26: 24 | B26: PROTETOR DE QUEIMADURAS E EVISCERAÇÕES | C26: Und | D26: 3 | E26: ='Protetor queimadura'!L37 -> 12.13666667 | F26: 36.41
A27: 25 | B27: SOLUÇÃO FISIOLÓGICA 250ml | C27: Und | D27: 4 | E27: =Soro!L37 -> 5.9 | F27: 23.6
A28: 26 | B28: TALA moldável grande (86cmx10x2) | C28: Und | D28: 2 | E28: =Tala!L37 -> 21.43333333 | F28: 42.86666667
A29: 27 | B29: TALA moldável média (63cmx9x2) | C29: Und | D29: 2 | E29: ='Tala moldavel'!L37 -> 16.9 | F29: 33.8
A30: 28 | B30: TALA moldável pequena (30cmx8x2) | C30: Und | D30: 2 | E30: ='Tala Aramada'!L37 -> 12.48 | F30: 24.96
A31: 29 | B31: TERMÔMETRO clínico digital com no mínimo, aviso sonoro, visor de temperatura com 03 (três) dígitos, ponta flexível, desligamento automático, dimensões: 2cmx13cmx1cm (PxLxD), bateria substituível, erro máximo: 0,2ºC, 1 pilha LR41 de 1,5V | C31: Und | D31: 2 | E31: =Termometro!L37 -> 22.09 | F31: 44.18
A32: 30 | B32: TESOURA de ponta romba especial para APH, destinado ao corte de roupas. Com lâminas ponta romba e com corte liso. A segunda lâmina contem apoio para corte semicircular e corte micro-serrilhado. | C32: Und | D32: 2 | E32: =Tesoura!L37 -> 28.00333333 | F32: 56.00666667
A33: 31 | B33: PADIOLA dobrável no padrão (1,90m x 0,60m) com três cintos para afixar a vítima, confeccionada com material de alta qualidade com resistência mínima de 150 kg, em lona impermeável. | C33: Und | D33: 1 | E33: =Padiola!L37 -> 1070.816667 | F33: 1070.816667
A34: 32 | B34: BOLSA TÉRMICA de gel para uso quente ou gelado. 25 cm x 14 cm. | C34: Und | D34: 2 | E34: ='Bolsa termica'!L37 -> 22.86333333 | F34: 45.72666667
A35: 33 | B35: OXIMETRO digital de dedo, medidor portátil de saturação de oxigenio no sangue | C35: Und | D35: 2 | E35: =Oximetro!L37 -> 122.7733333 | F35: 245.5466667
A38: VALOR TOTAL ANUAL | F38: =SUM(F3:F37) -> 5927.42
A40: CUSTO MENSAL POR FUNCIONÁRIO (VALOR MENSAL / 08/12) | F40: =F38/8/12 -> 61.74395833 | G40: =F40*8 -> 493.9516667 | H40: =G40*12 -> 5927.42

Sheet Equip. cont. ronda eletrônica
A1: PLANILHA DE PESQUISA DE PREÇOS EQUIPAMENTOS DE CONTROLE DE RONDA ELETRÔNICA
A2: Item | B2: Descrição | C2: Unidade de Fornecimento | D2: QTD Total | E2: Preço Unit. CODEVASF | F2: Preço Total Codevasf
A3: 1 | B3: BASTÃO DE RONDA com estojo de proteção e baterias, interface USB para descarga de dados no PC por meio de base coletora ou cabo, manual de instalação e CD com o Software para gerar relatórios de rondas, com no mínimo 10 I-buttons. | C3: Und | D3: 2 | E3: ='[2]Item 1'!$L$30 -> 711.2666667 | F3: =E3*D3 -> 1422.533333
A4: 2 | B4: I-buttons avulsos com suporte | C4: Und | D4: 30 | E4: ='I-buttons'!L37 -> 59.98333333 | F4: =E4*D4 -> 1799.5 | G4: Colocar 4 i-buttons por andar, mais cobertura, garagem, área externa.
A6: VALOR TOTAL ANUAL | F6: =SUM(F3:F5) -> 3222.033333
A8: CUSTO MENSAL POR FUNCIONÁRIO (VALOR MENSAL / 08/12) | F8: =F6/8/12 -> 33.56284722 | G8: =F8*8 -> 268.5027778 | H8: =G8*12 -> 3222.033333

Sheet Agua Oxigenada (hidden)
B2: Processo
B3: Responsável
B4: Área de Origem
B5: Data da pesquisa
B7: ITEM: | C7: ÁGUA OXIGENADA 10 volumes embalada em frascos de plástico de 200ml | I7: UNIDADE DE MEDIDA: | J7: Unidade | K7: 2 | O7: Tabela auxiliar de metodologias para exclusão de preços
B8: LICITAÇÕES ANTERIORES | O8: Licitações Anteriores
B9: Órgão | C9: Edital/Ano - Nº do Lote / Item | D9: Quantidade | E9: Valor Unitário | F9: Data | G9: índice de atualização (nome) | H9: I0 | I9: If | J9: Variação acumulada do índice (%) | K9: Preço unitário atualizado | L9: Utilizar? (Sim/Não) | O9: Outliers | P9: Por critério do(a) analista
J10: =IF(ISBLANK(E10),"",IF(ISNUMBER(H10),(I10-H10)/H10,0)) ->  | K10: =IF(ISBLANK(E10),"",E10*(1+J10)) ->  | L10: =IF(ISNUMBER(K10),IF($L$32<>$P$9,O10,P10),"") ->  | O10: =IF(ISNUMBER(K10),IF(OR(K10<_xlfn.QUARTILE.INC($K$10:$K$29,1)-1.5*(_xlfn.QUARTILE.INC($K$10:K29,3)-_xlfn.QUARTILE.INC($K$10:$K$29,1)),K10>_xlfn.QUARTILE.INC($K$10:$K$29,3)+1.5*(_xlfn.QUARTILE.INC($K$10:$K$29,3)-_xlfn.QUARTILE.INC($K$10:$K$29,1))),"Não","Sim"),"") -> 
J11: =IF(ISBLANK(E11),"",IF(ISNUMBER(H11),(I11-H11)/H11,0)) ->  | K11: =IF(ISBLANK(E11),"",E11*(1+J11)) ->  | O11: =IF(ISNUMBER(K11),IF(OR(K11<_xlfn.QUARTILE.INC($K$10:$K$29,1)-1.5*(_xlfn.QUARTILE.INC($K$10:K29,3)-_xlfn.QUARTILE.INC($K$10:$K$29,1)),K11>_xlfn.QUARTILE.INC($K$10:$K$29,3)+1.5*(_xlfn.QUARTILE.INC($K$10:$K$29,3)-_xlfn.QUARTILE.INC($K$10:$K$29,1))),"Não","Sim"),"") -> 
O12: =IF(ISNUMBER(K12),IF(OR(K12<_xlfn.QUARTILE.INC($K$10:$K$29,1)-1.5*(_xlfn.QUARTILE.INC($K$10:K30,3)-_xlfn.QUARTILE.INC($K$10:$K$29,1)),K12>_xlfn.QUARTILE.INC($K$10:$K$29,3)+1.5*(_xlfn.QUARTILE.INC($K$10:$K$29,3)-_xlfn.QUARTILE.INC($K$10:$K$29,1))),"Não","Sim"),"") -> 
O13: =IF(ISNUMBER(K13),IF(OR(K13<_xlfn.QUARTILE.INC($K$10:$K$29,1)-1.5*(_xlfn.QUARTILE.INC($K$10:K31,3)-_xlfn.QUARTILE.INC($K$10:$K$29,1)),K13>_xlfn.QUARTILE.INC($K$10:$K$29,3)+1.5*(_xlfn.QUARTILE.INC($K$10:$K$29,3)-_xlfn.QUARTILE.INC($K$10:$K$29,1))),"Não","Sim"),"") -> 
O14: =IF(ISNUMBER(K14),IF(OR(K14<_xlfn.QUARTILE.INC($K$10:$K$29,1)-1.5*(_xlfn.QUARTILE.INC($K$10:K32,3)-_xlfn.QUARTILE.INC($K$10:$K$29,1)),K14>_xlfn.QUARTILE.INC($K$10:$K$29,3)+1.5*(_xlfn.QUARTILE.INC($K$10:$K$29,3)-_xlfn.QUARTILE.INC($K$10:$K$29,1))),"Não","Sim"),"") -> 
O15: =IF(ISNUMBER(K15),IF(OR(K15<_xlfn.QUARTILE.INC($K$10:$K$29,1)-1.5*(_xlfn.QUARTILE.INC($K$10:K35,3)-_xlfn.QUARTILE.INC($K$10:$K$29,1)),K15>_xlfn.QUARTILE.INC($K$10:$K$29,3)+1.5*(_xlfn.QUARTILE.INC($K$10:$K$29,3)-_xlfn.QUARTILE.INC($K$10:$K$29,1))),"Não","Sim"),"") -> 
O16: =IF(ISNUMBER(K16),IF(OR(K16<_xlfn.QUARTILE.INC($K$10:$K$29,1)-1.5*(_xlfn.QUARTILE.INC($I$10:I37,3)-_xlfn.QUARTILE.INC($K$10:$K$29,1)),K16>_xlfn.QUARTILE.INC($K$10:$K$29,3)+1.5*(_xlfn.QUARTILE.INC($K$10:$K$29,3)-_xlfn.QUARTILE.INC($K$10:$K$29,1))),"Não","Sim"),"") -> 
B17: COTAÇÕES DE MERCADO | O17: Cotações
B18: Empresa | J18: Data | K18: Preço Unitário | L18: Utilizar? (Sim/Não) | O18: Outliers | P18: Por critério do(a) analista
B19: Drogaria Rosário - https://www.drogariarosario.com.br/agua-oxigenada-farmax-10-volume-100ml-farmax/p?idsku=2490&utm_source=googleshopping&utm_source=google&utm_medium=cpc&utm_campaign=pmax.novosusuarios&gad_source=1&gad_campaignid=21197072094&gbraid=0AAAAACRP8poMfvdeCWJwW9MfUgWmYhAFf&gclid=CjwKCAjwtcHPBhADEiwAWo3sJjTCjr7slJjVw0bAn712YLjdB4XF_6m3KGxKgLkLgxTZjVBLo2kOPxoCNqEQAvD_BwE | J19: 2026-04-28 | K19: 1.99 | L19: =IF(ISNUMBER(K19),IF($L$32=$O$18,O19,IF($L$32=$P$18,P19,"")),"") -> Sim | O19: =IF(ISNUMBER(K19),IF(OR(K19<_xlfn.QUARTILE.INC($K$10:$K$29,1)-1.5*(_xlfn.QUARTILE.INC($K$10:$K$29,3)-_xlfn.QUARTILE.INC($K$10:$K$29,1)),K19>_xlfn.QUARTILE.INC($K$10:$K$29,3)+1.5*(_xlfn.QUARTILE.INC($K$10:$K$29,3)-_xlfn.QUARTILE.INC($K$10:$K$29,1))),"Não","Sim"),"") -> Sim
B20: Utilidades Clínicas - https://www.utilidadesclinicas.com.br/agua-oxigenada-10-volumes-antisseptica-100ml-farmax-farmaceuticos-far26360a.html?gad_source=1&gad_campaignid=20755738692&gbraid=0AAAAADbsX57dKzO0XuY-6mJLXMZAlgojp&gclid=CjwKCAjwtcHPBhADEiwAWo3sJnbKzz4Ep09inG916qZ6bFWZy7NXUvCG9aQZKa0Vsn_qpLg2HqImzhoCTI4QAvD_BwE | J20: 2026-04-28 | K20: 3.58 | L20: Sim | O20: Sim
B21: Magazine Luiza - https://www.magazineluiza.com.br/agua-oxigenada-10-volumes-100ml-farmax/p/kj58317f45/pf/aoxg/?&seller_id=farmapontesorocaba&utm_source=google&utm_medium=cpc&utm_term=84403&utm_campaign=google_eco_per_ven_pla_bel_sor_3p_cab-cp-drm-maq-pfm-b-0326&utm_content=&partner_id=84403&gclsrc=aw.ds&gad_source=1&gad_campaignid=23604909838&gbraid=0AAAAAD4zZmT3QqsAvUIO3HpDU6Amx0ZTa&gclid=CjwKCAjwtcHPBhADEiwAWo3sJrtBwY8sVoCP7fVItJ4MOU1OmDmxkAS_6GA5yeS2iD24UmMIi-MoBRoCZ_wQAvD_BwE | J21: 2026-04-28 | K21: 4.53 | L21: Sim | O21: Sim
B30: Observações: | K30: Média: | L30: =IF($L$32="","Selecione metodologia para exclusão de preços",AVERAGE(IF($L$10:$L$29="Sim",$K$10:$K$29))) -> 3.366666667 | N30: Média (Cotações) | O30: =IF(COUNTIF(O19:O29,"Sim")<3,"N/D (são necessários pelo menos 3 preços)",AVERAGE(IF(O19:O29="Sim",$K19:$K29))) -> 3.366666667 | P30: =IF(COUNTIF(P19:P29,"Sim")<3,"N/D (são necessários pelo menos 3 preços)",AVERAGE(IF(P19:P29="Sim",$K19:$K29))) -> N/D (são necessários pelo menos 3 preços)
K31: Mediana: | L31: =IF($L$32="","Selecione metodologia para exclusão de preços",MEDIAN(IF($L$10:$L$29="Sim",$K$10:$K$29))) -> 3.58 | N31: Mediana (Cotações) | O31: =IF(COUNTIF(O19:O29,"Sim")<3,"N/D (são necessários pelo menos 3 preços)",MEDIAN(IF(O19:O29="Sim",$K19:$K29))) -> 3.58 | P31: =IF(COUNTIF(P19:P29,"Sim")<3,"N/D (são necessários pelo menos 3 preços)",MEDIAN(IF(P19:P29="Sim",$K19:$K29))) -> N/D (são necessários pelo menos 3 preços)
B32: Metodologia de exclusão de preços adotada: | L32: =IF(O35="",INDEX(O18:P18,MATCH(MIN(#REF!),#REF!,0)),O35) -> Outliers | N32: CV (Cotações) | O32: =IF(COUNTIF(O19:O29,"Sim")<3,"N/D (são necessários pelo menos 3 preços)",_xlfn.STDEV.S(IF(O19:O29="Sim",$K19:$K29))/AVERAGE(IF(O19:O29="Sim",$K19:$K29))) -> 0.3811984054 | P32: =IF(COUNTIF(P19:P29,"Sim")<3,"N/D (são necessários pelo menos 3 preços)",_xlfn.STDEV.S(IF(P19:P29="Sim",$K19:$K29))/AVERAGE(IF(P19:P29="Sim",$K19:$K29))) -> N/D (são necessários pelo menos 3 preços)
N33: Média | O33: =IF(SUM(COUNTIF($O$10:$O$16,"Sim")) + SUM(COUNTIF(O19:O29,"Sim")) < 3, "N/D (são necessários pelo menos 3 preços)", IFERROR(AVERAGE(_xlfn._xlws.FILTER($K$10:$K$16,$O$10:$O$16="Sim"), _xlfn._xlws.FILTER($K$19:$K$29,O19:O29="Sim")),O30)) -> 3.366666667 | P33: =IF(SUM(COUNTIF($P$10:$P$16,"Sim")) + SUM(COUNTIF(P19:P29,"Sim")) < 3, "N/D (são necessários pelo menos 3 preços)", IFERROR(AVERAGE(_xlfn._xlws.FILTER($K$10:$K$16,$P$10:$P$16="Sim"), _xlfn._xlws.FILTER($K$19:$K$29,P19:P29="Sim")),P30)) -> N/D (são necessários pelo menos 3 preços)
N34: Mediana | O34: =IF(SUM(COUNTIF($O$10:$O$16,"Sim")) + SUM(COUNTIF(O19:O29,"Sim")) < 3, "N/D (são necessários pelo menos 3 preços)", IFERROR(MEDIAN(_xlfn._xlws.FILTER($K$10:$K$16,$O$10:$O$16="Sim"), _xlfn._xlws.FILTER($K$19:$K$29,O19:O29="Sim")),O31)) -> 3.58 | P34: =IF(SUM(COUNTIF($P10:$P$16,"Sim")) + SUM(COUNTIF(P19:P29,"Sim")) < 3, "N/D (são necessários pelo menos 3 preços)", IFERROR(MEDIAN(_xlfn._xlws.FILTER($K$10:$K$16,$P$10:$P$16="Sim"), _xlfn._xlws.FILTER($K$19:$K$29,P19:P29="Sim")),P31)) -> N/D (são necessários pelo menos 3 preços)
B35: COSOLIDAÇÃO DOS PREÇOS | N35: Metodologia a adotar: | O35: =IF(INDEX(O18:P18,P35)=0,"",INDEX(O18:P18,P35)) -> Outliers | P35: 1
B37: PREÇO UNITÁRIO ESTIMADO ADOTADO: | L37: =IF($B$39="Mediana:",L31,L30) -> 3.366666667
A39: =O18 -> Outliers | B39: Média:

Sheet Alcool (hidden)
B2: Processo
B3: Responsável
B4: Área de Origem
B5: Data da pesquisa
B7: ITEM: | C7: ÁLCOOL (70% - litro) | I7: UNIDADE DE MEDIDA: | J7: Unidade | K7: QUANTIDADE: | L7: 6 | O7: Tabela auxiliar de metodologias para exclusão de preços
B8: LICITAÇÕES ANTERIORES | O8: Licitações Anteriores
B9: Órgão | C9: Edital/Ano - Nº do Lote / Item | D9: Quantidade | E9: Valor Unitário | F9: Data | G9: índice de atualização (nome) | H9: I0 | I9: If | J9: Variação acumulada do índice (%) | K9: Preço unitário atualizado | L9: Utilizar? (Sim/Não) | O9: Outliers | P9: Por critério do(a) analista
J10: =IF(ISBLANK(E10),"",IF(ISNUMBER(H10),(I10-H10)/H10,0)) ->  | K10: =IF(ISBLANK(E10),"",E10*(1+J10)) ->  | L10: =IF(ISNUMBER(K10),IF($L$32<>$P$9,O10,P10),"") ->  | O10: =IF(ISNUMBER(K10),IF(OR(K10<_xlfn.QUARTILE.INC($K$10:$K$29,1)-1.5*(_xlfn.QUARTILE.INC($K$10:K29,3)-_xlfn.QUARTILE.INC($K$10:$K$29,1)),K10>_xlfn.QUARTILE.INC($K$10:$K$29,3)+1.5*(_xlfn.QUARTILE.INC($K$10:$K$29,3)-_xlfn.QUARTILE.INC($K$10:$K$29,1))),"Não","Sim"),"") -> 
J11: =IF(ISBLANK(E11),"",IF(ISNUMBER(H11),(I11-H11)/H11,0)) ->  | K11: =IF(ISBLANK(E11),"",E11*(1+J11)) ->  | O11: =IF(ISNUMBER(K11),IF(OR(K11<_xlfn.QUARTILE.INC($K$10:$K$29,1)-1.5*(_xlfn.QUARTILE.INC($K$10:K29,3)-_xlfn.QUARTILE.INC($K$10:$K$29,1)),K11>_xlfn.QUARTILE.INC($K$10:$K$29,3)+1.5*(_xlfn.QUARTILE.INC($K$10:$K$29,3)-_xlfn.QUARTILE.INC($K$10:$K$29,1))),"Não","Sim"),"") -> 
O12: =IF(ISNUMBER(K12),IF(OR(K12<_xlfn.QUARTILE.INC($K$10:$K$29,1)-1.5*(_xlfn.QUARTILE.INC($K$10:K30,3)-_xlfn.QUARTILE.INC($K$10:$K$29,1)),K12>_xlfn.QUARTILE.INC($K$10:$K$29,3)+1.5*(_xlfn.QUARTILE.INC($K$10:$K$29,3)-_xlfn.QUARTILE.INC($K$10:$K$29,1))),"Não","Sim"),"") -> 
O13: =IF(ISNUMBER(K13),IF(OR(K13<_xlfn.QUARTILE.INC($K$10:$K$29,1)-1.5*(_xlfn.QUARTILE.INC($K$10:K31,3)-_xlfn.QUARTILE.INC($K$10:$K$29,1)),K13>_xlfn.QUARTILE.INC($K$10:$K$29,3)+1.5*(_xlfn.QUARTILE.INC($K$10:$K$29,3)-_xlfn.QUARTILE.INC($K$10:$K$29,1))),"Não","Sim"),"") -> 
O14: =IF(ISNUMBER(K14),IF(OR(K14<_xlfn.QUARTILE.INC($K$10:$K$29,1)-1.5*(_xlfn.QUARTILE.INC($K$10:K32,3)-_xlfn.QUARTILE.INC($K$10:$K$29,1)),K14>_xlfn.QUARTILE.INC($K$10:$K$29,3)+1.5*(_xlfn.QUARTILE.INC($K$10:$K$29,3)-_xlfn.QUARTILE.INC($K$10:$K$29,1))),"Não","Sim"),"") -> 
O15: =IF(ISNUMBER(K15),IF(OR(K15<_xlfn.QUARTILE.INC($K$10:$K$29,1)-1.5*(_xlfn.QUARTILE.INC($K$10:K35,3)-_xlfn.QUARTILE.INC($K$10:$K$29,1)),K15>_xlfn.QUARTILE.INC($K$10:$K$29,3)+1.5*(_xlfn.QUARTILE.INC($K$10:$K$29,3)-_xlfn.QUARTILE.INC($K$10:$K$29,1))),"Não","Sim"),"") -> 
O16: =IF(ISNUMBER(K16),IF(OR(K16<_xlfn.QUARTILE.INC($K$10:$K$29,1)-1.5*(_xlfn.QUARTILE.INC($I$10:I37,3)-_xlfn.QUARTILE.INC($K$10:$K$29,1)),K16>_xlfn.QUARTILE.INC($K$10:$K$29,3)+1.5*(_xlfn.QUARTILE.INC($K$10:$K$29,3)-_xlfn.QUARTILE.INC($K$10:$K$29,1))),"Não","Sim"),"") -> 
B17: COTAÇÕES DE MERCADO | O17: Cotações
B18: Empresa | J18: Data | K18: Preço Unitário | L18: Utilizar? (Sim/Não) | O18: Outliers | P18: Por critério do(a) analista
B19: https://www.multdistribuidora.com.br/alcool-liquido-araucaria-70-1litro?srsltid=AfmBOopNoSAswJlcivcgZElHolWiFZqTzbNLKhSaDJGfknjIn9rCx8SA | J19: 2026-04-28 | K19: 7.6 | L19: =IF(ISNUMBER(K19),IF($L$32=$O$18,O19,IF($L$32=$P$18,P19,"")),"") -> Sim | O19: =IF(ISNUMBER(K19),IF(OR(K19<_xlfn.QUARTILE.INC($K$10:$K$29,1)-1.5*(_xlfn.QUARTILE.INC($K$10:$K$29,3)-_xlfn.QUARTILE.INC($K$10:$K$29,1)),K19>_xlfn.QUARTILE.INC($K$10:$K$29,3)+1.5*(_xlfn.QUARTILE.INC($K$10:$K$29,3)-_xlfn.QUARTILE.INC($K$10:$K$29,1))),"Não","Sim"),"") -> Sim
B20: https://www.dentalspeed.com/alcool-70-1l-prolink.html?srsltid=AfmBOormD65FWczrLYf-bLKlOYAkv-rC3kmPi7-aqSCeCVlCLoJN7dOp | J20: 2026-04-28 | K20: 9.9 | L20: Sim | O20: Sim
B21: https://www.amazon.com.br/%C3%81lcool-L%C3%ADquido-Tupi-99-Bact%C3%A9rias/dp/B0G39ZMTQV/ref=sr_1_3_sspa?crid=1ETOG1Z4XWYOH&dib=eyJ2IjoiMSJ9.uxwRfZgelrFelGmMq48w840ifndzFTts6BoZaizBZzlTQ_E9tZCC_Jg833aijHwdeeqkR97NislS5vkZENeujK0XJHOqaHIc6tXBucGk4yKQ_BWi4HeTeeP7EuF9eW_mY_nt4rcf5blE7ZlYtTfRSgKDUkcgyKxggUltRY9OfP8Db9N3py3VTZa1_FXRsbTJbGUtDxxtVnt6df_hFRG0fPumc4oB1ZQIGnXIwp2mTG_XUzMKNxnMPzoYLA05tjfHSRaJsOf-NBkZ_91sOi8OXQCuWvwc5Vb2UjVItjezldU.xO1KLE4hcIxPXS9bp7PeXMaUydM-3ksqXICebhQRqJs&dib_tag=se&keywords=alcool+70+1l&qid=1777382637&sprefix=alcool+70%25+1%2Caps%2C207&sr=8-3-spons&sp_csd=d2lkZ2V0TmFtZT1zcF9hdGY&psc=1 | J21: 2026-04-28 | K21: 19.53 | L21: Sim | O21: Sim
B30: Observações: | K30: Média: | L30: =IF($L$32="","Selecione metodologia para exclusão de preços",AVERAGE(IF($L$10:$L$29="Sim",$K$10:$K$29))) -> 12.34333333 | N30: Média (Cotações) | O30: =IF(COUNTIF(O19:O29,"Sim")<3,"N/D (são necessários pelo menos 3 preços)",AVERAGE(IF(O19:O29="Sim",$K19:$K29))) -> 12.34333333 | P30: =IF(COUNTIF(P19:P29,"Sim")<3,"N/D (são necessários pelo menos 3 preços)",AVERAGE(IF(P19:P29="Sim",$K19:$K29))) -> N/D (são necessários pelo menos 3 preços)
K31: Mediana: | L31: =IF($L$32="","Selecione metodologia para exclusão de preços",MEDIAN(IF($L$10:$L$29="Sim",$K$10:$K$29))) -> 9.9 | N31: Mediana (Cotações) | O31: =IF(COUNTIF(O19:O29,"Sim")<3,"N/D (são necessários pelo menos 3 preços)",MEDIAN(IF(O19:O29="Sim",$K19:$K29))) -> 9.9 | P31: =IF(COUNTIF(P19:P29,"Sim")<3,"N/D (são necessários pelo menos 3 preços)",MEDIAN(IF(P19:P29="Sim",$K19:$K29))) -> N/D (são necessários pelo menos 3 preços)
B32: Metodologia de exclusão de preços adotada: | L32: =IF(O35="",INDEX(O18:P18,MATCH(MIN(#REF!),#REF!,0)),O35) -> Outliers | N32: CV (Cotações) | O32: =IF(COUNTIF(O19:O29,"Sim")<3,"N/D (são necessários pelo menos 3 preços)",_xlfn.STDEV.S(IF(O19:O29="Sim",$K19:$K29))/AVERAGE(IF(O19:O29="Sim",$K19:$K29))) -> 0.5127617333 | P32: =IF(COUNTIF(P19:P29,"Sim")<3,"N/D (são necessários pelo menos 3 preços)",_xlfn.STDEV.S(IF(P19:P29="Sim",$K19:$K29))/AVERAGE(IF(P19:P29="Sim",$K19:$K29))) -> N/D (são necessários pelo menos 3 preços)
N33: Média | O33: =IF(SUM(COUNTIF($O$10:$O$16,"Sim")) + SUM(COUNTIF(O19:O29,"Sim")) < 3, "N/D (são necessários pelo menos 3 preços)", IFERROR(AVERAGE(_xlfn._xlws.FILTER($K$10:$K$16,$O$10:$O$16="Sim"), _xlfn._xlws.FILTER($K$19:$K$29,O19:O29="Sim")),O30)) -> 12.34333333 | P33: =IF(SUM(COUNTIF($P$10:$P$16,"Sim")) + SUM(COUNTIF(P19:P29,"Sim")) < 3, "N/D (são necessários pelo menos 3 preços)", IFERROR(AVERAGE(_xlfn._xlws.FILTER($K$10:$K$16,$P$10:$P$16="Sim"), _xlfn._xlws.FILTER($K$19:$K$29,P19:P29="Sim")),P30)) -> N/D (são necessários pelo menos 3 preços)
N34: Mediana | O34: =IF(SUM(COUNTIF($O$10:$O$16,"Sim")) + SUM(COUNTIF(O19:O29,"Sim")) < 3, "N/D (são necessários pelo menos 3 preços)", IFERROR(MEDIAN(_xlfn._xlws.FILTER($K$10:$K$16,$O$10:$O$16="Sim"), _xlfn._xlws.FILTER($K$19:$K$29,O19:O29="Sim")),O31)) -> 9.9 | P34: =IF(SUM(COUNTIF($P10:$P$16,"Sim")) + SUM(COUNTIF(P19:P29,"Sim")) < 3, "N/D (são necessários pelo menos 3 preços)", IFERROR(MEDIAN(_xlfn._xlws.FILTER($K$10:$K$16,$P$10:$P$16="Sim"), _xlfn._xlws.FILTER($K$19:$K$29,P19:P29="Sim")),P31)) -> N/D (são necessários pelo menos 3 preços)
B35: COSOLIDAÇÃO DOS PREÇOS | N35: Metodologia a adotar: | O35: =IF(INDEX(O18:P18,P35)=0,"",INDEX(O18:P18,P35)) -> Outliers | P35: 1
B37: PREÇO UNITÁRIO ESTIMADO ADOTADO: | L37: =IF($B$39="Mediana:",L31,L30) -> 9.9
A39: =O18 -> Outliers | B39: Mediana:

Sheet Alcool Iodado (hidden)
B2: Processo
B3: Responsável
B4: Área de Origem
B5: Data da pesquisa
B7: ITEM: | C7: ÁLCOOL IODADO para superfícies fixas, antissepsia da pele em procedimentos de médio e baixo risco, embalado em frascos plásticos de 500ml | I7: UNIDADE DE MEDIDA: | J7: Unidade | K7: QUANTIDADE: | L7: 2 | O7: Tabela auxiliar de metodologias para exclusão de preços
B8: LICITAÇÕES ANTERIORES | O8: Licitações Anteriores
B9: Órgão | C9: Edital/Ano - Nº do Lote / Item | D9: Quantidade | E9: Valor Unitário | F9: Data | G9: índice de atualização (nome) | H9: I0 | I9: If | J9: Variação acumulada do índice (%) | K9: Preço unitário atualizado | L9: Utilizar? (Sim/Não) | O9: Outliers | P9: Por critério do(a) analista
J10: =IF(ISBLANK(E10),"",IF(ISNUMBER(H10),(I10-H10)/H10,0)) ->  | K10: =IF(ISBLANK(E10),"",E10*(1+J10)) ->  | L10: =IF(ISNUMBER(K10),IF($L$32<>$P$9,O10,P10),"") ->  | O10: =IF(ISNUMBER(K10),IF(OR(K10<_xlfn.QUARTILE.INC($K$10:$K$29,1)-1.5*(_xlfn.QUARTILE.INC($K$10:K29,3)-_xlfn.QUARTILE.INC($K$10:$K$29,1)),K10>_xlfn.QUARTILE.INC($K$10:$K$29,3)+1.5*(_xlfn.QUARTILE.INC($K$10:$K$29,3)-_xlfn.QUARTILE.INC($K$10:$K$29,1))),"Não","Sim"),"") -> 
J11: =IF(ISBLANK(E11),"",IF(ISNUMBER(H11),(I11-H11)/H11,0)) ->  | K11: =IF(ISBLANK(E11),"",E11*(1+J11)) ->  | O11: =IF(ISNUMBER(K11),IF(OR(K11<_xlfn.QUARTILE.INC($K$10:$K$29,1)-1.5*(_xlfn.QUARTILE.INC($K$10:K29,3)-_xlfn.QUARTILE.INC($K$10:$K$29,1)),K11>_xlfn.QUARTILE.INC($K$10:$K$29,3)+1.5*(_xlfn.QUARTILE.INC($K$10:$K$29,3)-_xlfn.QUARTILE.INC($K$10:$K$29,1))),"Não","Sim"),"") -> 
O12: =IF(ISNUMBER(K12),IF(OR(K12<_xlfn.QUARTILE.INC($K$10:$K$29,1)-1.5*(_xlfn.QUARTILE.INC($K$10:K30,3)-_xlfn.QUARTILE.INC($K$10:$K$29,1)),K12>_xlfn.QUARTILE.INC($K$10:$K$29,3)+1.5*(_xlfn.QUARTILE.INC($K$10:$K$29,3)-_xlfn.QUARTILE.INC($K$10:$K$29,1))),"Não","Sim"),"") -> 
O13: =IF(ISNUMBER(K13),IF(OR(K13<_xlfn.QUARTILE.INC($K$10:$K$29,1)-1.5*(_xlfn.QUARTILE.INC($K$10:K31,3)-_xlfn.QUARTILE.INC($K$10:$K$29,1)),K13>_xlfn.QUARTILE.INC($K$10:$K$29,3)+1.5*(_xlfn.QUARTILE.INC($K$10:$K$29,3)-_xlfn.QUARTILE.INC($K$10:$K$29,1))),"Não","Sim"),"") -> 
O14: =IF(ISNUMBER(K14),IF(OR(K14<_xlfn.QUARTILE.INC($K$10:$K$29,1)-1.5*(_xlfn.QUARTILE.INC($K$10:K32,3)-_xlfn.QUARTILE.INC($K$10:$K$29,1)),K14>_xlfn.QUARTILE.INC($K$10:$K$29,3)+1.5*(_xlfn.QUARTILE.INC($K$10:$K$29,3)-_xlfn.QUARTILE.INC($K$10:$K$29,1))),"Não","Sim"),"") -> 
O15: =IF(ISNUMBER(K15),IF(OR(K15<_xlfn.QUARTILE.INC($K$10:$K$29,1)-1.5*(_xlfn.QUARTILE.INC($K$10:K35,3)-_xlfn.QUARTILE.INC($K$10:$K$29,1)),K15>_xlfn.QUARTILE.INC($K$10:$K$29,3)+1.5*(_xlfn.QUARTILE.INC($K$10:$K$29,3)-_xlfn.QUARTILE.INC($K$10:$K$29,1))),"Não","Sim"),"") -> 
O16: =IF(ISNUMBER(K16),IF(OR(K16<_xlfn.QUARTILE.INC($K$10:$K$29,1)-1.5*(_xlfn.QUARTILE.INC($I$10:I37,3)-_xlfn.QUARTILE.INC($K$10:$K$29,1)),K16>_xlfn.QUARTILE.INC($K$10:$K$29,3)+1.5*(_xlfn.QUARTILE.INC($K$10:$K$29,3)-_xlfn.QUARTILE.INC($K$10:$K$29,1))),"Não","Sim"),"") -> 
B17: COTAÇÕES DE MERCADO | O17: Cotações
B18: Empresa | J18: Data | K18: Preço Unitário | L18: Utilizar? (Sim/Não) | O18: Outliers | P18: Por critério do(a) analista
B19: Magazine Médica - https://magazinemedica.com.br/produtos/visualiza/sku/12686/?gad_source=1&gad_campaignid=23257119241&gbraid=0AAAAA-LLl3RLzXqqgnGcdPho_yiSl5zbL&gclid=CjwKCAjwtcHPBhADEiwAWo3sJv4HoWoTw2IdmSd-R_sdh6bXxJp8_5_UpfTjLcg86DkBsgfuvI7ggxoCDugQAvD_BwE | J19: 2026-04-28 | K19: 6.63 | L19: =IF(ISNUMBER(K19),IF($L$32=$O$18,O19,IF($L$32=$P$18,P19,"")),"") -> Sim | O19: =IF(ISNUMBER(K19),IF(OR(K19<_xlfn.QUARTILE.INC($K$10:$K$29,1)-1.5*(_xlfn.QUARTILE.INC($K$10:$K$29,3)-_xlfn.QUARTILE.INC($K$10:$K$29,1)),K19>_xlfn.QUARTILE.INC($K$10:$K$29,3)+1.5*(_xlfn.QUARTILE.INC($K$10:$K$29,3)-_xlfn.QUARTILE.INC($K$10:$K$29,1))),"Não","Sim"),"") -> Sim
B20: Utilidades Clínicas - https://www.utilidadesclinicas.com.br/alcool-iodado-almotolia-100ml-rioquimica-rio23379a.html?gad_source=1&gad_campaignid=20593790294&gbraid=0AAAAADbsX56R_MC0lTdeCDTjmg_7zjyGF&gclid=CjwKCAjwtcHPBhADEiwAWo3sJh0BDfYHnKRdWXFaSPLxMZ_NYtJYhxUBEfIlG7G0_FkSA8tYzwhJ6hoCAlgQAvD_BwE | J20: 2026-04-28 | K20: 5.87 | L20: Sim | O20: Sim
B21: Instrumentar Técnico - https://www.instrumentaltecnico.com.br/consumo/higiene/alcool-iodado-0-1-100ml-rioquimica?parceiro=8024&gad_source=1&gad_campaignid=21972165760&gbraid=0AAAAAoY49TeuNGIuEC4KL6K_GhPQklW0P&gclid=CjwKCAjwtcHPBhADEiwAWo3sJtXPXbSMZj-Bs393_SWwsFNg9FsPVr1L9LgZ4N1OQRKtfjnfdBC3uBoCCx0QAvD_BwE | J21: 2026-04-28 | K21: 5.55 | L21: Sim | O21: Sim
B30: Observações: | K30: Média: | L30: =IF($L$32="","Selecione metodologia para exclusão de preços",AVERAGE(IF($L$10:$L$29="Sim",$K$10:$K$29))) -> 6.016666667 | N30: Média (Cotações) | O30: =IF(COUNTIF(O19:O29,"Sim")<3,"N/D (são necessários pelo menos 3 preços)",AVERAGE(IF(O19:O29="Sim",$K19:$K29))) -> 6.016666667 | P30: =IF(COUNTIF(P19:P29,"Sim")<3,"N/D (são necessários pelo menos 3 preços)",AVERAGE(IF(P19:P29="Sim",$K19:$K29))) -> N/D (são necessários pelo menos 3 preços)
K31: Mediana: | L31: =IF($L$32="","Selecione metodologia para exclusão de preços",MEDIAN(IF($L$10:$L$29="Sim",$K$10:$K$29))) -> 5.87 | N31: Mediana (Cotações) | O31: =IF(COUNTIF(O19:O29,"Sim")<3,"N/D (são necessários pelo menos 3 preços)",MEDIAN(IF(O19:O29="Sim",$K19:$K29))) -> 5.87 | P31: =IF(COUNTIF(P19:P29,"Sim")<3,"N/D (são necessários pelo menos 3 preços)",MEDIAN(IF(P19:P29="Sim",$K19:$K29))) -> N/D (são necessários pelo menos 3 preços)
B32: Metodologia de exclusão de preços adotada: | L32: =IF(O35="",INDEX(O18:P18,MATCH(MIN(#REF!),#REF!,0)),O35) -> Outliers | N32: CV (Cotações) | O32: =IF(COUNTIF(O19:O29,"Sim")<3,"N/D (são necessários pelo menos 3 preços)",_xlfn.STDEV.S(IF(O19:O29="Sim",$K19:$K29))/AVERAGE(IF(O19:O29="Sim",$K19:$K29))) -> 0.09220008449 | P32: =IF(COUNTIF(P19:P29,"Sim")<3,"N/D (são necessários pelo menos 3 preços)",_xlfn.STDEV.S(IF(P19:P29="Sim",$K19:$K29))/AVERAGE(IF(P19:P29="Sim",$K19:$K29))) -> N/D (são necessários pelo menos 3 preços)
N33: Média | O33: =IF(SUM(COUNTIF($O$10:$O$16,"Sim")) + SUM(COUNTIF(O19:O29,"Sim")) < 3, "N/D (são necessários pelo menos 3 preços)", IFERROR(AVERAGE(_xlfn._xlws.FILTER($K$10:$K$16,$O$10:$O$16="Sim"), _xlfn._xlws.FILTER($K$19:$K$29,O19:O29="Sim")),O30)) -> 6.016666667 | P33: =IF(SUM(COUNTIF($P$10:$P$16,"Sim")) + SUM(COUNTIF(P19:P29,"Sim")) < 3, "N/D (são necessários pelo menos 3 preços)", IFERROR(AVERAGE(_xlfn._xlws.FILTER($K$10:$K$16,$P$10:$P$16="Sim"), _xlfn._xlws.FILTER($K$19:$K$29,P19:P29="Sim")),P30)) -> N/D (são necessários pelo menos 3 preços)
N34: Mediana | O34: =IF(SUM(COUNTIF($O$10:$O$16,"Sim")) + SUM(COUNTIF(O19:O29,"Sim")) < 3, "N/D (são necessários pelo menos 3 preços)", IFERROR(MEDIAN(_xlfn._xlws.FILTER($K$10:$K$16,$O$10:$O$16="Sim"), _xlfn._xlws.FILTER($K$19:$K$29,O19:O29="Sim")),O31)) -> 5.87 | P34: =IF(SUM(COUNTIF($P10:$P$16,"Sim")) + SUM(COUNTIF(P19:P29,"Sim")) < 3, "N/D (são necessários pelo menos 3 preços)", IFERROR(MEDIAN(_xlfn._xlws.FILTER($K$10:$K$16,$P$10:$P$16="Sim"), _xlfn._xlws.FILTER($K$19:$K$29,P19:P29="Sim")),P31)) -> N/D (são necessários pelo menos 3 preços)
B35: COSOLIDAÇÃO DOS PREÇOS | N35: Metodologia a adotar: | O35: =IF(INDEX(O18:P18,P35)=0,"",INDEX(O18:P18,P35)) -> Outliers | P35: 1
B37: PREÇO UNITÁRIO ESTIMADO ADOTADO: | L37: =IF($B$39="Mediana:",L31,L30) -> 5.87
A39: =O18 -> Outliers | B39: Mediana:

Sheet Atadura 10cm (hidden)
B2: Processo
B3: Responsável
B4: Área de Origem
B5: Data da pesquisa
B7: ITEM: | C7: ATADURA CREPE 10cm de largura, 1,80m. | I7: UNIDADE DE MEDIDA: | J7: Unidade | K7: QUANTIDADE: | L7: 10 | O7: Tabela auxiliar de metodologias para exclusão de preços
B8: LICITAÇÕES ANTERIORES | O8: Licitações Anteriores
B9: Órgão | C9: Edital/Ano - Nº do Lote / Item | D9: Quantidade | E9: Valor Unitário | F9: Data | G9: índice de atualização (nome) | H9: I0 | I9: If | J9: Variação acumulada do índice (%) | K9: Preço unitário atualizado | L9: Utilizar? (Sim/Não) | O9: Outliers | P9: Por critério do(a) analista
J10: =IF(ISBLANK(E10),"",IF(ISNUMBER(H10),(I10-H10)/H10,0)) ->  | K10: =IF(ISBLANK(E10),"",E10*(1+J10)) ->  | L10: =IF(ISNUMBER(K10),IF($L$32<>$P$9,O10,P10),"") ->  | O10: =IF(ISNUMBER(K10),IF(OR(K10<_xlfn.QUARTILE.INC($K$10:$K$29,1)-1.5*(_xlfn.QUARTILE.INC($K$10:K29,3)-_xlfn.QUARTILE.INC($K$10:$K$29,1)),K10>_xlfn.QUARTILE.INC($K$10:$K$29,3)+1.5*(_xlfn.QUARTILE.INC($K$10:$K$29,3)-_xlfn.QUARTILE.INC($K$10:$K$29,1))),"Não","Sim"),"") -> 
J11: =IF(ISBLANK(E11),"",IF(ISNUMBER(H11),(I11-H11)/H11,0)) ->  | K11: =IF(ISBLANK(E11),"",E11*(1+J11)) ->  | O11: =IF(ISNUMBER(K11),IF(OR(K11<_xlfn.QUARTILE.INC($K$10:$K$29,1)-1.5*(_xlfn.QUARTILE.INC($K$10:K29,3)-_xlfn.QUARTILE.INC($K$10:$K$29,1)),K11>_xlfn.QUARTILE.INC($K$10:$K$29,3)+1.5*(_xlfn.QUARTILE.INC($K$10:$K$29,3)-_xlfn.QUARTILE.INC($K$10:$K$29,1))),"Não","Sim"),"") -> 
O12: =IF(ISNUMBER(K12),IF(OR(K12<_xlfn.QUARTILE.INC($K$10:$K$29,1)-1.5*(_xlfn.QUARTILE.INC($K$10:K30,3)-_xlfn.QUARTILE.INC($K$10:$K$29,1)),K12>_xlfn.QUARTILE.INC($K$10:$K$29,3)+1.5*(_xlfn.QUARTILE.INC($K$10:$K$29,3)-_xlfn.QUARTILE.INC($K$10:$K$29,1))),"Não","Sim"),"") -> 
O13: =IF(ISNUMBER(K13),IF(OR(K13<_xlfn.QUARTILE.INC($K$10:$K$29,1)-1.5*(_xlfn.QUARTILE.INC($K$10:K31,3)-_xlfn.QUARTILE.INC($K$10:$K$29,1)),K13>_xlfn.QUARTILE.INC($K$10:$K$29,3)+1.5*(_xlfn.QUARTILE.INC($K$10:$K$29,3)-_xlfn.QUARTILE.INC($K$10:$K$29,1))),"Não","Sim"),"") -> 
O14: =IF(ISNUMBER(K14),IF(OR(K14<_xlfn.QUARTILE.INC($K$10:$K$29,1)-1.5*(_xlfn.QUARTILE.INC($K$10:K32,3)-_xlfn.QUARTILE.INC($K$10:$K$29,1)),K14>_xlfn.QUARTILE.INC($K$10:$K$29,3)+1.5*(_xlfn.QUARTILE.INC($K$10:$K$29,3)-_xlfn.QUARTILE.INC($K$10:$K$29,1))),"Não","Sim"),"") -> 
O15: =IF(ISNUMBER(K15),IF(OR(K15<_xlfn.QUARTILE.INC($K$10:$K$29,1)-1.5*(_xlfn.QUARTILE.INC($K$10:K35,3)-_xlfn.QUARTILE.INC($K$10:$K$29,1)),K15>_xlfn.QUARTILE.INC($K$10:$K$29,3)+1.5*(_xlfn.QUARTILE.INC($K$10:$K$29,3)-_xlfn.QUARTILE.INC($K$10:$K$29,1))),"Não","Sim"),"") -> 
O16: =IF(ISNUMBER(K16),IF(OR(K16<_xlfn.QUARTILE.INC($K$10:$K$29,1)-1.5*(_xlfn.QUARTILE.INC($I$10:I37,3)-_xlfn.QUARTILE.INC($K$10:$K$29,1)),K16>_xlfn.QUARTILE.INC($K$10:$K$29,3)+1.5*(_xlfn.QUARTILE.INC($K$10:$K$29,3)-_xlfn.QUARTILE.INC($K$10:$K$29,1))),"Não","Sim"),"") -> 
B17: COTAÇÕES DE MERCADO | O17: Cotações
B18: Empresa | J18: Data | K18: Preço Unitário | L18: Utilizar? (Sim/Não) | O18: Outliers | P18: Por critério do(a) analista
B19: https://www.medjet.com.br/material-medico/ataduras-e-gesso/atadura-crepon-cysne-10cm-x-1-8m-unidade-cremer?parceiro=6961&gad_source=1&gad_campaignid=23711823972&gbraid=0AAAAAD3OH6ENlVL4GKeCNe2Ux0ZG7FHRP&gclid=CjwKCAjwtcHPBhADEiwAWo3sJhN-wNqvpzIZGnpt1IbYRFzXZykHume7DgOVRMJUN7Y4d1Zl9enbYhoCtfgQAvD_BwE | J19: 2026-04-28 | K19: 2.76 | L19: =IF(ISNUMBER(K19),IF($L$32=$O$18,O19,IF($L$32=$P$18,P19,"")),"") -> Sim | O19: =IF(ISNUMBER(K19),IF(OR(K19<_xlfn.QUARTILE.INC($K$10:$K$29,1)-1.5*(_xlfn.QUARTILE.INC($K$10:$K$29,3)-_xlfn.QUARTILE.INC($K$10:$K$29,1)),K19>_xlfn.QUARTILE.INC($K$10:$K$29,3)+1.5*(_xlfn.QUARTILE.INC($K$10:$K$29,3)-_xlfn.QUARTILE.INC($K$10:$K$29,1))),"Não","Sim"),"") -> Sim
B20: https://www.drogariarosario.com.br/atadura-crepom-cremer-cysne-10cmx180mt---cremer/p?idsku=851&utm_source=googleshopping&utm_source=google&utm_medium=cpc&utm_campaign=pmax.infantil&gad_source=1&gad_campaignid=21774929705&gbraid=0AAAAACRP8priGczylBEdbxm0U-zi4lnd3&gclid=CjwKCAjwtcHPBhADEiwAWo3sJpNjsqhq8C59yOzIgfsnuD7_DvHRuzFnPYm8wVMUjN64b8BrMNcacBoC9wgQAvD_BwE | J20: 2026-04-28 | K20: 4.49 | L20: Sim | O20: Sim
B21: https://www.drogasil.com.br/cremer-atadura-crepom-cysne-10cm-x-1-80m-1-unidade.html?gad_source=1&gad_campaignid=17339191360&gbraid=0AAAAADod4VVQwQ90NZQI-0p0cJy81H-gh&gclid=CjwKCAjwtcHPBhADEiwAWo3sJug5_i_l00goL9xaqkuS-aEYbwNs8tayunrUDtDisF3C7fAQTd--_hoCRB4QAvD_BwE | J21: 2026-04-28 | K21: 5.39 | L21: Sim | O21: Sim
B30: Observações: | K30: Média: | L30: =IF($L$32="","Selecione metodologia para exclusão de preços",AVERAGE(IF($L$10:$L$29="Sim",$K$10:$K$29))) -> 4.213333333 | N30: Média (Cotações) | O30: =IF(COUNTIF(O19:O29,"Sim")<3,"N/D (são necessários pelo menos 3 preços)",AVERAGE(IF(O19:O29="Sim",$K19:$K29))) -> 4.213333333 | P30: =IF(COUNTIF(P19:P29,"Sim")<3,"N/D (são necessários pelo menos 3 preços)",AVERAGE(IF(P19:P29="Sim",$K19:$K29))) -> N/D (são necessários pelo menos 3 preços)
K31: Mediana: | L31: =IF($L$32="","Selecione metodologia para exclusão de preços",MEDIAN(IF($L$10:$L$29="Sim",$K$10:$K$29))) -> 4.49 | N31: Mediana (Cotações) | O31: =IF(COUNTIF(O19:O29,"Sim")<3,"N/D (são necessários pelo menos 3 preços)",MEDIAN(IF(O19:O29="Sim",$K19:$K29))) -> 4.49 | P31: =IF(COUNTIF(P19:P29,"Sim")<3,"N/D (são necessários pelo menos 3 preços)",MEDIAN(IF(P19:P29="Sim",$K19:$K29))) -> N/D (são necessários pelo menos 3 preços)
B32: Metodologia de exclusão de preços adotada: | L32: =IF(O35="",INDEX(O18:P18,MATCH(MIN(#REF!),#REF!,0)),O35) -> Outliers | N32: CV (Cotações) | O32: =IF(COUNTIF(O19:O29,"Sim")<3,"N/D (são necessários pelo menos 3 preços)",_xlfn.STDEV.S(IF(O19:O29="Sim",$K19:$K29))/AVERAGE(IF(O19:O29="Sim",$K19:$K29))) -> 0.3172428896 | P32: =IF(COUNTIF(P19:P29,"Sim")<3,"N/D (são necessários pelo menos 3 preços)",_xlfn.STDEV.S(IF(P19:P29="Sim",$K19:$K29))/AVERAGE(IF(P19:P29="Sim",$K19:$K29))) -> N/D (são necessários pelo menos 3 preços)
N33: Média | O33: =IF(SUM(COUNTIF($O$10:$O$16,"Sim")) + SUM(COUNTIF(O19:O29,"Sim")) < 3, "N/D (são necessários pelo menos 3 preços)", IFERROR(AVERAGE(_xlfn._xlws.FILTER($K$10:$K$16,$O$10:$O$16="Sim"), _xlfn._xlws.FILTER($K$19:$K$29,O19:O29="Sim")),O30)) -> 4.213333333 | P33: =IF(SUM(COUNTIF($P$10:$P$16,"Sim")) + SUM(COUNTIF(P19:P29,"Sim")) < 3, "N/D (são necessários pelo menos 3 preços)", IFERROR(AVERAGE(_xlfn._xlws.FILTER($K$10:$K$16,$P$10:$P$16="Sim"), _xlfn._xlws.FILTER($K$19:$K$29,P19:P29="Sim")),P30)) -> N/D (são necessários pelo menos 3 preços)
N34: Mediana | O34: =IF(SUM(COUNTIF($O$10:$O$16,"Sim")) + SUM(COUNTIF(O19:O29,"Sim")) < 3, "N/D (são necessários pelo menos 3 preços)", IFERROR(MEDIAN(_xlfn._xlws.FILTER($K$10:$K$16,$O$10:$O$16="Sim"), _xlfn._xlws.FILTER($K$19:$K$29,O19:O29="Sim")),O31)) -> 4.49 | P34: =IF(SUM(COUNTIF($P10:$P$16,"Sim")) + SUM(COUNTIF(P19:P29,"Sim")) < 3, "N/D (são necessários pelo menos 3 preços)", IFERROR(MEDIAN(_xlfn._xlws.FILTER($K$10:$K$16,$P$10:$P$16="Sim"), _xlfn._xlws.FILTER($K$19:$K$29,P19:P29="Sim")),P31)) -> N/D (são necessários pelo menos 3 preços)
B35: COSOLIDAÇÃO DOS PREÇOS | N35: Metodologia a adotar: | O35: =IF(INDEX(O18:P18,P35)=0,"",INDEX(O18:P18,P35)) -> Outliers | P35: 1
B37: PREÇO UNITÁRIO ESTIMADO ADOTADO: | L37: =IF($B$39="Mediana:",L31,L30) -> 4.213333333
A39: =O18 -> Outliers | B39: Média:

Sheet Atadura 20cm (hidden)
B2: Processo
B3: Responsável
B4: Área de Origem
B5: Data da pesquisa
B7: ITEM: | C7: ATADURA CREPE 20cm de largura, 1,80m. | I7: UNIDADE DE MEDIDA: | J7: Unidade | K7: QUANTIDADE: | L7: 10 | O7: Tabela auxiliar de metodologias para exclusão de preços
B8: LICITAÇÕES ANTERIORES | O8: Licitações Anteriores
B9: Órgão | C9: Edital/Ano - Nº do Lote / Item | D9: Quantidade | E9: Valor Unitário | F9: Data | G9: índice de atualização (nome) | H9: I0 | I9: If | J9: Variação acumulada do índice (%) | K9: Preço unitário atualizado | L9: Utilizar? (Sim/Não) | O9: Outliers | P9: Por critério do(a) analista
J10: =IF(ISBLANK(E10),"",IF(ISNUMBER(H10),(I10-H10)/H10,0)) ->  | K10: =IF(ISBLANK(E10),"",E10*(1+J10)) ->  | L10: =IF(ISNUMBER(K10),IF($L$32<>$P$9,O10,P10),"") ->  | O10: =IF(ISNUMBER(K10),IF(OR(K10<_xlfn.QUARTILE.INC($K$10:$K$29,1)-1.5*(_xlfn.QUARTILE.INC($K$10:K29,3)-_xlfn.QUARTILE.INC($K$10:$K$29,1)),K10>_xlfn.QUARTILE.INC($K$10:$K$29,3)+1.5*(_xlfn.QUARTILE.INC($K$10:$K$29,3)-_xlfn.QUARTILE.INC($K$10:$K$29,1))),"Não","Sim"),"") -> 
J11: =IF(ISBLANK(E11),"",IF(ISNUMBER(H11),(I11-H11)/H11,0)) ->  | K11: =IF(ISBLANK(E11),"",E11*(1+J11)) ->  | O11: =IF(ISNUMBER(K11),IF(OR(K11<_xlfn.QUARTILE.INC($K$10:$K$29,1)-1.5*(_xlfn.QUARTILE.INC($K$10:K29,3)-_xlfn.QUARTILE.INC($K$10:$K$29,1)),K11>_xlfn.QUARTILE.INC($K$10:$K$29,3)+1.5*(_xlfn.QUARTILE.INC($K$10:$K$29,3)-_xlfn.QUARTILE.INC($K$10:$K$29,1))),"Não","Sim"),"") -> 
O12: =IF(ISNUMBER(K12),IF(OR(K12<_xlfn.QUARTILE.INC($K$10:$K$29,1)-1.5*(_xlfn.QUARTILE.INC($K$10:K30,3)-_xlfn.QUARTILE.INC($K$10:$K$29,1)),K12>_xlfn.QUARTILE.INC($K$10:$K$29,3)+1.5*(_xlfn.QUARTILE.INC($K$10:$K$29,3)-_xlfn.QUARTILE.INC($K$10:$K$29,1))),"Não","Sim"),"") -> 
O13: =IF(ISNUMBER(K13),IF(OR(K13<_xlfn.QUARTILE.INC($K$10:$K$29,1)-1.5*(_xlfn.QUARTILE.INC($K$10:K31,3)-_xlfn.QUARTILE.INC($K$10:$K$29,1)),K13>_xlfn.QUARTILE.INC($K$10:$K$29,3)+1.5*(_xlfn.QUARTILE.INC($K$10:$K$29,3)-_xlfn.QUARTILE.INC($K$10:$K$29,1))),"Não","Sim"),"") -> 
O14: =IF(ISNUMBER(K14),IF(OR(K14<_xlfn.QUARTILE.INC($K$10:$K$29,1)-1.5*(_xlfn.QUARTILE.INC($K$10:K32,3)-_xlfn.QUARTILE.INC($K$10:$K$29,1)),K14>_xlfn.QUARTILE.INC($K$10:$K$29,3)+1.5*(_xlfn.QUARTILE.INC($K$10:$K$29,3)-_xlfn.QUARTILE.INC($K$10:$K$29,1))),"Não","Sim"),"") -> 
O15: =IF(ISNUMBER(K15),IF(OR(K15<_xlfn.QUARTILE.INC($K$10:$K$29,1)-1.5*(_xlfn.QUARTILE.INC($K$10:K35,3)-_xlfn.QUARTILE.INC($K$10:$K$29,1)),K15>_xlfn.QUARTILE.INC($K$10:$K$29,3)+1.5*(_xlfn.QUARTILE.INC($K$10:$K$29,3)-_xlfn.QUARTILE.INC($K$10:$K$29,1))),"Não","Sim"),"") -> 
O16: =IF(ISNUMBER(K16),IF(OR(K16<_xlfn.QUARTILE.INC($K$10:$K$29,1)-1.5*(_xlfn.QUARTILE.INC($I$10:I37,3)-_xlfn.QUARTILE.INC($K$10:$K$29,1)),K16>_xlfn.QUARTILE.INC($K$10:$K$29,3)+1.5*(_xlfn.QUARTILE.INC($K$10:$K$29,3)-_xlfn.QUARTILE.INC($K$10:$K$29,1))),"Não","Sim"),"") -> 
B17: COTAÇÕES DE MERCADO | O17: Cotações
B18: Empresa | J18: Data | K18: Preço Unitário | L18: Utilizar? (Sim/Não) | O18: Outliers | P18: Por critério do(a) analista
B19: Drogaria Rosário - https://www.drogariarosario.com.br/atadura-crepom-cremer-cysne-20cmx180mt---cremer/p?idsku=853&utm_source=googleshopping&utm_source=google&utm_medium=cpc&utm_campaign=pmax.infantil&gad_source=1&gad_campaignid=21774929705&gbraid=0AAAAACRP8priGczylBEdbxm0U-zi4lnd3&gclid=CjwKCAjwtcHPBhADEiwAWo3sJhUMU2LXsuMfsAp_6cT2g9mY3Oi7NaHpKM-1m0M5hrBmCTCh3xlPgRoC8VQQAvD_BwE | J19: 2026-04-28 | K19: 8.99 | L19: =IF(ISNUMBER(K19),IF($L$32=$O$18,O19,IF($L$32=$P$18,P19,"")),"") -> Sim | O19: =IF(ISNUMBER(K19),IF(OR(K19<_xlfn.QUARTILE.INC($K$10:$K$29,1)-1.5*(_xlfn.QUARTILE.INC($K$10:$K$29,3)-_xlfn.QUARTILE.INC($K$10:$K$29,1)),K19>_xlfn.QUARTILE.INC($K$10:$K$29,3)+1.5*(_xlfn.QUARTILE.INC($K$10:$K$29,3)-_xlfn.QUARTILE.INC($K$10:$K$29,1))),"Não","Sim"),"") -> Sim
B20: Instrumental Tecnico - https://www.instrumentaltecnico.com.br/material-de-consumo/atadura/atadura-crepom-20cmx1-80m-cysne-cremer?parceiro=8024&gad_source=1&gad_campaignid=21972165760&gbraid=0AAAAAoY49TeuNGIuEC4KL6K_GhPQklW0P&gclid=CjwKCAjwtcHPBhADEiwAWo3sJkDih2b1HUAx6ZRZ1DDNgUSLmnblB-xW9RRELSPt2mN6MR_A48o9thoCetUQAvD_BwE | J20: 2026-04-28 | K20: 3.78 | L20: Sim | O20: Sim
B21: Drogaria Pacheco - https://www.drogariaspacheco.com.br/atadura-crepe-cysne-20cm/p?idsku=833&utm_source=google&utm_medium=cpc&utm_campaign=google-shp-gabarito-promocao&gad_source=1&gad_campaignid=23174723271&gbraid=0AAAAADnsPzM4bLRs0EFhkml4plXCRCOt7&gclid=CjwKCAjwtcHPBhADEiwAWo3sJgiz3Ub715_L3c-DmJyPovMXvxueVRlTAmf2LFKNM3AW6DIPWrlsLRoC1y4QAvD_BwE | J21: 2026-04-28 | K21: 5.01 | L21: Sim | O21: Sim
B30: Observações: | K30: Média: | L30: =IF($L$32="","Selecione metodologia para exclusão de preços",AVERAGE(IF($L$10:$L$29="Sim",$K$10:$K$29))) -> 5.926666667 | N30: Média (Cotações) | O30: =IF(COUNTIF(O19:O29,"Sim")<3,"N/D (são necessários pelo menos 3 preços)",AVERAGE(IF(O19:O29="Sim",$K19:$K29))) -> 5.926666667 | P30: =IF(COUNTIF(P19:P29,"Sim")<3,"N/D (são necessários pelo menos 3 preços)",AVERAGE(IF(P19:P29="Sim",$K19:$K29))) -> N/D (são necessários pelo menos 3 preços)
K31: Mediana: | L31: =IF($L$32="","Selecione metodologia para exclusão de preços",MEDIAN(IF($L$10:$L$29="Sim",$K$10:$K$29))) -> 5.01 | N31: Mediana (Cotações) | O31: =IF(COUNTIF(O19:O29,"Sim")<3,"N/D (são necessários pelo menos 3 preços)",MEDIAN(IF(O19:O29="Sim",$K19:$K29))) -> 5.01 | P31: =IF(COUNTIF(P19:P29,"Sim")<3,"N/D (são necessários pelo menos 3 preços)",MEDIAN(IF(P19:P29="Sim",$K19:$K29))) -> N/D (são necessários pelo menos 3 preços)
B32: Metodologia de exclusão de preços adotada: | L32: =IF(O35="",INDEX(O18:P18,MATCH(MIN(#REF!),#REF!,0)),O35) -> Outliers | N32: CV (Cotações) | O32: =IF(COUNTIF(O19:O29,"Sim")<3,"N/D (são necessários pelo menos 3 preços)",_xlfn.STDEV.S(IF(O19:O29="Sim",$K19:$K29))/AVERAGE(IF(O19:O29="Sim",$K19:$K29))) -> 0.459495424 | P32: =IF(COUNTIF(P19:P29,"Sim")<3,"N/D (são necessários pelo menos 3 preços)",_xlfn.STDEV.S(IF(P19:P29="Sim",$K19:$K29))/AVERAGE(IF(P19:P29="Sim",$K19:$K29))) -> N/D (são necessários pelo menos 3 preços)
N33: Média | O33: =IF(SUM(COUNTIF($O$10:$O$16,"Sim")) + SUM(COUNTIF(O19:O29,"Sim")) < 3, "N/D (são necessários pelo menos 3 preços)", IFERROR(AVERAGE(_xlfn._xlws.FILTER($K$10:$K$16,$O$10:$O$16="Sim"), _xlfn._xlws.FILTER($K$19:$K$29,O19:O29="Sim")),O30)) -> 5.926666667 | P33: =IF(SUM(COUNTIF($P$10:$P$16,"Sim")) + SUM(COUNTIF(P19:P29,"Sim")) < 3, "N/D (são necessários pelo menos 3 preços)", IFERROR(AVERAGE(_xlfn._xlws.FILTER($K$10:$K$16,$P$10:$P$16="Sim"), _xlfn._xlws.FILTER($K$19:$K$29,P19:P29="Sim")),P30)) -> N/D (são necessários pelo menos 3 preços)
N34: Mediana | O34: =IF(SUM(COUNTIF($O$10:$O$16,"Sim")) + SUM(COUNTIF(O19:O29,"Sim")) < 3, "N/D (são necessários pelo menos 3 preços)", IFERROR(MEDIAN(_xlfn._xlws.FILTER($K$10:$K$16,$O$10:$O$16="Sim"), _xlfn._xlws.FILTER($K$19:$K$29,O19:O29="Sim")),O31)) -> 5.01 | P34: =IF(SUM(COUNTIF($P10:$P$16,"Sim")) + SUM(COUNTIF(P19:P29,"Sim")) < 3, "N/D (são necessários pelo menos 3 preços)", IFERROR(MEDIAN(_xlfn._xlws.FILTER($K$10:$K$16,$P$10:$P$16="Sim"), _xlfn._xlws.FILTER($K$19:$K$29,P19:P29="Sim")),P31)) -> N/D (são necessários pelo menos 3 preços)
B35: COSOLIDAÇÃO DOS PREÇOS | N35: Metodologia a adotar: | O35: =IF(INDEX(O18:P18,P35)=0,"",INDEX(O18:P18,P35)) -> Outliers | P35: 1
B37: PREÇO UNITÁRIO ESTIMADO ADOTADO: | L37: =IF($B$39="Mediana:",L31,L30) -> 5.01
A39: =O18 -> Outliers | B39: Mediana:

Sheet Bandagem (hidden)
B2: Processo
B3: Responsável
B4: Área de Origem
B5: Data da pesquisa
B7: ITEM: | C7: BANDAGENS TRIANGULARES (142 cm x 100 cm x 100 | I7: UNIDADE DE MEDIDA: | J7: Unidade | K7: QUANTIDADE: | L7: 3 | O7: Tabela auxiliar de metodologias para exclusão de preços
B8: LICITAÇÕES ANTERIORES | O8: Licitações Anteriores
B9: Órgão | C9: Edital/Ano - Nº do Lote / Item | D9: Quantidade | E9: Valor Unitário | F9: Data | G9: índice de atualização (nome) | H9: I0 | I9: If | J9: Variação acumulada do índice (%) | K9: Preço unitário atualizado | L9: Utilizar? (Sim/Não) | O9: Outliers | P9: Por critério do(a) analista
J10: =IF(ISBLANK(E10),"",IF(ISNUMBER(H10),(I10-H10)/H10,0)) ->  | K10: =IF(ISBLANK(E10),"",E10*(1+J10)) ->  | L10: =IF(ISNUMBER(K10),IF($L$32<>$P$9,O10,P10),"") ->  | O10: =IF(ISNUMBER(K10),IF(OR(K10<_xlfn.QUARTILE.INC($K$10:$K$29,1)-1.5*(_xlfn.QUARTILE.INC($K$10:K29,3)-_xlfn.QUARTILE.INC($K$10:$K$29,1)),K10>_xlfn.QUARTILE.INC($K$10:$K$29,3)+1.5*(_xlfn.QUARTILE.INC($K$10:$K$29,3)-_xlfn.QUARTILE.INC($K$10:$K$29,1))),"Não","Sim"),"") -> 
J11: =IF(ISBLANK(E11),"",IF(ISNUMBER(H11),(I11-H11)/H11,0)) ->  | K11: =IF(ISBLANK(E11),"",E11*(1+J11)) ->  | O11: =IF(ISNUMBER(K11),IF(OR(K11<_xlfn.QUARTILE.INC($K$10:$K$29,1)-1.5*(_xlfn.QUARTILE.INC($K$10:K29,3)-_xlfn.QUARTILE.INC($K$10:$K$29,1)),K11>_xlfn.QUARTILE.INC($K$10:$K$29,3)+1.5*(_xlfn.QUARTILE.INC($K$10:$K$29,3)-_xlfn.QUARTILE.INC($K$10:$K$29,1))),"Não","Sim"),"") -> 
O12: =IF(ISNUMBER(K12),IF(OR(K12<_xlfn.QUARTILE.INC($K$10:$K$29,1)-1.5*(_xlfn.QUARTILE.INC($K$10:K30,3)-_xlfn.QUARTILE.INC($K$10:$K$29,1)),K12>_xlfn.QUARTILE.INC($K$10:$K$29,3)+1.5*(_xlfn.QUARTILE.INC($K$10:$K$29,3)-_xlfn.QUARTILE.INC($K$10:$K$29,1))),"Não","Sim"),"") -> 
O13: =IF(ISNUMBER(K13),IF(OR(K13<_xlfn.QUARTILE.INC($K$10:$K$29,1)-1.5*(_xlfn.QUARTILE.INC($K$10:K31,3)-_xlfn.QUARTILE.INC($K$10:$K$29,1)),K13>_xlfn.QUARTILE.INC($K$10:$K$29,3)+1.5*(_xlfn.QUARTILE.INC($K$10:$K$29,3)-_xlfn.QUARTILE.INC($K$10:$K$29,1))),"Não","Sim"),"") -> 
O14: =IF(ISNUMBER(K14),IF(OR(K14<_xlfn.QUARTILE.INC($K$10:$K$29,1)-1.5*(_xlfn.QUARTILE.INC($K$10:K32,3)-_xlfn.QUARTILE.INC($K$10:$K$29,1)),K14>_xlfn.QUARTILE.INC($K$10:$K$29,3)+1.5*(_xlfn.QUARTILE.INC($K$10:$K$29,3)-_xlfn.QUARTILE.INC($K$10:$K$29,1))),"Não","Sim"),"") -> 
O15: =IF(ISNUMBER(K15),IF(OR(K15<_xlfn.QUARTILE.INC($K$10:$K$29,1)-1.5*(_xlfn.QUARTILE.INC($K$10:K35,3)-_xlfn.QUARTILE.INC($K$10:$K$29,1)),K15>_xlfn.QUARTILE.INC($K$10:$K$29,3)+1.5*(_xlfn.QUARTILE.INC($K$10:$K$29,3)-_xlfn.QUARTILE.INC($K$10:$K$29,1))),"Não","Sim"),"") -> 
O16: =IF(ISNUMBER(K16),IF(OR(K16<_xlfn.QUARTILE.INC($K$10:$K$29,1)-1.5*(_xlfn.QUARTILE.INC($I$10:I37,3)-_xlfn.QUARTILE.INC($K$10:$K$29,1)),K16>_xlfn.QUARTILE.INC($K$10:$K$29,3)+1.5*(_xlfn.QUARTILE.INC($K$10:$K$29,3)-_xlfn.QUARTILE.INC($K$10:$K$29,1))),"Não","Sim"),"") -> 
B17: COTAÇÕES DE MERCADO | O17: Cotações
B18: Empresa | J18: Data | K18: Preço Unitário | L18: Utilizar? (Sim/Não) | O18: Outliers | P18: Por critério do(a) analista
B19: https://www.southsafe.com.br/produto/bandagem-triangular-142cm-x-100x-100/68235# | J19: 2026-04-28 | K19: 23.12 | L19: =IF(ISNUMBER(K19),IF($L$32=$O$18,O19,IF($L$32=$P$18,P19,"")),"") -> Sim | O19: =IF(ISNUMBER(K19),IF(OR(K19<_xlfn.QUARTILE.INC($K$10:$K$29,1)-1.5*(_xlfn.QUARTILE.INC($K$10:$K$29,3)-_xlfn.QUARTILE.INC($K$10:$K$29,1)),K19>_xlfn.QUARTILE.INC($K$10:$K$29,3)+1.5*(_xlfn.QUARTILE.INC($K$10:$K$29,3)-_xlfn.QUARTILE.INC($K$10:$K$29,1))),"Não","Sim"),"") -> Sim
B20: https://www.sinetecirurgica.com.br/bandagem-triangular-em-algodao-m-p6739#self | J20: 2026-04-28 | K20: 17.05 | L20: Sim | O20: Sim
B21: https://www.cirurgicapassos.com.br/bandagem-triangular-ortocenter?parceiro=3944&gad_source=1&gad_campaignid=23787002567&gbraid=0AAAAAD1u6AA9WX3Y5uwIOPhgZ3QVCKbuY&gclid=Cj0KCQjw2MbPBhCSARIsAP3jP9wjdBMKIOsD8uYkpVkdC75Afkvvgy5o1KZhOqm2NxLbDrShcoaYPn0aAlIEEALw_wcB&variant_id=555 | J21: 2026-04-29 | K21: 21 | L21: Sim | O21: Sim
B30: Observações: | K30: Média: | L30: =IF($L$32="","Selecione metodologia para exclusão de preços",AVERAGE(IF($L$10:$L$29="Sim",$K$10:$K$29))) -> 20.39 | N30: Média (Cotações) | O30: =IF(COUNTIF(O19:O29,"Sim")<3,"N/D (são necessários pelo menos 3 preços)",AVERAGE(IF(O19:O29="Sim",$K19:$K29))) -> 20.39 | P30: =IF(COUNTIF(P19:P29,"Sim")<3,"N/D (são necessários pelo menos 3 preços)",AVERAGE(IF(P19:P29="Sim",$K19:$K29))) -> N/D (são necessários pelo menos 3 preços)
K31: Mediana: | L31: =IF($L$32="","Selecione metodologia para exclusão de preços",MEDIAN(IF($L$10:$L$29="Sim",$K$10:$K$29))) -> 21 | N31: Mediana (Cotações) | O31: =IF(COUNTIF(O19:O29,"Sim")<3,"N/D (são necessários pelo menos 3 preços)",MEDIAN(IF(O19:O29="Sim",$K19:$K29))) -> 21 | P31: =IF(COUNTIF(P19:P29,"Sim")<3,"N/D (são necessários pelo menos 3 preços)",MEDIAN(IF(P19:P29="Sim",$K19:$K29))) -> N/D (são necessários pelo menos 3 preços)
B32: Metodologia de exclusão de preços adotada: | L32: =IF(O35="",INDEX(O18:P18,MATCH(MIN(#REF!),#REF!,0)),O35) -> Outliers | N32: CV (Cotações) | O32: =IF(COUNTIF(O19:O29,"Sim")<3,"N/D (são necessários pelo menos 3 preços)",_xlfn.STDEV.S(IF(O19:O29="Sim",$K19:$K29))/AVERAGE(IF(O19:O29="Sim",$K19:$K29))) -> 0.1510854856 | P32: =IF(COUNTIF(P19:P29,"Sim")<3,"N/D (são necessários pelo menos 3 preços)",_xlfn.STDEV.S(IF(P19:P29="Sim",$K19:$K29))/AVERAGE(IF(P19:P29="Sim",$K19:$K29))) -> N/D (são necessários pelo menos 3 preços)
N33: Média | O33: =IF(SUM(COUNTIF($O$10:$O$16,"Sim")) + SUM(COUNTIF(O19:O29,"Sim")) < 3, "N/D (são necessários pelo menos 3 preços)", IFERROR(AVERAGE(_xlfn._xlws.FILTER($K$10:$K$16,$O$10:$O$16="Sim"), _xlfn._xlws.FILTER($K$19:$K$29,O19:O29="Sim")),O30)) -> 20.39 | P33: =IF(SUM(COUNTIF($P$10:$P$16,"Sim")) + SUM(COUNTIF(P19:P29,"Sim")) < 3, "N/D (são necessários pelo menos 3 preços)", IFERROR(AVERAGE(_xlfn._xlws.FILTER($K$10:$K$16,$P$10:$P$16="Sim"), _xlfn._xlws.FILTER($K$19:$K$29,P19:P29="Sim")),P30)) -> N/D (são necessários pelo menos 3 preços)
N34: Mediana | O34: =IF(SUM(COUNTIF($O$10:$O$16,"Sim")) + SUM(COUNTIF(O19:O29,"Sim")) < 3, "N/D (são necessários pelo menos 3 preços)", IFERROR(MEDIAN(_xlfn._xlws.FILTER($K$10:$K$16,$O$10:$O$16="Sim"), _xlfn._xlws.FILTER($K$19:$K$29,O19:O29="Sim")),O31)) -> 21 | P34: =IF(SUM(COUNTIF($P10:$P$16,"Sim")) + SUM(COUNTIF(P19:P29,"Sim")) < 3, "N/D (são necessários pelo menos 3 preços)", IFERROR(MEDIAN(_xlfn._xlws.FILTER($K$10:$K$16,$P$10:$P$16="Sim"), _xlfn._xlws.FILTER($K$19:$K$29,P19:P29="Sim")),P31)) -> N/D (são necessários pelo menos 3 preços)
B35: COSOLIDAÇÃO DOS PREÇOS | N35: Metodologia a adotar: | O35: =IF(INDEX(O18:P18,P35)=0,"",INDEX(O18:P18,P35)) -> Outliers | P35: 1
B37: PREÇO UNITÁRIO ESTIMADO ADOTADO: | L37: =IF($B$39="Mediana:",L31,L30) -> 20.39
A39: =O18 -> Outliers | B39: Média:

Sheet Maleta (hidden)
B2: Processo
B3: Responsável
B4: Área de Origem
B5: Data da pesquisa
B7: ITEM: | C7: CAIXA DE PRIMEIROS SOCORROS | I7: UNIDADE DE MEDIDA: | J7: Unidade | K7: QUANTIDADE: | L7: 2 | O7: Tabela auxiliar de metodologias para exclusão de preços
B8: LICITAÇÕES ANTERIORES | O8: Licitações Anteriores
B9: Órgão | C9: Edital/Ano - Nº do Lote / Item | D9: Quantidade | E9: Valor Unitário | F9: Data | G9: índice de atualização (nome) | H9: I0 | I9: If | J9: Variação acumulada do índice (%) | K9: Preço unitário atualizado | L9: Utilizar? (Sim/Não) | O9: Outliers | P9: Por critério do(a) analista
J10: =IF(ISBLANK(E10),"",IF(ISNUMBER(H10),(I10-H10)/H10,0)) ->  | K10: =IF(ISBLANK(E10),"",E10*(1+J10)) ->  | L10: =IF(ISNUMBER(K10),IF($L$32<>$P$9,O10,P10),"") ->  | O10: =IF(ISNUMBER(K10),IF(OR(K10<_xlfn.QUARTILE.INC($K$10:$K$29,1)-1.5*(_xlfn.QUARTILE.INC($K$10:K29,3)-_xlfn.QUARTILE.INC($K$10:$K$29,1)),K10>_xlfn.QUARTILE.INC($K$10:$K$29,3)+1.5*(_xlfn.QUARTILE.INC($K$10:$K$29,3)-_xlfn.QUARTILE.INC($K$10:$K$29,1))),"Não","Sim"),"") -> 
J11: =IF(ISBLANK(E11),"",IF(ISNUMBER(H11),(I11-H11)/H11,0)) ->  | K11: =IF(ISBLANK(E11),"",E11*(1+J11)) ->  | O11: =IF(ISNUMBER(K11),IF(OR(K11<_xlfn.QUARTILE.INC($K$10:$K$29,1)-1.5*(_xlfn.QUARTILE.INC($K$10:K29,3)-_xlfn.QUARTILE.INC($K$10:$K$29,1)),K11>_xlfn.QUARTILE.INC($K$10:$K$29,3)+1.5*(_xlfn.QUARTILE.INC($K$10:$K$29,3)-_xlfn.QUARTILE.INC($K$10:$K$29,1))),"Não","Sim"),"") -> 
O12: =IF(ISNUMBER(K12),IF(OR(K12<_xlfn.QUARTILE.INC($K$10:$K$29,1)-1.5*(_xlfn.QUARTILE.INC($K$10:K30,3)-_xlfn.QUARTILE.INC($K$10:$K$29,1)),K12>_xlfn.QUARTILE.INC($K$10:$K$29,3)+1.5*(_xlfn.QUARTILE.INC($K$10:$K$29,3)-_xlfn.QUARTILE.INC($K$10:$K$29,1))),"Não","Sim"),"") -> 
O13: =IF(ISNUMBER(K13),IF(OR(K13<_xlfn.QUARTILE.INC($K$10:$K$29,1)-1.5*(_xlfn.QUARTILE.INC($K$10:K31,3)-_xlfn.QUARTILE.INC($K$10:$K$29,1)),K13>_xlfn.QUARTILE.INC($K$10:$K$29,3)+1.5*(_xlfn.QUARTILE.INC($K$10:$K$29,3)-_xlfn.QUARTILE.INC($K$10:$K$29,1))),"Não","Sim"),"") -> 
O14: =IF(ISNUMBER(K14),IF(OR(K14<_xlfn.QUARTILE.INC($K$10:$K$29,1)-1.5*(_xlfn.QUARTILE.INC($K$10:K32,3)-_xlfn.QUARTILE.INC($K$10:$K$29,1)),K14>_xlfn.QUARTILE.INC($K$10:$K$29,3)+1.5*(_xlfn.QUARTILE.INC($K$10:$K$29,3)-_xlfn.QUARTILE.INC($K$10:$K$29,1))),"Não","Sim"),"") -> 
O15: =IF(ISNUMBER(K15),IF(OR(K15<_xlfn.QUARTILE.INC($K$10:$K$29,1)-1.5*(_xlfn.QUARTILE.INC($K$10:K35,3)-_xlfn.QUARTILE.INC($K$10:$K$29,1)),K15>_xlfn.QUARTILE.INC($K$10:$K$29,3)+1.5*(_xlfn.QUARTILE.INC($K$10:$K$29,3)-_xlfn.QUARTILE.INC($K$10:$K$29,1))),"Não","Sim"),"") -> 
O16: =IF(ISNUMBER(K16),IF(OR(K16<_xlfn.QUARTILE.INC($K$10:$K$29,1)-1.5*(_xlfn.QUARTILE.INC($I$10:I37,3)-_xlfn.QUARTILE.INC($K$10:$K$29,1)),K16>_xlfn.QUARTILE.INC($K$10:$K$29,3)+1.5*(_xlfn.QUARTILE.INC($K$10:$K$29,3)-_xlfn.QUARTILE.INC($K$10:$K$29,1))),"Não","Sim"),"") -> 
B17: COTAÇÕES DE MERCADO | O17: Cotações
B18: Empresa | J18: Data | K18: Preço Unitário | L18: Utilizar? (Sim/Não) | O18: Outliers | P18: Por critério do(a) analista
B19: Amazon - https://www.amazon.com.br/Arqplast-Maleta-Primeiros-Socorros/dp/B09CW531JY/ref=asc_df_B09CW531JY?mcid=75cd4c8ec81e3f1abe26782a01a8cc6f&tag=googleshopp00-20&linkCode=df0&hvadid=709968341224&hvpos=&hvnetw=g&hvrand=4552985567237553637&hvpone=&hvptwo=&hvqmt=&hvdev=c&hvdvcmdl=&hvlocint=&hvlocphy=9196708&hvtargid=pla-1471054041999&psc=1&hvocijid=4552985567237553637-B09CW531JY-&hvexpln=0&language=pt_BR | J19: 2026-04-28 | K19: 42.9 | L19: =IF(ISNUMBER(K19),IF($L$32=$O$18,O19,IF($L$32=$P$18,P19,"")),"") -> Sim | O19: =IF(ISNUMBER(K19),IF(OR(K19<_xlfn.QUARTILE.INC($K$10:$K$29,1)-1.5*(_xlfn.QUARTILE.INC($K$10:$K$29,3)-_xlfn.QUARTILE.INC($K$10:$K$29,1)),K19>_xlfn.QUARTILE.INC($K$10:$K$29,3)+1.5*(_xlfn.QUARTILE.INC($K$10:$K$29,3)-_xlfn.QUARTILE.INC($K$10:$K$29,1))),"Não","Sim"),"") -> Sim
B20: Tudo de Ferramentas - https://www.tudodeferramentas.com.br/produto/caixa-maleta-primeiros-socorros-c-2-bandejas-mps-arqplast.html?utm_source=Site&utm_medium=GoogleMerchant&utm_campaign=GoogleMerchant&gad_source=1&gad_campaignid=17836472111&gbraid=0AAAAADdm7bkiCqa2v1p471pymEjSOWifA&gclid=CjwKCAjwtcHPBhADEiwAWo3sJqXzKpjnkWxHGiSGFCEbBCHOShmkemNSqssmGH6ys28r0bZpcjTNwBoCVvMQAvD_BwE | J20: 2026-04-28 | K20: 34.53 | L20: Sim | O20: Sim
B21: Life Pesca - https://www.lifepesca.com.br/maleta-para-primeiros-socorros-emergencia-medica-mps?parceiro=1404&gad_source=1&gad_campaignid=19795690957&gbraid=0AAAAACo9Ns5ppBIANAcLbetREiveBsWzl&gclid=CjwKCAjwtcHPBhADEiwAWo3sJgLkESPJP6r2vMrN9it7Tfr6H8JosjxZs2xEBnfPbXUbWjE860St9RoCpicQAvD_BwE | J21: 2026-04-28 | K21: 52.11 | L21: Sim | O21: Sim
B30: Observações: | K30: Média: | L30: =IF($L$32="","Selecione metodologia para exclusão de preços",AVERAGE(IF($L$10:$L$29="Sim",$K$10:$K$29))) -> 43.18 | N30: Média (Cotações) | O30: =IF(COUNTIF(O19:O29,"Sim")<3,"N/D (são necessários pelo menos 3 preços)",AVERAGE(IF(O19:O29="Sim",$K19:$K29))) -> 43.18 | P30: =IF(COUNTIF(P19:P29,"Sim")<3,"N/D (são necessários pelo menos 3 preços)",AVERAGE(IF(P19:P29="Sim",$K19:$K29))) -> N/D (são necessários pelo menos 3 preços)
K31: Mediana: | L31: =IF($L$32="","Selecione metodologia para exclusão de preços",MEDIAN(IF($L$10:$L$29="Sim",$K$10:$K$29))) -> 42.9 | N31: Mediana (Cotações) | O31: =IF(COUNTIF(O19:O29,"Sim")<3,"N/D (são necessários pelo menos 3 preços)",MEDIAN(IF(O19:O29="Sim",$K19:$K29))) -> 42.9 | P31: =IF(COUNTIF(P19:P29,"Sim")<3,"N/D (são necessários pelo menos 3 preços)",MEDIAN(IF(P19:P29="Sim",$K19:$K29))) -> N/D (são necessários pelo menos 3 preços)
B32: Metodologia de exclusão de preços adotada: | L32: =IF(O35="",INDEX(O18:P18,MATCH(MIN(#REF!),#REF!,0)),O35) -> Outliers | N32: CV (Cotações) | O32: =IF(COUNTIF(O19:O29,"Sim")<3,"N/D (são necessários pelo menos 3 preços)",_xlfn.STDEV.S(IF(O19:O29="Sim",$K19:$K29))/AVERAGE(IF(O19:O29="Sim",$K19:$K29))) -> 0.2036439109 | P32: =IF(COUNTIF(P19:P29,"Sim")<3,"N/D (são necessários pelo menos 3 preços)",_xlfn.STDEV.S(IF(P19:P29="Sim",$K19:$K29))/AVERAGE(IF(P19:P29="Sim",$K19:$K29))) -> N/D (são necessários pelo menos 3 preços)
N33: Média | O33: =IF(SUM(COUNTIF($O$10:$O$16,"Sim")) + SUM(COUNTIF(O19:O29,"Sim")) < 3, "N/D (são necessários pelo menos 3 preços)", IFERROR(AVERAGE(_xlfn._xlws.FILTER($K$10:$K$16,$O$10:$O$16="Sim"), _xlfn._xlws.FILTER($K$19:$K$29,O19:O29="Sim")),O30)) -> 43.18 | P33: =IF(SUM(COUNTIF($P$10:$P$16,"Sim")) + SUM(COUNTIF(P19:P29,"Sim")) < 3, "N/D (são necessários pelo menos 3 preços)", IFERROR(AVERAGE(_xlfn._xlws.FILTER($K$10:$K$16,$P$10:$P$16="Sim"), _xlfn._xlws.FILTER($K$19:$K$29,P19:P29="Sim")),P30)) -> N/D (são necessários pelo menos 3 preços)
N34: Mediana | O34: =IF(SUM(COUNTIF($O$10:$O$16,"Sim")) + SUM(COUNTIF(O19:O29,"Sim")) < 3, "N/D (são necessários pelo menos 3 preços)", IFERROR(MEDIAN(_xlfn._xlws.FILTER($K$10:$K$16,$O$10:$O$16="Sim"), _xlfn._xlws.FILTER($K$19:$K$29,O19:O29="Sim")),O31)) -> 42.9 | P34: =IF(SUM(COUNTIF($P10:$P$16,"Sim")) + SUM(COUNTIF(P19:P29,"Sim")) < 3, "N/D (são necessários pelo menos 3 preços)", IFERROR(MEDIAN(_xlfn._xlws.FILTER($K$10:$K$16,$P$10:$P$16="Sim"), _xlfn._xlws.FILTER($K$19:$K$29,P19:P29="Sim")),P31)) -> N/D (são necessários pelo menos 3 preços)
B35: COSOLIDAÇÃO DOS PREÇOS | N35: Metodologia a adotar: | O35: =IF(INDEX(O18:P18,P35)=0,"",INDEX(O18:P18,P35)) -> Outliers | P35: 1
B37: PREÇO UNITÁRIO ESTIMADO ADOTADO: | L37: =IF($B$39="Mediana:",L31,L30) -> 42.9
A39: =O18 -> Outliers | B39: Mediana:

Sheet Cobertor (hidden)
B2: Processo
B3: Responsável
B4: Área de Origem
B5: Data da pesquisa
B7: ITEM: | C7: COBERTOR/LENÇOL TÉRMICO DE EMERGÊNCIA | I7: UNIDADE DE MEDIDA: | J7: Unidade | K7: QUANTIDADE: | L7: 10 | O7: Tabela auxiliar de metodologias para exclusão de preços
B8: LICITAÇÕES ANTERIORES | O8: Licitações Anteriores
B9: Órgão | C9: Edital/Ano - Nº do Lote / Item | D9: Quantidade | E9: Valor Unitário | F9: Data | G9: índice de atualização (nome) | H9: I0 | I9: If | J9: Variação acumulada do índice (%) | K9: Preço unitário atualizado | L9: Utilizar? (Sim/Não) | O9: Outliers | P9: Por critério do(a) analista
J10: =IF(ISBLANK(E10),"",IF(ISNUMBER(H10),(I10-H10)/H10,0)) ->  | K10: =IF(ISBLANK(E10),"",E10*(1+J10)) ->  | L10: =IF(ISNUMBER(K10),IF($L$32<>$P$9,O10,P10),"") ->  | O10: =IF(ISNUMBER(K10),IF(OR(K10<_xlfn.QUARTILE.INC($K$10:$K$29,1)-1.5*(_xlfn.QUARTILE.INC($K$10:K29,3)-_xlfn.QUARTILE.INC($K$10:$K$29,1)),K10>_xlfn.QUARTILE.INC($K$10:$K$29,3)+1.5*(_xlfn.QUARTILE.INC($K$10:$K$29,3)-_xlfn.QUARTILE.INC($K$10:$K$29,1))),"Não","Sim"),"") -> 
J11: =IF(ISBLANK(E11),"",IF(ISNUMBER(H11),(I11-H11)/H11,0)) ->  | K11: =IF(ISBLANK(E11),"",E11*(1+J11)) ->  | O11: =IF(ISNUMBER(K11),IF(OR(K11<_xlfn.QUARTILE.INC($K$10:$K$29,1)-1.5*(_xlfn.QUARTILE.INC($K$10:K29,3)-_xlfn.QUARTILE.INC($K$10:$K$29,1)),K11>_xlfn.QUARTILE.INC($K$10:$K$29,3)+1.5*(_xlfn.QUARTILE.INC($K$10:$K$29,3)-_xlfn.QUARTILE.INC($K$10:$K$29,1))),"Não","Sim"),"") -> 
O12: =IF(ISNUMBER(K12),IF(OR(K12<_xlfn.QUARTILE.INC($K$10:$K$29,1)-1.5*(_xlfn.QUARTILE.INC($K$10:K30,3)-_xlfn.QUARTILE.INC($K$10:$K$29,1)),K12>_xlfn.QUARTILE.INC($K$10:$K$29,3)+1.5*(_xlfn.QUARTILE.INC($K$10:$K$29,3)-_xlfn.QUARTILE.INC($K$10:$K$29,1))),"Não","Sim"),"") -> 
O13: =IF(ISNUMBER(K13),IF(OR(K13<_xlfn.QUARTILE.INC($K$10:$K$29,1)-1.5*(_xlfn.QUARTILE.INC($K$10:K31,3)-_xlfn.QUARTILE.INC($K$10:$K$29,1)),K13>_xlfn.QUARTILE.INC($K$10:$K$29,3)+1.5*(_xlfn.QUARTILE.INC($K$10:$K$29,3)-_xlfn.QUARTILE.INC($K$10:$K$29,1))),"Não","Sim"),"") -> 
O14: =IF(ISNUMBER(K14),IF(OR(K14<_xlfn.QUARTILE.INC($K$10:$K$29,1)-1.5*(_xlfn.QUARTILE.INC($K$10:K32,3)-_xlfn.QUARTILE.INC($K$10:$K$29,1)),K14>_xlfn.QUARTILE.INC($K$10:$K$29,3)+1.5*(_xlfn.QUARTILE.INC($K$10:$K$29,3)-_xlfn.QUARTILE.INC($K$10:$K$29,1))),"Não","Sim"),"") -> 
O15: =IF(ISNUMBER(K15),IF(OR(K15<_xlfn.QUARTILE.INC($K$10:$K$29,1)-1.5*(_xlfn.QUARTILE.INC($K$10:K35,3)-_xlfn.QUARTILE.INC($K$10:$K$29,1)),K15>_xlfn.QUARTILE.INC($K$10:$K$29,3)+1.5*(_xlfn.QUARTILE.INC($K$10:$K$29,3)-_xlfn.QUARTILE.INC($K$10:$K$29,1))),"Não","Sim"),"") -> 
O16: =IF(ISNUMBER(K16),IF(OR(K16<_xlfn.QUARTILE.INC($K$10:$K$29,1)-1.5*(_xlfn.QUARTILE.INC($I$10:I37,3)-_xlfn.QUARTILE.INC($K$10:$K$29,1)),K16>_xlfn.QUARTILE.INC($K$10:$K$29,3)+1.5*(_xlfn.QUARTILE.INC($K$10:$K$29,3)-_xlfn.QUARTILE.INC($K$10:$K$29,1))),"Não","Sim"),"") -> 
B17: COTAÇÕES DE MERCADO | O17: Cotações
B18: Empresa | J18: Data | K18: Preço Unitário | L18: Utilizar? (Sim/Não) | O18: Outliers | P18: Por critério do(a) analista
B19: https://www.sapesca.com.br/cobertor-manta-termica-emerg-ncia-de-aluminio-albatroz-laranja-legendarios?gad_source=1&gad_campaignid=23158985418&gbraid=0AAAABBFoYGlOUQEMRXMjs_8sez7u-cLoQ&gclid=CjwKCAjwtcHPBhADEiwAWo3sJm328xgf9RpK5DEmXAKzpMImKYm-eWtN4o8ZixAqm4Ju-qM3nt2SPRoCP7gQAvD_BwE | J19: 2026-04-28 | K19: 19.9 | L19: =IF(ISNUMBER(K19),IF($L$32=$O$18,O19,IF($L$32=$P$18,P19,"")),"") -> Sim | O19: =IF(ISNUMBER(K19),IF(OR(K19<_xlfn.QUARTILE.INC($K$10:$K$29,1)-1.5*(_xlfn.QUARTILE.INC($K$10:$K$29,3)-_xlfn.QUARTILE.INC($K$10:$K$29,1)),K19>_xlfn.QUARTILE.INC($K$10:$K$29,3)+1.5*(_xlfn.QUARTILE.INC($K$10:$K$29,3)-_xlfn.QUARTILE.INC($K$10:$K$29,1))),"Não","Sim"),"") -> Sim
B20: https://www.amazon.com.br/Cobertor-T%C3%A9rmica-Aluminizado-Isolante-Emerg%C3%AAncia/dp/B0BC6DFQ7K/ref=asc_df_B0BC6DFQ7K?mcid=87609cff66ed3e65a77142ce70b537bf&tag=googleshopp00-20&linkCode=df0&hvadid=709968340933&hvpos=&hvnetw=g&hvrand=5503984832897904889&hvpone=&hvptwo=&hvqmt=&hvdev=c&hvdvcmdl=&hvlocint=&hvlocphy=9196708&hvtargid=pla-2340797163025&psc=1&hvocijid=5503984832897904889-B0BC6DFQ7K-&hvexpln=0&language=pt_BR | J20: 2026-04-28 | K20: 32.9 | L20: Sim | O20: Sim
B21: https://www.generalmed.com.br/loja/produto.php?loja=371454&IdProd=2583&parceiro=3060&gad_source=1&gad_campaignid=1041253627&gbraid=0AAAAADm_LOUSXv0FaHYo5lJzDBrjyNMVo&gclid=CjwKCAjwtcHPBhADEiwAWo3sJh9zNKBIe1SW_EC-pVxZabHwaOPslfqksZb0iBjOOiBh-p9qlHd9phoCAHoQAvD_BwE | J21: 2026-04-28 | K21: 24.55 | L21: Sim | O21: Sim
B30: Observações: | K30: Média: | L30: =IF($L$32="","Selecione metodologia para exclusão de preços",AVERAGE(IF($L$10:$L$29="Sim",$K$10:$K$29))) -> 25.78333333 | N30: Média (Cotações) | O30: =IF(COUNTIF(O19:O29,"Sim")<3,"N/D (são necessários pelo menos 3 preços)",AVERAGE(IF(O19:O29="Sim",$K19:$K29))) -> 25.78333333 | P30: =IF(COUNTIF(P19:P29,"Sim")<3,"N/D (são necessários pelo menos 3 preços)",AVERAGE(IF(P19:P29="Sim",$K19:$K29))) -> N/D (são necessários pelo menos 3 preços)
K31: Mediana: | L31: =IF($L$32="","Selecione metodologia para exclusão de preços",MEDIAN(IF($L$10:$L$29="Sim",$K$10:$K$29))) -> 24.55 | N31: Mediana (Cotações) | O31: =IF(COUNTIF(O19:O29,"Sim")<3,"N/D (são necessários pelo menos 3 preços)",MEDIAN(IF(O19:O29="Sim",$K19:$K29))) -> 24.55 | P31: =IF(COUNTIF(P19:P29,"Sim")<3,"N/D (são necessários pelo menos 3 preços)",MEDIAN(IF(P19:P29="Sim",$K19:$K29))) -> N/D (são necessários pelo menos 3 preços)
B32: Metodologia de exclusão de preços adotada: | L32: =IF(O35="",INDEX(O18:P18,MATCH(MIN(#REF!),#REF!,0)),O35) -> Outliers | N32: CV (Cotações) | O32: =IF(COUNTIF(O19:O29,"Sim")<3,"N/D (são necessários pelo menos 3 preços)",_xlfn.STDEV.S(IF(O19:O29="Sim",$K19:$K29))/AVERAGE(IF(O19:O29="Sim",$K19:$K29))) -> 0.2554817793 | P32: =IF(COUNTIF(P19:P29,"Sim")<3,"N/D (são necessários pelo menos 3 preços)",_xlfn.STDEV.S(IF(P19:P29="Sim",$K19:$K29))/AVERAGE(IF(P19:P29="Sim",$K19:$K29))) -> N/D (são necessários pelo menos 3 preços)
N33: Média | O33: =IF(SUM(COUNTIF($O$10:$O$16,"Sim")) + SUM(COUNTIF(O19:O29,"Sim")) < 3, "N/D (são necessários pelo menos 3 preços)", IFERROR(AVERAGE(_xlfn._xlws.FILTER($K$10:$K$16,$O$10:$O$16="Sim"), _xlfn._xlws.FILTER($K$19:$K$29,O19:O29="Sim")),O30)) -> 25.78333333 | P33: =IF(SUM(COUNTIF($P$10:$P$16,"Sim")) + SUM(COUNTIF(P19:P29,"Sim")) < 3, "N/D (são necessários pelo menos 3 preços)", IFERROR(AVERAGE(_xlfn._xlws.FILTER($K$10:$K$16,$P$10:$P$16="Sim"), _xlfn._xlws.FILTER($K$19:$K$29,P19:P29="Sim")),P30)) -> N/D (são necessários pelo menos 3 preços)
N34: Mediana | O34: =IF(SUM(COUNTIF($O$10:$O$16,"Sim")) + SUM(COUNTIF(O19:O29,"Sim")) < 3, "N/D (são necessários pelo menos 3 preços)", IFERROR(MEDIAN(_xlfn._xlws.FILTER($K$10:$K$16,$O$10:$O$16="Sim"), _xlfn._xlws.FILTER($K$19:$K$29,O19:O29="Sim")),O31)) -> 24.55 | P34: =IF(SUM(COUNTIF($P10:$P$16,"Sim")) + SUM(COUNTIF(P19:P29,"Sim")) < 3, "N/D (são necessários pelo menos 3 preços)", IFERROR(MEDIAN(_xlfn._xlws.FILTER($K$10:$K$16,$P$10:$P$16="Sim"), _xlfn._xlws.FILTER($K$19:$K$29,P19:P29="Sim")),P31)) -> N/D (são necessários pelo menos 3 preços)
B35: COSOLIDAÇÃO DOS PREÇOS | N35: Metodologia a adotar: | O35: =IF(INDEX(O18:P18,P35)=0,"",INDEX(O18:P18,P35)) -> Outliers | P35: 1
B37: PREÇO UNITÁRIO ESTIMADO ADOTADO: | L37: =IF($B$39="Mediana:",L31,L30) -> 24.55
A39: =O18 -> Outliers | B39: Mediana:

Sheet Colar cervic (hidden)
B2: Processo
B3: Responsável
B4: Área de Origem
B5: Data da pesquisa
B7: ITEM: | C7: COLAR CERVICAL 4x1 em polietileno de alta densidade, com espessura mínima de 1,5mm, revestido em espuma macia tipo "E.V.A", fecho em velcro de 05mm em um dos lados, abertura frontal que permite a palpação do pulso carotídeo e acesso a traqueia, botões em plástico resistente, possibilita rádio-transparência, tamanho universal. | I7: UNIDADE DE MEDIDA: | J7: Unidade | K7: QUANTIDADE: | L7: 2 | O7: Tabela auxiliar de metodologias para exclusão de preços
B8: LICITAÇÕES ANTERIORES | O8: Licitações Anteriores
B9: Órgão | C9: Edital/Ano - Nº do Lote / Item | D9: Quantidade | E9: Valor Unitário | F9: Data | G9: índice de atualização (nome) | H9: I0 | I9: If | J9: Variação acumulada do índice (%) | K9: Preço unitário atualizado | L9: Utilizar? (Sim/Não) | O9: Outliers | P9: Por critério do(a) analista
J10: =IF(ISBLANK(E10),"",IF(ISNUMBER(H10),(I10-H10)/H10,0)) ->  | K10: =IF(ISBLANK(E10),"",E10*(1+J10)) ->  | L10: =IF(ISNUMBER(K10),IF($L$32<>$P$9,O10,P10),"") ->  | O10: =IF(ISNUMBER(K10),IF(OR(K10<_xlfn.QUARTILE.INC($K$10:$K$29,1)-1.5*(_xlfn.QUARTILE.INC($K$10:K29,3)-_xlfn.QUARTILE.INC($K$10:$K$29,1)),K10>_xlfn.QUARTILE.INC($K$10:$K$29,3)+1.5*(_xlfn.QUARTILE.INC($K$10:$K$29,3)-_xlfn.QUARTILE.INC($K$10:$K$29,1))),"Não","Sim"),"") -> 
J11: =IF(ISBLANK(E11),"",IF(ISNUMBER(H11),(I11-H11)/H11,0)) ->  | K11: =IF(ISBLANK(E11),"",E11*(1+J11)) ->  | O11: =IF(ISNUMBER(K11),IF(OR(K11<_xlfn.QUARTILE.INC($K$10:$K$29,1)-1.5*(_xlfn.QUARTILE.INC($K$10:K29,3)-_xlfn.QUARTILE.INC($K$10:$K$29,1)),K11>_xlfn.QUARTILE.INC($K$10:$K$29,3)+1.5*(_xlfn.QUARTILE.INC($K$10:$K$29,3)-_xlfn.QUARTILE.INC($K$10:$K$29,1))),"Não","Sim"),"") -> 
O12: =IF(ISNUMBER(K12),IF(OR(K12<_xlfn.QUARTILE.INC($K$10:$K$29,1)-1.5*(_xlfn.QUARTILE.INC($K$10:K30,3)-_xlfn.QUARTILE.INC($K$10:$K$29,1)),K12>_xlfn.QUARTILE.INC($K$10:$K$29,3)+1.5*(_xlfn.QUARTILE.INC($K$10:$K$29,3)-_xlfn.QUARTILE.INC($K$10:$K$29,1))),"Não","Sim"),"") -> 
O13: =IF(ISNUMBER(K13),IF(OR(K13<_xlfn.QUARTILE.INC($K$10:$K$29,1)-1.5*(_xlfn.QUARTILE.INC($K$10:K31,3)-_xlfn.QUARTILE.INC($K$10:$K$29,1)),K13>_xlfn.QUARTILE.INC($K$10:$K$29,3)+1.5*(_xlfn.QUARTILE.INC($K$10:$K$29,3)-_xlfn.QUARTILE.INC($K$10:$K$29,1))),"Não","Sim"),"") -> 
O14: =IF(ISNUMBER(K14),IF(OR(K14<_xlfn.QUARTILE.INC($K$10:$K$29,1)-1.5*(_xlfn.QUARTILE.INC($K$10:K32,3)-_xlfn.QUARTILE.INC($K$10:$K$29,1)),K14>_xlfn.QUARTILE.INC($K$10:$K$29,3)+1.5*(_xlfn.QUARTILE.INC($K$10:$K$29,3)-_xlfn.QUARTILE.INC($K$10:$K$29,1))),"Não","Sim"),"") -> 
O15: =IF(ISNUMBER(K15),IF(OR(K15<_xlfn.QUARTILE.INC($K$10:$K$29,1)-1.5*(_xlfn.QUARTILE.INC($K$10:K35,3)-_xlfn.QUARTILE.INC($K$10:$K$29,1)),K15>_xlfn.QUARTILE.INC($K$10:$K$29,3)+1.5*(_xlfn.QUARTILE.INC($K$10:$K$29,3)-_xlfn.QUARTILE.INC($K$10:$K$29,1))),"Não","Sim"),"") -> 
O16: =IF(ISNUMBER(K16),IF(OR(K16<_xlfn.QUARTILE.INC($K$10:$K$29,1)-1.5*(_xlfn.QUARTILE.INC($I$10:I37,3)-_xlfn.QUARTILE.INC($K$10:$K$29,1)),K16>_xlfn.QUARTILE.INC($K$10:$K$29,3)+1.5*(_xlfn.QUARTILE.INC($K$10:$K$29,3)-_xlfn.QUARTILE.INC($K$10:$K$29,1))),"Não","Sim"),"") -> 
B17: COTAÇÕES DE MERCADO | O17: Cotações
B18: Empresa | J18: Data | K18: Preço Unitário | L18: Utilizar? (Sim/Não) | O18: Outliers | P18: Por critério do(a) analista
B19: Prática Brasil - https://praticabrasil.com.br/produto/colar-cervical-regulavel-4x1/?https://praticabrasil.com.br/?utm_source=GADS&utm_medium=PMAX&utm_campaign=marco&utm_term=&utm_content=&gad_source=1&gad_campaignid=23628834712&gbraid=0AAAAADjRHqiOSutdLFtEVRKqtJhDjCXRk&gclid=CjwKCAjwtcHPBhADEiwAWo3sJq5pQPQtJjz_kL3ATs_KJ3IArHt87OzkeKi6EjePLSMwlc2FEeyTkhoCKXAQAvD_BwE | J19: 2026-04-28 | K19: 49.77 | L19: =IF(ISNUMBER(K19),IF($L$32=$O$18,O19,IF($L$32=$P$18,P19,"")),"") -> Sim | O19: =IF(ISNUMBER(K19),IF(OR(K19<_xlfn.QUARTILE.INC($K$10:$K$29,1)-1.5*(_xlfn.QUARTILE.INC($K$10:$K$29,3)-_xlfn.QUARTILE.INC($K$10:$K$29,1)),K19>_xlfn.QUARTILE.INC($K$10:$K$29,3)+1.5*(_xlfn.QUARTILE.INC($K$10:$K$29,3)-_xlfn.QUARTILE.INC($K$10:$K$29,1))),"Não","Sim"),"") -> Sim
B20: Magazine Luiza - https://www.magazineluiza.com.br/colar-cervical-4-x-1-vno/p/egk056egj9/cp/coce/?&seller_id=corcenter&utm_source=google&utm_medium=cpc&utm_term=84444&utm_campaign=google_eco_per_ven_pla_all_sor_4p_all-products-0326&utm_content=&partner_id=84444&gclsrc=aw.ds&gad_source=1&gad_campaignid=18473140027&gbraid=0AAAAAD4zZmRNEX92cFIcWTvoFbuqtLpfI&gclid=CjwKCAjwtcHPBhADEiwAWo3sJmHI0_G6q9OZt1sIJF2PY5o_1JVgNn7n_J5MMlXJbqO801e3EYh-_hoCIk4QAvD_BwE | J20: 2026-04-28 | K20: 54.9 | L20: Sim | O20: Sim
B21: Mercado Livre - https://www.mercadolivre.com.br/colar-cervical-regulavel-4x1/up/MLBU3412838340?pdp_filters=item_id%3AMLB5677547810&from=gshop&matt_tool=79314260&matt_word=&matt_source=google&matt_campaign_id=22090354076&matt_ad_group_id=192555040014&matt_match_type=&matt_network=g&matt_device=c&matt_creative=799032780706&matt_keyword=&matt_ad_position=&matt_ad_type=pla&matt_merchant_id=5705685143&matt_product_id=MLBU3412838340&matt_product_partition_id=2468104432726&matt_target_id=pla-2468104432726&cq_src=google_ads&cq_cmp=22090354076&cq_net=g&cq_plt=gp&cq_med=pla&gad_source=1&gad_campaignid=22090354076&gbraid=0AAAAAD93qcCcGqt1pEx9xzjfzQyhTs6YD&gclid=CjwKCAjwtcHPBhADEiwAWo3sJvw5WSDl8tHc6vJV4bEsP96-1Sd3mTJfZyGCQsP9WooWbuZYwo7UGxoCAGIQAvD_BwE | J21: 2026-04-28 | K21: 46.5 | L21: Sim | O21: Sim
B30: Observações: | K30: Média: | L30: =IF($L$32="","Selecione metodologia para exclusão de preços",AVERAGE(IF($L$10:$L$29="Sim",$K$10:$K$29))) -> 50.39 | N30: Média (Cotações) | O30: =IF(COUNTIF(O19:O29,"Sim")<3,"N/D (são necessários pelo menos 3 preços)",AVERAGE(IF(O19:O29="Sim",$K19:$K29))) -> 50.39 | P30: =IF(COUNTIF(P19:P29,"Sim")<3,"N/D (são necessários pelo menos 3 preços)",AVERAGE(IF(P19:P29="Sim",$K19:$K29))) -> N/D (são necessários pelo menos 3 preços)
K31: Mediana: | L31: =IF($L$32="","Selecione metodologia para exclusão de preços",MEDIAN(IF($L$10:$L$29="Sim",$K$10:$K$29))) -> 49.77 | N31: Mediana (Cotações) | O31: =IF(COUNTIF(O19:O29,"Sim")<3,"N/D (são necessários pelo menos 3 preços)",MEDIAN(IF(O19:O29="Sim",$K19:$K29))) -> 49.77 | P31: =IF(COUNTIF(P19:P29,"Sim")<3,"N/D (são necessários pelo menos 3 preços)",MEDIAN(IF(P19:P29="Sim",$K19:$K29))) -> N/D (são necessários pelo menos 3 preços)
B32: Metodologia de exclusão de preços adotada: | L32: =IF(O35="",INDEX(O18:P18,MATCH(MIN(#REF!),#REF!,0)),O35) -> Outliers | N32: CV (Cotações) | O32: =IF(COUNTIF(O19:O29,"Sim")<3,"N/D (são necessários pelo menos 3 preços)",_xlfn.STDEV.S(IF(O19:O29="Sim",$K19:$K29))/AVERAGE(IF(O19:O29="Sim",$K19:$K29))) -> 0.08402822643 | P32: =IF(COUNTIF(P19:P29,"Sim")<3,"N/D (são necessários pelo menos 3 preços)",_xlfn.STDEV.S(IF(P19:P29="Sim",$K19:$K29))/AVERAGE(IF(P19:P29="Sim",$K19:$K29))) -> N/D (são necessários pelo menos 3 preços)
N33: Média | O33: =IF(SUM(COUNTIF($O$10:$O$16,"Sim")) + SUM(COUNTIF(O19:O29,"Sim")) < 3, "N/D (são necessários pelo menos 3 preços)", IFERROR(AVERAGE(_xlfn._xlws.FILTER($K$10:$K$16,$O$10:$O$16="Sim"), _xlfn._xlws.FILTER($K$19:$K$29,O19:O29="Sim")),O30)) -> 50.39 | P33: =IF(SUM(COUNTIF($P$10:$P$16,"Sim")) + SUM(COUNTIF(P19:P29,"Sim")) < 3, "N/D (são necessários pelo menos 3 preços)", IFERROR(AVERAGE(_xlfn._xlws.FILTER($K$10:$K$16,$P$10:$P$16="Sim"), _xlfn._xlws.FILTER($K$19:$K$29,P19:P29="Sim")),P30)) -> N/D (são necessários pelo menos 3 preços)
N34: Mediana | O34: =IF(SUM(COUNTIF($O$10:$O$16,"Sim")) + SUM(COUNTIF(O19:O29,"Sim")) < 3, "N/D (são necessários pelo menos 3 preços)", IFERROR(MEDIAN(_xlfn._xlws.FILTER($K$10:$K$16,$O$10:$O$16="Sim"), _xlfn._xlws.FILTER($K$19:$K$29,O19:O29="Sim")),O31)) -> 49.77 | P34: =IF(SUM(COUNTIF($P10:$P$16,"Sim")) + SUM(COUNTIF(P19:P29,"Sim")) < 3, "N/D (são necessários pelo menos 3 preços)", IFERROR(MEDIAN(_xlfn._xlws.FILTER($K$10:$K$16,$P$10:$P$16="Sim"), _xlfn._xlws.FILTER($K$19:$K$29,P19:P29="Sim")),P31)) -> N/D (são necessários pelo menos 3 preços)
B35: COSOLIDAÇÃO DOS PREÇOS | N35: Metodologia a adotar: | O35: =IF(INDEX(O18:P18,P35)=0,"",INDEX(O18:P18,P35)) -> Outliers | P35: 1
B37: PREÇO UNITÁRIO ESTIMADO ADOTADO: | L37: =IF($B$39="Mediana:",L31,L30) -> 50.39
A39: =O18 -> Outliers

Sheet Colete Dorsal (hidden)
B2: Processo
B3: Responsável
B4: Área de Origem
B5: Data da pesquisa
B7: ITEM: | C7: COLETE DE IMOBILIZAÇÃO dorsal tipo KED, em nylon, para imobilização desde a cabeça até a região do coccix, com 3 (três) tirantes em cores diferentes para imbilização do tronco e outros 02 (dois) tirantes para fixação dos membros inferiores, regulagem para fixação da tesa e queixo, almofada para apoio da cabeça, todos com engate rápido, acondicionado em sacola de nylon. | I7: UNIDADE DE MEDIDA: | J7: Unidade | K7: QUANTIDADE: | L7: 1 | O7: Tabela auxiliar de metodologias para exclusão de preços
B8: LICITAÇÕES ANTERIORES | O8: Licitações Anteriores
B9: Órgão | C9: Edital/Ano - Nº do Lote / Item | D9: Quantidade | E9: Valor Unitário | F9: Data | G9: índice de atualização (nome) | H9: I0 | I9: If | J9: Variação acumulada do índice (%) | K9: Preço unitário atualizado | L9: Utilizar? (Sim/Não) | O9: Outliers | P9: Por critério do(a) analista
J10: =IF(ISBLANK(E10),"",IF(ISNUMBER(H10),(I10-H10)/H10,0)) ->  | K10: =IF(ISBLANK(E10),"",E10*(1+J10)) ->  | L10: =IF(ISNUMBER(K10),IF($L$32<>$P$9,O10,P10),"") ->  | O10: =IF(ISNUMBER(K10),IF(OR(K10<_xlfn.QUARTILE.INC($K$10:$K$29,1)-1.5*(_xlfn.QUARTILE.INC($K$10:K29,3)-_xlfn.QUARTILE.INC($K$10:$K$29,1)),K10>_xlfn.QUARTILE.INC($K$10:$K$29,3)+1.5*(_xlfn.QUARTILE.INC($K$10:$K$29,3)-_xlfn.QUARTILE.INC($K$10:$K$29,1))),"Não","Sim"),"") -> 
J11: =IF(ISBLANK(E11),"",IF(ISNUMBER(H11),(I11-H11)/H11,0)) ->  | K11: =IF(ISBLANK(E11),"",E11*(1+J11)) ->  | O11: =IF(ISNUMBER(K11),IF(OR(K11<_xlfn.QUARTILE.INC($K$10:$K$29,1)-1.5*(_xlfn.QUARTILE.INC($K$10:K29,3)-_xlfn.QUARTILE.INC($K$10:$K$29,1)),K11>_xlfn.QUARTILE.INC($K$10:$K$29,3)+1.5*(_xlfn.QUARTILE.INC($K$10:$K$29,3)-_xlfn.QUARTILE.INC($K$10:$K$29,1))),"Não","Sim"),"") -> 
O12: =IF(ISNUMBER(K12),IF(OR(K12<_xlfn.QUARTILE.INC($K$10:$K$29,1)-1.5*(_xlfn.QUARTILE.INC($K$10:K30,3)-_xlfn.QUARTILE.INC($K$10:$K$29,1)),K12>_xlfn.QUARTILE.INC($K$10:$K$29,3)+1.5*(_xlfn.QUARTILE.INC($K$10:$K$29,3)-_xlfn.QUARTILE.INC($K$10:$K$29,1))),"Não","Sim"),"") -> 
O13: =IF(ISNUMBER(K13),IF(OR(K13<_xlfn.QUARTILE.INC($K$10:$K$29,1)-1.5*(_xlfn.QUARTILE.INC($K$10:K31,3)-_xlfn.QUARTILE.INC($K$10:$K$29,1)),K13>_xlfn.QUARTILE.INC($K$10:$K$29,3)+1.5*(_xlfn.QUARTILE.INC($K$10:$K$29,3)-_xlfn.QUARTILE.INC($K$10:$K$29,1))),"Não","Sim"),"") -> 
O14: =IF(ISNUMBER(K14),IF(OR(K14<_xlfn.QUARTILE.INC($K$10:$K$29,1)-1.5*(_xlfn.QUARTILE.INC($K$10:K32,3)-_xlfn.QUARTILE.INC($K$10:$K$29,1)),K14>_xlfn.QUARTILE.INC($K$10:$K$29,3)+1.5*(_xlfn.QUARTILE.INC($K$10:$K$29,3)-_xlfn.QUARTILE.INC($K$10:$K$29,1))),"Não","Sim"),"") -> 
O15: =IF(ISNUMBER(K15),IF(OR(K15<_xlfn.QUARTILE.INC($K$10:$K$29,1)-1.5*(_xlfn.QUARTILE.INC($K$10:K35,3)-_xlfn.QUARTILE.INC($K$10:$K$29,1)),K15>_xlfn.QUARTILE.INC($K$10:$K$29,3)+1.5*(_xlfn.QUARTILE.INC($K$10:$K$29,3)-_xlfn.QUARTILE.INC($K$10:$K$29,1))),"Não","Sim"),"") -> 
O16: =IF(ISNUMBER(K16),IF(OR(K16<_xlfn.QUARTILE.INC($K$10:$K$29,1)-1.5*(_xlfn.QUARTILE.INC($I$10:I37,3)-_xlfn.QUARTILE.INC($K$10:$K$29,1)),K16>_xlfn.QUARTILE.INC($K$10:$K$29,3)+1.5*(_xlfn.QUARTILE.INC($K$10:$K$29,3)-_xlfn.QUARTILE.INC($K$10:$K$29,1))),"Não","Sim"),"") -> 
B17: COTAÇÕES DE MERCADO | O17: Cotações
B18: Empresa | J18: Data | K18: Preço Unitário | L18: Utilizar? (Sim/Não) | O18: Outliers | P18: Por critério do(a) analista
B19: https://triomed.com.br/products/prod-colete-dorsal-tipo-ked-adulto-resgate-s56?variant=46537971892465&country=BR&currency=BRL&utm_medium=product_sync&utm_source=google&utm_content=sag_organic&utm_campaign=sag_organic&gad_source=1&gad_campaignid=22849579101&gbraid=0AAAAABxBVVYZWxImXDbM2oZjelfbbAWD6&gclid=CjwKCAjwtcHPBhADEiwAWo3sJjaqbyaW0Q4Ow6FnhfvhgVxsDOy-znsyp5vUQII2sCdEtlXLhmELwRoCTVwQAvD_BwE | J19: 2026-04-28 | K19: 241.99 | L19: =IF(ISNUMBER(K19),IF($L$32=$O$18,O19,IF($L$32=$P$18,P19,"")),"") -> Sim | O19: =IF(ISNUMBER(K19),IF(OR(K19<_xlfn.QUARTILE.INC($K$10:$K$29,1)-1.5*(_xlfn.QUARTILE.INC($K$10:$K$29,3)-_xlfn.QUARTILE.INC($K$10:$K$29,1)),K19>_xlfn.QUARTILE.INC($K$10:$K$29,3)+1.5*(_xlfn.QUARTILE.INC($K$10:$K$29,3)-_xlfn.QUARTILE.INC($K$10:$K$29,1))),"Não","Sim"),"") -> Sim
B20: https://magazinemedica.com.br/produtos/visualiza/sku/16380/?gad_source=1&gad_campaignid=23257119241&gbraid=0AAAAA-LLl3RLzXqqgnGcdPho_yiSl5zbL&gclid=CjwKCAjwtcHPBhADEiwAWo3sJumIPFPCwtvD4JgZConaHE7btpSB3NnBb7i6P9KQPFe5HkvfOg3RehoCNlAQAvD_BwE | J20: 2026-04-28 | K20: 426.2 | L20: Sim | O20: Sim
B21: https://www.generalmed.com.br/loja/produto.php?loja=371454&IdProd=700&parceiro=3060&variant_id=2529&gad_source=1&gad_campaignid=1041253627&gbraid=0AAAAADm_LOUSXv0FaHYo5lJzDBrjyNMVo&gclid=CjwKCAjwtcHPBhADEiwAWo3sJkFVs-i-6Qfrhh_vGRjM59TrKrBH6GG3slxnJBQsqJeHxYl3oDkkSBoCjhAQAvD_BwE | J21: 2026-04-28 | K21: 289.82 | L21: Sim | O21: Sim
B30: Observações: | K30: Média: | L30: =IF($L$32="","Selecione metodologia para exclusão de preços",AVERAGE(IF($L$10:$L$29="Sim",$K$10:$K$29))) -> 319.3366667 | N30: Média (Cotações) | O30: =IF(COUNTIF(O19:O29,"Sim")<3,"N/D (são necessários pelo menos 3 preços)",AVERAGE(IF(O19:O29="Sim",$K19:$K29))) -> 319.3366667 | P30: =IF(COUNTIF(P19:P29,"Sim")<3,"N/D (são necessários pelo menos 3 preços)",AVERAGE(IF(P19:P29="Sim",$K19:$K29))) -> N/D (são necessários pelo menos 3 preços)
K31: Mediana: | L31: =IF($L$32="","Selecione metodologia para exclusão de preços",MEDIAN(IF($L$10:$L$29="Sim",$K$10:$K$29))) -> 289.82 | N31: Mediana (Cotações) | O31: =IF(COUNTIF(O19:O29,"Sim")<3,"N/D (são necessários pelo menos 3 preços)",MEDIAN(IF(O19:O29="Sim",$K19:$K29))) -> 289.82 | P31: =IF(COUNTIF(P19:P29,"Sim")<3,"N/D (são necessários pelo menos 3 preços)",MEDIAN(IF(P19:P29="Sim",$K19:$K29))) -> N/D (são necessários pelo menos 3 preços)
B32: Metodologia de exclusão de preços adotada: | L32: =IF(O35="",INDEX(O18:P18,MATCH(MIN(#REF!),#REF!,0)),O35) -> Outliers | N32: CV (Cotações) | O32: =IF(COUNTIF(O19:O29,"Sim")<3,"N/D (são necessários pelo menos 3 preços)",_xlfn.STDEV.S(IF(O19:O29="Sim",$K19:$K29))/AVERAGE(IF(O19:O29="Sim",$K19:$K29))) -> 0.2993279225 | P32: =IF(COUNTIF(P19:P29,"Sim")<3,"N/D (são necessários pelo menos 3 preços)",_xlfn.STDEV.S(IF(P19:P29="Sim",$K19:$K29))/AVERAGE(IF(P19:P29="Sim",$K19:$K29))) -> N/D (são necessários pelo menos 3 preços)
N33: Média | O33: =IF(SUM(COUNTIF($O$10:$O$16,"Sim")) + SUM(COUNTIF(O19:O29,"Sim")) < 3, "N/D (são necessários pelo menos 3 preços)", IFERROR(AVERAGE(_xlfn._xlws.FILTER($K$10:$K$16,$O$10:$O$16="Sim"), _xlfn._xlws.FILTER($K$19:$K$29,O19:O29="Sim")),O30)) -> 319.3366667 | P33: =IF(SUM(COUNTIF($P$10:$P$16,"Sim")) + SUM(COUNTIF(P19:P29,"Sim")) < 3, "N/D (são necessários pelo menos 3 preços)", IFERROR(AVERAGE(_xlfn._xlws.FILTER($K$10:$K$16,$P$10:$P$16="Sim"), _xlfn._xlws.FILTER($K$19:$K$29,P19:P29="Sim")),P30)) -> N/D (são necessários pelo menos 3 preços)
N34: Mediana | O34: =IF(SUM(COUNTIF($O$10:$O$16,"Sim")) + SUM(COUNTIF(O19:O29,"Sim")) < 3, "N/D (são necessários pelo menos 3 preços)", IFERROR(MEDIAN(_xlfn._xlws.FILTER($K$10:$K$16,$O$10:$O$16="Sim"), _xlfn._xlws.FILTER($K$19:$K$29,O19:O29="Sim")),O31)) -> 289.82 | P34: =IF(SUM(COUNTIF($P10:$P$16,"Sim")) + SUM(COUNTIF(P19:P29,"Sim")) < 3, "N/D (são necessários pelo menos 3 preços)", IFERROR(MEDIAN(_xlfn._xlws.FILTER($K$10:$K$16,$P$10:$P$16="Sim"), _xlfn._xlws.FILTER($K$19:$K$29,P19:P29="Sim")),P31)) -> N/D (são necessários pelo menos 3 preços)
B35: COSOLIDAÇÃO DOS PREÇOS | N35: Metodologia a adotar: | O35: =IF(INDEX(O18:P18,P35)=0,"",INDEX(O18:P18,P35)) -> Outliers | P35: 1
B37: PREÇO UNITÁRIO ESTIMADO ADOTADO: | L37: =IF($B$39="Mediana:",L31,L30) -> 289.82
A39: =O18 -> Outliers | B39: Mediana:

Sheet Gaze (hidden)
B2: Processo
B3: Responsável
B4: Área de Origem
B5: Data da pesquisa
B7: ITEM: | C7: COMPRESSAS DE GAZE ESTERILIZADAS (10 cm x 15 cm) – pacote com 10 unidades | I7: UNIDADE DE MEDIDA: | J7: Unidade | K7: QUANTIDADE: | L7: 20 | O7: Tabela auxiliar de metodologias para exclusão de preços
B8: LICITAÇÕES ANTERIORES | O8: Licitações Anteriores
B9: Órgão | C9: Edital/Ano - Nº do Lote / Item | D9: Quantidade | E9: Valor Unitário | F9: Data | G9: índice de atualização (nome) | H9: I0 | I9: If | J9: Variação acumulada do índice (%) | K9: Preço unitário atualizado | L9: Utilizar? (Sim/Não) | O9: Outliers | P9: Por critério do(a) analista
J10: =IF(ISBLANK(E10),"",IF(ISNUMBER(H10),(I10-H10)/H10,0)) ->  | K10: =IF(ISBLANK(E10),"",E10*(1+J10)) ->  | L10: =IF(ISNUMBER(K10),IF($L$32<>$P$9,O10,P10),"") ->  | O10: =IF(ISNUMBER(K10),IF(OR(K10<_xlfn.QUARTILE.INC($K$10:$K$29,1)-1.5*(_xlfn.QUARTILE.INC($K$10:K29,3)-_xlfn.QUARTILE.INC($K$10:$K$29,1)),K10>_xlfn.QUARTILE.INC($K$10:$K$29,3)+1.5*(_xlfn.QUARTILE.INC($K$10:$K$29,3)-_xlfn.QUARTILE.INC($K$10:$K$29,1))),"Não","Sim"),"") -> 
J11: =IF(ISBLANK(E11),"",IF(ISNUMBER(H11),(I11-H11)/H11,0)) ->  | K11: =IF(ISBLANK(E11),"",E11*(1+J11)) ->  | O11: =IF(ISNUMBER(K11),IF(OR(K11<_xlfn.QUARTILE.INC($K$10:$K$29,1)-1.5*(_xlfn.QUARTILE.INC($K$10:K29,3)-_xlfn.QUARTILE.INC($K$10:$K$29,1)),K11>_xlfn.QUARTILE.INC($K$10:$K$29,3)+1.5*(_xlfn.QUARTILE.INC($K$10:$K$29,3)-_xlfn.QUARTILE.INC($K$10:$K$29,1))),"Não","Sim"),"") -> 
O12: =IF(ISNUMBER(K12),IF(OR(K12<_xlfn.QUARTILE.INC($K$10:$K$29,1)-1.5*(_xlfn.QUARTILE.INC($K$10:K30,3)-_xlfn.QUARTILE.INC($K$10:$K$29,1)),K12>_xlfn.QUARTILE.INC($K$10:$K$29,3)+1.5*(_xlfn.QUARTILE.INC($K$10:$K$29,3)-_xlfn.QUARTILE.INC($K$10:$K$29,1))),"Não","Sim"),"") -> 
O13: =IF(ISNUMBER(K13),IF(OR(K13<_xlfn.QUARTILE.INC($K$10:$K$29,1)-1.5*(_xlfn.QUARTILE.INC($K$10:K31,3)-_xlfn.QUARTILE.INC($K$10:$K$29,1)),K13>_xlfn.QUARTILE.INC($K$10:$K$29,3)+1.5*(_xlfn.QUARTILE.INC($K$10:$K$29,3)-_xlfn.QUARTILE.INC($K$10:$K$29,1))),"Não","Sim"),"") -> 
O14: =IF(ISNUMBER(K14),IF(OR(K14<_xlfn.QUARTILE.INC($K$10:$K$29,1)-1.5*(_xlfn.QUARTILE.INC($K$10:K32,3)-_xlfn.QUARTILE.INC($K$10:$K$29,1)),K14>_xlfn.QUARTILE.INC($K$10:$K$29,3)+1.5*(_xlfn.QUARTILE.INC($K$10:$K$29,3)-_xlfn.QUARTILE.INC($K$10:$K$29,1))),"Não","Sim"),"") -> 
O15: =IF(ISNUMBER(K15),IF(OR(K15<_xlfn.QUARTILE.INC($K$10:$K$29,1)-1.5*(_xlfn.QUARTILE.INC($K$10:K35,3)-_xlfn.QUARTILE.INC($K$10:$K$29,1)),K15>_xlfn.QUARTILE.INC($K$10:$K$29,3)+1.5*(_xlfn.QUARTILE.INC($K$10:$K$29,3)-_xlfn.QUARTILE.INC($K$10:$K$29,1))),"Não","Sim"),"") -> 
O16: =IF(ISNUMBER(K16),IF(OR(K16<_xlfn.QUARTILE.INC($K$10:$K$29,1)-1.5*(_xlfn.QUARTILE.INC($I$10:I37,3)-_xlfn.QUARTILE.INC($K$10:$K$29,1)),K16>_xlfn.QUARTILE.INC($K$10:$K$29,3)+1.5*(_xlfn.QUARTILE.INC($K$10:$K$29,3)-_xlfn.QUARTILE.INC($K$10:$K$29,1))),"Não","Sim"),"") -> 
B17: COTAÇÕES DE MERCADO | O17: Cotações
B18: Empresa | J18: Data | K18: Preço Unitário | L18: Utilizar? (Sim/Não) | O18: Outliers | P18: Por critério do(a) analista
B19: Drogasil - https://www.drogasil.com.br/kit-c-10-compressa-de-gaze-algodonada-esteril-10cm-x-15cm-1294635.html?gad_source=1&gad_campaignid=17339191360&gbraid=0AAAAADod4VVQwQ90NZQI-0p0cJy81H-gh&gclid=CjwKCAjwtcHPBhADEiwAWo3sJt7XdpwfRnBmCh9Ba2vz2bbkhNw20Zg8296HvXR7tmRuPQWX6eEYIBoCEYMQAvD_BwE | J19: 2026-04-28 | K19: 17.99 | L19: =IF(ISNUMBER(K19),IF($L$32=$O$18,O19,IF($L$32=$P$18,P19,"")),"") -> Sim | O19: =IF(ISNUMBER(K19),IF(OR(K19<_xlfn.QUARTILE.INC($K$10:$K$29,1)-1.5*(_xlfn.QUARTILE.INC($K$10:$K$29,3)-_xlfn.QUARTILE.INC($K$10:$K$29,1)),K19>_xlfn.QUARTILE.INC($K$10:$K$29,3)+1.5*(_xlfn.QUARTILE.INC($K$10:$K$29,3)-_xlfn.QUARTILE.INC($K$10:$K$29,1))),"Não","Sim"),"") -> Sim
B20: Mercado Livre - https://www.mercadolivre.com.br/gaze-esteril-pcurativo-tipo-zobec-10x15cm-c10-unid-america/up/MLBU3200207789?pdp_filters=item_id%3AMLB3754456239&from=gshop&matt_tool=79314260&matt_word=&matt_source=google&matt_campaign_id=22090354076&matt_ad_group_id=192555040454&matt_match_type=&matt_network=g&matt_device=c&matt_creative=799032780841&matt_keyword=&matt_ad_position=&matt_ad_type=pla&matt_merchant_id=5550897666&matt_product_id=MLBU3200207789&matt_product_partition_id=2468339145587&matt_target_id=pla-2468339145587&cq_src=google_ads&cq_cmp=22090354076&cq_net=g&cq_plt=gp&cq_med=pla&gad_source=1&gad_campaignid=22090354076&gbraid=0AAAAAD93qcCcGqt1pEx9xzjfzQyhTs6YD&gclid=CjwKCAjwtcHPBhADEiwAWo3sJlDGEIZjQSWpNXpparMHhdou5bLd-w19J9n0W01ufI8OLIEVFz2LpBoCqpAQAvD_BwE | J20: 2026-04-28 | K20: 19.9 | L20: Sim | O20: Sim
B21: Shopee - https://shopee.com.br/product/1650486891/46206120774?gads_t_sig=gqRjZGVrxHCFomtpsTE0MjUxOnRzc19zZGtfa2V5omt20QABpGFsZ2_SAAAAZKNkZWvAomN0xEAAAAAMRvS3L9OTXdZ5FJNxILig8p7lQ7pNpXYtdZAbsM8MQrkGmzJ0eOQRwaQfuYgAF9FAqYvxRTQ9oVrOjPOJqmNpcGhlcnRleHTEdAAAAAziYDuww2FnzpQm_fDTzwvP34WpdG-co-2npGv19OIaUyt93lOnHPV51Oo4YsjyBhJvk0SMM36qykzxs9vqyOdAJ1qnbFDgL6NyFpB9EpU_M-EbYAZS9E6lZ47H3EU7pSLV2rZrrZl27yI_e2G-Jn2H&gad_source=1&gad_campaignid=20818538529&gbraid=0AAAAACoEtRkCElrcvIQBPDTMvm57Qd9kz&gclid=CjwKCAjwtcHPBhADEiwAWo3sJn4iJ-S-fpgDesamTFV0YsrXCoSV_Zj5GtkanoEKJa7V9TKn2X2AsRoC3hwQAvD_BwE | J21: 2026-04-28 | K21: 17.9 | L21: Sim | O21: Sim
B30: Observações: | K30: Média: | L30: =IF($L$32="","Selecione metodologia para exclusão de preços",AVERAGE(IF($L$10:$L$29="Sim",$K$10:$K$29))) -> 18.59666667 | N30: Média (Cotações) | O30: =IF(COUNTIF(O19:O29,"Sim")<3,"N/D (são necessários pelo menos 3 preços)",AVERAGE(IF(O19:O29="Sim",$K19:$K29))) -> 18.59666667 | P30: =IF(COUNTIF(P19:P29,"Sim")<3,"N/D (são necessários pelo menos 3 preços)",AVERAGE(IF(P19:P29="Sim",$K19:$K29))) -> N/D (são necessários pelo menos 3 preços)
K31: Mediana: | L31: =IF($L$32="","Selecione metodologia para exclusão de preços",MEDIAN(IF($L$10:$L$29="Sim",$K$10:$K$29))) -> 17.99 | N31: Mediana (Cotações) | O31: =IF(COUNTIF(O19:O29,"Sim")<3,"N/D (são necessários pelo menos 3 preços)",MEDIAN(IF(O19:O29="Sim",$K19:$K29))) -> 17.99 | P31: =IF(COUNTIF(P19:P29,"Sim")<3,"N/D (são necessários pelo menos 3 preços)",MEDIAN(IF(P19:P29="Sim",$K19:$K29))) -> N/D (são necessários pelo menos 3 preços)
B32: Metodologia de exclusão de preços adotada: | L32: =IF(O35="",INDEX(O18:P18,MATCH(MIN(#REF!),#REF!,0)),O35) -> Outliers | N32: CV (Cotações) | O32: =IF(COUNTIF(O19:O29,"Sim")<3,"N/D (são necessários pelo menos 3 preços)",_xlfn.STDEV.S(IF(O19:O29="Sim",$K19:$K29))/AVERAGE(IF(O19:O29="Sim",$K19:$K29))) -> 0.06074295326 | P32: =IF(COUNTIF(P19:P29,"Sim")<3,"N/D (são necessários pelo menos 3 preços)",_xlfn.STDEV.S(IF(P19:P29="Sim",$K19:$K29))/AVERAGE(IF(P19:P29="Sim",$K19:$K29))) -> N/D (são necessários pelo menos 3 preços)
N33: Média | O33: =IF(SUM(COUNTIF($O$10:$O$16,"Sim")) + SUM(COUNTIF(O19:O29,"Sim")) < 3, "N/D (são necessários pelo menos 3 preços)", IFERROR(AVERAGE(_xlfn._xlws.FILTER($K$10:$K$16,$O$10:$O$16="Sim"), _xlfn._xlws.FILTER($K$19:$K$29,O19:O29="Sim")),O30)) -> 18.59666667 | P33: =IF(SUM(COUNTIF($P$10:$P$16,"Sim")) + SUM(COUNTIF(P19:P29,"Sim")) < 3, "N/D (são necessários pelo menos 3 preços)", IFERROR(AVERAGE(_xlfn._xlws.FILTER($K$10:$K$16,$P$10:$P$16="Sim"), _xlfn._xlws.FILTER($K$19:$K$29,P19:P29="Sim")),P30)) -> N/D (são necessários pelo menos 3 preços)
N34: Mediana | O34: =IF(SUM(COUNTIF($O$10:$O$16,"Sim")) + SUM(COUNTIF(O19:O29,"Sim")) < 3, "N/D (são necessários pelo menos 3 preços)", IFERROR(MEDIAN(_xlfn._xlws.FILTER($K$10:$K$16,$O$10:$O$16="Sim"), _xlfn._xlws.FILTER($K$19:$K$29,O19:O29="Sim")),O31)) -> 17.99 | P34: =IF(SUM(COUNTIF($P10:$P$16,"Sim")) + SUM(COUNTIF(P19:P29,"Sim")) < 3, "N/D (são necessários pelo menos 3 preços)", IFERROR(MEDIAN(_xlfn._xlws.FILTER($K$10:$K$16,$P$10:$P$16="Sim"), _xlfn._xlws.FILTER($K$19:$K$29,P19:P29="Sim")),P31)) -> N/D (são necessários pelo menos 3 preços)
B35: COSOLIDAÇÃO DOS PREÇOS | N35: Metodologia a adotar: | O35: =IF(INDEX(O18:P18,P35)=0,"",INDEX(O18:P18,P35)) -> Outliers | P35: 1
B37: PREÇO UNITÁRIO ESTIMADO ADOTADO: | L37: =IF($B$39="Mediana:",L31,L30) -> 17.99
A39: =O18 -> Outliers | B39: Mediana:

Sheet Band-aid (hidden)
B2: Processo
B3: Responsável
B4: Área de Origem
B5: Data da pesquisa
B7: ITEM: | C7: CURATIVO ADESIVO protetor retangular (caixa com 40) | I7: UNIDADE DE MEDIDA: | J7: Unidade | K7: QUANTIDADE: | L7: 5 | O7: Tabela auxiliar de metodologias para exclusão de preços
B8: LICITAÇÕES ANTERIORES | O8: Licitações Anteriores
B9: Órgão | C9: Edital/Ano - Nº do Lote / Item | D9: Quantidade | E9: Valor Unitário | F9: Data | G9: índice de atualização (nome) | H9: I0 | I9: If | J9: Variação acumulada do índice (%) | K9: Preço unitário atualizado | L9: Utilizar? (Sim/Não) | O9: Outliers | P9: Por critério do(a) analista
J10: =IF(ISBLANK(E10),"",IF(ISNUMBER(H10),(I10-H10)/H10,0)) ->  | K10: =IF(ISBLANK(E10),"",E10*(1+J10)) ->  | L10: =IF(ISNUMBER(K10),IF($L$32<>$P$9,O10,P10),"") ->  | O10: =IF(ISNUMBER(K10),IF(OR(K10<_xlfn.QUARTILE.INC($K$10:$K$29,1)-1.5*(_xlfn.QUARTILE.INC($K$10:K29,3)-_xlfn.QUARTILE.INC($K$10:$K$29,1)),K10>_xlfn.QUARTILE.INC($K$10:$K$29,3)+1.5*(_xlfn.QUARTILE.INC($K$10:$K$29,3)-_xlfn.QUARTILE.INC($K$10:$K$29,1))),"Não","Sim"),"") -> 
J11: =IF(ISBLANK(E11),"",IF(ISNUMBER(H11),(I11-H11)/H11,0)) ->  | K11: =IF(ISBLANK(E11),"",E11*(1+J11)) ->  | O11: =IF(ISNUMBER(K11),IF(OR(K11<_xlfn.QUARTILE.INC($K$10:$K$29,1)-1.5*(_xlfn.QUARTILE.INC($K$10:K29,3)-_xlfn.QUARTILE.INC($K$10:$K$29,1)),K11>_xlfn.QUARTILE.INC($K$10:$K$29,3)+1.5*(_xlfn.QUARTILE.INC($K$10:$K$29,3)-_xlfn.QUARTILE.INC($K$10:$K$29,1))),"Não","Sim"),"") -> 
O12: =IF(ISNUMBER(K12),IF(OR(K12<_xlfn.QUARTILE.INC($K$10:$K$29,1)-1.5*(_xlfn.QUARTILE.INC($K$10:K30,3)-_xlfn.QUARTILE.INC($K$10:$K$29,1)),K12>_xlfn.QUARTILE.INC($K$10:$K$29,3)+1.5*(_xlfn.QUARTILE.INC($K$10:$K$29,3)-_xlfn.QUARTILE.INC($K$10:$K$29,1))),"Não","Sim"),"") -> 
O13: =IF(ISNUMBER(K13),IF(OR(K13<_xlfn.QUARTILE.INC($K$10:$K$29,1)-1.5*(_xlfn.QUARTILE.INC($K$10:K31,3)-_xlfn.QUARTILE.INC($K$10:$K$29,1)),K13>_xlfn.QUARTILE.INC($K$10:$K$29,3)+1.5*(_xlfn.QUARTILE.INC($K$10:$K$29,3)-_xlfn.QUARTILE.INC($K$10:$K$29,1))),"Não","Sim"),"") -> 
O14: =IF(ISNUMBER(K14),IF(OR(K14<_xlfn.QUARTILE.INC($K$10:$K$29,1)-1.5*(_xlfn.QUARTILE.INC($K$10:K32,3)-_xlfn.QUARTILE.INC($K$10:$K$29,1)),K14>_xlfn.QUARTILE.INC($K$10:$K$29,3)+1.5*(_xlfn.QUARTILE.INC($K$10:$K$29,3)-_xlfn.QUARTILE.INC($K$10:$K$29,1))),"Não","Sim"),"") -> 
O15: =IF(ISNUMBER(K15),IF(OR(K15<_xlfn.QUARTILE.INC($K$10:$K$29,1)-1.5*(_xlfn.QUARTILE.INC($K$10:K35,3)-_xlfn.QUARTILE.INC($K$10:$K$29,1)),K15>_xlfn.QUARTILE.INC($K$10:$K$29,3)+1.5*(_xlfn.QUARTILE.INC($K$10:$K$29,3)-_xlfn.QUARTILE.INC($K$10:$K$29,1))),"Não","Sim"),"") -> 
O16: =IF(ISNUMBER(K16),IF(OR(K16<_xlfn.QUARTILE.INC($K$10:$K$29,1)-1.5*(_xlfn.QUARTILE.INC($I$10:I37,3)-_xlfn.QUARTILE.INC($K$10:$K$29,1)),K16>_xlfn.QUARTILE.INC($K$10:$K$29,3)+1.5*(_xlfn.QUARTILE.INC($K$10:$K$29,3)-_xlfn.QUARTILE.INC($K$10:$K$29,1))),"Não","Sim"),"") -> 
B17: COTAÇÕES DE MERCADO | O17: Cotações
B18: Empresa | J18: Data | K18: Preço Unitário | L18: Utilizar? (Sim/Não) | O18: Outliers | P18: Por critério do(a) analista
B19: https://www.drogasil.com.br/curativo-flexivel-transparente-missner-caixa-c-40un-1413155.html | J19: 2026-04-29 | K19: 13.9 | L19: =IF(ISNUMBER(K19),IF($L$32=$O$18,O19,IF($L$32=$P$18,P19,"")),"") -> Sim | O19: =IF(ISNUMBER(K19),IF(OR(K19<_xlfn.QUARTILE.INC($K$10:$K$29,1)-1.5*(_xlfn.QUARTILE.INC($K$10:$K$29,3)-_xlfn.QUARTILE.INC($K$10:$K$29,1)),K19>_xlfn.QUARTILE.INC($K$10:$K$29,3)+1.5*(_xlfn.QUARTILE.INC($K$10:$K$29,3)-_xlfn.QUARTILE.INC($K$10:$K$29,1))),"Não","Sim"),"") -> Sim
B20: https://www.magazineluiza.com.br/curativo-band-aid-transparente-40-unidades-johnson-johnson/p/fgf4f99k10/cp/apcr/?seller_id=farmaciaindiana | J20: 2026-04-29 | K20: 14.29 | L20: Sim | O20: Sim
B21: https://www.mercadolivre.com.br/band-aid-adesivos-transparentes-40-unidades-original/p/MLB19134428#polycard_client=search-desktop&be_origin=backend&search_layout=grid&position=5&type=product&tracking_id=2bfb0ef0-58b0-4ef2-97c9-641fa6d72f1d&wid=MLB5831712648&sid=search | J21: 2026-04-29 | K21: 23.45 | L21: Sim | O21: Sim
B30: Observações: | K30: Média: | L30: =IF($L$32="","Selecione metodologia para exclusão de preços",AVERAGE(IF($L$10:$L$29="Sim",$K$10:$K$29))) -> 17.21333333 | N30: Média (Cotações) | O30: =IF(COUNTIF(O19:O29,"Sim")<3,"N/D (são necessários pelo menos 3 preços)",AVERAGE(IF(O19:O29="Sim",$K19:$K29))) -> 17.21333333 | P30: =IF(COUNTIF(P19:P29,"Sim")<3,"N/D (são necessários pelo menos 3 preços)",AVERAGE(IF(P19:P29="Sim",$K19:$K29))) -> N/D (são necessários pelo menos 3 preços)
K31: Mediana: | L31: =IF($L$32="","Selecione metodologia para exclusão de preços",MEDIAN(IF($L$10:$L$29="Sim",$K$10:$K$29))) -> 14.29 | N31: Mediana (Cotações) | O31: =IF(COUNTIF(O19:O29,"Sim")<3,"N/D (são necessários pelo menos 3 preços)",MEDIAN(IF(O19:O29="Sim",$K19:$K29))) -> 14.29 | P31: =IF(COUNTIF(P19:P29,"Sim")<3,"N/D (são necessários pelo menos 3 preços)",MEDIAN(IF(P19:P29="Sim",$K19:$K29))) -> N/D (são necessários pelo menos 3 preços)
B32: Metodologia de exclusão de preços adotada: | L32: =IF(O35="",INDEX(O18:P18,MATCH(MIN(#REF!),#REF!,0)),O35) -> Outliers | N32: CV (Cotações) | O32: =IF(COUNTIF(O19:O29,"Sim")<3,"N/D (são necessários pelo menos 3 preços)",_xlfn.STDEV.S(IF(O19:O29="Sim",$K19:$K29))/AVERAGE(IF(O19:O29="Sim",$K19:$K29))) -> 0.3139793221 | P32: =IF(COUNTIF(P19:P29,"Sim")<3,"N/D (são necessários pelo menos 3 preços)",_xlfn.STDEV.S(IF(P19:P29="Sim",$K19:$K29))/AVERAGE(IF(P19:P29="Sim",$K19:$K29))) -> N/D (são necessários pelo menos 3 preços)
N33: Média | O33: =IF(SUM(COUNTIF($O$10:$O$16,"Sim")) + SUM(COUNTIF(O19:O29,"Sim")) < 3, "N/D (são necessários pelo menos 3 preços)", IFERROR(AVERAGE(_xlfn._xlws.FILTER($K$10:$K$16,$O$10:$O$16="Sim"), _xlfn._xlws.FILTER($K$19:$K$29,O19:O29="Sim")),O30)) -> 17.21333333 | P33: =IF(SUM(COUNTIF($P$10:$P$16,"Sim")) + SUM(COUNTIF(P19:P29,"Sim")) < 3, "N/D (são necessários pelo menos 3 preços)", IFERROR(AVERAGE(_xlfn._xlws.FILTER($K$10:$K$16,$P$10:$P$16="Sim"), _xlfn._xlws.FILTER($K$19:$K$29,P19:P29="Sim")),P30)) -> N/D (são necessários pelo menos 3 preços)
N34: Mediana | O34: =IF(SUM(COUNTIF($O$10:$O$16,"Sim")) + SUM(COUNTIF(O19:O29,"Sim")) < 3, "N/D (são necessários pelo menos 3 preços)", IFERROR(MEDIAN(_xlfn._xlws.FILTER($K$10:$K$16,$O$10:$O$16="Sim"), _xlfn._xlws.FILTER($K$19:$K$29,O19:O29="Sim")),O31)) -> 14.29 | P34: =IF(SUM(COUNTIF($P10:$P$16,"Sim")) + SUM(COUNTIF(P19:P29,"Sim")) < 3, "N/D (são necessários pelo menos 3 preços)", IFERROR(MEDIAN(_xlfn._xlws.FILTER($K$10:$K$16,$P$10:$P$16="Sim"), _xlfn._xlws.FILTER($K$19:$K$29,P19:P29="Sim")),P31)) -> N/D (são necessários pelo menos 3 preços)
B35: COSOLIDAÇÃO DOS PREÇOS | N35: Metodologia a adotar: | O35: =IF(INDEX(O18:P18,P35)=0,"",INDEX(O18:P18,P35)) -> Outliers | P35: 1
B37: PREÇO UNITÁRIO ESTIMADO ADOTADO: | L37: =IF($B$39="Mediana:",L31,L30) -> 14.29
A39: =O18 -> Outliers | B39: Mediana:

Sheet Esparadrapo (hidden)
B2: Processo
B3: Responsável
B4: Área de Origem
B5: Data da pesquisa
B7: ITEM: | C7: ESPARADRAPO IMPERMEÁVEL 10cmx4,5m. | I7: UNIDADE DE MEDIDA: | J7: Unidade | K7: QUANTIDADE: | L7: 4 | O7: Tabela auxiliar de metodologias para exclusão de preços
B8: LICITAÇÕES ANTERIORES | O8: Licitações Anteriores
B9: Órgão | C9: Edital/Ano - Nº do Lote / Item | D9: Quantidade | E9: Valor Unitário | F9: Data | G9: índice de atualização (nome) | H9: I0 | I9: If | J9: Variação acumulada do índice (%) | K9: Preço unitário atualizado | L9: Utilizar? (Sim/Não) | O9: Outliers | P9: Por critério do(a) analista
J10: =IF(ISBLANK(E10),"",IF(ISNUMBER(H10),(I10-H10)/H10,0)) ->  | K10: =IF(ISBLANK(E10),"",E10*(1+J10)) ->  | L10: =IF(ISNUMBER(K10),IF($L$32<>$P$9,O10,P10),"") ->  | O10: =IF(ISNUMBER(K10),IF(OR(K10<_xlfn.QUARTILE.INC($K$10:$K$29,1)-1.5*(_xlfn.QUARTILE.INC($K$10:K29,3)-_xlfn.QUARTILE.INC($K$10:$K$29,1)),K10>_xlfn.QUARTILE.INC($K$10:$K$29,3)+1.5*(_xlfn.QUARTILE.INC($K$10:$K$29,3)-_xlfn.QUARTILE.INC($K$10:$K$29,1))),"Não","Sim"),"") -> 
J11: =IF(ISBLANK(E11),"",IF(ISNUMBER(H11),(I11-H11)/H11,0)) ->  | K11: =IF(ISBLANK(E11),"",E11*(1+J11)) ->  | O11: =IF(ISNUMBER(K11),IF(OR(K11<_xlfn.QUARTILE.INC($K$10:$K$29,1)-1.5*(_xlfn.QUARTILE.INC($K$10:K29,3)-_xlfn.QUARTILE.INC($K$10:$K$29,1)),K11>_xlfn.QUARTILE.INC($K$10:$K$29,3)+1.5*(_xlfn.QUARTILE.INC($K$10:$K$29,3)-_xlfn.QUARTILE.INC($K$10:$K$29,1))),"Não","Sim"),"") -> 
O12: =IF(ISNUMBER(K12),IF(OR(K12<_xlfn.QUARTILE.INC($K$10:$K$29,1)-1.5*(_xlfn.QUARTILE.INC($K$10:K30,3)-_xlfn.QUARTILE.INC($K$10:$K$29,1)),K12>_xlfn.QUARTILE.INC($K$10:$K$29,3)+1.5*(_xlfn.QUARTILE.INC($K$10:$K$29,3)-_xlfn.QUARTILE.INC($K$10:$K$29,1))),"Não","Sim"),"") -> 
O13: =IF(ISNUMBER(K13),IF(OR(K13<_xlfn.QUARTILE.INC($K$10:$K$29,1)-1.5*(_xlfn.QUARTILE.INC($K$10:K31,3)-_xlfn.QUARTILE.INC($K$10:$K$29,1)),K13>_xlfn.QUARTILE.INC($K$10:$K$29,3)+1.5*(_xlfn.QUARTILE.INC($K$10:$K$29,3)-_xlfn.QUARTILE.INC($K$10:$K$29,1))),"Não","Sim"),"") -> 
O14: =IF(ISNUMBER(K14),IF(OR(K14<_xlfn.QUARTILE.INC($K$10:$K$29,1)-1.5*(_xlfn.QUARTILE.INC($K$10:K32,3)-_xlfn.QUARTILE.INC($K$10:$K$29,1)),K14>_xlfn.QUARTILE.INC($K$10:$K$29,3)+1.5*(_xlfn.QUARTILE.INC($K$10:$K$29,3)-_xlfn.QUARTILE.INC($K$10:$K$29,1))),"Não","Sim"),"") -> 
O15: =IF(ISNUMBER(K15),IF(OR(K15<_xlfn.QUARTILE.INC($K$10:$K$29,1)-1.5*(_xlfn.QUARTILE.INC($K$10:K35,3)-_xlfn.QUARTILE.INC($K$10:$K$29,1)),K15>_xlfn.QUARTILE.INC($K$10:$K$29,3)+1.5*(_xlfn.QUARTILE.INC($K$10:$K$29,3)-_xlfn.QUARTILE.INC($K$10:$K$29,1))),"Não","Sim"),"") -> 
O16: =IF(ISNUMBER(K16),IF(OR(K16<_xlfn.QUARTILE.INC($K$10:$K$29,1)-1.5*(_xlfn.QUARTILE.INC($I$10:I37,3)-_xlfn.QUARTILE.INC($K$10:$K$29,1)),K16>_xlfn.QUARTILE.INC($K$10:$K$29,3)+1.5*(_xlfn.QUARTILE.INC($K$10:$K$29,3)-_xlfn.QUARTILE.INC($K$10:$K$29,1))),"Não","Sim"),"") -> 
B17: COTAÇÕES DE MERCADO | O17: Cotações
B18: Empresa | J18: Data | K18: Preço Unitário | L18: Utilizar? (Sim/Não) | O18: Outliers | P18: Por critério do(a) analista
B19: Magazine Médica - https://magazinemedica.com.br/produtos/visualiza/sku/144/?gad_source=1&gad_campaignid=23257119241&gbraid=0AAAAA-LLl3RLzXqqgnGcdPho_yiSl5zbL&gclid=CjwKCAjwtcHPBhADEiwAWo3sJpCN_Vx-3xlDRGgaxJvUh5rNCgjSslVw2FA5A3aThfT-Aq9nIYT8uxoCMJEQAvD_BwE | J19: 2026-04-28 | K19: 15.85 | L19: =IF(ISNUMBER(K19),IF($L$32=$O$18,O19,IF($L$32=$P$18,P19,"")),"") -> Sim | O19: =IF(ISNUMBER(K19),IF(OR(K19<_xlfn.QUARTILE.INC($K$10:$K$29,1)-1.5*(_xlfn.QUARTILE.INC($K$10:$K$29,3)-_xlfn.QUARTILE.INC($K$10:$K$29,1)),K19>_xlfn.QUARTILE.INC($K$10:$K$29,3)+1.5*(_xlfn.QUARTILE.INC($K$10:$K$29,3)-_xlfn.QUARTILE.INC($K$10:$K$29,1))),"Não","Sim"),"") -> Sim
B20: Utilidades Clínicas - https://www.utilidadesclinicas.com.br/esparadrapo-impermeavel-cremer-cre24687a.html?gad_source=1&gad_campaignid=23200897643&gbraid=0AAAAADbsX56SEWC3F-KTt1pTILdakDhPR&gclid=CjwKCAjwtcHPBhADEiwAWo3sJvZgpbjFE67NNKS74W-lI10NGPysg8lhwOE4v6rJbjvGWwU28W8lZhoCtfIQAvD_BwE | J20: 2026-04-28 | K20: 14.79 | L20: Sim | O20: Sim
B21: Cirurgica Salutar - https://www.cirurgicasalutar.com.br/esparadrapo-10x45m-impermeavel-branco-unidade-cremer?utm_source=Site&utm_medium=GoogleMerchant&utm_campaign=GoogleMerchant&utm_campaign=CURATIVOS-PMAX&gad_source=1&gad_campaignid=17189569139&gbraid=0AAAAADEA62ga0yz9QRKE_10EbMxnHAYCS&gclid=CjwKCAjwtcHPBhADEiwAWo3sJoJnIxsgkCeY6UwKomrbOAby1_VpI6G2bMNtfoSD7bZpUNa_YXBxYRoC4ZsQAvD_BwE | J21: 2026-04-28 | K21: 15.5 | L21: Sim | O21: Sim
B30: Observações: | K30: Média: | L30: =IF($L$32="","Selecione metodologia para exclusão de preços",AVERAGE(IF($L$10:$L$29="Sim",$K$10:$K$29))) -> 15.38 | N30: Média (Cotações) | O30: =IF(COUNTIF(O19:O29,"Sim")<3,"N/D (são necessários pelo menos 3 preços)",AVERAGE(IF(O19:O29="Sim",$K19:$K29))) -> 15.38 | P30: =IF(COUNTIF(P19:P29,"Sim")<3,"N/D (são necessários pelo menos 3 preços)",AVERAGE(IF(P19:P29="Sim",$K19:$K29))) -> N/D (são necessários pelo menos 3 preços)
K31: Mediana: | L31: =IF($L$32="","Selecione metodologia para exclusão de preços",MEDIAN(IF($L$10:$L$29="Sim",$K$10:$K$29))) -> 15.5 | N31: Mediana (Cotações) | O31: =IF(COUNTIF(O19:O29,"Sim")<3,"N/D (são necessários pelo menos 3 preços)",MEDIAN(IF(O19:O29="Sim",$K19:$K29))) -> 15.5 | P31: =IF(COUNTIF(P19:P29,"Sim")<3,"N/D (são necessários pelo menos 3 preços)",MEDIAN(IF(P19:P29="Sim",$K19:$K29))) -> N/D (são necessários pelo menos 3 preços)
B32: Metodologia de exclusão de preços adotada: | L32: =IF(O35="",INDEX(O18:P18,MATCH(MIN(#REF!),#REF!,0)),O35) -> Outliers | N32: CV (Cotações) | O32: =IF(COUNTIF(O19:O29,"Sim")<3,"N/D (são necessários pelo menos 3 preços)",_xlfn.STDEV.S(IF(O19:O29="Sim",$K19:$K29))/AVERAGE(IF(O19:O29="Sim",$K19:$K29))) -> 0.03511655297 | P32: =IF(COUNTIF(P19:P29,"Sim")<3,"N/D (são necessários pelo menos 3 preços)",_xlfn.STDEV.S(IF(P19:P29="Sim",$K19:$K29))/AVERAGE(IF(P19:P29="Sim",$K19:$K29))) -> N/D (são necessários pelo menos 3 preços)
N33: Média | O33: =IF(SUM(COUNTIF($O$10:$O$16,"Sim")) + SUM(COUNTIF(O19:O29,"Sim")) < 3, "N/D (são necessários pelo menos 3 preços)", IFERROR(AVERAGE(_xlfn._xlws.FILTER($K$10:$K$16,$O$10:$O$16="Sim"), _xlfn._xlws.FILTER($K$19:$K$29,O19:O29="Sim")),O30)) -> 15.38 | P33: =IF(SUM(COUNTIF($P$10:$P$16,"Sim")) + SUM(COUNTIF(P19:P29,"Sim")) < 3, "N/D (são necessários pelo menos 3 preços)", IFERROR(AVERAGE(_xlfn._xlws.FILTER($K$10:$K$16,$P$10:$P$16="Sim"), _xlfn._xlws.FILTER($K$19:$K$29,P19:P29="Sim")),P30)) -> N/D (são necessários pelo menos 3 preços)
N34: Mediana | O34: =IF(SUM(COUNTIF($O$10:$O$16,"Sim")) + SUM(COUNTIF(O19:O29,"Sim")) < 3, "N/D (são necessários pelo menos 3 preços)", IFERROR(MEDIAN(_xlfn._xlws.FILTER($K$10:$K$16,$O$10:$O$16="Sim"), _xlfn._xlws.FILTER($K$19:$K$29,O19:O29="Sim")),O31)) -> 15.5 | P34: =IF(SUM(COUNTIF($P10:$P$16,"Sim")) + SUM(COUNTIF(P19:P29,"Sim")) < 3, "N/D (são necessários pelo menos 3 preços)", IFERROR(MEDIAN(_xlfn._xlws.FILTER($K$10:$K$16,$P$10:$P$16="Sim"), _xlfn._xlws.FILTER($K$19:$K$29,P19:P29="Sim")),P31)) -> N/D (são necessários pelo menos 3 preços)
B35: COSOLIDAÇÃO DOS PREÇOS | N35: Metodologia a adotar: | O35: =IF(INDEX(O18:P18,P35)=0,"",INDEX(O18:P18,P35)) -> Outliers | P35: 1
B37: PREÇO UNITÁRIO ESTIMADO ADOTADO: | L37: =IF($B$39="Mediana:",L31,L30) -> 15.38
A39: =O18 -> Outliers | B39: Média:

Sheet Fita Crepe (hidden)
B2: Processo
B3: Responsável
B4: Área de Origem
B5: Data da pesquisa
B7: ITEM: | C7: FITA ADESIVA (CREPE) 25mm x 50m | I7: UNIDADE DE MEDIDA: | J7: Unidade | K7: QUANTIDADE: | L7: 2 | O7: Tabela auxiliar de metodologias para exclusão de preços
B8: LICITAÇÕES ANTERIORES | O8: Licitações Anteriores
B9: Órgão | C9: Edital/Ano - Nº do Lote / Item | D9: Quantidade | E9: Valor Unitário | F9: Data | G9: índice de atualização (nome) | H9: I0 | I9: If | J9: Variação acumulada do índice (%) | K9: Preço unitário atualizado | L9: Utilizar? (Sim/Não) | O9: Outliers | P9: Por critério do(a) analista
J10: =IF(ISBLANK(E10),"",IF(ISNUMBER(H10),(I10-H10)/H10,0)) ->  | K10: =IF(ISBLANK(E10),"",E10*(1+J10)) ->  | L10: =IF(ISNUMBER(K10),IF($L$32<>$P$9,O10,P10),"") ->  | O10: =IF(ISNUMBER(K10),IF(OR(K10<_xlfn.QUARTILE.INC($K$10:$K$29,1)-1.5*(_xlfn.QUARTILE.INC($K$10:K29,3)-_xlfn.QUARTILE.INC($K$10:$K$29,1)),K10>_xlfn.QUARTILE.INC($K$10:$K$29,3)+1.5*(_xlfn.QUARTILE.INC($K$10:$K$29,3)-_xlfn.QUARTILE.INC($K$10:$K$29,1))),"Não","Sim"),"") -> 
J11: =IF(ISBLANK(E11),"",IF(ISNUMBER(H11),(I11-H11)/H11,0)) ->  | K11: =IF(ISBLANK(E11),"",E11*(1+J11)) ->  | O11: =IF(ISNUMBER(K11),IF(OR(K11<_xlfn.QUARTILE.INC($K$10:$K$29,1)-1.5*(_xlfn.QUARTILE.INC($K$10:K29,3)-_xlfn.QUARTILE.INC($K$10:$K$29,1)),K11>_xlfn.QUARTILE.INC($K$10:$K$29,3)+1.5*(_xlfn.QUARTILE.INC($K$10:$K$29,3)-_xlfn.QUARTILE.INC($K$10:$K$29,1))),"Não","Sim"),"") -> 
O12: =IF(ISNUMBER(K12),IF(OR(K12<_xlfn.QUARTILE.INC($K$10:$K$29,1)-1.5*(_xlfn.QUARTILE.INC($K$10:K30,3)-_xlfn.QUARTILE.INC($K$10:$K$29,1)),K12>_xlfn.QUARTILE.INC($K$10:$K$29,3)+1.5*(_xlfn.QUARTILE.INC($K$10:$K$29,3)-_xlfn.QUARTILE.INC($K$10:$K$29,1))),"Não","Sim"),"") -> 
O13: =IF(ISNUMBER(K13),IF(OR(K13<_xlfn.QUARTILE.INC($K$10:$K$29,1)-1.5*(_xlfn.QUARTILE.INC($K$10:K31,3)-_xlfn.QUARTILE.INC($K$10:$K$29,1)),K13>_xlfn.QUARTILE.INC($K$10:$K$29,3)+1.5*(_xlfn.QUARTILE.INC($K$10:$K$29,3)-_xlfn.QUARTILE.INC($K$10:$K$29,1))),"Não","Sim"),"") -> 
O14: =IF(ISNUMBER(K14),IF(OR(K14<_xlfn.QUARTILE.INC($K$10:$K$29,1)-1.5*(_xlfn.QUARTILE.INC($K$10:K32,3)-_xlfn.QUARTILE.INC($K$10:$K$29,1)),K14>_xlfn.QUARTILE.INC($K$10:$K$29,3)+1.5*(_xlfn.QUARTILE.INC($K$10:$K$29,3)-_xlfn.QUARTILE.INC($K$10:$K$29,1))),"Não","Sim"),"") -> 
O15: =IF(ISNUMBER(K15),IF(OR(K15<_xlfn.QUARTILE.INC($K$10:$K$29,1)-1.5*(_xlfn.QUARTILE.INC($K$10:K35,3)-_xlfn.QUARTILE.INC($K$10:$K$29,1)),K15>_xlfn.QUARTILE.INC($K$10:$K$29,3)+1.5*(_xlfn.QUARTILE.INC($K$10:$K$29,3)-_xlfn.QUARTILE.INC($K$10:$K$29,1))),"Não","Sim"),"") -> 
O16: =IF(ISNUMBER(K16),IF(OR(K16<_xlfn.QUARTILE.INC($K$10:$K$29,1)-1.5*(_xlfn.QUARTILE.INC($I$10:I37,3)-_xlfn.QUARTILE.INC($K$10:$K$29,1)),K16>_xlfn.QUARTILE.INC($K$10:$K$29,3)+1.5*(_xlfn.QUARTILE.INC($K$10:$K$29,3)-_xlfn.QUARTILE.INC($K$10:$K$29,1))),"Não","Sim"),"") -> 
B17: COTAÇÕES DE MERCADO | O17: Cotações
B18: Empresa | J18: Data | K18: Preço Unitário | L18: Utilizar? (Sim/Não) | O18: Outliers | P18: Por critério do(a) analista
B19: https://www.leroymerlin.com.br/fita--crepe-branca-25mmx50m-dexter_92138816?store_code=28 | J19: 2026-04-29 | K19: 11.69 | L19: =IF(ISNUMBER(K19),IF($L$32=$O$18,O19,IF($L$32=$P$18,P19,"")),"") -> Sim | O19: =IF(ISNUMBER(K19),IF(OR(K19<_xlfn.QUARTILE.INC($K$10:$K$29,1)-1.5*(_xlfn.QUARTILE.INC($K$10:$K$29,3)-_xlfn.QUARTILE.INC($K$10:$K$29,1)),K19>_xlfn.QUARTILE.INC($K$10:$K$29,3)+1.5*(_xlfn.QUARTILE.INC($K$10:$K$29,3)-_xlfn.QUARTILE.INC($K$10:$K$29,1))),"Não","Sim"),"") -> Sim
B20: https://www.magazineluiza.com.br/fita-crepe-25mm-x-50mts-tigre/p/fg5j5c08gk/pa/pfia/?seller_id=lojathoms&srsltid=AfmBOorSjCu4qXU-bzf0lvvbenESa5aUKo31pRuKpYEI3Se0flG5NLRfERE | J20: 2026-04-29 | K20: 8.57 | L20: Sim | O20: Sim
B21: https://www.eletricaraio.com.br/produtos/fita-crepe-bf-25mm-com-50-metros/?variant=1257686725&pf=mc&srsltid=AfmBOorsUd_ebu7AFQc4KpvbfRk2OXcoA0r6hv-e9YeUCf_K4xvsOSJ8imI | J21: 2026-04-29 | K21: 8.54 | L21: Sim | O21: Sim
B30: Observações: | K30: Média: | L30: =IF($L$32="","Selecione metodologia para exclusão de preços",AVERAGE(IF($L$10:$L$29="Sim",$K$10:$K$29))) -> 9.6 | N30: Média (Cotações) | O30: =IF(COUNTIF(O19:O29,"Sim")<3,"N/D (são necessários pelo menos 3 preços)",AVERAGE(IF(O19:O29="Sim",$K19:$K29))) -> 9.6 | P30: =IF(COUNTIF(P19:P29,"Sim")<3,"N/D (são necessários pelo menos 3 preços)",AVERAGE(IF(P19:P29="Sim",$K19:$K29))) -> N/D (são necessários pelo menos 3 preços)
K31: Mediana: | L31: =IF($L$32="","Selecione metodologia para exclusão de preços",MEDIAN(IF($L$10:$L$29="Sim",$K$10:$K$29))) -> 8.57 | N31: Mediana (Cotações) | O31: =IF(COUNTIF(O19:O29,"Sim")<3,"N/D (são necessários pelo menos 3 preços)",MEDIAN(IF(O19:O29="Sim",$K19:$K29))) -> 8.57 | P31: =IF(COUNTIF(P19:P29,"Sim")<3,"N/D (são necessários pelo menos 3 preços)",MEDIAN(IF(P19:P29="Sim",$K19:$K29))) -> N/D (são necessários pelo menos 3 preços)
B32: Metodologia de exclusão de preços adotada: | L32: =IF(O35="",INDEX(O18:P18,MATCH(MIN(#REF!),#REF!,0)),O35) -> Outliers | N32: CV (Cotações) | O32: =IF(COUNTIF(O19:O29,"Sim")<3,"N/D (são necessários pelo menos 3 preços)",_xlfn.STDEV.S(IF(O19:O29="Sim",$K19:$K29))/AVERAGE(IF(O19:O29="Sim",$K19:$K29))) -> 0.1885474216 | P32: =IF(COUNTIF(P19:P29,"Sim")<3,"N/D (são necessários pelo menos 3 preços)",_xlfn.STDEV.S(IF(P19:P29="Sim",$K19:$K29))/AVERAGE(IF(P19:P29="Sim",$K19:$K29))) -> N/D (são necessários pelo menos 3 preços)
N33: Média | O33: =IF(SUM(COUNTIF($O$10:$O$16,"Sim")) + SUM(COUNTIF(O19:O29,"Sim")) < 3, "N/D (são necessários pelo menos 3 preços)", IFERROR(AVERAGE(_xlfn._xlws.FILTER($K$10:$K$16,$O$10:$O$16="Sim"), _xlfn._xlws.FILTER($K$19:$K$29,O19:O29="Sim")),O30)) -> 9.6 | P33: =IF(SUM(COUNTIF($P$10:$P$16,"Sim")) + SUM(COUNTIF(P19:P29,"Sim")) < 3, "N/D (são necessários pelo menos 3 preços)", IFERROR(AVERAGE(_xlfn._xlws.FILTER($K$10:$K$16,$P$10:$P$16="Sim"), _xlfn._xlws.FILTER($K$19:$K$29,P19:P29="Sim")),P30)) -> N/D (são necessários pelo menos 3 preços)
N34: Mediana | O34: =IF(SUM(COUNTIF($O$10:$O$16,"Sim")) + SUM(COUNTIF(O19:O29,"Sim")) < 3, "N/D (são necessários pelo menos 3 preços)", IFERROR(MEDIAN(_xlfn._xlws.FILTER($K$10:$K$16,$O$10:$O$16="Sim"), _xlfn._xlws.FILTER($K$19:$K$29,O19:O29="Sim")),O31)) -> 8.57 | P34: =IF(SUM(COUNTIF($P10:$P$16,"Sim")) + SUM(COUNTIF(P19:P29,"Sim")) < 3, "N/D (são necessários pelo menos 3 preços)", IFERROR(MEDIAN(_xlfn._xlws.FILTER($K$10:$K$16,$P$10:$P$16="Sim"), _xlfn._xlws.FILTER($K$19:$K$29,P19:P29="Sim")),P31)) -> N/D (são necessários pelo menos 3 preços)
B35: COSOLIDAÇÃO DOS PREÇOS | N35: Metodologia a adotar: | O35: =IF(INDEX(O18:P18,P35)=0,"",INDEX(O18:P18,P35)) -> Outliers | P35: 1
B37: PREÇO UNITÁRIO ESTIMADO ADOTADO: | L37: =IF($B$39="Mediana:",L31,L30) -> 9.6
A39: =O18 -> Outliers

Sheet Compressa (hidden)
B2: Processo
B3: Responsável
B4: Área de Origem
B5: Data da pesquisa
B7: ITEM: | C7: GAZE 8 DOBRAS 7,5cm X 7,5cm. 100 unidades cada pacote | I7: UNIDADE DE MEDIDA: | J7: Unidade | K7: QUANTIDADE: | L7: 5 | O7: Tabela auxiliar de metodologias para exclusão de preços
B8: LICITAÇÕES ANTERIORES | O8: Licitações Anteriores
B9: Órgão | C9: Edital/Ano - Nº do Lote / Item | D9: Quantidade | E9: Valor Unitário | F9: Data | G9: índice de atualização (nome) | H9: I0 | I9: If | J9: Variação acumulada do índice (%) | K9: Preço unitário atualizado | L9: Utilizar? (Sim/Não) | O9: Outliers | P9: Por critério do(a) analista
J10: =IF(ISBLANK(E10),"",IF(ISNUMBER(H10),(I10-H10)/H10,0)) ->  | K10: =IF(ISBLANK(E10),"",E10*(1+J10)) ->  | L10: =IF(ISNUMBER(K10),IF($L$32<>$P$9,O10,P10),"") ->  | O10: =IF(ISNUMBER(K10),IF(OR(K10<_xlfn.QUARTILE.INC($K$10:$K$29,1)-1.5*(_xlfn.QUARTILE.INC($K$10:K29,3)-_xlfn.QUARTILE.INC($K$10:$K$29,1)),K10>_xlfn.QUARTILE.INC($K$10:$K$29,3)+1.5*(_xlfn.QUARTILE.INC($K$10:$K$29,3)-_xlfn.QUARTILE.INC($K$10:$K$29,1))),"Não","Sim"),"") -> 
J11: =IF(ISBLANK(E11),"",IF(ISNUMBER(H11),(I11-H11)/H11,0)) ->  | K11: =IF(ISBLANK(E11),"",E11*(1+J11)) ->  | O11: =IF(ISNUMBER(K11),IF(OR(K11<_xlfn.QUARTILE.INC($K$10:$K$29,1)-1.5*(_xlfn.QUARTILE.INC($K$10:K29,3)-_xlfn.QUARTILE.INC($K$10:$K$29,1)),K11>_xlfn.QUARTILE.INC($K$10:$K$29,3)+1.5*(_xlfn.QUARTILE.INC($K$10:$K$29,3)-_xlfn.QUARTILE.INC($K$10:$K$29,1))),"Não","Sim"),"") -> 
O12: =IF(ISNUMBER(K12),IF(OR(K12<_xlfn.QUARTILE.INC($K$10:$K$29,1)-1.5*(_xlfn.QUARTILE.INC($K$10:K30,3)-_xlfn.QUARTILE.INC($K$10:$K$29,1)),K12>_xlfn.QUARTILE.INC($K$10:$K$29,3)+1.5*(_xlfn.QUARTILE.INC($K$10:$K$29,3)-_xlfn.QUARTILE.INC($K$10:$K$29,1))),"Não","Sim"),"") -> 
O13: =IF(ISNUMBER(K13),IF(OR(K13<_xlfn.QUARTILE.INC($K$10:$K$29,1)-1.5*(_xlfn.QUARTILE.INC($K$10:K31,3)-_xlfn.QUARTILE.INC($K$10:$K$29,1)),K13>_xlfn.QUARTILE.INC($K$10:$K$29,3)+1.5*(_xlfn.QUARTILE.INC($K$10:$K$29,3)-_xlfn.QUARTILE.INC($K$10:$K$29,1))),"Não","Sim"),"") -> 
O14: =IF(ISNUMBER(K14),IF(OR(K14<_xlfn.QUARTILE.INC($K$10:$K$29,1)-1.5*(_xlfn.QUARTILE.INC($K$10:K32,3)-_xlfn.QUARTILE.INC($K$10:$K$29,1)),K14>_xlfn.QUARTILE.INC($K$10:$K$29,3)+1.5*(_xlfn.QUARTILE.INC($K$10:$K$29,3)-_xlfn.QUARTILE.INC($K$10:$K$29,1))),"Não","Sim"),"") -> 
O15: =IF(ISNUMBER(K15),IF(OR(K15<_xlfn.QUARTILE.INC($K$10:$K$29,1)-1.5*(_xlfn.QUARTILE.INC($K$10:K35,3)-_xlfn.QUARTILE.INC($K$10:$K$29,1)),K15>_xlfn.QUARTILE.INC($K$10:$K$29,3)+1.5*(_xlfn.QUARTILE.INC($K$10:$K$29,3)-_xlfn.QUARTILE.INC($K$10:$K$29,1))),"Não","Sim"),"") -> 
O16: =IF(ISNUMBER(K16),IF(OR(K16<_xlfn.QUARTILE.INC($K$10:$K$29,1)-1.5*(_xlfn.QUARTILE.INC($I$10:I37,3)-_xlfn.QUARTILE.INC($K$10:$K$29,1)),K16>_xlfn.QUARTILE.INC($K$10:$K$29,3)+1.5*(_xlfn.QUARTILE.INC($K$10:$K$29,3)-_xlfn.QUARTILE.INC($K$10:$K$29,1))),"Não","Sim"),"") -> 
B17: COTAÇÕES DE MERCADO | O17: Cotações
B18: Empresa | J18: Data | K18: Preço Unitário | L18: Utilizar? (Sim/Não) | O18: Outliers | P18: Por critério do(a) analista
B19: Utilidades Clínicas - https://www.utilidadesclinicas.com.br/compressa-de-gaze-estrela-13-fios-7-5x7-5cm-cremer-cre36697a.html?gad_source=1&gad_campaignid=20593790294&gbraid=0AAAAADbsX54yr9C9LQWVG-kd8vX10YBXE&gclid=Cj0KCQjw2MbPBhCSARIsAP3jP9yI-dCn1nUSDzBeUVNOZAw2gN1I8SR0vbMW6thnHv74VKqoOl8YwbsaAlj1EALw_wcB | J19: 2026-04-29 | K19: 72.74 | L19: =IF(ISNUMBER(K19),IF($L$32=$O$18,O19,IF($L$32=$P$18,P19,"")),"") -> Sim | O19: =IF(ISNUMBER(K19),IF(OR(K19<_xlfn.QUARTILE.INC($K$10:$K$29,1)-1.5*(_xlfn.QUARTILE.INC($K$10:$K$29,3)-_xlfn.QUARTILE.INC($K$10:$K$29,1)),K19>_xlfn.QUARTILE.INC($K$10:$K$29,3)+1.5*(_xlfn.QUARTILE.INC($K$10:$K$29,3)-_xlfn.QUARTILE.INC($K$10:$K$29,1))),"Não","Sim"),"") -> Sim
B20: Tiradentes Saúde - https://loja.tiradentessaude.com.br/compressa-de-gaze-75x75-13-fios-com-500-unid-girassol-desc-textil?utm_source=Site&utm_medium=GoogleMerchant&utm_campaign=GoogleMerchant&gad_source=1&gad_campaignid=22966086396&gbraid=0AAAAApCctQ8A7WZ9f31Kn608fgxLFG-r-&gclid=Cj0KCQjw2MbPBhCSARIsAP3jP9yXe7D3m4pD5D2j74L0AQPFYbNFP-N3F8DaGMOJADE4wIkWie1-dzAaAsEBEALw_wcB | J20: 2026-04-29 | K20: 42.2 | L20: Sim | O20: Sim
B21: Magazine Médica - https://magazinemedica.com.br/produtos/visualiza/sku/8808/?gad_source=1&gad_campaignid=23257119241&gbraid=0AAAAA-LLl3TiEu2y6MTx5T-rxpkRQzg3F&gclid=Cj0KCQjw2MbPBhCSARIsAP3jP9xVQcEeJp7bdkJkxKw1sDihyqSWQQDF271KuMgMz46vgeRQJ_vblMwaAoZmEALw_wcB | J21: 2026-04-29 | K21: 68.52 | L21: Sim | O21: Sim
B30: Observações: | C30: Pacorte vem com 500 unidades. | K30: Média: | L30: =IF($L$32="","Selecione metodologia para exclusão de preços",AVERAGE(IF($L$10:$L$29="Sim",$K$10:$K$29))) -> 61.15333333 | N30: Média (Cotações) | O30: =IF(COUNTIF(O19:O29,"Sim")<3,"N/D (são necessários pelo menos 3 preços)",AVERAGE(IF(O19:O29="Sim",$K19:$K29))) -> 61.15333333 | P30: =IF(COUNTIF(P19:P29,"Sim")<3,"N/D (são necessários pelo menos 3 preços)",AVERAGE(IF(P19:P29="Sim",$K19:$K29))) -> N/D (são necessários pelo menos 3 preços)
K31: Mediana: | L31: =IF($L$32="","Selecione metodologia para exclusão de preços",MEDIAN(IF($L$10:$L$29="Sim",$K$10:$K$29))) -> 68.52 | N31: Mediana (Cotações) | O31: =IF(COUNTIF(O19:O29,"Sim")<3,"N/D (são necessários pelo menos 3 preços)",MEDIAN(IF(O19:O29="Sim",$K19:$K29))) -> 68.52 | P31: =IF(COUNTIF(P19:P29,"Sim")<3,"N/D (são necessários pelo menos 3 preços)",MEDIAN(IF(P19:P29="Sim",$K19:$K29))) -> N/D (são necessários pelo menos 3 preços)
B32: Metodologia de exclusão de preços adotada: | L32: =IF(O35="",INDEX(O18:P18,MATCH(MIN(#REF!),#REF!,0)),O35) -> Outliers | N32: CV (Cotações) | O32: =IF(COUNTIF(O19:O29,"Sim")<3,"N/D (são necessários pelo menos 3 preços)",_xlfn.STDEV.S(IF(O19:O29="Sim",$K19:$K29))/AVERAGE(IF(O19:O29="Sim",$K19:$K29))) -> 0.2706169883 | P32: =IF(COUNTIF(P19:P29,"Sim")<3,"N/D (são necessários pelo menos 3 preços)",_xlfn.STDEV.S(IF(P19:P29="Sim",$K19:$K29))/AVERAGE(IF(P19:P29="Sim",$K19:$K29))) -> N/D (são necessários pelo menos 3 preços)
N33: Média | O33: =IF(SUM(COUNTIF($O$10:$O$16,"Sim")) + SUM(COUNTIF(O19:O29,"Sim")) < 3, "N/D (são necessários pelo menos 3 preços)", IFERROR(AVERAGE(_xlfn._xlws.FILTER($K$10:$K$16,$O$10:$O$16="Sim"), _xlfn._xlws.FILTER($K$19:$K$29,O19:O29="Sim")),O30)) -> 61.15333333 | P33: =IF(SUM(COUNTIF($P$10:$P$16,"Sim")) + SUM(COUNTIF(P19:P29,"Sim")) < 3, "N/D (são necessários pelo menos 3 preços)", IFERROR(AVERAGE(_xlfn._xlws.FILTER($K$10:$K$16,$P$10:$P$16="Sim"), _xlfn._xlws.FILTER($K$19:$K$29,P19:P29="Sim")),P30)) -> N/D (são necessários pelo menos 3 preços)
N34: Mediana | O34: =IF(SUM(COUNTIF($O$10:$O$16,"Sim")) + SUM(COUNTIF(O19:O29,"Sim")) < 3, "N/D (são necessários pelo menos 3 preços)", IFERROR(MEDIAN(_xlfn._xlws.FILTER($K$10:$K$16,$O$10:$O$16="Sim"), _xlfn._xlws.FILTER($K$19:$K$29,O19:O29="Sim")),O31)) -> 68.52 | P34: =IF(SUM(COUNTIF($P10:$P$16,"Sim")) + SUM(COUNTIF(P19:P29,"Sim")) < 3, "N/D (são necessários pelo menos 3 preços)", IFERROR(MEDIAN(_xlfn._xlws.FILTER($K$10:$K$16,$P$10:$P$16="Sim"), _xlfn._xlws.FILTER($K$19:$K$29,P19:P29="Sim")),P31)) -> N/D (são necessários pelo menos 3 preços)
B35: COSOLIDAÇÃO DOS PREÇOS | N35: Metodologia a adotar: | O35: =IF(INDEX(O18:P18,P35)=0,"",INDEX(O18:P18,P35)) -> Outliers | P35: 1
B37: PREÇO UNITÁRIO ESTIMADO ADOTADO: | L37: =IF($B$39="Mediana:",L31,L30) -> 61.15333333
A39: =O18 -> Outliers | B39: Média:

Sheet Lençol (hidden)
B2: Processo
B3: Responsável
B4: Área de Origem
B5: Data da pesquisa
B7: ITEM: | C7: Lençol Descartável Uso Hospitalar; Matéria Prima: 100% Fibra Celulose | I7: UNIDADE DE MEDIDA: | J7: Unidade | K7: QUANTIDADE: | L7: 3 | O7: Tabela auxiliar de metodologias para exclusão de preços
B8: LICITAÇÕES ANTERIORES | O8: Licitações Anteriores
B9: Órgão | C9: Edital/Ano - Nº do Lote / Item | D9: Quantidade | E9: Valor Unitário | F9: Data | G9: índice de atualização (nome) | H9: I0 | I9: If | J9: Variação acumulada do índice (%) | K9: Preço unitário atualizado | L9: Utilizar? (Sim/Não) | O9: Outliers | P9: Por critério do(a) analista
J10: =IF(ISBLANK(E10),"",IF(ISNUMBER(H10),(I10-H10)/H10,0)) ->  | K10: =IF(ISBLANK(E10),"",E10*(1+J10)) ->  | L10: =IF(ISNUMBER(K10),IF($L$32<>$P$9,O10,P10),"") ->  | O10: =IF(ISNUMBER(K10),IF(OR(K10<_xlfn.QUARTILE.INC($K$10:$K$29,1)-1.5*(_xlfn.QUARTILE.INC($K$10:K29,3)-_xlfn.QUARTILE.INC($K$10:$K$29,1)),K10>_xlfn.QUARTILE.INC($K$10:$K$29,3)+1.5*(_xlfn.QUARTILE.INC($K$10:$K$29,3)-_xlfn.QUARTILE.INC($K$10:$K$29,1))),"Não","Sim"),"") -> 
J11: =IF(ISBLANK(E11),"",IF(ISNUMBER(H11),(I11-H11)/H11,0)) ->  | K11: =IF(ISBLANK(E11),"",E11*(1+J11)) ->  | O11: =IF(ISNUMBER(K11),IF(OR(K11<_xlfn.QUARTILE.INC($K$10:$K$29,1)-1.5*(_xlfn.QUARTILE.INC($K$10:K29,3)-_xlfn.QUARTILE.INC($K$10:$K$29,1)),K11>_xlfn.QUARTILE.INC($K$10:$K$29,3)+1.5*(_xlfn.QUARTILE.INC($K$10:$K$29,3)-_xlfn.QUARTILE.INC($K$10:$K$29,1))),"Não","Sim"),"") -> 
O12: =IF(ISNUMBER(K12),IF(OR(K12<_xlfn.QUARTILE.INC($K$10:$K$29,1)-1.5*(_xlfn.QUARTILE.INC($K$10:K30,3)-_xlfn.QUARTILE.INC($K$10:$K$29,1)),K12>_xlfn.QUARTILE.INC($K$10:$K$29,3)+1.5*(_xlfn.QUARTILE.INC($K$10:$K$29,3)-_xlfn.QUARTILE.INC($K$10:$K$29,1))),"Não","Sim"),"") -> 
O13: =IF(ISNUMBER(K13),IF(OR(K13<_xlfn.QUARTILE.INC($K$10:$K$29,1)-1.5*(_xlfn.QUARTILE.INC($K$10:K31,3)-_xlfn.QUARTILE.INC($K$10:$K$29,1)),K13>_xlfn.QUARTILE.INC($K$10:$K$29,3)+1.5*(_xlfn.QUARTILE.INC($K$10:$K$29,3)-_xlfn.QUARTILE.INC($K$10:$K$29,1))),"Não","Sim"),"") -> 
O14: =IF(ISNUMBER(K14),IF(OR(K14<_xlfn.QUARTILE.INC($K$10:$K$29,1)-1.5*(_xlfn.QUARTILE.INC($K$10:K32,3)-_xlfn.QUARTILE.INC($K$10:$K$29,1)),K14>_xlfn.QUARTILE.INC($K$10:$K$29,3)+1.5*(_xlfn.QUARTILE.INC($K$10:$K$29,3)-_xlfn.QUARTILE.INC($K$10:$K$29,1))),"Não","Sim"),"") -> 
O15: =IF(ISNUMBER(K15),IF(OR(K15<_xlfn.QUARTILE.INC($K$10:$K$29,1)-1.5*(_xlfn.QUARTILE.INC($K$10:K35,3)-_xlfn.QUARTILE.INC($K$10:$K$29,1)),K15>_xlfn.QUARTILE.INC($K$10:$K$29,3)+1.5*(_xlfn.QUARTILE.INC($K$10:$K$29,3)-_xlfn.QUARTILE.INC($K$10:$K$29,1))),"Não","Sim"),"") -> 
O16: =IF(ISNUMBER(K16),IF(OR(K16<_xlfn.QUARTILE.INC($K$10:$K$29,1)-1.5*(_xlfn.QUARTILE.INC($I$10:I37,3)-_xlfn.QUARTILE.INC($K$10:$K$29,1)),K16>_xlfn.QUARTILE.INC($K$10:$K$29,3)+1.5*(_xlfn.QUARTILE.INC($K$10:$K$29,3)-_xlfn.QUARTILE.INC($K$10:$K$29,1))),"Não","Sim"),"") -> 
B17: COTAÇÕES DE MERCADO | O17: Cotações
B18: Empresa | J18: Data | K18: Preço Unitário | L18: Utilizar? (Sim/Não) | O18: Outliers | P18: Por critério do(a) analista
B19: https://www.utilidadesclinicas.com.br/lencol-hospitalar-eco-70x50-plumax-plu20754a.html?gad_source=1&gad_campaignid=22368456438&gbraid=0AAAAADbsX571vZYS4KW6CqWydfSadGyQs&gclid=Cj0KCQjw2MbPBhCSARIsAP3jP9w90Yd_gfm-8fYI3gYZqB6-pnENAG-QuvL9DoK8Ce7Hxa1wMGfuVwYaAiheEALw_wcB | J19: 2026-04-29 | K19: 15.99 | L19: =IF(ISNUMBER(K19),IF($L$32=$O$18,O19,IF($L$32=$P$18,P19,"")),"") -> Sim | O19: =IF(ISNUMBER(K19),IF(OR(K19<_xlfn.QUARTILE.INC($K$10:$K$29,1)-1.5*(_xlfn.QUARTILE.INC($K$10:$K$29,3)-_xlfn.QUARTILE.INC($K$10:$K$29,1)),K19>_xlfn.QUARTILE.INC($K$10:$K$29,3)+1.5*(_xlfn.QUARTILE.INC($K$10:$K$29,3)-_xlfn.QUARTILE.INC($K$10:$K$29,1))),"Não","Sim"),"") -> Sim
B20: https://www.amazon.com.br/Hospitalar-Descart%C3%A1vel-Protetor-Hospital-Celulose/dp/B0FPJZCWKN/ref=asc_df_B0FPJZCWKN?mcid=b91808e52ba135fd860968d7cc10ac7c&tag=googleshopp00-20&linkCode=df0&hvadid=709857205152&hvpos=&hvnetw=g&hvrand=169471622777831492&hvpone=&hvptwo=&hvqmt=&hvdev=c&hvdvcmdl=&hvlocint=&hvlocphy=9196708&hvtargid=pla-2447020340396&hvocijid=169471622777831492-B0FPJZCWKN-&hvexpln=0&language=pt_BR&th=1 | J20: 2026-04-29 | K20: 39.9 | L20: Sim | O20: Sim
B21: https://www.amazon.com.br/Hospitalar-Descart%C3%A1vel-Protetor-Hospital-Celulose/dp/B0FPMJ8C8Q/ref=asc_df_B0FPJZCWKN?mcid=b91808e52ba135fd860968d7cc10ac7c&tag=googleshopp00-20&linkCode=df0&hvadid=709857205152&hvpos=&hvnetw=g&hvrand=169471622777831492&hvpone=&hvptwo=&hvqmt=&hvdev=c&hvdvcmdl=&hvlocint=&hvlocphy=9196708&hvtargid=pla-2447020340396&hvocijid=169471622777831492-B0FPJZCWKN-&hvexpln=0&language=pt_BR&th=1 | J21: 2026-04-29 | K21: 29.9 | L21: Sim | O21: Sim
B30: Observações: | K30: Média: | L30: =IF($L$32="","Selecione metodologia para exclusão de preços",AVERAGE(IF($L$10:$L$29="Sim",$K$10:$K$29))) -> 28.59666667 | N30: Média (Cotações) | O30: =IF(COUNTIF(O19:O29,"Sim")<3,"N/D (são necessários pelo menos 3 preços)",AVERAGE(IF(O19:O29="Sim",$K19:$K29))) -> 28.59666667 | P30: =IF(COUNTIF(P19:P29,"Sim")<3,"N/D (são necessários pelo menos 3 preços)",AVERAGE(IF(P19:P29="Sim",$K19:$K29))) -> N/D (são necessários pelo menos 3 preços)
K31: Mediana: | L31: =IF($L$32="","Selecione metodologia para exclusão de preços",MEDIAN(IF($L$10:$L$29="Sim",$K$10:$K$29))) -> 29.9 | N31: Mediana (Cotações) | O31: =IF(COUNTIF(O19:O29,"Sim")<3,"N/D (são necessários pelo menos 3 preços)",MEDIAN(IF(O19:O29="Sim",$K19:$K29))) -> 29.9 | P31: =IF(COUNTIF(P19:P29,"Sim")<3,"N/D (são necessários pelo menos 3 preços)",MEDIAN(IF(P19:P29="Sim",$K19:$K29))) -> N/D (são necessários pelo menos 3 preços)
B32: Metodologia de exclusão de preços adotada: | L32: =IF(O35="",INDEX(O18:P18,MATCH(MIN(#REF!),#REF!,0)),O35) -> Outliers | N32: CV (Cotações) | O32: =IF(COUNTIF(O19:O29,"Sim")<3,"N/D (são necessários pelo menos 3 preços)",_xlfn.STDEV.S(IF(O19:O29="Sim",$K19:$K29))/AVERAGE(IF(O19:O29="Sim",$K19:$K29))) -> 0.4199148599 | P32: =IF(COUNTIF(P19:P29,"Sim")<3,"N/D (são necessários pelo menos 3 preços)",_xlfn.STDEV.S(IF(P19:P29="Sim",$K19:$K29))/AVERAGE(IF(P19:P29="Sim",$K19:$K29))) -> N/D (são necessários pelo menos 3 preços)
N33: Média | O33: =IF(SUM(COUNTIF($O$10:$O$16,"Sim")) + SUM(COUNTIF(O19:O29,"Sim")) < 3, "N/D (são necessários pelo menos 3 preços)", IFERROR(AVERAGE(_xlfn._xlws.FILTER($K$10:$K$16,$O$10:$O$16="Sim"), _xlfn._xlws.FILTER($K$19:$K$29,O19:O29="Sim")),O30)) -> 28.59666667 | P33: =IF(SUM(COUNTIF($P$10:$P$16,"Sim")) + SUM(COUNTIF(P19:P29,"Sim")) < 3, "N/D (são necessários pelo menos 3 preços)", IFERROR(AVERAGE(_xlfn._xlws.FILTER($K$10:$K$16,$P$10:$P$16="Sim"), _xlfn._xlws.FILTER($K$19:$K$29,P19:P29="Sim")),P30)) -> N/D (são necessários pelo menos 3 preços)
N34: Mediana | O34: =IF(SUM(COUNTIF($O$10:$O$16,"Sim")) + SUM(COUNTIF(O19:O29,"Sim")) < 3, "N/D (são necessários pelo menos 3 preços)", IFERROR(MEDIAN(_xlfn._xlws.FILTER($K$10:$K$16,$O$10:$O$16="Sim"), _xlfn._xlws.FILTER($K$19:$K$29,O19:O29="Sim")),O31)) -> 29.9 | P34: =IF(SUM(COUNTIF($P10:$P$16,"Sim")) + SUM(COUNTIF(P19:P29,"Sim")) < 3, "N/D (são necessários pelo menos 3 preços)", IFERROR(MEDIAN(_xlfn._xlws.FILTER($K$10:$K$16,$P$10:$P$16="Sim"), _xlfn._xlws.FILTER($K$19:$K$29,P19:P29="Sim")),P31)) -> N/D (são necessários pelo menos 3 preços)
B35: COSOLIDAÇÃO DOS PREÇOS | N35: Metodologia a adotar: | O35: =IF(INDEX(O18:P18,P35)=0,"",INDEX(O18:P18,P35)) -> Outliers | P35: 1
B37: PREÇO UNITÁRIO ESTIMADO ADOTADO: | L37: =IF($B$39="Mediana:",L31,L30) -> 28.59666667
A39: =O18 -> Outliers | B39: Média:

Sheet Luva Látex (hidden)
B2: Processo
B3: Responsável
B4: Área de Origem
B5: Data da pesquisa
B7: ITEM: | C7: LUVAS PROCEDIMENTO. Caixa com 50 unidades | I7: UNIDADE DE MEDIDA: | J7: Unidade | K7: QUANTIDADE: | L7: 3 | O7: Tabela auxiliar de metodologias para exclusão de preços
B8: LICITAÇÕES ANTERIORES | O8: Licitações Anteriores
B9: Órgão | C9: Edital/Ano - Nº do Lote / Item | D9: Quantidade | E9: Valor Unitário | F9: Data | G9: índice de atualização (nome) | H9: I0 | I9: If | J9: Variação acumulada do índice (%) | K9: Preço unitário atualizado | L9: Utilizar? (Sim/Não) | O9: Outliers | P9: Por critério do(a) analista
J10: =IF(ISBLANK(E10),"",IF(ISNUMBER(H10),(I10-H10)/H10,0)) ->  | K10: =IF(ISBLANK(E10),"",E10*(1+J10)) ->  | L10: =IF(ISNUMBER(K10),IF($L$32<>$P$9,O10,P10),"") ->  | O10: =IF(ISNUMBER(K10),IF(OR(K10<_xlfn.QUARTILE.INC($K$10:$K$29,1)-1.5*(_xlfn.QUARTILE.INC($K$10:K29,3)-_xlfn.QUARTILE.INC($K$10:$K$29,1)),K10>_xlfn.QUARTILE.INC($K$10:$K$29,3)+1.5*(_xlfn.QUARTILE.INC($K$10:$K$29,3)-_xlfn.QUARTILE.INC($K$10:$K$29,1))),"Não","Sim"),"") -> 
J11: =IF(ISBLANK(E11),"",IF(ISNUMBER(H11),(I11-H11)/H11,0)) ->  | K11: =IF(ISBLANK(E11),"",E11*(1+J11)) ->  | O11: =IF(ISNUMBER(K11),IF(OR(K11<_xlfn.QUARTILE.INC($K$10:$K$29,1)-1.5*(_xlfn.QUARTILE.INC($K$10:K29,3)-_xlfn.QUARTILE.INC($K$10:$K$29,1)),K11>_xlfn.QUARTILE.INC($K$10:$K$29,3)+1.5*(_xlfn.QUARTILE.INC($K$10:$K$29,3)-_xlfn.QUARTILE.INC($K$10:$K$29,1))),"Não","Sim"),"") -> 
O12: =IF(ISNUMBER(K12),IF(OR(K12<_xlfn.QUARTILE.INC($K$10:$K$29,1)-1.5*(_xlfn.QUARTILE.INC($K$10:K30,3)-_xlfn.QUARTILE.INC($K$10:$K$29,1)),K12>_xlfn.QUARTILE.INC($K$10:$K$29,3)+1.5*(_xlfn.QUARTILE.INC($K$10:$K$29,3)-_xlfn.QUARTILE.INC($K$10:$K$29,1))),"Não","Sim"),"") -> 
O13: =IF(ISNUMBER(K13),IF(OR(K13<_xlfn.QUARTILE.INC($K$10:$K$29,1)-1.5*(_xlfn.QUARTILE.INC($K$10:K31,3)-_xlfn.QUARTILE.INC($K$10:$K$29,1)),K13>_xlfn.QUARTILE.INC($K$10:$K$29,3)+1.5*(_xlfn.QUARTILE.INC($K$10:$K$29,3)-_xlfn.QUARTILE.INC($K$10:$K$29,1))),"Não","Sim"),"") -> 
O14: =IF(ISNUMBER(K14),IF(OR(K14<_xlfn.QUARTILE.INC($K$10:$K$29,1)-1.5*(_xlfn.QUARTILE.INC($K$10:K32,3)-_xlfn.QUARTILE.INC($K$10:$K$29,1)),K14>_xlfn.QUARTILE.INC($K$10:$K$29,3)+1.5*(_xlfn.QUARTILE.INC($K$10:$K$29,3)-_xlfn.QUARTILE.INC($K$10:$K$29,1))),"Não","Sim"),"") -> 
O15: =IF(ISNUMBER(K15),IF(OR(K15<_xlfn.QUARTILE.INC($K$10:$K$29,1)-1.5*(_xlfn.QUARTILE.INC($K$10:K35,3)-_xlfn.QUARTILE.INC($K$10:$K$29,1)),K15>_xlfn.QUARTILE.INC($K$10:$K$29,3)+1.5*(_xlfn.QUARTILE.INC($K$10:$K$29,3)-_xlfn.QUARTILE.INC($K$10:$K$29,1))),"Não","Sim"),"") -> 
O16: =IF(ISNUMBER(K16),IF(OR(K16<_xlfn.QUARTILE.INC($K$10:$K$29,1)-1.5*(_xlfn.QUARTILE.INC($I$10:I37,3)-_xlfn.QUARTILE.INC($K$10:$K$29,1)),K16>_xlfn.QUARTILE.INC($K$10:$K$29,3)+1.5*(_xlfn.QUARTILE.INC($K$10:$K$29,3)-_xlfn.QUARTILE.INC($K$10:$K$29,1))),"Não","Sim"),"") -> 
B17: COTAÇÕES DE MERCADO | O17: Cotações
B18: Empresa | J18: Data | K18: Preço Unitário | L18: Utilizar? (Sim/Não) | O18: Outliers | P18: Por critério do(a) analista
B19: Utilidades Clínicas - https://www.utilidadesclinicas.com.br/luva-latex-para-procedimento-com-po-descarpack-16939.html | J19: 2026-04-28 | K19: 28.99 | L19: =IF(ISNUMBER(K19),IF($L$32=$O$18,O19,IF($L$32=$P$18,P19,"")),"") -> Sim | O19: =IF(ISNUMBER(K19),IF(OR(K19<_xlfn.QUARTILE.INC($K$10:$K$29,1)-1.5*(_xlfn.QUARTILE.INC($K$10:$K$29,3)-_xlfn.QUARTILE.INC($K$10:$K$29,1)),K19>_xlfn.QUARTILE.INC($K$10:$K$29,3)+1.5*(_xlfn.QUARTILE.INC($K$10:$K$29,3)-_xlfn.QUARTILE.INC($K$10:$K$29,1))),"Não","Sim"),"") -> Sim
B20: Smart Luvas - https://smartluvas.com.br/produtos/luvas-descartaveis-unigloves-latex-com-po-branca-100un/?variant=1079539892&pf=mc&gad_source=4&gad_campaignid=22425411490&gbraid=0AAAAABUn9-O7PRWAn_EnEiHEVKL4KAx2D&gclid=CjwKCAjwtcHPBhADEiwAWo3sJjBG47VXHjRaB6hQB92lHu6NygR2rpPjBTPE2gcrS2nd6QeKGSLbFxoC7zAQAvD_BwE | J20: 2026-04-28 | K20: 29.9 | L20: Sim | O20: Sim
B21: Amazon - https://www.amazon.com.br/Descart%C3%A1vel-Bioabsorv%C3%ADvel-Est%C3%A9ril-M%C3%A9dico-Laboratorial/dp/B0FPTKXTM4/ref=asc_df_B0FPTKXTM4?mcid=19e7a4a2d7f233e2ae05bb3eb2c12d33&tag=googleshopp00-20&linkCode=df0&hvadid=754710229179&hvpos=&hvnetw=g&hvrand=3754711117637421323&hvpone=&hvptwo=&hvqmt=&hvdev=c&hvdvcmdl=&hvlocint=&hvlocphy=9198389&hvtargid=pla-2442314910943&psc=1&hvocijid=3754711117637421323-B0FPTKXTM4-&hvexpln=0&language=pt_BR | J21: 2026-04-28 | K21: 39.9 | L21: Sim | O21: Sim
B30: Observações: | K30: Média: | L30: =IF($L$32="","Selecione metodologia para exclusão de preços",AVERAGE(IF($L$10:$L$29="Sim",$K$10:$K$29))) -> 32.93 | N30: Média (Cotações) | O30: =IF(COUNTIF(O19:O29,"Sim")<3,"N/D (são necessários pelo menos 3 preços)",AVERAGE(IF(O19:O29="Sim",$K19:$K29))) -> 32.93 | P30: =IF(COUNTIF(P19:P29,"Sim")<3,"N/D (são necessários pelo menos 3 preços)",AVERAGE(IF(P19:P29="Sim",$K19:$K29))) -> N/D (são necessários pelo menos 3 preços)
K31: Mediana: | L31: =IF($L$32="","Selecione metodologia para exclusão de preços",MEDIAN(IF($L$10:$L$29="Sim",$K$10:$K$29))) -> 29.9 | N31: Mediana (Cotações) | O31: =IF(COUNTIF(O19:O29,"Sim")<3,"N/D (são necessários pelo menos 3 preços)",MEDIAN(IF(O19:O29="Sim",$K19:$K29))) -> 29.9 | P31: =IF(COUNTIF(P19:P29,"Sim")<3,"N/D (são necessários pelo menos 3 preços)",MEDIAN(IF(P19:P29="Sim",$K19:$K29))) -> N/D (são necessários pelo menos 3 preços)
B32: Metodologia de exclusão de preços adotada: | L32: =IF(O35="",INDEX(O18:P18,MATCH(MIN(#REF!),#REF!,0)),O35) -> Outliers | N32: CV (Cotações) | O32: =IF(COUNTIF(O19:O29,"Sim")<3,"N/D (são necessários pelo menos 3 preços)",_xlfn.STDEV.S(IF(O19:O29="Sim",$K19:$K29))/AVERAGE(IF(O19:O29="Sim",$K19:$K29))) -> 0.1838239114 | P32: =IF(COUNTIF(P19:P29,"Sim")<3,"N/D (são necessários pelo menos 3 preços)",_xlfn.STDEV.S(IF(P19:P29="Sim",$K19:$K29))/AVERAGE(IF(P19:P29="Sim",$K19:$K29))) -> N/D (são necessários pelo menos 3 preços)
N33: Média | O33: =IF(SUM(COUNTIF($O$10:$O$16,"Sim")) + SUM(COUNTIF(O19:O29,"Sim")) < 3, "N/D (são necessários pelo menos 3 preços)", IFERROR(AVERAGE(_xlfn._xlws.FILTER($K$10:$K$16,$O$10:$O$16="Sim"), _xlfn._xlws.FILTER($K$19:$K$29,O19:O29="Sim")),O30)) -> 32.93 | P33: =IF(SUM(COUNTIF($P$10:$P$16,"Sim")) + SUM(COUNTIF(P19:P29,"Sim")) < 3, "N/D (são necessários pelo menos 3 preços)", IFERROR(AVERAGE(_xlfn._xlws.FILTER($K$10:$K$16,$P$10:$P$16="Sim"), _xlfn._xlws.FILTER($K$19:$K$29,P19:P29="Sim")),P30)) -> N/D (são necessários pelo menos 3 preços)
N34: Mediana | O34: =IF(SUM(COUNTIF($O$10:$O$16,"Sim")) + SUM(COUNTIF(O19:O29,"Sim")) < 3, "N/D (são necessários pelo menos 3 preços)", IFERROR(MEDIAN(_xlfn._xlws.FILTER($K$10:$K$16,$O$10:$O$16="Sim"), _xlfn._xlws.FILTER($K$19:$K$29,O19:O29="Sim")),O31)) -> 29.9 | P34: =IF(SUM(COUNTIF($P10:$P$16,"Sim")) + SUM(COUNTIF(P19:P29,"Sim")) < 3, "N/D (são necessários pelo menos 3 preços)", IFERROR(MEDIAN(_xlfn._xlws.FILTER($K$10:$K$16,$P$10:$P$16="Sim"), _xlfn._xlws.FILTER($K$19:$K$29,P19:P29="Sim")),P31)) -> N/D (são necessários pelo menos 3 preços)
B35: COSOLIDAÇÃO DOS PREÇOS | N35: Metodologia a adotar: | O35: =IF(INDEX(O18:P18,P35)=0,"",INDEX(O18:P18,P35)) -> Outliers | P35: 1
B37: PREÇO UNITÁRIO ESTIMADO ADOTADO: | L37: =IF($B$39="Mediana:",L31,L30) -> 29.9
A39: =O18 -> Outliers | B39: Mediana:

Sheet Maca (hidden)
B2: Processo
B3: Responsável
B4: Área de Origem
B5: Data da pesquisa
B7: ITEM: | C7: MACA DOBRÁVEL tipo maleta, leve, estrutura em alumínio polido, espuma de densidade D28, revestido em courvim com verniz, com duas alças e rodinhas para transporte, trava de segurança em todos os pés, capacidade de até 130 Kg (170Kg), dimensões: abeta: 1,80 mt 0,60 cm, altura 0,75cm em relação ao solo e dimensões fechadas de 0,90 cm x 0,60 cm. | I7: UNIDADE DE MEDIDA: | J7: Unidade | K7: QUANTIDADE: | L7: 1 | O7: Tabela auxiliar de metodologias para exclusão de preços
B8: LICITAÇÕES ANTERIORES | O8: Licitações Anteriores
B9: Órgão | C9: Edital/Ano - Nº do Lote / Item | D9: Quantidade | E9: Valor Unitário | F9: Data | G9: índice de atualização (nome) | H9: I0 | I9: If | J9: Variação acumulada do índice (%) | K9: Preço unitário atualizado | L9: Utilizar? (Sim/Não) | O9: Outliers | P9: Por critério do(a) analista
J10: =IF(ISBLANK(E10),"",IF(ISNUMBER(H10),(I10-H10)/H10,0)) ->  | K10: =IF(ISBLANK(E10),"",E10*(1+J10)) ->  | L10: =IF(ISNUMBER(K10),IF($L$32<>$P$9,O10,P10),"") ->  | O10: =IF(ISNUMBER(K10),IF(OR(K10<_xlfn.QUARTILE.INC($K$10:$K$29,1)-1.5*(_xlfn.QUARTILE.INC($K$10:K29,3)-_xlfn.QUARTILE.INC($K$10:$K$29,1)),K10>_xlfn.QUARTILE.INC($K$10:$K$29,3)+1.5*(_xlfn.QUARTILE.INC($K$10:$K$29,3)-_xlfn.QUARTILE.INC($K$10:$K$29,1))),"Não","Sim"),"") -> 
J11: =IF(ISBLANK(E11),"",IF(ISNUMBER(H11),(I11-H11)/H11,0)) ->  | K11: =IF(ISBLANK(E11),"",E11*(1+J11)) ->  | O11: =IF(ISNUMBER(K11),IF(OR(K11<_xlfn.QUARTILE.INC($K$10:$K$29,1)-1.5*(_xlfn.QUARTILE.INC($K$10:K29,3)-_xlfn.QUARTILE.INC($K$10:$K$29,1)),K11>_xlfn.QUARTILE.INC($K$10:$K$29,3)+1.5*(_xlfn.QUARTILE.INC($K$10:$K$29,3)-_xlfn.QUARTILE.INC($K$10:$K$29,1))),"Não","Sim"),"") -> 
O12: =IF(ISNUMBER(K12),IF(OR(K12<_xlfn.QUARTILE.INC($K$10:$K$29,1)-1.5*(_xlfn.QUARTILE.INC($K$10:K30,3)-_xlfn.QUARTILE.INC($K$10:$K$29,1)),K12>_xlfn.QUARTILE.INC($K$10:$K$29,3)+1.5*(_xlfn.QUARTILE.INC($K$10:$K$29,3)-_xlfn.QUARTILE.INC($K$10:$K$29,1))),"Não","Sim"),"") -> 
O13: =IF(ISNUMBER(K13),IF(OR(K13<_xlfn.QUARTILE.INC($K$10:$K$29,1)-1.5*(_xlfn.QUARTILE.INC($K$10:K31,3)-_xlfn.QUARTILE.INC($K$10:$K$29,1)),K13>_xlfn.QUARTILE.INC($K$10:$K$29,3)+1.5*(_xlfn.QUARTILE.INC($K$10:$K$29,3)-_xlfn.QUARTILE.INC($K$10:$K$29,1))),"Não","Sim"),"") -> 
O14: =IF(ISNUMBER(K14),IF(OR(K14<_xlfn.QUARTILE.INC($K$10:$K$29,1)-1.5*(_xlfn.QUARTILE.INC($K$10:K32,3)-_xlfn.QUARTILE.INC($K$10:$K$29,1)),K14>_xlfn.QUARTILE.INC($K$10:$K$29,3)+1.5*(_xlfn.QUARTILE.INC($K$10:$K$29,3)-_xlfn.QUARTILE.INC($K$10:$K$29,1))),"Não","Sim"),"") -> 
O15: =IF(ISNUMBER(K15),IF(OR(K15<_xlfn.QUARTILE.INC($K$10:$K$29,1)-1.5*(_xlfn.QUARTILE.INC($K$10:K35,3)-_xlfn.QUARTILE.INC($K$10:$K$29,1)),K15>_xlfn.QUARTILE.INC($K$10:$K$29,3)+1.5*(_xlfn.QUARTILE.INC($K$10:$K$29,3)-_xlfn.QUARTILE.INC($K$10:$K$29,1))),"Não","Sim"),"") -> 
O16: =IF(ISNUMBER(K16),IF(OR(K16<_xlfn.QUARTILE.INC($K$10:$K$29,1)-1.5*(_xlfn.QUARTILE.INC($I$10:I37,3)-_xlfn.QUARTILE.INC($K$10:$K$29,1)),K16>_xlfn.QUARTILE.INC($K$10:$K$29,3)+1.5*(_xlfn.QUARTILE.INC($K$10:$K$29,3)-_xlfn.QUARTILE.INC($K$10:$K$29,1))),"Não","Sim"),"") -> 
B17: COTAÇÕES DE MERCADO | O17: Cotações
B18: Empresa | J18: Data | K18: Preço Unitário | L18: Utilizar? (Sim/Não) | O18: Outliers | P18: Por critério do(a) analista
B19: https://www.mercadolivre.com.br/ate-200kg-maca-preta-c-capa-de-qualidade-extra-forte-oferta/up/MLBU1106500581?pdp_filters=item_id%3AMLB2636235083&from=gshop&matt_tool=41970894&matt_word=&matt_source=google&matt_campaign_id=22090193723&matt_ad_group_id=194474622634&matt_match_type=&matt_network=g&matt_device=c&matt_creative=792355615191&matt_keyword=&matt_ad_position=&matt_ad_type=pla&matt_merchant_id=551211311&matt_product_id=MLBU1106500581&matt_product_partition_id=2452703710740&matt_target_id=pla-2452703710740&cq_src=google_ads&cq_cmp=22090193723&cq_net=g&cq_plt=gp&cq_med=pla&gad_source=1&gad_campaignid=22090193723&gbraid=0AAAAAD93qcCz-Fkd_jMBjWdla16bXTF8b&gclid=Cj0KCQjw2MbPBhCSARIsAP3jP9wwje5jdFPP4IgKaUm59rxtIfh8x-bNxVczCmlOC0GXknVHCbLSeNkaAqtdEALw_wcB | J19: 2026-04-29 | K19: 330.56 | L19: =IF(ISNUMBER(K19),IF($L$32=$O$18,O19,IF($L$32=$P$18,P19,"")),"") -> Sim | O19: =IF(ISNUMBER(K19),IF(OR(K19<_xlfn.QUARTILE.INC($K$10:$K$29,1)-1.5*(_xlfn.QUARTILE.INC($K$10:$K$29,3)-_xlfn.QUARTILE.INC($K$10:$K$29,1)),K19>_xlfn.QUARTILE.INC($K$10:$K$29,3)+1.5*(_xlfn.QUARTILE.INC($K$10:$K$29,3)-_xlfn.QUARTILE.INC($K$10:$K$29,1))),"Não","Sim"),"") -> Sim
B20: https://www.amazon.com.br/Portatil-Dobravel-Massagem-Estetica-Depila%C3%A7%C3%A3o/dp/B0FSTCVWNH/ref=asc_df_B0FSTCVWNH?mcid=c42cf6bedcc031b9aaa316aa4eced1b7&tag=googleshopp00-20&linkCode=df0&hvadid=754710229179&hvpos=&hvnetw=g&hvrand=10726841688931654309&hvpone=&hvptwo=&hvqmt=&hvdev=c&hvdvcmdl=&hvlocint=&hvlocphy=9243155&hvtargid=pla-2451838356160&hvocijid=10726841688931654309-B0FSTCVWNH-&hvexpln=0&language=pt_BR&th=1 | J20: 2026-04-29 | K20: 479.97 | L20: Sim | O20: Sim
B21: https://magazinemedica.com.br/produtos/visualiza/sku/16338/?gad_source=1&gad_campaignid=23257119241&gbraid=0AAAAA-LLl3TiEu2y6MTx5T-rxpkRQzg3F&gclid=Cj0KCQjw2MbPBhCSARIsAP3jP9zUFgyTOLm4g8go9aNWIdN2Z_tBp_fZ2qyLlXyNXef7EmATgyDbv4MaAtVaEALw_wcB | J21: 2026-04-29 | K21: 896.25 | L21: Sim | O21: Sim
B30: Observações: | K30: Média: | L30: =IF($L$32="","Selecione metodologia para exclusão de preços",AVERAGE(IF($L$10:$L$29="Sim",$K$10:$K$29))) -> 568.9266667 | N30: Média (Cotações) | O30: =IF(COUNTIF(O19:O29,"Sim")<3,"N/D (são necessários pelo menos 3 preços)",AVERAGE(IF(O19:O29="Sim",$K19:$K29))) -> 568.9266667 | P30: =IF(COUNTIF(P19:P29,"Sim")<3,"N/D (são necessários pelo menos 3 preços)",AVERAGE(IF(P19:P29="Sim",$K19:$K29))) -> N/D (são necessários pelo menos 3 preços)
K31: Mediana: | L31: =IF($L$32="","Selecione metodologia para exclusão de preços",MEDIAN(IF($L$10:$L$29="Sim",$K$10:$K$29))) -> 479.97 | N31: Mediana (Cotações) | O31: =IF(COUNTIF(O19:O29,"Sim")<3,"N/D (são necessários pelo menos 3 preços)",MEDIAN(IF(O19:O29="Sim",$K19:$K29))) -> 479.97 | P31: =IF(COUNTIF(P19:P29,"Sim")<3,"N/D (são necessários pelo menos 3 preços)",MEDIAN(IF(P19:P29="Sim",$K19:$K29))) -> N/D (são necessários pelo menos 3 preços)
B32: Metodologia de exclusão de preços adotada: | L32: =IF(O35="",INDEX(O18:P18,MATCH(MIN(#REF!),#REF!,0)),O35) -> Outliers | N32: CV (Cotações) | O32: =IF(COUNTIF(O19:O29,"Sim")<3,"N/D (são necessários pelo menos 3 preços)",_xlfn.STDEV.S(IF(O19:O29="Sim",$K19:$K29))/AVERAGE(IF(O19:O29="Sim",$K19:$K29))) -> 0.5152665325 | P32: =IF(COUNTIF(P19:P29,"Sim")<3,"N/D (são necessários pelo menos 3 preços)",_xlfn.STDEV.S(IF(P19:P29="Sim",$K19:$K29))/AVERAGE(IF(P19:P29="Sim",$K19:$K29))) -> N/D (são necessários pelo menos 3 preços)
N33: Média | O33: =IF(SUM(COUNTIF($O$10:$O$16,"Sim")) + SUM(COUNTIF(O19:O29,"Sim")) < 3, "N/D (são necessários pelo menos 3 preços)", IFERROR(AVERAGE(_xlfn._xlws.FILTER($K$10:$K$16,$O$10:$O$16="Sim"), _xlfn._xlws.FILTER($K$19:$K$29,O19:O29="Sim")),O30)) -> 568.9266667 | P33: =IF(SUM(COUNTIF($P$10:$P$16,"Sim")) + SUM(COUNTIF(P19:P29,"Sim")) < 3, "N/D (são necessários pelo menos 3 preços)", IFERROR(AVERAGE(_xlfn._xlws.FILTER($K$10:$K$16,$P$10:$P$16="Sim"), _xlfn._xlws.FILTER($K$19:$K$29,P19:P29="Sim")),P30)) -> N/D (são necessários pelo menos 3 preços)
N34: Mediana | O34: =IF(SUM(COUNTIF($O$10:$O$16,"Sim")) + SUM(COUNTIF(O19:O29,"Sim")) < 3, "N/D (são necessários pelo menos 3 preços)", IFERROR(MEDIAN(_xlfn._xlws.FILTER($K$10:$K$16,$O$10:$O$16="Sim"), _xlfn._xlws.FILTER($K$19:$K$29,O19:O29="Sim")),O31)) -> 479.97 | P34: =IF(SUM(COUNTIF($P10:$P$16,"Sim")) + SUM(COUNTIF(P19:P29,"Sim")) < 3, "N/D (são necessários pelo menos 3 preços)", IFERROR(MEDIAN(_xlfn._xlws.FILTER($K$10:$K$16,$P$10:$P$16="Sim"), _xlfn._xlws.FILTER($K$19:$K$29,P19:P29="Sim")),P31)) -> N/D (são necessários pelo menos 3 preços)
B35: COSOLIDAÇÃO DOS PREÇOS | N35: Metodologia a adotar: | O35: =IF(INDEX(O18:P18,P35)=0,"",INDEX(O18:P18,P35)) -> Outliers | P35: 1
B37: PREÇO UNITÁRIO ESTIMADO ADOTADO: | L37: =IF($B$39="Mediana:",L31,L30) -> 479.97
A39: =O18 -> Outliers | B39: Mediana:

Sheet Mascara (hidden)
B2: Processo
B3: Responsável
B4: Área de Origem
B5: Data da pesquisa
B7: ITEM: | C7: MÁSCARA CIRÚRGICA (caixa com 50) | I7: UNIDADE DE MEDIDA: | J7: Unidade | K7: QUANTIDADE: | L7: 3 | O7: Tabela auxiliar de metodologias para exclusão de preços
B8: LICITAÇÕES ANTERIORES | O8: Licitações Anteriores
B9: Órgão | C9: Edital/Ano - Nº do Lote / Item | D9: Quantidade | E9: Valor Unitário | F9: Data | G9: índice de atualização (nome) | H9: I0 | I9: If | J9: Variação acumulada do índice (%) | K9: Preço unitário atualizado | L9: Utilizar? (Sim/Não) | O9: Outliers | P9: Por critério do(a) analista
J10: =IF(ISBLANK(E10),"",IF(ISNUMBER(H10),(I10-H10)/H10,0)) ->  | K10: =IF(ISBLANK(E10),"",E10*(1+J10)) ->  | L10: =IF(ISNUMBER(K10),IF($L$32<>$P$9,O10,P10),"") ->  | O10: =IF(ISNUMBER(K10),IF(OR(K10<_xlfn.QUARTILE.INC($K$10:$K$29,1)-1.5*(_xlfn.QUARTILE.INC($K$10:K29,3)-_xlfn.QUARTILE.INC($K$10:$K$29,1)),K10>_xlfn.QUARTILE.INC($K$10:$K$29,3)+1.5*(_xlfn.QUARTILE.INC($K$10:$K$29,3)-_xlfn.QUARTILE.INC($K$10:$K$29,1))),"Não","Sim"),"") -> 
J11: =IF(ISBLANK(E11),"",IF(ISNUMBER(H11),(I11-H11)/H11,0)) ->  | K11: =IF(ISBLANK(E11),"",E11*(1+J11)) ->  | O11: =IF(ISNUMBER(K11),IF(OR(K11<_xlfn.QUARTILE.INC($K$10:$K$29,1)-1.5*(_xlfn.QUARTILE.INC($K$10:K29,3)-_xlfn.QUARTILE.INC($K$10:$K$29,1)),K11>_xlfn.QUARTILE.INC($K$10:$K$29,3)+1.5*(_xlfn.QUARTILE.INC($K$10:$K$29,3)-_xlfn.QUARTILE.INC($K$10:$K$29,1))),"Não","Sim"),"") -> 
O12: =IF(ISNUMBER(K12),IF(OR(K12<_xlfn.QUARTILE.INC($K$10:$K$29,1)-1.5*(_xlfn.QUARTILE.INC($K$10:K30,3)-_xlfn.QUARTILE.INC($K$10:$K$29,1)),K12>_xlfn.QUARTILE.INC($K$10:$K$29,3)+1.5*(_xlfn.QUARTILE.INC($K$10:$K$29,3)-_xlfn.QUARTILE.INC($K$10:$K$29,1))),"Não","Sim"),"") -> 
O13: =IF(ISNUMBER(K13),IF(OR(K13<_xlfn.QUARTILE.INC($K$10:$K$29,1)-1.5*(_xlfn.QUARTILE.INC($K$10:K31,3)-_xlfn.QUARTILE.INC($K$10:$K$29,1)),K13>_xlfn.QUARTILE.INC($K$10:$K$29,3)+1.5*(_xlfn.QUARTILE.INC($K$10:$K$29,3)-_xlfn.QUARTILE.INC($K$10:$K$29,1))),"Não","Sim"),"") -> 
O14: =IF(ISNUMBER(K14),IF(OR(K14<_xlfn.QUARTILE.INC($K$10:$K$29,1)-1.5*(_xlfn.QUARTILE.INC($K$10:K32,3)-_xlfn.QUARTILE.INC($K$10:$K$29,1)),K14>_xlfn.QUARTILE.INC($K$10:$K$29,3)+1.5*(_xlfn.QUARTILE.INC($K$10:$K$29,3)-_xlfn.QUARTILE.INC($K$10:$K$29,1))),"Não","Sim"),"") -> 
O15: =IF(ISNUMBER(K15),IF(OR(K15<_xlfn.QUARTILE.INC($K$10:$K$29,1)-1.5*(_xlfn.QUARTILE.INC($K$10:K35,3)-_xlfn.QUARTILE.INC($K$10:$K$29,1)),K15>_xlfn.QUARTILE.INC($K$10:$K$29,3)+1.5*(_xlfn.QUARTILE.INC($K$10:$K$29,3)-_xlfn.QUARTILE.INC($K$10:$K$29,1))),"Não","Sim"),"") -> 
O16: =IF(ISNUMBER(K16),IF(OR(K16<_xlfn.QUARTILE.INC($K$10:$K$29,1)-1.5*(_xlfn.QUARTILE.INC($I$10:I37,3)-_xlfn.QUARTILE.INC($K$10:$K$29,1)),K16>_xlfn.QUARTILE.INC($K$10:$K$29,3)+1.5*(_xlfn.QUARTILE.INC($K$10:$K$29,3)-_xlfn.QUARTILE.INC($K$10:$K$29,1))),"Não","Sim"),"") -> 
B17: COTAÇÕES DE MERCADO | O17: Cotações
B18: Empresa | J18: Data | K18: Preço Unitário | L18: Utilizar? (Sim/Não) | O18: Outliers | P18: Por critério do(a) analista
B19: Bonaty Company - https://www.bonaticompany.com.br/higiene-e-cuidados-pessoais/higiene-pessoal/mascara-cirurgica-descartavel-fava-mask-com-elastico-branca-50-unidades?parceiro=5563&gad_source=1&gad_campaignid=22931647865&gbraid=0AAAAADg-LnRRItBaS1YTdEwiaQOP_IrKr&gclid=CjwKCAjwtcHPBhADEiwAWo3sJkyXOkkwtTxeVNLBnWNY1Kq1dkkL_7BzwkJhrX5URltE1A_jxygDYBoC92MQAvD_BwE | J19: 2026-06-28 | K19: 58.66 | L19: =IF(ISNUMBER(K19),IF($L$32=$O$18,O19,IF($L$32=$P$18,P19,"")),"") -> Sim | O19: =IF(ISNUMBER(K19),IF(OR(K19<_xlfn.QUARTILE.INC($K$10:$K$29,1)-1.5*(_xlfn.QUARTILE.INC($K$10:$K$29,3)-_xlfn.QUARTILE.INC($K$10:$K$29,1)),K19>_xlfn.QUARTILE.INC($K$10:$K$29,3)+1.5*(_xlfn.QUARTILE.INC($K$10:$K$29,3)-_xlfn.QUARTILE.INC($K$10:$K$29,1))),"Não","Sim"),"") -> Sim
B20: Mercado Livre - https://www.mercadolivre.com.br/mascara-descartavel-cirurgica-g-tech-caixa-com-50-und/p/MLB20199523?pdp_filters=item_id%3AMLB3918468075&from=gshop&matt_tool=35397717&matt_word=&matt_source=google&matt_campaign_id=22090354487&matt_ad_group_id=197094212771&matt_match_type=&matt_network=g&matt_device=c&matt_creative=792396419707&matt_keyword=&matt_ad_position=&matt_ad_type=pla&matt_merchant_id=735098639&matt_product_id=MLB20199523-product&matt_product_partition_id=2470634131585&matt_target_id=pla-2470634131585&cq_src=google_ads&cq_cmp=22090354487&cq_net=g&cq_plt=gp&cq_med=pla&gad_source=1&gad_campaignid=22090354487&gbraid=0AAAAAD93qcD9MlUhk0DsjOWe3HkL9bL24&gclid=CjwKCAjwtcHPBhADEiwAWo3sJgxfHHSsOl9hwAdJ7_9HZok_sITxqY-e-qWu3c9qihF4nmGvOUcAvhoCfD4QAvD_BwE | J20: 2026-06-28 | K20: 26.79 | L20: Sim | O20: Sim
B21: Pacheco - https://www.drogariaspacheco.com.br/mascara-cirurgica-descartavel-ever-care-50-unidades/p?idsku=740900&utm_source=google&utm_medium=cpc&utm_campaign=google-shp&gad_source=1&gad_campaignid=19773079415&gbraid=0AAAAADnsPzPbfHwr5vRbnleeKTJaUywX8&gclid=CjwKCAjwtcHPBhADEiwAWo3sJs-Ej3DS_YWydqCX2OKhrRCOA2_XXO2IRyO--8OdDvmADBtgKs1HvRoCZ1QQAvD_BwE | J21: 2026-06-28 | K21: 48.23 | L21: Sim | O21: Sim
B30: Observações: | K30: Média: | L30: =IF($L$32="","Selecione metodologia para exclusão de preços",AVERAGE(IF($L$10:$L$29="Sim",$K$10:$K$29))) -> 44.56 | N30: Média (Cotações) | O30: =IF(COUNTIF(O19:O29,"Sim")<3,"N/D (são necessários pelo menos 3 preços)",AVERAGE(IF(O19:O29="Sim",$K19:$K29))) -> 44.56 | P30: =IF(COUNTIF(P19:P29,"Sim")<3,"N/D (são necessários pelo menos 3 preços)",AVERAGE(IF(P19:P29="Sim",$K19:$K29))) -> N/D (são necessários pelo menos 3 preços)
K31: Mediana: | L31: =IF($L$32="","Selecione metodologia para exclusão de preços",MEDIAN(IF($L$10:$L$29="Sim",$K$10:$K$29))) -> 48.23 | N31: Mediana (Cotações) | O31: =IF(COUNTIF(O19:O29,"Sim")<3,"N/D (são necessários pelo menos 3 preços)",MEDIAN(IF(O19:O29="Sim",$K19:$K29))) -> 48.23 | P31: =IF(COUNTIF(P19:P29,"Sim")<3,"N/D (são necessários pelo menos 3 preços)",MEDIAN(IF(P19:P29="Sim",$K19:$K29))) -> N/D (são necessários pelo menos 3 preços)
B32: Metodologia de exclusão de preços adotada: | L32: =IF(O35="",INDEX(O18:P18,MATCH(MIN(#REF!),#REF!,0)),O35) -> Outliers | N32: CV (Cotações) | O32: =IF(COUNTIF(O19:O29,"Sim")<3,"N/D (são necessários pelo menos 3 preços)",_xlfn.STDEV.S(IF(O19:O29="Sim",$K19:$K29))/AVERAGE(IF(O19:O29="Sim",$K19:$K29))) -> 0.3646515666 | P32: =IF(COUNTIF(P19:P29,"Sim")<3,"N/D (são necessários pelo menos 3 preços)",_xlfn.STDEV.S(IF(P19:P29="Sim",$K19:$K29))/AVERAGE(IF(P19:P29="Sim",$K19:$K29))) -> N/D (são necessários pelo menos 3 preços)
N33: Média | O33: =IF(SUM(COUNTIF($O$10:$O$16,"Sim")) + SUM(COUNTIF(O19:O29,"Sim")) < 3, "N/D (são necessários pelo menos 3 preços)", IFERROR(AVERAGE(_xlfn._xlws.FILTER($K$10:$K$16,$O$10:$O$16="Sim"), _xlfn._xlws.FILTER($K$19:$K$29,O19:O29="Sim")),O30)) -> 44.56 | P33: =IF(SUM(COUNTIF($P$10:$P$16,"Sim")) + SUM(COUNTIF(P19:P29,"Sim")) < 3, "N/D (são necessários pelo menos 3 preços)", IFERROR(AVERAGE(_xlfn._xlws.FILTER($K$10:$K$16,$P$10:$P$16="Sim"), _xlfn._xlws.FILTER($K$19:$K$29,P19:P29="Sim")),P30)) -> N/D (são necessários pelo menos 3 preços)
N34: Mediana | O34: =IF(SUM(COUNTIF($O$10:$O$16,"Sim")) + SUM(COUNTIF(O19:O29,"Sim")) < 3, "N/D (são necessários pelo menos 3 preços)", IFERROR(MEDIAN(_xlfn._xlws.FILTER($K$10:$K$16,$O$10:$O$16="Sim"), _xlfn._xlws.FILTER($K$19:$K$29,O19:O29="Sim")),O31)) -> 48.23 | P34: =IF(SUM(COUNTIF($P10:$P$16,"Sim")) + SUM(COUNTIF(P19:P29,"Sim")) < 3, "N/D (são necessários pelo menos 3 preços)", IFERROR(MEDIAN(_xlfn._xlws.FILTER($K$10:$K$16,$P$10:$P$16="Sim"), _xlfn._xlws.FILTER($K$19:$K$29,P19:P29="Sim")),P31)) -> N/D (são necessários pelo menos 3 preços)
B35: COSOLIDAÇÃO DOS PREÇOS | N35: Metodologia a adotar: | O35: =IF(INDEX(O18:P18,P35)=0,"",INDEX(O18:P18,P35)) -> Outliers | P35: 1
B37: PREÇO UNITÁRIO ESTIMADO ADOTADO: | L37: =IF($B$39="Mediana:",L31,L30) -> 44.56
A39: =O18 -> Outliers | B39: Média:

Sheet Mascara RCP (hidden)
B2: Processo
B3: Responsável
B4: Área de Origem
B5: Data da pesquisa
B7: ITEM: | C7: MÁSCARA RCP DESCARTÁVEL | I7: UNIDADE DE MEDIDA: | J7: Unidade | K7: QUANTIDADE: | L7: 10 | O7: Tabela auxiliar de metodologias para exclusão de preços
B8: LICITAÇÕES ANTERIORES | O8: Licitações Anteriores
B9: Órgão | C9: Edital/Ano - Nº do Lote / Item | D9: Quantidade | E9: Valor Unitário | F9: Data | G9: índice de atualização (nome) | H9: I0 | I9: If | J9: Variação acumulada do índice (%) | K9: Preço unitário atualizado | L9: Utilizar? (Sim/Não) | O9: Outliers | P9: Por critério do(a) analista
J10: =IF(ISBLANK(E10),"",IF(ISNUMBER(H10),(I10-H10)/H10,0)) ->  | K10: =IF(ISBLANK(E10),"",E10*(1+J10)) ->  | L10: =IF(ISNUMBER(K10),IF($L$32<>$P$9,O10,P10),"") ->  | O10: =IF(ISNUMBER(K10),IF(OR(K10<_xlfn.QUARTILE.INC($K$10:$K$29,1)-1.5*(_xlfn.QUARTILE.INC($K$10:K29,3)-_xlfn.QUARTILE.INC($K$10:$K$29,1)),K10>_xlfn.QUARTILE.INC($K$10:$K$29,3)+1.5*(_xlfn.QUARTILE.INC($K$10:$K$29,3)-_xlfn.QUARTILE.INC($K$10:$K$29,1))),"Não","Sim"),"") -> 
J11: =IF(ISBLANK(E11),"",IF(ISNUMBER(H11),(I11-H11)/H11,0)) ->  | K11: =IF(ISBLANK(E11),"",E11*(1+J11)) ->  | O11: =IF(ISNUMBER(K11),IF(OR(K11<_xlfn.QUARTILE.INC($K$10:$K$29,1)-1.5*(_xlfn.QUARTILE.INC($K$10:K29,3)-_xlfn.QUARTILE.INC($K$10:$K$29,1)),K11>_xlfn.QUARTILE.INC($K$10:$K$29,3)+1.5*(_xlfn.QUARTILE.INC($K$10:$K$29,3)-_xlfn.QUARTILE.INC($K$10:$K$29,1))),"Não","Sim"),"") -> 
O12: =IF(ISNUMBER(K12),IF(OR(K12<_xlfn.QUARTILE.INC($K$10:$K$29,1)-1.5*(_xlfn.QUARTILE.INC($K$10:K30,3)-_xlfn.QUARTILE.INC($K$10:$K$29,1)),K12>_xlfn.QUARTILE.INC($K$10:$K$29,3)+1.5*(_xlfn.QUARTILE.INC($K$10:$K$29,3)-_xlfn.QUARTILE.INC($K$10:$K$29,1))),"Não","Sim"),"") -> 
O13: =IF(ISNUMBER(K13),IF(OR(K13<_xlfn.QUARTILE.INC($K$10:$K$29,1)-1.5*(_xlfn.QUARTILE.INC($K$10:K31,3)-_xlfn.QUARTILE.INC($K$10:$K$29,1)),K13>_xlfn.QUARTILE.INC($K$10:$K$29,3)+1.5*(_xlfn.QUARTILE.INC($K$10:$K$29,3)-_xlfn.QUARTILE.INC($K$10:$K$29,1))),"Não","Sim"),"") -> 
O14: =IF(ISNUMBER(K14),IF(OR(K14<_xlfn.QUARTILE.INC($K$10:$K$29,1)-1.5*(_xlfn.QUARTILE.INC($K$10:K32,3)-_xlfn.QUARTILE.INC($K$10:$K$29,1)),K14>_xlfn.QUARTILE.INC($K$10:$K$29,3)+1.5*(_xlfn.QUARTILE.INC($K$10:$K$29,3)-_xlfn.QUARTILE.INC($K$10:$K$29,1))),"Não","Sim"),"") -> 
O15: =IF(ISNUMBER(K15),IF(OR(K15<_xlfn.QUARTILE.INC($K$10:$K$29,1)-1.5*(_xlfn.QUARTILE.INC($K$10:K35,3)-_xlfn.QUARTILE.INC($K$10:$K$29,1)),K15>_xlfn.QUARTILE.INC($K$10:$K$29,3)+1.5*(_xlfn.QUARTILE.INC($K$10:$K$29,3)-_xlfn.QUARTILE.INC($K$10:$K$29,1))),"Não","Sim"),"") -> 
O16: =IF(ISNUMBER(K16),IF(OR(K16<_xlfn.QUARTILE.INC($K$10:$K$29,1)-1.5*(_xlfn.QUARTILE.INC($I$10:I37,3)-_xlfn.QUARTILE.INC($K$10:$K$29,1)),K16>_xlfn.QUARTILE.INC($K$10:$K$29,3)+1.5*(_xlfn.QUARTILE.INC($K$10:$K$29,3)-_xlfn.QUARTILE.INC($K$10:$K$29,1))),"Não","Sim"),"") -> 
B17: COTAÇÕES DE MERCADO | O17: Cotações
B18: Empresa | J18: Data | K18: Preço Unitário | L18: Utilizar? (Sim/Não) | O18: Outliers | P18: Por critério do(a) analista
B19: https://magazinemedica.com.br/produtos/visualiza/sku/483/?gad_source=1&gad_campaignid=23257119241&gbraid=0AAAAA-LLl3TiEu2y6MTx5T-rxpkRQzg3F&gclid=Cj0KCQjw2MbPBhCSARIsAP3jP9wAINz9vrTKBdF-1Q3R7_fhAwGBMF9EOfMnJBjtz-kWBtOOddZmJwUaAuivEALw_wcB | J19: 2026-04-29 | K19: 12.51 | L19: =IF(ISNUMBER(K19),IF($L$32=$O$18,O19,IF($L$32=$P$18,P19,"")),"") -> Sim | O19: =IF(ISNUMBER(K19),IF(OR(K19<_xlfn.QUARTILE.INC($K$10:$K$29,1)-1.5*(_xlfn.QUARTILE.INC($K$10:$K$29,3)-_xlfn.QUARTILE.INC($K$10:$K$29,1)),K19>_xlfn.QUARTILE.INC($K$10:$K$29,3)+1.5*(_xlfn.QUARTILE.INC($K$10:$K$29,3)-_xlfn.QUARTILE.INC($K$10:$K$29,1))),"Não","Sim"),"") -> Sim
B20: https://www.mercadolivre.com.br/mascara-rcp-descartavel/up/MLBU595157551?pdp_filters=item_id%3AMLB1129178186&from=gshop&matt_tool=79314260&matt_word=&matt_source=google&matt_campaign_id=22090354076&matt_ad_group_id=192555039814&matt_match_type=&matt_network=g&matt_device=c&matt_creative=799032780700&matt_keyword=&matt_ad_position=&matt_ad_type=pla&matt_merchant_id=120034263&matt_product_id=MLBU595157551&matt_product_partition_id=2471390449598&matt_target_id=pla-2471390449598&cq_src=google_ads&cq_cmp=22090354076&cq_net=g&cq_plt=gp&cq_med=pla&gad_source=1&gad_campaignid=22090354076&gbraid=0AAAAAD93qcDD1Q6_wlkrpP01JMAjAU17U&gclid=Cj0KCQjw2MbPBhCSARIsAP3jP9zPPwtiflqOzyEMOxHDuzYgrCCZUqKxTtrSkZT71VR4JAkvVog-_jwaAkvaEALw_wcB | J20: 2026-04-29 | K20: 22 | L20: Sim | O20: Sim
B21: https://www.mercadolivre.com.br/mascaras-rcp-descartavel/up/MLBU1098046046?pdp_filters=item_id%3AMLB1865569708&from=gshop&matt_tool=79314260&matt_word=&matt_source=google&matt_campaign_id=22090354076&matt_ad_group_id=192555039814&matt_match_type=&matt_network=g&matt_device=c&matt_creative=799032780700&matt_keyword=&matt_ad_position=&matt_ad_type=pla&matt_merchant_id=399414265&matt_product_id=MLBU1098046046&matt_product_partition_id=2471390449598&matt_target_id=pla-2471390449598&cq_src=google_ads&cq_cmp=22090354076&cq_net=g&cq_plt=gp&cq_med=pla&gad_source=1&gad_campaignid=22090354076&gbraid=0AAAAAD93qcDD1Q6_wlkrpP01JMAjAU17U&gclid=Cj0KCQjw2MbPBhCSARIsAP3jP9y_0wpRbGplV8mgOOc_QfP26tVCXit11fz_BHCzMrTF6uHEwR94xEAaAh8yEALw_wcB | J21: 2026-04-29 | K21: 19 | L21: Sim | O21: Sim
B30: Observações: | K30: Média: | L30: =IF($L$32="","Selecione metodologia para exclusão de preços",AVERAGE(IF($L$10:$L$29="Sim",$K$10:$K$29))) -> 17.83666667 | N30: Média (Cotações) | O30: =IF(COUNTIF(O19:O29,"Sim")<3,"N/D (são necessários pelo menos 3 preços)",AVERAGE(IF(O19:O29="Sim",$K19:$K29))) -> 17.83666667 | P30: =IF(COUNTIF(P19:P29,"Sim")<3,"N/D (são necessários pelo menos 3 preços)",AVERAGE(IF(P19:P29="Sim",$K19:$K29))) -> N/D (são necessários pelo menos 3 preços)
K31: Mediana: | L31: =IF($L$32="","Selecione metodologia para exclusão de preços",MEDIAN(IF($L$10:$L$29="Sim",$K$10:$K$29))) -> 19 | N31: Mediana (Cotações) | O31: =IF(COUNTIF(O19:O29,"Sim")<3,"N/D (são necessários pelo menos 3 preços)",MEDIAN(IF(O19:O29="Sim",$K19:$K29))) -> 19 | P31: =IF(COUNTIF(P19:P29,"Sim")<3,"N/D (são necessários pelo menos 3 preços)",MEDIAN(IF(P19:P29="Sim",$K19:$K29))) -> N/D (são necessários pelo menos 3 preços)
B32: Metodologia de exclusão de preços adotada: | L32: =IF(O35="",INDEX(O18:P18,MATCH(MIN(#REF!),#REF!,0)),O35) -> Outliers | N32: CV (Cotações) | O32: =IF(COUNTIF(O19:O29,"Sim")<3,"N/D (são necessários pelo menos 3 preços)",_xlfn.STDEV.S(IF(O19:O29="Sim",$K19:$K29))/AVERAGE(IF(O19:O29="Sim",$K19:$K29))) -> 0.27195533 | P32: =IF(COUNTIF(P19:P29,"Sim")<3,"N/D (são necessários pelo menos 3 preços)",_xlfn.STDEV.S(IF(P19:P29="Sim",$K19:$K29))/AVERAGE(IF(P19:P29="Sim",$K19:$K29))) -> N/D (são necessários pelo menos 3 preços)
N33: Média | O33: =IF(SUM(COUNTIF($O$10:$O$16,"Sim")) + SUM(COUNTIF(O19:O29,"Sim")) < 3, "N/D (são necessários pelo menos 3 preços)", IFERROR(AVERAGE(_xlfn._xlws.FILTER($K$10:$K$16,$O$10:$O$16="Sim"), _xlfn._xlws.FILTER($K$19:$K$29,O19:O29="Sim")),O30)) -> 17.83666667 | P33: =IF(SUM(COUNTIF($P$10:$P$16,"Sim")) + SUM(COUNTIF(P19:P29,"Sim")) < 3, "N/D (são necessários pelo menos 3 preços)", IFERROR(AVERAGE(_xlfn._xlws.FILTER($K$10:$K$16,$P$10:$P$16="Sim"), _xlfn._xlws.FILTER($K$19:$K$29,P19:P29="Sim")),P30)) -> N/D (são necessários pelo menos 3 preços)
N34: Mediana | O34: =IF(SUM(COUNTIF($O$10:$O$16,"Sim")) + SUM(COUNTIF(O19:O29,"Sim")) < 3, "N/D (são necessários pelo menos 3 preços)", IFERROR(MEDIAN(_xlfn._xlws.FILTER($K$10:$K$16,$O$10:$O$16="Sim"), _xlfn._xlws.FILTER($K$19:$K$29,O19:O29="Sim")),O31)) -> 19 | P34: =IF(SUM(COUNTIF($P10:$P$16,"Sim")) + SUM(COUNTIF(P19:P29,"Sim")) < 3, "N/D (são necessários pelo menos 3 preços)", IFERROR(MEDIAN(_xlfn._xlws.FILTER($K$10:$K$16,$P$10:$P$16="Sim"), _xlfn._xlws.FILTER($K$19:$K$29,P19:P29="Sim")),P31)) -> N/D (são necessários pelo menos 3 preços)
B35: COSOLIDAÇÃO DOS PREÇOS | N35: Metodologia a adotar: | O35: =IF(INDEX(O18:P18,P35)=0,"",INDEX(O18:P18,P35)) -> Outliers | P35: 1
B37: PREÇO UNITÁRIO ESTIMADO ADOTADO: | L37: =IF($B$39="Mediana:",L31,L30) -> 17.83666667
A39: =O18 -> Outliers | B39: Média:

Sheet Medidor de pressão (hidden)
B2: Processo
B3: Responsável
B4: Área de Origem
B5: Data da pesquisa
B7: ITEM: | C7: MONITOR DE PRESSÃO ARTERIAL e batimentos cardíacos, ajuste da insuflação automático, de braço, digital, com braçadeira pequena e grande, indicador de nível de carga de bateria, data e hora, memória, visor de cristal líquido. | I7: UNIDADE DE MEDIDA: | J7: Unidade | K7: QUANTIDADE: | L7: 2 | O7: Tabela auxiliar de metodologias para exclusão de preços
B8: LICITAÇÕES ANTERIORES | O8: Licitações Anteriores
B9: Órgão | C9: Edital/Ano - Nº do Lote / Item | D9: Quantidade | E9: Valor Unitário | F9: Data | G9: índice de atualização (nome) | H9: I0 | I9: If | J9: Variação acumulada do índice (%) | K9: Preço unitário atualizado | L9: Utilizar? (Sim/Não) | O9: Outliers | P9: Por critério do(a) analista
J10: =IF(ISBLANK(E10),"",IF(ISNUMBER(H10),(I10-H10)/H10,0)) ->  | K10: =IF(ISBLANK(E10),"",E10*(1+J10)) ->  | L10: =IF(ISNUMBER(K10),IF($L$32<>$P$9,O10,P10),"") ->  | O10: =IF(ISNUMBER(K10),IF(OR(K10<_xlfn.QUARTILE.INC($K$10:$K$29,1)-1.5*(_xlfn.QUARTILE.INC($K$10:K29,3)-_xlfn.QUARTILE.INC($K$10:$K$29,1)),K10>_xlfn.QUARTILE.INC($K$10:$K$29,3)+1.5*(_xlfn.QUARTILE.INC($K$10:$K$29,3)-_xlfn.QUARTILE.INC($K$10:$K$29,1))),"Não","Sim"),"") -> 
J11: =IF(ISBLANK(E11),"",IF(ISNUMBER(H11),(I11-H11)/H11,0)) ->  | K11: =IF(ISBLANK(E11),"",E11*(1+J11)) ->  | O11: =IF(ISNUMBER(K11),IF(OR(K11<_xlfn.QUARTILE.INC($K$10:$K$29,1)-1.5*(_xlfn.QUARTILE.INC($K$10:K29,3)-_xlfn.QUARTILE.INC($K$10:$K$29,1)),K11>_xlfn.QUARTILE.INC($K$10:$K$29,3)+1.5*(_xlfn.QUARTILE.INC($K$10:$K$29,3)-_xlfn.QUARTILE.INC($K$10:$K$29,1))),"Não","Sim"),"") -> 
O12: =IF(ISNUMBER(K12),IF(OR(K12<_xlfn.QUARTILE.INC($K$10:$K$29,1)-1.5*(_xlfn.QUARTILE.INC($K$10:K30,3)-_xlfn.QUARTILE.INC($K$10:$K$29,1)),K12>_xlfn.QUARTILE.INC($K$10:$K$29,3)+1.5*(_xlfn.QUARTILE.INC($K$10:$K$29,3)-_xlfn.QUARTILE.INC($K$10:$K$29,1))),"Não","Sim"),"") -> 
O13: =IF(ISNUMBER(K13),IF(OR(K13<_xlfn.QUARTILE.INC($K$10:$K$29,1)-1.5*(_xlfn.QUARTILE.INC($K$10:K31,3)-_xlfn.QUARTILE.INC($K$10:$K$29,1)),K13>_xlfn.QUARTILE.INC($K$10:$K$29,3)+1.5*(_xlfn.QUARTILE.INC($K$10:$K$29,3)-_xlfn.QUARTILE.INC($K$10:$K$29,1))),"Não","Sim"),"") -> 
O14: =IF(ISNUMBER(K14),IF(OR(K14<_xlfn.QUARTILE.INC($K$10:$K$29,1)-1.5*(_xlfn.QUARTILE.INC($K$10:K32,3)-_xlfn.QUARTILE.INC($K$10:$K$29,1)),K14>_xlfn.QUARTILE.INC($K$10:$K$29,3)+1.5*(_xlfn.QUARTILE.INC($K$10:$K$29,3)-_xlfn.QUARTILE.INC($K$10:$K$29,1))),"Não","Sim"),"") -> 
O15: =IF(ISNUMBER(K15),IF(OR(K15<_xlfn.QUARTILE.INC($K$10:$K$29,1)-1.5*(_xlfn.QUARTILE.INC($K$10:K35,3)-_xlfn.QUARTILE.INC($K$10:$K$29,1)),K15>_xlfn.QUARTILE.INC($K$10:$K$29,3)+1.5*(_xlfn.QUARTILE.INC($K$10:$K$29,3)-_xlfn.QUARTILE.INC($K$10:$K$29,1))),"Não","Sim"),"") -> 
O16: =IF(ISNUMBER(K16),IF(OR(K16<_xlfn.QUARTILE.INC($K$10:$K$29,1)-1.5*(_xlfn.QUARTILE.INC($I$10:I37,3)-_xlfn.QUARTILE.INC($K$10:$K$29,1)),K16>_xlfn.QUARTILE.INC($K$10:$K$29,3)+1.5*(_xlfn.QUARTILE.INC($K$10:$K$29,3)-_xlfn.QUARTILE.INC($K$10:$K$29,1))),"Não","Sim"),"") -> 
B17: COTAÇÕES DE MERCADO | O17: Cotações
B18: Empresa | J18: Data | K18: Preço Unitário | L18: Utilizar? (Sim/Não) | O18: Outliers | P18: Por critério do(a) analista
B19: Amazon - https://www.amazon.com.br/Medidor-Press%C3%A3o-Bra%C3%A7o-Eletrico-Garantia/dp/B09L1L2V12/ref=asc_df_B09L1L2V12?mcid=fb4ff1a9adff3367bbbc901543ad3745&tag=googleshopp00-20&linkCode=df0&hvadid=709857204930&hvpos=&hvnetw=g&hvrand=1022160588793177548&hvpone=&hvptwo=&hvqmt=&hvdev=c&hvdvcmdl=&hvlocint=&hvlocphy=9198389&hvtargid=pla-1651119083753&psc=1&hvocijid=1022160588793177548-B09L1L2V12-&hvexpln=0&language=pt_BR | J19: 2026-04-28 | K19: 184.9 | L19: =IF(ISNUMBER(K19),IF($L$32=$O$18,O19,IF($L$32=$P$18,P19,"")),"") -> Sim | O19: =IF(ISNUMBER(K19),IF(OR(K19<_xlfn.QUARTILE.INC($K$10:$K$29,1)-1.5*(_xlfn.QUARTILE.INC($K$10:$K$29,3)-_xlfn.QUARTILE.INC($K$10:$K$29,1)),K19>_xlfn.QUARTILE.INC($K$10:$K$29,3)+1.5*(_xlfn.QUARTILE.INC($K$10:$K$29,3)-_xlfn.QUARTILE.INC($K$10:$K$29,1))),"Não","Sim"),"") -> Sim
B20: Drogasil - https://www.drogasil.com.br/aparelho-de-pressao-digital-de-braco-la800-g-tech-aparelho-de-pressao-digital-de-braco-g-tech-la800-713712.html?gad_source=1&gad_campaignid=17339191360&gbraid=0AAAAADod4VVQwQ90NZQI-0p0cJy81H-gh&gclid=CjwKCAjwtcHPBhADEiwAWo3sJgq8YNmqLF1LGJ_S59XZeLazv6WRsW4PmiRmfth6PoyMKEpWrFSFLBoCVjIQAvD_BwE | J20: 2026-04-28 | K20: 182.29 | L20: Sim | O20: Sim
B21: Cirurgica Saluta - https://www.cirurgicasalutar.com.br/aparelho-de-pressao-digital-de-braco-la800-g-tech?utm_source=Site&utm_medium=GoogleMerchant&utm_campaign=GoogleMerchant&utm_campaign=APARELHOS&gad_source=1&gad_campaignid=23693078041&gbraid=0AAAAADEA62igI-y8s0gresymEwQ0ls_Ds&gclid=CjwKCAjwtcHPBhADEiwAWo3sJl5a4t-_4a2r2f-kc_ZedvIadpHgvs1mhYX8I48V6-BGzgcWdCGTWRoCFX4QAvD_BwE | J21: 2026-04-28 | K21: 135 | L21: Sim | O21: Sim
B30: Observações: | K30: Média: | L30: =IF($L$32="","Selecione metodologia para exclusão de preços",AVERAGE(IF($L$10:$L$29="Sim",$K$10:$K$29))) -> 167.3966667 | N30: Média (Cotações) | O30: =IF(COUNTIF(O19:O29,"Sim")<3,"N/D (são necessários pelo menos 3 preços)",AVERAGE(IF(O19:O29="Sim",$K19:$K29))) -> 167.3966667 | P30: =IF(COUNTIF(P19:P29,"Sim")<3,"N/D (são necessários pelo menos 3 preços)",AVERAGE(IF(P19:P29="Sim",$K19:$K29))) -> N/D (são necessários pelo menos 3 preços)
K31: Mediana: | L31: =IF($L$32="","Selecione metodologia para exclusão de preços",MEDIAN(IF($L$10:$L$29="Sim",$K$10:$K$29))) -> 182.29 | N31: Mediana (Cotações) | O31: =IF(COUNTIF(O19:O29,"Sim")<3,"N/D (são necessários pelo menos 3 preços)",MEDIAN(IF(O19:O29="Sim",$K19:$K29))) -> 182.29 | P31: =IF(COUNTIF(P19:P29,"Sim")<3,"N/D (são necessários pelo menos 3 preços)",MEDIAN(IF(P19:P29="Sim",$K19:$K29))) -> N/D (são necessários pelo menos 3 preços)
B32: Metodologia de exclusão de preços adotada: | L32: =IF(O35="",INDEX(O18:P18,MATCH(MIN(#REF!),#REF!,0)),O35) -> Outliers | N32: CV (Cotações) | O32: =IF(COUNTIF(O19:O29,"Sim")<3,"N/D (são necessários pelo menos 3 preços)",_xlfn.STDEV.S(IF(O19:O29="Sim",$K19:$K29))/AVERAGE(IF(O19:O29="Sim",$K19:$K29))) -> 0.1677851213 | P32: =IF(COUNTIF(P19:P29,"Sim")<3,"N/D (são necessários pelo menos 3 preços)",_xlfn.STDEV.S(IF(P19:P29="Sim",$K19:$K29))/AVERAGE(IF(P19:P29="Sim",$K19:$K29))) -> N/D (são necessários pelo menos 3 preços)
N33: Média | O33: =IF(SUM(COUNTIF($O$10:$O$16,"Sim")) + SUM(COUNTIF(O19:O29,"Sim")) < 3, "N/D (são necessários pelo menos 3 preços)", IFERROR(AVERAGE(_xlfn._xlws.FILTER($K$10:$K$16,$O$10:$O$16="Sim"), _xlfn._xlws.FILTER($K$19:$K$29,O19:O29="Sim")),O30)) -> 167.3966667 | P33: =IF(SUM(COUNTIF($P$10:$P$16,"Sim")) + SUM(COUNTIF(P19:P29,"Sim")) < 3, "N/D (são necessários pelo menos 3 preços)", IFERROR(AVERAGE(_xlfn._xlws.FILTER($K$10:$K$16,$P$10:$P$16="Sim"), _xlfn._xlws.FILTER($K$19:$K$29,P19:P29="Sim")),P30)) -> N/D (são necessários pelo menos 3 preços)
N34: Mediana | O34: =IF(SUM(COUNTIF($O$10:$O$16,"Sim")) + SUM(COUNTIF(O19:O29,"Sim")) < 3, "N/D (são necessários pelo menos 3 preços)", IFERROR(MEDIAN(_xlfn._xlws.FILTER($K$10:$K$16,$O$10:$O$16="Sim"), _xlfn._xlws.FILTER($K$19:$K$29,O19:O29="Sim")),O31)) -> 182.29 | P34: =IF(SUM(COUNTIF($P10:$P$16,"Sim")) + SUM(COUNTIF(P19:P29,"Sim")) < 3, "N/D (são necessários pelo menos 3 preços)", IFERROR(MEDIAN(_xlfn._xlws.FILTER($K$10:$K$16,$P$10:$P$16="Sim"), _xlfn._xlws.FILTER($K$19:$K$29,P19:P29="Sim")),P31)) -> N/D (são necessários pelo menos 3 preços)
B35: COSOLIDAÇÃO DOS PREÇOS | N35: Metodologia a adotar: | O35: =IF(INDEX(O18:P18,P35)=0,"",INDEX(O18:P18,P35)) -> Outliers | P35: 1
B37: PREÇO UNITÁRIO ESTIMADO ADOTADO: | L37: =IF($B$39="Mediana:",L31,L30) -> 167.3966667
A39: =O18 -> Outliers | B39: Média:

Sheet Pinça (hidden)
B2: Processo
B3: Responsável
B4: Área de Origem
B5: Data da pesquisa
B7: ITEM: | C7: PINÇA DISSECÇÃO 16cm, sem dente | I7: UNIDADE DE MEDIDA: | J7: Unidade | K7: QUANTIDADE: | L7: 2 | O7: Tabela auxiliar de metodologias para exclusão de preços
B8: LICITAÇÕES ANTERIORES | O8: Licitações Anteriores
B9: Órgão | C9: Edital/Ano - Nº do Lote / Item | D9: Quantidade | E9: Valor Unitário | F9: Data | G9: índice de atualização (nome) | H9: I0 | I9: If | J9: Variação acumulada do índice (%) | K9: Preço unitário atualizado | L9: Utilizar? (Sim/Não) | O9: Outliers | P9: Por critério do(a) analista
J10: =IF(ISBLANK(E10),"",IF(ISNUMBER(H10),(I10-H10)/H10,0)) ->  | K10: =IF(ISBLANK(E10),"",E10*(1+J10)) ->  | L10: =IF(ISNUMBER(K10),IF($L$32<>$P$9,O10,P10),"") ->  | O10: =IF(ISNUMBER(K10),IF(OR(K10<_xlfn.QUARTILE.INC($K$10:$K$29,1)-1.5*(_xlfn.QUARTILE.INC($K$10:K29,3)-_xlfn.QUARTILE.INC($K$10:$K$29,1)),K10>_xlfn.QUARTILE.INC($K$10:$K$29,3)+1.5*(_xlfn.QUARTILE.INC($K$10:$K$29,3)-_xlfn.QUARTILE.INC($K$10:$K$29,1))),"Não","Sim"),"") -> 
J11: =IF(ISBLANK(E11),"",IF(ISNUMBER(H11),(I11-H11)/H11,0)) ->  | K11: =IF(ISBLANK(E11),"",E11*(1+J11)) ->  | O11: =IF(ISNUMBER(K11),IF(OR(K11<_xlfn.QUARTILE.INC($K$10:$K$29,1)-1.5*(_xlfn.QUARTILE.INC($K$10:K29,3)-_xlfn.QUARTILE.INC($K$10:$K$29,1)),K11>_xlfn.QUARTILE.INC($K$10:$K$29,3)+1.5*(_xlfn.QUARTILE.INC($K$10:$K$29,3)-_xlfn.QUARTILE.INC($K$10:$K$29,1))),"Não","Sim"),"") -> 
O12: =IF(ISNUMBER(K12),IF(OR(K12<_xlfn.QUARTILE.INC($K$10:$K$29,1)-1.5*(_xlfn.QUARTILE.INC($K$10:K30,3)-_xlfn.QUARTILE.INC($K$10:$K$29,1)),K12>_xlfn.QUARTILE.INC($K$10:$K$29,3)+1.5*(_xlfn.QUARTILE.INC($K$10:$K$29,3)-_xlfn.QUARTILE.INC($K$10:$K$29,1))),"Não","Sim"),"") -> 
O13: =IF(ISNUMBER(K13),IF(OR(K13<_xlfn.QUARTILE.INC($K$10:$K$29,1)-1.5*(_xlfn.QUARTILE.INC($K$10:K31,3)-_xlfn.QUARTILE.INC($K$10:$K$29,1)),K13>_xlfn.QUARTILE.INC($K$10:$K$29,3)+1.5*(_xlfn.QUARTILE.INC($K$10:$K$29,3)-_xlfn.QUARTILE.INC($K$10:$K$29,1))),"Não","Sim"),"") -> 
O14: =IF(ISNUMBER(K14),IF(OR(K14<_xlfn.QUARTILE.INC($K$10:$K$29,1)-1.5*(_xlfn.QUARTILE.INC($K$10:K32,3)-_xlfn.QUARTILE.INC($K$10:$K$29,1)),K14>_xlfn.QUARTILE.INC($K$10:$K$29,3)+1.5*(_xlfn.QUARTILE.INC($K$10:$K$29,3)-_xlfn.QUARTILE.INC($K$10:$K$29,1))),"Não","Sim"),"") -> 
O15: =IF(ISNUMBER(K15),IF(OR(K15<_xlfn.QUARTILE.INC($K$10:$K$29,1)-1.5*(_xlfn.QUARTILE.INC($K$10:K35,3)-_xlfn.QUARTILE.INC($K$10:$K$29,1)),K15>_xlfn.QUARTILE.INC($K$10:$K$29,3)+1.5*(_xlfn.QUARTILE.INC($K$10:$K$29,3)-_xlfn.QUARTILE.INC($K$10:$K$29,1))),"Não","Sim"),"") -> 
O16: =IF(ISNUMBER(K16),IF(OR(K16<_xlfn.QUARTILE.INC($K$10:$K$29,1)-1.5*(_xlfn.QUARTILE.INC($I$10:I37,3)-_xlfn.QUARTILE.INC($K$10:$K$29,1)),K16>_xlfn.QUARTILE.INC($K$10:$K$29,3)+1.5*(_xlfn.QUARTILE.INC($K$10:$K$29,3)-_xlfn.QUARTILE.INC($K$10:$K$29,1))),"Não","Sim"),"") -> 
B17: COTAÇÕES DE MERCADO | O17: Cotações
B18: Empresa | J18: Data | K18: Preço Unitário | L18: Utilizar? (Sim/Não) | O18: Outliers | P18: Por critério do(a) analista
B19: https://magazinemedica.com.br/produtos/visualiza/sku/5759/?gad_source=1&gad_campaignid=23257119241&gbraid=0AAAAA-LLl3TiEu2y6MTx5T-rxpkRQzg3F&gclid=Cj0KCQjw2MbPBhCSARIsAP3jP9wwWwca-A9KbErYbTpUBVfOSjP33Y0olQwLkaOluM8oLpL_N-N4qbwaAmhfEALw_wcB | J19: 2026-04-29 | K19: 26.59 | L19: =IF(ISNUMBER(K19),IF($L$32=$O$18,O19,IF($L$32=$P$18,P19,"")),"") -> Sim | O19: =IF(ISNUMBER(K19),IF(OR(K19<_xlfn.QUARTILE.INC($K$10:$K$29,1)-1.5*(_xlfn.QUARTILE.INC($K$10:$K$29,3)-_xlfn.QUARTILE.INC($K$10:$K$29,1)),K19>_xlfn.QUARTILE.INC($K$10:$K$29,3)+1.5*(_xlfn.QUARTILE.INC($K$10:$K$29,3)-_xlfn.QUARTILE.INC($K$10:$K$29,1))),"Não","Sim"),"") -> Sim
B20: https://www.utilidadesclinicas.com.br/pinca-anatomica-disseccao-16cm-golgran-gol29182a.html?gad_source=1&gad_campaignid=23293178041&gbraid=0AAAAADbsX55cW2hxy3rYGY1ROEcSPZ4ZI&gclid=Cj0KCQjw2MbPBhCSARIsAP3jP9wppaEuLUDdFQE8lcYGH24AVbVMvN-leGCRYDTaFfRTLowrBFahImIaAs-XEALw_wcB | J20: 2026-04-29 | K20: 23.9 | L20: Sim | O20: Sim
B21: https://loja.tiradentessaude.com.br/pinca-anatomica-disseccao-16cm-abc?utm_source=Site&utm_medium=GoogleMerchant&utm_campaign=GoogleMerchant&gad_source=1&gad_campaignid=22966086396&gbraid=0AAAAApCctQ8A7WZ9f31Kn608fgxLFG-r-&gclid=Cj0KCQjw2MbPBhCSARIsAP3jP9yST3L3Z69vPm9BUaTsBQ4ZnnqHZtJwno0sqsVXWhMdFYjX8TaFzd8aAmbdEALw_wcB | J21: 2026-04-29 | K21: 19.95 | L21: Sim | O21: Sim
B30: Observações: | K30: Média: | L30: =IF($L$32="","Selecione metodologia para exclusão de preços",AVERAGE(IF($L$10:$L$29="Sim",$K$10:$K$29))) -> 23.48 | N30: Média (Cotações) | O30: =IF(COUNTIF(O19:O29,"Sim")<3,"N/D (são necessários pelo menos 3 preços)",AVERAGE(IF(O19:O29="Sim",$K19:$K29))) -> 23.48 | P30: =IF(COUNTIF(P19:P29,"Sim")<3,"N/D (são necessários pelo menos 3 preços)",AVERAGE(IF(P19:P29="Sim",$K19:$K29))) -> N/D (são necessários pelo menos 3 preços)
K31: Mediana: | L31: =IF($L$32="","Selecione metodologia para exclusão de preços",MEDIAN(IF($L$10:$L$29="Sim",$K$10:$K$29))) -> 23.9 | N31: Mediana (Cotações) | O31: =IF(COUNTIF(O19:O29,"Sim")<3,"N/D (são necessários pelo menos 3 preços)",MEDIAN(IF(O19:O29="Sim",$K19:$K29))) -> 23.9 | P31: =IF(COUNTIF(P19:P29,"Sim")<3,"N/D (são necessários pelo menos 3 preços)",MEDIAN(IF(P19:P29="Sim",$K19:$K29))) -> N/D (são necessários pelo menos 3 preços)
B32: Metodologia de exclusão de preços adotada: | L32: =IF(O35="",INDEX(O18:P18,MATCH(MIN(#REF!),#REF!,0)),O35) -> Outliers | N32: CV (Cotações) | O32: =IF(COUNTIF(O19:O29,"Sim")<3,"N/D (são necessários pelo menos 3 preços)",_xlfn.STDEV.S(IF(O19:O29="Sim",$K19:$K29))/AVERAGE(IF(O19:O29="Sim",$K19:$K29))) -> 0.1422429841 | P32: =IF(COUNTIF(P19:P29,"Sim")<3,"N/D (são necessários pelo menos 3 preços)",_xlfn.STDEV.S(IF(P19:P29="Sim",$K19:$K29))/AVERAGE(IF(P19:P29="Sim",$K19:$K29))) -> N/D (são necessários pelo menos 3 preços)
N33: Média | O33: =IF(SUM(COUNTIF($O$10:$O$16,"Sim")) + SUM(COUNTIF(O19:O29,"Sim")) < 3, "N/D (são necessários pelo menos 3 preços)", IFERROR(AVERAGE(_xlfn._xlws.FILTER($K$10:$K$16,$O$10:$O$16="Sim"), _xlfn._xlws.FILTER($K$19:$K$29,O19:O29="Sim")),O30)) -> 23.48 | P33: =IF(SUM(COUNTIF($P$10:$P$16,"Sim")) + SUM(COUNTIF(P19:P29,"Sim")) < 3, "N/D (são necessários pelo menos 3 preços)", IFERROR(AVERAGE(_xlfn._xlws.FILTER($K$10:$K$16,$P$10:$P$16="Sim"), _xlfn._xlws.FILTER($K$19:$K$29,P19:P29="Sim")),P30)) -> N/D (são necessários pelo menos 3 preços)
N34: Mediana | O34: =IF(SUM(COUNTIF($O$10:$O$16,"Sim")) + SUM(COUNTIF(O19:O29,"Sim")) < 3, "N/D (são necessários pelo menos 3 preços)", IFERROR(MEDIAN(_xlfn._xlws.FILTER($K$10:$K$16,$O$10:$O$16="Sim"), _xlfn._xlws.FILTER($K$19:$K$29,O19:O29="Sim")),O31)) -> 23.9 | P34: =IF(SUM(COUNTIF($P10:$P$16,"Sim")) + SUM(COUNTIF(P19:P29,"Sim")) < 3, "N/D (são necessários pelo menos 3 preços)", IFERROR(MEDIAN(_xlfn._xlws.FILTER($K$10:$K$16,$P$10:$P$16="Sim"), _xlfn._xlws.FILTER($K$19:$K$29,P19:P29="Sim")),P31)) -> N/D (são necessários pelo menos 3 preços)
B35: COSOLIDAÇÃO DOS PREÇOS | N35: Metodologia a adotar: | O35: =IF(INDEX(O18:P18,P35)=0,"",INDEX(O18:P18,P35)) -> Outliers | P35: 1
B37: PREÇO UNITÁRIO ESTIMADO ADOTADO: | L37: =IF($B$39="Mediana:",L31,L30) -> 23.48
A39: =O18 -> Outliers | B39: Média:

Sheet Prancha (hidden)
B2: Processo
B3: Responsável
B4: Área de Origem
B5: Data da pesquisa
B7: ITEM: | C7: PRANCHA longa de madeira ou material similar resistência (190cm x 45cm) com imobilizador lateral de cabeça confeccionado em espuma injetada e com tirantes para fixação da testa e queixo e cinto aranha. | I7: UNIDADE DE MEDIDA: | K7: QUANTIDADE: | O7: Tabela auxiliar de metodologias para exclusão de preços
B8: LICITAÇÕES ANTERIORES | O8: Licitações Anteriores
B9: Órgão | C9: Edital/Ano - Nº do Lote / Item | D9: Quantidade | E9: Valor Unitário | F9: Data | G9: índice de atualização (nome) | H9: I0 | I9: If | J9: Variação acumulada do índice (%) | K9: Preço unitário atualizado | L9: Utilizar? (Sim/Não) | O9: Outliers | P9: Por critério do(a) analista
J10: =IF(ISBLANK(E10),"",IF(ISNUMBER(H10),(I10-H10)/H10,0)) ->  | K10: =IF(ISBLANK(E10),"",E10*(1+J10)) ->  | L10: =IF(ISNUMBER(K10),IF($L$32<>$P$9,O10,P10),"") ->  | O10: =IF(ISNUMBER(K10),IF(OR(K10<_xlfn.QUARTILE.INC($K$10:$K$29,1)-1.5*(_xlfn.QUARTILE.INC($K$10:K29,3)-_xlfn.QUARTILE.INC($K$10:$K$29,1)),K10>_xlfn.QUARTILE.INC($K$10:$K$29,3)+1.5*(_xlfn.QUARTILE.INC($K$10:$K$29,3)-_xlfn.QUARTILE.INC($K$10:$K$29,1))),"Não","Sim"),"") -> 
J11: =IF(ISBLANK(E11),"",IF(ISNUMBER(H11),(I11-H11)/H11,0)) ->  | K11: =IF(ISBLANK(E11),"",E11*(1+J11)) ->  | O11: =IF(ISNUMBER(K11),IF(OR(K11<_xlfn.QUARTILE.INC($K$10:$K$29,1)-1.5*(_xlfn.QUARTILE.INC($K$10:K29,3)-_xlfn.QUARTILE.INC($K$10:$K$29,1)),K11>_xlfn.QUARTILE.INC($K$10:$K$29,3)+1.5*(_xlfn.QUARTILE.INC($K$10:$K$29,3)-_xlfn.QUARTILE.INC($K$10:$K$29,1))),"Não","Sim"),"") -> 
O12: =IF(ISNUMBER(K12),IF(OR(K12<_xlfn.QUARTILE.INC($K$10:$K$29,1)-1.5*(_xlfn.QUARTILE.INC($K$10:K30,3)-_xlfn.QUARTILE.INC($K$10:$K$29,1)),K12>_xlfn.QUARTILE.INC($K$10:$K$29,3)+1.5*(_xlfn.QUARTILE.INC($K$10:$K$29,3)-_xlfn.QUARTILE.INC($K$10:$K$29,1))),"Não","Sim"),"") -> 
O13: =IF(ISNUMBER(K13),IF(OR(K13<_xlfn.QUARTILE.INC($K$10:$K$29,1)-1.5*(_xlfn.QUARTILE.INC($K$10:K31,3)-_xlfn.QUARTILE.INC($K$10:$K$29,1)),K13>_xlfn.QUARTILE.INC($K$10:$K$29,3)+1.5*(_xlfn.QUARTILE.INC($K$10:$K$29,3)-_xlfn.QUARTILE.INC($K$10:$K$29,1))),"Não","Sim"),"") -> 
O14: =IF(ISNUMBER(K14),IF(OR(K14<_xlfn.QUARTILE.INC($K$10:$K$29,1)-1.5*(_xlfn.QUARTILE.INC($K$10:K32,3)-_xlfn.QUARTILE.INC($K$10:$K$29,1)),K14>_xlfn.QUARTILE.INC($K$10:$K$29,3)+1.5*(_xlfn.QUARTILE.INC($K$10:$K$29,3)-_xlfn.QUARTILE.INC($K$10:$K$29,1))),"Não","Sim"),"") -> 
O15: =IF(ISNUMBER(K15),IF(OR(K15<_xlfn.QUARTILE.INC($K$10:$K$29,1)-1.5*(_xlfn.QUARTILE.INC($K$10:K35,3)-_xlfn.QUARTILE.INC($K$10:$K$29,1)),K15>_xlfn.QUARTILE.INC($K$10:$K$29,3)+1.5*(_xlfn.QUARTILE.INC($K$10:$K$29,3)-_xlfn.QUARTILE.INC($K$10:$K$29,1))),"Não","Sim"),"") -> 
O16: =IF(ISNUMBER(K16),IF(OR(K16<_xlfn.QUARTILE.INC($K$10:$K$29,1)-1.5*(_xlfn.QUARTILE.INC($I$10:I37,3)-_xlfn.QUARTILE.INC($K$10:$K$29,1)),K16>_xlfn.QUARTILE.INC($K$10:$K$29,3)+1.5*(_xlfn.QUARTILE.INC($K$10:$K$29,3)-_xlfn.QUARTILE.INC($K$10:$K$29,1))),"Não","Sim"),"") -> 
B17: COTAÇÕES DE MERCADO | O17: Cotações
B18: Empresa | J18: Data | K18: Preço Unitário | L18: Utilizar? (Sim/Não) | O18: Outliers | P18: Por critério do(a) analista
B19: Mercado Livre - https://produto.mercadolivre.com.br/MLB-6004870802-prancha-em-polietileno-imobilizador-de-cabeca-resgate-aph-_JM?matt_tool=41970894&matt_word=&matt_source=google&matt_campaign_id=22090193723&matt_ad_group_id=194474622434&matt_match_type=&matt_network=g&matt_device=c&matt_creative=792355615185&matt_keyword=&matt_ad_position=&matt_ad_type=pla&matt_merchant_id=5640180053&matt_product_id=MLB6004870802&matt_product_partition_id=2452780200222&matt_target_id=pla-2452780200222&cq_src=google_ads&cq_cmp=22090193723&cq_net=g&cq_plt=gp&cq_med=pla&gad_source=1&gad_campaignid=22090193723&gbraid=0AAAAAD93qcAqfjg2bVqt9F1DOVt_W5yW4&gclid=CjwKCAjwtcHPBhADEiwAWo3sJs1XEf2DP-PdMvDee55REHks_PeA_u5Gmyw6tI8xe5oigFyWOxYUbxoCwy0QAvD_BwE | J19: 2026-04-28 | K19: 540 | L19: =IF(ISNUMBER(K19),IF($L$32=$O$18,O19,IF($L$32=$P$18,P19,"")),"") -> Sim | O19: =IF(ISNUMBER(K19),IF(OR(K19<_xlfn.QUARTILE.INC($K$10:$K$29,1)-1.5*(_xlfn.QUARTILE.INC($K$10:$K$29,3)-_xlfn.QUARTILE.INC($K$10:$K$29,1)),K19>_xlfn.QUARTILE.INC($K$10:$K$29,3)+1.5*(_xlfn.QUARTILE.INC($K$10:$K$29,3)-_xlfn.QUARTILE.INC($K$10:$K$29,1))),"Não","Sim"),"") -> Sim
B20: Mercado Livre - https://www.mercadolivre.com.br/prancha-de-resgate-com-kit-cinto--imobilizador-de-cabeca/up/MLBU603492234?pdp_filters=item_id%3AMLB2834904910&from=gshop&matt_tool=41970894&matt_word=&matt_source=google&matt_campaign_id=22090193723&matt_ad_group_id=194474622434&matt_match_type=&matt_network=g&matt_device=c&matt_creative=792355615185&matt_keyword=&matt_ad_position=&matt_ad_type=pla&matt_merchant_id=399414265&matt_product_id=MLBU603492234&matt_product_partition_id=2452780200222&matt_target_id=pla-2452780200222&cq_src=google_ads&cq_cmp=22090193723&cq_net=g&cq_plt=gp&cq_med=pla&gad_source=1&gad_campaignid=22090193723&gbraid=0AAAAAD93qcAqfjg2bVqt9F1DOVt_W5yW4&gclid=CjwKCAjwtcHPBhADEiwAWo3sJppjg_264-vmxOiiL4esIqMnd1m2W1daUIezh4Fb38cR92b1VMi3dRoC-TYQAvD_BwE | J20: 2026-04-28 | K20: 635 | L20: Sim | O20: Sim
B21: Mercado Livre - https://www.mercadolivre.com.br/prancha-em-polietileno-adulto--imobilizador-cabeca/up/MLBU606297926?pdp_filters=item_id%3AMLB3438766759&from=gshop&matt_tool=41970894&matt_word=&matt_source=google&matt_campaign_id=22090193723&matt_ad_group_id=194474622474&matt_match_type=&matt_network=g&matt_device=c&matt_creative=792355615188&matt_keyword=&matt_ad_position=&matt_ad_type=pla&matt_merchant_id=347834209&matt_product_id=MLBU606297926&matt_product_partition_id=2452780200422&matt_target_id=pla-2452780200422&cq_src=google_ads&cq_cmp=22090193723&cq_net=g&cq_plt=gp&cq_med=pla&gad_source=1&gad_campaignid=22090193723&gbraid=0AAAAAD93qcAqfjg2bVqt9F1DOVt_W5yW4&gclid=CjwKCAjwtcHPBhADEiwAWo3sJkbJ-YAeXInDxilL9jUXU6bWCcXQqEuQBejkPdobaJeUEREYuGsSXBoCPhMQAvD_BwE | J21: 2026-04-28 | K21: 600 | L21: Sim | O21: Sim
B30: Observações: | K30: Média: | L30: =IF($L$32="","Selecione metodologia para exclusão de preços",AVERAGE(IF($L$10:$L$29="Sim",$K$10:$K$29))) -> 591.6666667 | N30: Média (Cotações) | O30: =IF(COUNTIF(O19:O29,"Sim")<3,"N/D (são necessários pelo menos 3 preços)",AVERAGE(IF(O19:O29="Sim",$K19:$K29))) -> 591.6666667 | P30: =IF(COUNTIF(P19:P29,"Sim")<3,"N/D (são necessários pelo menos 3 preços)",AVERAGE(IF(P19:P29="Sim",$K19:$K29))) -> N/D (são necessários pelo menos 3 preços)
K31: Mediana: | L31: =IF($L$32="","Selecione metodologia para exclusão de preços",MEDIAN(IF($L$10:$L$29="Sim",$K$10:$K$29))) -> 600 | N31: Mediana (Cotações) | O31: =IF(COUNTIF(O19:O29,"Sim")<3,"N/D (são necessários pelo menos 3 preços)",MEDIAN(IF(O19:O29="Sim",$K19:$K29))) -> 600 | P31: =IF(COUNTIF(P19:P29,"Sim")<3,"N/D (são necessários pelo menos 3 preços)",MEDIAN(IF(P19:P29="Sim",$K19:$K29))) -> N/D (são necessários pelo menos 3 preços)
B32: Metodologia de exclusão de preços adotada: | L32: =IF(O35="",INDEX(O18:P18,MATCH(MIN(#REF!),#REF!,0)),O35) -> Outliers | N32: CV (Cotações) | O32: =IF(COUNTIF(O19:O29,"Sim")<3,"N/D (são necessários pelo menos 3 preços)",_xlfn.STDEV.S(IF(O19:O29="Sim",$K19:$K29))/AVERAGE(IF(O19:O29="Sim",$K19:$K29))) -> 0.08120301581 | P32: =IF(COUNTIF(P19:P29,"Sim")<3,"N/D (são necessários pelo menos 3 preços)",_xlfn.STDEV.S(IF(P19:P29="Sim",$K19:$K29))/AVERAGE(IF(P19:P29="Sim",$K19:$K29))) -> N/D (são necessários pelo menos 3 preços)
N33: Média | O33: =IF(SUM(COUNTIF($O$10:$O$16,"Sim")) + SUM(COUNTIF(O19:O29,"Sim")) < 3, "N/D (são necessários pelo menos 3 preços)", IFERROR(AVERAGE(_xlfn._xlws.FILTER($K$10:$K$16,$O$10:$O$16="Sim"), _xlfn._xlws.FILTER($K$19:$K$29,O19:O29="Sim")),O30)) -> 591.6666667 | P33: =IF(SUM(COUNTIF($P$10:$P$16,"Sim")) + SUM(COUNTIF(P19:P29,"Sim")) < 3, "N/D (são necessários pelo menos 3 preços)", IFERROR(AVERAGE(_xlfn._xlws.FILTER($K$10:$K$16,$P$10:$P$16="Sim"), _xlfn._xlws.FILTER($K$19:$K$29,P19:P29="Sim")),P30)) -> N/D (são necessários pelo menos 3 preços)
N34: Mediana | O34: =IF(SUM(COUNTIF($O$10:$O$16,"Sim")) + SUM(COUNTIF(O19:O29,"Sim")) < 3, "N/D (são necessários pelo menos 3 preços)", IFERROR(MEDIAN(_xlfn._xlws.FILTER($K$10:$K$16,$O$10:$O$16="Sim"), _xlfn._xlws.FILTER($K$19:$K$29,O19:O29="Sim")),O31)) -> 600 | P34: =IF(SUM(COUNTIF($P10:$P$16,"Sim")) + SUM(COUNTIF(P19:P29,"Sim")) < 3, "N/D (são necessários pelo menos 3 preços)", IFERROR(MEDIAN(_xlfn._xlws.FILTER($K$10:$K$16,$P$10:$P$16="Sim"), _xlfn._xlws.FILTER($K$19:$K$29,P19:P29="Sim")),P31)) -> N/D (são necessários pelo menos 3 preços)
B35: COSOLIDAÇÃO DOS PREÇOS | N35: Metodologia a adotar: | O35: =IF(INDEX(O18:P18,P35)=0,"",INDEX(O18:P18,P35)) -> Outliers | P35: 1
B37: PREÇO UNITÁRIO ESTIMADO ADOTADO: | L37: =IF($B$39="Mediana:",L31,L30) -> 591.6666667
A39: =O18 -> Outliers | B39: Média:

Sheet Protetor queimadura (hidden)
B2: Processo
B3: Responsável
B4: Área de Origem
B5: Data da pesquisa
B7: ITEM: | C7: PROTETOR DE QUEIMADURAS E EVISCERAÇÕES | I7: UNIDADE DE MEDIDA: | J7: Unidade | K7: QUANTIDADE: | L7: 3 | O7: Tabela auxiliar de metodologias para exclusão de preços
B8: LICITAÇÕES ANTERIORES | O8: Licitações Anteriores
B9: Órgão | C9: Edital/Ano - Nº do Lote / Item | D9: Quantidade | E9: Valor Unitário | F9: Data | G9: índice de atualização (nome) | H9: I0 | I9: If | J9: Variação acumulada do índice (%) | K9: Preço unitário atualizado | L9: Utilizar? (Sim/Não) | O9: Outliers | P9: Por critério do(a) analista
J10: =IF(ISBLANK(E10),"",IF(ISNUMBER(H10),(I10-H10)/H10,0)) ->  | K10: =IF(ISBLANK(E10),"",E10*(1+J10)) ->  | L10: =IF(ISNUMBER(K10),IF($L$32<>$P$9,O10,P10),"") ->  | O10: =IF(ISNUMBER(K10),IF(OR(K10<_xlfn.QUARTILE.INC($K$10:$K$29,1)-1.5*(_xlfn.QUARTILE.INC($K$10:K29,3)-_xlfn.QUARTILE.INC($K$10:$K$29,1)),K10>_xlfn.QUARTILE.INC($K$10:$K$29,3)+1.5*(_xlfn.QUARTILE.INC($K$10:$K$29,3)-_xlfn.QUARTILE.INC($K$10:$K$29,1))),"Não","Sim"),"") -> 
J11: =IF(ISBLANK(E11),"",IF(ISNUMBER(H11),(I11-H11)/H11,0)) ->  | K11: =IF(ISBLANK(E11),"",E11*(1+J11)) ->  | O11: =IF(ISNUMBER(K11),IF(OR(K11<_xlfn.QUARTILE.INC($K$10:$K$29,1)-1.5*(_xlfn.QUARTILE.INC($K$10:K29,3)-_xlfn.QUARTILE.INC($K$10:$K$29,1)),K11>_xlfn.QUARTILE.INC($K$10:$K$29,3)+1.5*(_xlfn.QUARTILE.INC($K$10:$K$29,3)-_xlfn.QUARTILE.INC($K$10:$K$29,1))),"Não","Sim"),"") -> 
O12: =IF(ISNUMBER(K12),IF(OR(K12<_xlfn.QUARTILE.INC($K$10:$K$29,1)-1.5*(_xlfn.QUARTILE.INC($K$10:K30,3)-_xlfn.QUARTILE.INC($K$10:$K$29,1)),K12>_xlfn.QUARTILE.INC($K$10:$K$29,3)+1.5*(_xlfn.QUARTILE.INC($K$10:$K$29,3)-_xlfn.QUARTILE.INC($K$10:$K$29,1))),"Não","Sim"),"") -> 
O13: =IF(ISNUMBER(K13),IF(OR(K13<_xlfn.QUARTILE.INC($K$10:$K$29,1)-1.5*(_xlfn.QUARTILE.INC($K$10:K31,3)-_xlfn.QUARTILE.INC($K$10:$K$29,1)),K13>_xlfn.QUARTILE.INC($K$10:$K$29,3)+1.5*(_xlfn.QUARTILE.INC($K$10:$K$29,3)-_xlfn.QUARTILE.INC($K$10:$K$29,1))),"Não","Sim"),"") -> 
O14: =IF(ISNUMBER(K14),IF(OR(K14<_xlfn.QUARTILE.INC($K$10:$K$29,1)-1.5*(_xlfn.QUARTILE.INC($K$10:K32,3)-_xlfn.QUARTILE.INC($K$10:$K$29,1)),K14>_xlfn.QUARTILE.INC($K$10:$K$29,3)+1.5*(_xlfn.QUARTILE.INC($K$10:$K$29,3)-_xlfn.QUARTILE.INC($K$10:$K$29,1))),"Não","Sim"),"") -> 
O15: =IF(ISNUMBER(K15),IF(OR(K15<_xlfn.QUARTILE.INC($K$10:$K$29,1)-1.5*(_xlfn.QUARTILE.INC($K$10:K35,3)-_xlfn.QUARTILE.INC($K$10:$K$29,1)),K15>_xlfn.QUARTILE.INC($K$10:$K$29,3)+1.5*(_xlfn.QUARTILE.INC($K$10:$K$29,3)-_xlfn.QUARTILE.INC($K$10:$K$29,1))),"Não","Sim"),"") -> 
O16: =IF(ISNUMBER(K16),IF(OR(K16<_xlfn.QUARTILE.INC($K$10:$K$29,1)-1.5*(_xlfn.QUARTILE.INC($I$10:I37,3)-_xlfn.QUARTILE.INC($K$10:$K$29,1)),K16>_xlfn.QUARTILE.INC($K$10:$K$29,3)+1.5*(_xlfn.QUARTILE.INC($K$10:$K$29,3)-_xlfn.QUARTILE.INC($K$10:$K$29,1))),"Não","Sim"),"") -> 
B17: COTAÇÕES DE MERCADO | O17: Cotações
B18: Empresa | J18: Data | K18: Preço Unitário | L18: Utilizar? (Sim/Não) | O18: Outliers | P18: Por critério do(a) analista
B19: https://www.bisturi.com.br/protetor-queimaduras-evisceracoes-90x120-marimar/p?idsku=18279&utm_medium=JKLive&utm_source=-ga-JKLive&gad_source=1&gad_campaignid=23248896671&gbraid=0AAAAADMFrRV6It54JrSe6IOfc_VdL2J4m&gclid=Cj0KCQjw2MbPBhCSARIsAP3jP9wKAA8LlSTqTZG2XYi0pems4P-cwLWS4QmofCqLIlkCQcvIJwvorpMaAqI5EALw_wcB | J19: 2026-04-29 | K19: 10.9 | L19: =IF(ISNUMBER(K19),IF($L$32=$O$18,O19,IF($L$32=$P$18,P19,"")),"") -> Sim | O19: =IF(ISNUMBER(K19),IF(OR(K19<_xlfn.QUARTILE.INC($K$10:$K$29,1)-1.5*(_xlfn.QUARTILE.INC($K$10:$K$29,3)-_xlfn.QUARTILE.INC($K$10:$K$29,1)),K19>_xlfn.QUARTILE.INC($K$10:$K$29,3)+1.5*(_xlfn.QUARTILE.INC($K$10:$K$29,3)-_xlfn.QUARTILE.INC($K$10:$K$29,1))),"Não","Sim"),"") -> Sim
B20: https://www.drogasil.com.br/protetor-de-queimaduras-e-evisceracoes-90cmx120cm-unidade-1309957.html?gad_source=1&gad_campaignid=17339191360&gbraid=0AAAAADod4VUE_vV2qEYMM0s919XJmEYxo&gclid=Cj0KCQjw2MbPBhCSARIsAP3jP9z_RyKz5zPWvBU_szsDUuTRrLONMowT0HGax9epzothsw3y_P4hYZ4aArFtEALw_wcB | J20: 2026-04-29 | K20: 12.43 | L20: Sim | O20: Sim
B21: https://www.magazineluiza.com.br/protetor-de-queimaduras-e-evisceracoes-90cmx120cm-unidade-marimar/p/gk608dbaeb/cp/adsf/?&seller_id=bisturi&utm_source=google&utm_medium=cpc&utm_term=84444&utm_campaign=google_eco_per_ven_pla_all_sor_4p_all-products-0326&utm_content=&partner_id=84444&gclsrc=aw.ds&gad_source=1&gad_campaignid=18473140027&gbraid=0AAAAAD4zZmR0rlIDxIQORIQpC7Z7_84kU&gclid=Cj0KCQjw2MbPBhCSARIsAP3jP9yqBNmvQYCtiiiKDs4WQWHln_UxW-JsBUupRgmSzVNQWESaXkZcH8waAqcfEALw_wcB | J21: 2026-04-29 | K21: 13.08 | L21: Sim | O21: Sim
B30: Observações: | K30: Média: | L30: =IF($L$32="","Selecione metodologia para exclusão de preços",AVERAGE(IF($L$10:$L$29="Sim",$K$10:$K$29))) -> 12.13666667 | N30: Média (Cotações) | O30: =IF(COUNTIF(O19:O29,"Sim")<3,"N/D (são necessários pelo menos 3 preços)",AVERAGE(IF(O19:O29="Sim",$K19:$K29))) -> 12.13666667 | P30: =IF(COUNTIF(P19:P29,"Sim")<3,"N/D (são necessários pelo menos 3 preços)",AVERAGE(IF(P19:P29="Sim",$K19:$K29))) -> N/D (são necessários pelo menos 3 preços)
K31: Mediana: | L31: =IF($L$32="","Selecione metodologia para exclusão de preços",MEDIAN(IF($L$10:$L$29="Sim",$K$10:$K$29))) -> 12.43 | N31: Mediana (Cotações) | O31: =IF(COUNTIF(O19:O29,"Sim")<3,"N/D (são necessários pelo menos 3 preços)",MEDIAN(IF(O19:O29="Sim",$K19:$K29))) -> 12.43 | P31: =IF(COUNTIF(P19:P29,"Sim")<3,"N/D (são necessários pelo menos 3 preços)",MEDIAN(IF(P19:P29="Sim",$K19:$K29))) -> N/D (são necessários pelo menos 3 preços)
B32: Metodologia de exclusão de preços adotada: | L32: =IF(O35="",INDEX(O18:P18,MATCH(MIN(#REF!),#REF!,0)),O35) -> Outliers | N32: CV (Cotações) | O32: =IF(COUNTIF(O19:O29,"Sim")<3,"N/D (são necessários pelo menos 3 preços)",_xlfn.STDEV.S(IF(O19:O29="Sim",$K19:$K29))/AVERAGE(IF(O19:O29="Sim",$K19:$K29))) -> 0.09221733301 | P32: =IF(COUNTIF(P19:P29,"Sim")<3,"N/D (são necessários pelo menos 3 preços)",_xlfn.STDEV.S(IF(P19:P29="Sim",$K19:$K29))/AVERAGE(IF(P19:P29="Sim",$K19:$K29))) -> N/D (são necessários pelo menos 3 preços)
N33: Média | O33: =IF(SUM(COUNTIF($O$10:$O$16,"Sim")) + SUM(COUNTIF(O19:O29,"Sim")) < 3, "N/D (são necessários pelo menos 3 preços)", IFERROR(AVERAGE(_xlfn._xlws.FILTER($K$10:$K$16,$O$10:$O$16="Sim"), _xlfn._xlws.FILTER($K$19:$K$29,O19:O29="Sim")),O30)) -> 12.13666667 | P33: =IF(SUM(COUNTIF($P$10:$P$16,"Sim")) + SUM(COUNTIF(P19:P29,"Sim")) < 3, "N/D (são necessários pelo menos 3 preços)", IFERROR(AVERAGE(_xlfn._xlws.FILTER($K$10:$K$16,$P$10:$P$16="Sim"), _xlfn._xlws.FILTER($K$19:$K$29,P19:P29="Sim")),P30)) -> N/D (são necessários pelo menos 3 preços)
N34: Mediana | O34: =IF(SUM(COUNTIF($O$10:$O$16,"Sim")) + SUM(COUNTIF(O19:O29,"Sim")) < 3, "N/D (são necessários pelo menos 3 preços)", IFERROR(MEDIAN(_xlfn._xlws.FILTER($K$10:$K$16,$O$10:$O$16="Sim"), _xlfn._xlws.FILTER($K$19:$K$29,O19:O29="Sim")),O31)) -> 12.43 | P34: =IF(SUM(COUNTIF($P10:$P$16,"Sim")) + SUM(COUNTIF(P19:P29,"Sim")) < 3, "N/D (são necessários pelo menos 3 preços)", IFERROR(MEDIAN(_xlfn._xlws.FILTER($K$10:$K$16,$P$10:$P$16="Sim"), _xlfn._xlws.FILTER($K$19:$K$29,P19:P29="Sim")),P31)) -> N/D (são necessários pelo menos 3 preços)
B35: COSOLIDAÇÃO DOS PREÇOS | N35: Metodologia a adotar: | O35: =IF(INDEX(O18:P18,P35)=0,"",INDEX(O18:P18,P35)) -> Outliers | P35: 1
B37: PREÇO UNITÁRIO ESTIMADO ADOTADO: | L37: =IF($B$39="Mediana:",L31,L30) -> 12.13666667
A39: =O18 -> Outliers | B39: Média:

Sheet Soro (hidden)
B2: Processo
B3: Responsável
B4: Área de Origem
B5: Data da pesquisa
B7: ITEM: | C7: SOLUÇÃO FISIOLÓGICA 250ml | I7: UNIDADE DE MEDIDA: | J7: Unidade | K7: QUANTIDADE: | L7: 4 | O7: Tabela auxiliar de metodologias para exclusão de preços
B8: LICITAÇÕES ANTERIORES | O8: Licitações Anteriores
B9: Órgão | C9: Edital/Ano - Nº do Lote / Item | D9: Quantidade | E9: Valor Unitário | F9: Data | G9: índice de atualização (nome) | H9: I0 | I9: If | J9: Variação acumulada do índice (%) | K9: Preço unitário atualizado | L9: Utilizar? (Sim/Não) | O9: Outliers | P9: Por critério do(a) analista
J10: =IF(ISBLANK(E10),"",IF(ISNUMBER(H10),(I10-H10)/H10,0)) ->  | K10: =IF(ISBLANK(E10),"",E10*(1+J10)) ->  | L10: =IF(ISNUMBER(K10),IF($L$32<>$P$9,O10,P10),"") ->  | O10: =IF(ISNUMBER(K10),IF(OR(K10<_xlfn.QUARTILE.INC($K$10:$K$29,1)-1.5*(_xlfn.QUARTILE.INC($K$10:K29,3)-_xlfn.QUARTILE.INC($K$10:$K$29,1)),K10>_xlfn.QUARTILE.INC($K$10:$K$29,3)+1.5*(_xlfn.QUARTILE.INC($K$10:$K$29,3)-_xlfn.QUARTILE.INC($K$10:$K$29,1))),"Não","Sim"),"") -> 
J11: =IF(ISBLANK(E11),"",IF(ISNUMBER(H11),(I11-H11)/H11,0)) ->  | K11: =IF(ISBLANK(E11),"",E11*(1+J11)) ->  | O11: =IF(ISNUMBER(K11),IF(OR(K11<_xlfn.QUARTILE.INC($K$10:$K$29,1)-1.5*(_xlfn.QUARTILE.INC($K$10:K29,3)-_xlfn.QUARTILE.INC($K$10:$K$29,1)),K11>_xlfn.QUARTILE.INC($K$10:$K$29,3)+1.5*(_xlfn.QUARTILE.INC($K$10:$K$29,3)-_xlfn.QUARTILE.INC($K$10:$K$29,1))),"Não","Sim"),"") -> 
O12: =IF(ISNUMBER(K12),IF(OR(K12<_xlfn.QUARTILE.INC($K$10:$K$29,1)-1.5*(_xlfn.QUARTILE.INC($K$10:K30,3)-_xlfn.QUARTILE.INC($K$10:$K$29,1)),K12>_xlfn.QUARTILE.INC($K$10:$K$29,3)+1.5*(_xlfn.QUARTILE.INC($K$10:$K$29,3)-_xlfn.QUARTILE.INC($K$10:$K$29,1))),"Não","Sim"),"") -> 
O13: =IF(ISNUMBER(K13),IF(OR(K13<_xlfn.QUARTILE.INC($K$10:$K$29,1)-1.5*(_xlfn.QUARTILE.INC($K$10:K31,3)-_xlfn.QUARTILE.INC($K$10:$K$29,1)),K13>_xlfn.QUARTILE.INC($K$10:$K$29,3)+1.5*(_xlfn.QUARTILE.INC($K$10:$K$29,3)-_xlfn.QUARTILE.INC($K$10:$K$29,1))),"Não","Sim"),"") -> 
O14: =IF(ISNUMBER(K14),IF(OR(K14<_xlfn.QUARTILE.INC($K$10:$K$29,1)-1.5*(_xlfn.QUARTILE.INC($K$10:K32,3)-_xlfn.QUARTILE.INC($K$10:$K$29,1)),K14>_xlfn.QUARTILE.INC($K$10:$K$29,3)+1.5*(_xlfn.QUARTILE.INC($K$10:$K$29,3)-_xlfn.QUARTILE.INC($K$10:$K$29,1))),"Não","Sim"),"") -> 
O15: =IF(ISNUMBER(K15),IF(OR(K15<_xlfn.QUARTILE.INC($K$10:$K$29,1)-1.5*(_xlfn.QUARTILE.INC($K$10:K35,3)-_xlfn.QUARTILE.INC($K$10:$K$29,1)),K15>_xlfn.QUARTILE.INC($K$10:$K$29,3)+1.5*(_xlfn.QUARTILE.INC($K$10:$K$29,3)-_xlfn.QUARTILE.INC($K$10:$K$29,1))),"Não","Sim"),"") -> 
O16: =IF(ISNUMBER(K16),IF(OR(K16<_xlfn.QUARTILE.INC($K$10:$K$29,1)-1.5*(_xlfn.QUARTILE.INC($I$10:I37,3)-_xlfn.QUARTILE.INC($K$10:$K$29,1)),K16>_xlfn.QUARTILE.INC($K$10:$K$29,3)+1.5*(_xlfn.QUARTILE.INC($K$10:$K$29,3)-_xlfn.QUARTILE.INC($K$10:$K$29,1))),"Não","Sim"),"") -> 
B17: COTAÇÕES DE MERCADO | O17: Cotações
B18: Empresa | J18: Data | K18: Preço Unitário | L18: Utilizar? (Sim/Não) | O18: Outliers | P18: Por critério do(a) analista
B19: Utilidades Clínicas - https://www.utilidadesclinicas.com.br/soro-fisiologico-250ml-adv-farma-adv27244a.html?gad_source=1&gad_campaignid=23293178041&gbraid=0AAAAADbsX56okbpZeXevXb06wuvJY8YB9&gclid=CjwKCAjwtcHPBhADEiwAWo3sJtIYZXv-1M3No777qW5vkMRf-TY5SstaU_Afh2CGmlPsJl3N4OXpGxoCEbsQAvD_BwE | J19: 2026-04-28 | K19: 5.44 | L19: =IF(ISNUMBER(K19),IF($L$32=$O$18,O19,IF($L$32=$P$18,P19,"")),"") -> Sim | O19: =IF(ISNUMBER(K19),IF(OR(K19<_xlfn.QUARTILE.INC($K$10:$K$29,1)-1.5*(_xlfn.QUARTILE.INC($K$10:$K$29,3)-_xlfn.QUARTILE.INC($K$10:$K$29,1)),K19>_xlfn.QUARTILE.INC($K$10:$K$29,3)+1.5*(_xlfn.QUARTILE.INC($K$10:$K$29,3)-_xlfn.QUARTILE.INC($K$10:$K$29,1))),"Não","Sim"),"") -> Sim
B20: Dental Speed - https://www.dentalspeed.com/soro-fisiologico-250ml-adv-farma-adv27244a.html?gad_source=1&gad_campaignid=21250807156&gbraid=0AAAAAD1ZbgPDwMu_qAmzfyr2_4g1m3Rvt&gclid=CjwKCAjwtcHPBhADEiwAWo3sJqlWRVmQRvkoOrfHDTiGR_oWcm2CT0Ex1uKNSzOB_fKRMEmZL-7EShoCH7kQAvD_BwE | J20: 2026-04-28 | K20: 5.9 | L20: Sim | O20: Sim
B21: Rosário - https://www.drogariarosario.com.br/soro-fisiologico-adv-cloreto-sod-09-bico-dosado-250ml-adv/p?idsku=23100&utm_source=googleshopping&utm_source=google&utm_medium=cpc&utm_campaign=pmax.compras&gad_source=1&gad_campaignid=23733391099&gbraid=0AAAAACRP8ppLzCMuB8NsezORf5wBwIPCJ&gclid=CjwKCAjwtcHPBhADEiwAWo3sJpOwFYa2ZYEuDXKspudN_5Kod-F8Mpdc_PwoyPXW-knWHqIbOY_6nBoCzxwQAvD_BwE | J21: 2026-04-28 | K21: 6.99 | L21: Sim | O21: Sim
B30: Observações: | K30: Média: | L30: =IF($L$32="","Selecione metodologia para exclusão de preços",AVERAGE(IF($L$10:$L$29="Sim",$K$10:$K$29))) -> 6.11 | N30: Média (Cotações) | O30: =IF(COUNTIF(O19:O29,"Sim")<3,"N/D (são necessários pelo menos 3 preços)",AVERAGE(IF(O19:O29="Sim",$K19:$K29))) -> 6.11 | P30: =IF(COUNTIF(P19:P29,"Sim")<3,"N/D (são necessários pelo menos 3 preços)",AVERAGE(IF(P19:P29="Sim",$K19:$K29))) -> N/D (são necessários pelo menos 3 preços)
K31: Mediana: | L31: =IF($L$32="","Selecione metodologia para exclusão de preços",MEDIAN(IF($L$10:$L$29="Sim",$K$10:$K$29))) -> 5.9 | N31: Mediana (Cotações) | O31: =IF(COUNTIF(O19:O29,"Sim")<3,"N/D (são necessários pelo menos 3 preços)",MEDIAN(IF(O19:O29="Sim",$K19:$K29))) -> 5.9 | P31: =IF(COUNTIF(P19:P29,"Sim")<3,"N/D (são necessários pelo menos 3 preços)",MEDIAN(IF(P19:P29="Sim",$K19:$K29))) -> N/D (são necessários pelo menos 3 preços)
B32: Metodologia de exclusão de preços adotada: | L32: =IF(O35="",INDEX(O18:P18,MATCH(MIN(#REF!),#REF!,0)),O35) -> Outliers | N32: CV (Cotações) | O32: =IF(COUNTIF(O19:O29,"Sim")<3,"N/D (são necessários pelo menos 3 preços)",_xlfn.STDEV.S(IF(O19:O29="Sim",$K19:$K29))/AVERAGE(IF(O19:O29="Sim",$K19:$K29))) -> 0.1302868678 | P32: =IF(COUNTIF(P19:P29,"Sim")<3,"N/D (são necessários pelo menos 3 preços)",_xlfn.STDEV.S(IF(P19:P29="Sim",$K19:$K29))/AVERAGE(IF(P19:P29="Sim",$K19:$K29))) -> N/D (são necessários pelo menos 3 preços)
N33: Média | O33: =IF(SUM(COUNTIF($O$10:$O$16,"Sim")) + SUM(COUNTIF(O19:O29,"Sim")) < 3, "N/D (são necessários pelo menos 3 preços)", IFERROR(AVERAGE(_xlfn._xlws.FILTER($K$10:$K$16,$O$10:$O$16="Sim"), _xlfn._xlws.FILTER($K$19:$K$29,O19:O29="Sim")),O30)) -> 6.11 | P33: =IF(SUM(COUNTIF($P$10:$P$16,"Sim")) + SUM(COUNTIF(P19:P29,"Sim")) < 3, "N/D (são necessários pelo menos 3 preços)", IFERROR(AVERAGE(_xlfn._xlws.FILTER($K$10:$K$16,$P$10:$P$16="Sim"), _xlfn._xlws.FILTER($K$19:$K$29,P19:P29="Sim")),P30)) -> N/D (são necessários pelo menos 3 preços)
N34: Mediana | O34: =IF(SUM(COUNTIF($O$10:$O$16,"Sim")) + SUM(COUNTIF(O19:O29,"Sim")) < 3, "N/D (são necessários pelo menos 3 preços)", IFERROR(MEDIAN(_xlfn._xlws.FILTER($K$10:$K$16,$O$10:$O$16="Sim"), _xlfn._xlws.FILTER($K$19:$K$29,O19:O29="Sim")),O31)) -> 5.9 | P34: =IF(SUM(COUNTIF($P10:$P$16,"Sim")) + SUM(COUNTIF(P19:P29,"Sim")) < 3, "N/D (são necessários pelo menos 3 preços)", IFERROR(MEDIAN(_xlfn._xlws.FILTER($K$10:$K$16,$P$10:$P$16="Sim"), _xlfn._xlws.FILTER($K$19:$K$29,P19:P29="Sim")),P31)) -> N/D (são necessários pelo menos 3 preços)
B35: COSOLIDAÇÃO DOS PREÇOS | N35: Metodologia a adotar: | O35: =IF(INDEX(O18:P18,P35)=0,"",INDEX(O18:P18,P35)) -> Outliers | P35: 1
B37: PREÇO UNITÁRIO ESTIMADO ADOTADO: | L37: =IF($B$39="Mediana:",L31,L30) -> 5.9
A39: =O18 -> Outliers | B39: Mediana:

Sheet Tala (hidden)
B2: Processo
B3: Responsável
B4: Área de Origem
B5: Data da pesquisa
B7: ITEM: | C7: TALA moldável grande (86cmx10x2) | I7: UNIDADE DE MEDIDA: | J7: Unidade | K7: QUANTIDADE: | L7: 2 | O7: Tabela auxiliar de metodologias para exclusão de preços
B8: LICITAÇÕES ANTERIORES | O8: Licitações Anteriores
B9: Órgão | C9: Edital/Ano - Nº do Lote / Item | D9: Quantidade | E9: Valor Unitário | F9: Data | G9: índice de atualização (nome) | H9: I0 | I9: If | J9: Variação acumulada do índice (%) | K9: Preço unitário atualizado | L9: Utilizar? (Sim/Não) | O9: Outliers | P9: Por critério do(a) analista
J10: =IF(ISBLANK(E10),"",IF(ISNUMBER(H10),(I10-H10)/H10,0)) ->  | K10: =IF(ISBLANK(E10),"",E10*(1+J10)) ->  | L10: =IF(ISNUMBER(K10),IF($L$32<>$P$9,O10,P10),"") ->  | O10: =IF(ISNUMBER(K10),IF(OR(K10<_xlfn.QUARTILE.INC($K$10:$K$29,1)-1.5*(_xlfn.QUARTILE.INC($K$10:K29,3)-_xlfn.QUARTILE.INC($K$10:$K$29,1)),K10>_xlfn.QUARTILE.INC($K$10:$K$29,3)+1.5*(_xlfn.QUARTILE.INC($K$10:$K$29,3)-_xlfn.QUARTILE.INC($K$10:$K$29,1))),"Não","Sim"),"") -> 
J11: =IF(ISBLANK(E11),"",IF(ISNUMBER(H11),(I11-H11)/H11,0)) ->  | K11: =IF(ISBLANK(E11),"",E11*(1+J11)) ->  | O11: =IF(ISNUMBER(K11),IF(OR(K11<_xlfn.QUARTILE.INC($K$10:$K$29,1)-1.5*(_xlfn.QUARTILE.INC($K$10:K29,3)-_xlfn.QUARTILE.INC($K$10:$K$29,1)),K11>_xlfn.QUARTILE.INC($K$10:$K$29,3)+1.5*(_xlfn.QUARTILE.INC($K$10:$K$29,3)-_xlfn.QUARTILE.INC($K$10:$K$29,1))),"Não","Sim"),"") -> 
O12: =IF(ISNUMBER(K12),IF(OR(K12<_xlfn.QUARTILE.INC($K$10:$K$29,1)-1.5*(_xlfn.QUARTILE.INC($K$10:K30,3)-_xlfn.QUARTILE.INC($K$10:$K$29,1)),K12>_xlfn.QUARTILE.INC($K$10:$K$29,3)+1.5*(_xlfn.QUARTILE.INC($K$10:$K$29,3)-_xlfn.QUARTILE.INC($K$10:$K$29,1))),"Não","Sim"),"") -> 
O13: =IF(ISNUMBER(K13),IF(OR(K13<_xlfn.QUARTILE.INC($K$10:$K$29,1)-1.5*(_xlfn.QUARTILE.INC($K$10:K31,3)-_xlfn.QUARTILE.INC($K$10:$K$29,1)),K13>_xlfn.QUARTILE.INC($K$10:$K$29,3)+1.5*(_xlfn.QUARTILE.INC($K$10:$K$29,3)-_xlfn.QUARTILE.INC($K$10:$K$29,1))),"Não","Sim"),"") -> 
O14: =IF(ISNUMBER(K14),IF(OR(K14<_xlfn.QUARTILE.INC($K$10:$K$29,1)-1.5*(_xlfn.QUARTILE.INC($K$10:K32,3)-_xlfn.QUARTILE.INC($K$10:$K$29,1)),K14>_xlfn.QUARTILE.INC($K$10:$K$29,3)+1.5*(_xlfn.QUARTILE.INC($K$10:$K$29,3)-_xlfn.QUARTILE.INC($K$10:$K$29,1))),"Não","Sim"),"") -> 
O15: =IF(ISNUMBER(K15),IF(OR(K15<_xlfn.QUARTILE.INC($K$10:$K$29,1)-1.5*(_xlfn.QUARTILE.INC($K$10:K35,3)-_xlfn.QUARTILE.INC($K$10:$K$29,1)),K15>_xlfn.QUARTILE.INC($K$10:$K$29,3)+1.5*(_xlfn.QUARTILE.INC($K$10:$K$29,3)-_xlfn.QUARTILE.INC($K$10:$K$29,1))),"Não","Sim"),"") -> 
O16: =IF(ISNUMBER(K16),IF(OR(K16<_xlfn.QUARTILE.INC($K$10:$K$29,1)-1.5*(_xlfn.QUARTILE.INC($I$10:I37,3)-_xlfn.QUARTILE.INC($K$10:$K$29,1)),K16>_xlfn.QUARTILE.INC($K$10:$K$29,3)+1.5*(_xlfn.QUARTILE.INC($K$10:$K$29,3)-_xlfn.QUARTILE.INC($K$10:$K$29,1))),"Não","Sim"),"") -> 
B17: COTAÇÕES DE MERCADO | O17: Cotações
B18: Empresa | J18: Data | K18: Preço Unitário | L18: Utilizar? (Sim/Não) | O18: Outliers | P18: Por critério do(a) analista
B19: Bisturi - https://www.bisturi.com.br/marimar-tala-facil-g-verde/p?idsku=2623&utm_medium=ga-pmax&utm_source=ga-performacemax&gad_source=1&gad_campaignid=19859877295&gbraid=0AAAAADMFrRU8osHJcEEvRLZh6Jgyi0q2X&gclid=Cj0KCQjw2MbPBhCSARIsAP3jP9xtoLRl8rGOWKBgiifE1e2Kz7-3_P2I0dZOzxcbCifvVllZgOq9dnwaAtS1EALw_wcB | J19: 2026-04-29 | K19: 22 | L19: =IF(ISNUMBER(K19),IF($L$32=$O$18,O19,IF($L$32=$P$18,P19,"")),"") -> Sim | O19: =IF(ISNUMBER(K19),IF(OR(K19<_xlfn.QUARTILE.INC($K$10:$K$29,1)-1.5*(_xlfn.QUARTILE.INC($K$10:$K$29,3)-_xlfn.QUARTILE.INC($K$10:$K$29,1)),K19>_xlfn.QUARTILE.INC($K$10:$K$29,3)+1.5*(_xlfn.QUARTILE.INC($K$10:$K$29,3)-_xlfn.QUARTILE.INC($K$10:$K$29,1))),"Não","Sim"),"") -> Sim
B20: Magazine Médica - https://magazinemedica.com.br/produtos/visualiza/sku/2558/?gad_source=1&gad_campaignid=23257119241&gbraid=0AAAAA-LLl3TiEu2y6MTx5T-rxpkRQzg3F&gclid=Cj0KCQjw2MbPBhCSARIsAP3jP9xi42rmsNSLSMvc2blRJLlLCz7fEYTeVHZ3exgItuOiMG4oFFwhUnsaApbiEALw_wcB | J20: 2026-04-29 | K20: 28.14 | L20: Sim | O20: Sim
B21: Triomed - https://triomed.com.br/products/prod-tala-de-imobilizacao-aramada-em-eva-tam-g-resgate-s58?variant=46537895805169&country=BR&currency=BRL&utm_medium=product_sync&utm_source=google&utm_content=sag_organic&utm_campaign=sag_organic&gad_source=1&gad_campaignid=22849579101&gbraid=0AAAAABxBVVbd0j64HvsWIzhWN3f0fk5ZE&gclid=Cj0KCQjw2MbPBhCSARIsAP3jP9y-smNX7Jn73FUBUSGefNuWcVLzMtv5p1k_cOoK-d7d5j-gP3VmK40aArEgEALw_wcB | J21: 2026-04-29 | K21: 14.16 | L21: Sim | O21: Sim
B30: Observações: | K30: Média: | L30: =IF($L$32="","Selecione metodologia para exclusão de preços",AVERAGE(IF($L$10:$L$29="Sim",$K$10:$K$29))) -> 21.43333333 | N30: Média (Cotações) | O30: =IF(COUNTIF(O19:O29,"Sim")<3,"N/D (são necessários pelo menos 3 preços)",AVERAGE(IF(O19:O29="Sim",$K19:$K29))) -> 21.43333333 | P30: =IF(COUNTIF(P19:P29,"Sim")<3,"N/D (são necessários pelo menos 3 preços)",AVERAGE(IF(P19:P29="Sim",$K19:$K29))) -> N/D (são necessários pelo menos 3 preços)
K31: Mediana: | L31: =IF($L$32="","Selecione metodologia para exclusão de preços",MEDIAN(IF($L$10:$L$29="Sim",$K$10:$K$29))) -> 22 | N31: Mediana (Cotações) | O31: =IF(COUNTIF(O19:O29,"Sim")<3,"N/D (são necessários pelo menos 3 preços)",MEDIAN(IF(O19:O29="Sim",$K19:$K29))) -> 22 | P31: =IF(COUNTIF(P19:P29,"Sim")<3,"N/D (são necessários pelo menos 3 preços)",MEDIAN(IF(P19:P29="Sim",$K19:$K29))) -> N/D (são necessários pelo menos 3 preços)
B32: Metodologia de exclusão de preços adotada: | L32: =IF(O35="",INDEX(O18:P18,MATCH(MIN(#REF!),#REF!,0)),O35) -> Outliers | N32: CV (Cotações) | O32: =IF(COUNTIF(O19:O29,"Sim")<3,"N/D (são necessários pelo menos 3 preços)",_xlfn.STDEV.S(IF(O19:O29="Sim",$K19:$K29))/AVERAGE(IF(O19:O29="Sim",$K19:$K29))) -> 0.3269302869 | P32: =IF(COUNTIF(P19:P29,"Sim")<3,"N/D (são necessários pelo menos 3 preços)",_xlfn.STDEV.S(IF(P19:P29="Sim",$K19:$K29))/AVERAGE(IF(P19:P29="Sim",$K19:$K29))) -> N/D (são necessários pelo menos 3 preços)
N33: Média | O33: =IF(SUM(COUNTIF($O$10:$O$16,"Sim")) + SUM(COUNTIF(O19:O29,"Sim")) < 3, "N/D (são necessários pelo menos 3 preços)", IFERROR(AVERAGE(_xlfn._xlws.FILTER($K$10:$K$16,$O$10:$O$16="Sim"), _xlfn._xlws.FILTER($K$19:$K$29,O19:O29="Sim")),O30)) -> 21.43333333 | P33: =IF(SUM(COUNTIF($P$10:$P$16,"Sim")) + SUM(COUNTIF(P19:P29,"Sim")) < 3, "N/D (são necessários pelo menos 3 preços)", IFERROR(AVERAGE(_xlfn._xlws.FILTER($K$10:$K$16,$P$10:$P$16="Sim"), _xlfn._xlws.FILTER($K$19:$K$29,P19:P29="Sim")),P30)) -> N/D (são necessários pelo menos 3 preços)
N34: Mediana | O34: =IF(SUM(COUNTIF($O$10:$O$16,"Sim")) + SUM(COUNTIF(O19:O29,"Sim")) < 3, "N/D (são necessários pelo menos 3 preços)", IFERROR(MEDIAN(_xlfn._xlws.FILTER($K$10:$K$16,$O$10:$O$16="Sim"), _xlfn._xlws.FILTER($K$19:$K$29,O19:O29="Sim")),O31)) -> 22 | P34: =IF(SUM(COUNTIF($P10:$P$16,"Sim")) + SUM(COUNTIF(P19:P29,"Sim")) < 3, "N/D (são necessários pelo menos 3 preços)", IFERROR(MEDIAN(_xlfn._xlws.FILTER($K$10:$K$16,$P$10:$P$16="Sim"), _xlfn._xlws.FILTER($K$19:$K$29,P19:P29="Sim")),P31)) -> N/D (são necessários pelo menos 3 preços)
B35: COSOLIDAÇÃO DOS PREÇOS | N35: Metodologia a adotar: | O35: =IF(INDEX(O18:P18,P35)=0,"",INDEX(O18:P18,P35)) -> Outliers | P35: 1
B37: PREÇO UNITÁRIO ESTIMADO ADOTADO: | L37: =IF($B$39="Mediana:",L31,L30) -> 21.43333333
A39: =O18 -> Outliers | B39: Média:

Sheet Tala moldavel (hidden)
B2: Processo
B3: Responsável
B4: Área de Origem
B5: Data da pesquisa
B7: ITEM: | C7: TALA moldável média (63cmx9x2) | I7: UNIDADE DE MEDIDA: | J7: Unidade | K7: QUANTIDADE: | L7: 2 | O7: Tabela auxiliar de metodologias para exclusão de preços
B8: LICITAÇÕES ANTERIORES | O8: Licitações Anteriores
B9: Órgão | C9: Edital/Ano - Nº do Lote / Item | D9: Quantidade | E9: Valor Unitário | F9: Data | G9: índice de atualização (nome) | H9: I0 | I9: If | J9: Variação acumulada do índice (%) | K9: Preço unitário atualizado | L9: Utilizar? (Sim/Não) | O9: Outliers | P9: Por critério do(a) analista
J10: =IF(ISBLANK(E10),"",IF(ISNUMBER(H10),(I10-H10)/H10,0)) ->  | K10: =IF(ISBLANK(E10),"",E10*(1+J10)) ->  | L10: =IF(ISNUMBER(K10),IF($L$32<>$P$9,O10,P10),"") ->  | O10: =IF(ISNUMBER(K10),IF(OR(K10<_xlfn.QUARTILE.INC($K$10:$K$29,1)-1.5*(_xlfn.QUARTILE.INC($K$10:K29,3)-_xlfn.QUARTILE.INC($K$10:$K$29,1)),K10>_xlfn.QUARTILE.INC($K$10:$K$29,3)+1.5*(_xlfn.QUARTILE.INC($K$10:$K$29,3)-_xlfn.QUARTILE.INC($K$10:$K$29,1))),"Não","Sim"),"") -> 
J11: =IF(ISBLANK(E11),"",IF(ISNUMBER(H11),(I11-H11)/H11,0)) ->  | K11: =IF(ISBLANK(E11),"",E11*(1+J11)) ->  | O11: =IF(ISNUMBER(K11),IF(OR(K11<_xlfn.QUARTILE.INC($K$10:$K$29,1)-1.5*(_xlfn.QUARTILE.INC($K$10:K29,3)-_xlfn.QUARTILE.INC($K$10:$K$29,1)),K11>_xlfn.QUARTILE.INC($K$10:$K$29,3)+1.5*(_xlfn.QUARTILE.INC($K$10:$K$29,3)-_xlfn.QUARTILE.INC($K$10:$K$29,1))),"Não","Sim"),"") -> 
O12: =IF(ISNUMBER(K12),IF(OR(K12<_xlfn.QUARTILE.INC($K$10:$K$29,1)-1.5*(_xlfn.QUARTILE.INC($K$10:K30,3)-_xlfn.QUARTILE.INC($K$10:$K$29,1)),K12>_xlfn.QUARTILE.INC($K$10:$K$29,3)+1.5*(_xlfn.QUARTILE.INC($K$10:$K$29,3)-_xlfn.QUARTILE.INC($K$10:$K$29,1))),"Não","Sim"),"") -> 
O13: =IF(ISNUMBER(K13),IF(OR(K13<_xlfn.QUARTILE.INC($K$10:$K$29,1)-1.5*(_xlfn.QUARTILE.INC($K$10:K31,3)-_xlfn.QUARTILE.INC($K$10:$K$29,1)),K13>_xlfn.QUARTILE.INC($K$10:$K$29,3)+1.5*(_xlfn.QUARTILE.INC($K$10:$K$29,3)-_xlfn.QUARTILE.INC($K$10:$K$29,1))),"Não","Sim"),"") -> 
O14: =IF(ISNUMBER(K14),IF(OR(K14<_xlfn.QUARTILE.INC($K$10:$K$29,1)-1.5*(_xlfn.QUARTILE.INC($K$10:K32,3)-_xlfn.QUARTILE.INC($K$10:$K$29,1)),K14>_xlfn.QUARTILE.INC($K$10:$K$29,3)+1.5*(_xlfn.QUARTILE.INC($K$10:$K$29,3)-_xlfn.QUARTILE.INC($K$10:$K$29,1))),"Não","Sim"),"") -> 
O15: =IF(ISNUMBER(K15),IF(OR(K15<_xlfn.QUARTILE.INC($K$10:$K$29,1)-1.5*(_xlfn.QUARTILE.INC($K$10:K35,3)-_xlfn.QUARTILE.INC($K$10:$K$29,1)),K15>_xlfn.QUARTILE.INC($K$10:$K$29,3)+1.5*(_xlfn.QUARTILE.INC($K$10:$K$29,3)-_xlfn.QUARTILE.INC($K$10:$K$29,1))),"Não","Sim"),"") -> 
O16: =IF(ISNUMBER(K16),IF(OR(K16<_xlfn.QUARTILE.INC($K$10:$K$29,1)-1.5*(_xlfn.QUARTILE.INC($I$10:I37,3)-_xlfn.QUARTILE.INC($K$10:$K$29,1)),K16>_xlfn.QUARTILE.INC($K$10:$K$29,3)+1.5*(_xlfn.QUARTILE.INC($K$10:$K$29,3)-_xlfn.QUARTILE.INC($K$10:$K$29,1))),"Não","Sim"),"") -> 
B17: COTAÇÕES DE MERCADO | O17: Cotações
B18: Empresa | J18: Data | K18: Preço Unitário | L18: Utilizar? (Sim/Não) | O18: Outliers | P18: Por critério do(a) analista
B19: Mercado Livre - https://www.mercadolivre.com.br/tala-moldavel-aramada-em-eva-m-63x09cm-laranja--ortofex/up/MLBU2977597845?pdp_filters=item_id%3AMLB3960088403&from=gshop&matt_tool=79314260&matt_word=&matt_source=google&matt_campaign_id=22090354076&matt_ad_group_id=192555040014&matt_match_type=&matt_network=g&matt_device=c&matt_creative=799032780706&matt_keyword=&matt_ad_position=&matt_ad_type=pla&matt_merchant_id=5550897666&matt_product_id=MLBU2977597845&matt_product_partition_id=2468104432726&matt_target_id=pla-2468104432726&cq_src=google_ads&cq_cmp=22090354076&cq_net=g&cq_plt=gp&cq_med=pla&gad_source=1&gad_campaignid=22090354076&gbraid=0AAAAAD93qcCcGqt1pEx9xzjfzQyhTs6YD&gclid=CjwKCAjwtcHPBhADEiwAWo3sJkkM2gMNIp6cauAhphKXAQ0qBSwOnBCu_SDTNurd4rAkgVn_V-ifzRoCbiUQAvD_BwE | J19: 2026-04-28 | K19: 19.98 | L19: =IF(ISNUMBER(K19),IF($L$32=$O$18,O19,IF($L$32=$P$18,P19,"")),"") -> Sim | O19: =IF(ISNUMBER(K19),IF(OR(K19<_xlfn.QUARTILE.INC($K$10:$K$29,1)-1.5*(_xlfn.QUARTILE.INC($K$10:$K$29,3)-_xlfn.QUARTILE.INC($K$10:$K$29,1)),K19>_xlfn.QUARTILE.INC($K$10:$K$29,3)+1.5*(_xlfn.QUARTILE.INC($K$10:$K$29,3)-_xlfn.QUARTILE.INC($K$10:$K$29,1))),"Não","Sim"),"") -> Sim
B20: Althis - https://www.althis.com.br/tala-aramada-moldavel-eva-resgate-sp-m?utm_source=google&utm_medium=Shopping&utm_campaign=tala-aramada-moldavel-eva-resgate-sp-m&inStock&gad_source=1&gad_campaignid=17178626559&gbraid=0AAAAABjnm_M8PK1GCT5ZKviCdoRxzinEM&gclid=CjwKCAjwtcHPBhADEiwAWo3sJsVQIpMI6CzM2uleGw8guZxVGxGMFG7-pTF4O-ZnHc6iaTCgBVMy8BoCwysQAvD_BwE | J20: 2026-04-28 | K20: 14.64 | L20: Sim | O20: Sim
B21: Shopee - https://shopee.com.br/product/406038416/18699607974?gads_t_sig=gqRjZGVrxHCFomtpsTE0MjUxOnRzc19zZGtfa2V5omt20QABpGFsZ2_SAAAAZKNkZWvAomN0xEAAAAAMRvS3L9OTXdZ5FJNxILig8p7lQ7pNpXYtdZAbsM8MQrkGmzJ0eOQRwaQfuYgAF9FAqYvxRTQ9oVrOjPOJqmNpcGhlcnRleHTEcgAAAAwJpirLow5c-1g8fUTM2YNdw_k1TiHs-pA_khJt4HXFCGWbn0m7xQjNAuHvZ9StrkwrPSiaqHxzTdJMrOkXsnXzCBMuWqsj3DbE_RuEr5uuDrhIraf0R1ocrJ61HRTVJK5rx2Lt8dUA5fZCF-S25Q&gad_source=1&gad_campaignid=20818538529&gbraid=0AAAAACoEtRkCElrcvIQBPDTMvm57Qd9kz&gclid=CjwKCAjwtcHPBhADEiwAWo3sJsRUj_P_Bbkzss3VaTdhTCdxdafkbH1lYhkTTE7GDuLjupM1iNgLCxoCYnEQAvD_BwE | J21: 2026-04-28 | K21: 16.9 | L21: Sim | O21: Sim
B30: Observações: | K30: Média: | L30: =IF($L$32="","Selecione metodologia para exclusão de preços",AVERAGE(IF($L$10:$L$29="Sim",$K$10:$K$29))) -> 17.17333333 | N30: Média (Cotações) | O30: =IF(COUNTIF(O19:O29,"Sim")<3,"N/D (são necessários pelo menos 3 preços)",AVERAGE(IF(O19:O29="Sim",$K19:$K29))) -> 17.17333333 | P30: =IF(COUNTIF(P19:P29,"Sim")<3,"N/D (são necessários pelo menos 3 preços)",AVERAGE(IF(P19:P29="Sim",$K19:$K29))) -> N/D (são necessários pelo menos 3 preços)
K31: Mediana: | L31: =IF($L$32="","Selecione metodologia para exclusão de preços",MEDIAN(IF($L$10:$L$29="Sim",$K$10:$K$29))) -> 16.9 | N31: Mediana (Cotações) | O31: =IF(COUNTIF(O19:O29,"Sim")<3,"N/D (são necessários pelo menos 3 preços)",MEDIAN(IF(O19:O29="Sim",$K19:$K29))) -> 16.9 | P31: =IF(COUNTIF(P19:P29,"Sim")<3,"N/D (são necessários pelo menos 3 preços)",MEDIAN(IF(P19:P29="Sim",$K19:$K29))) -> N/D (são necessários pelo menos 3 preços)
B32: Metodologia de exclusão de preços adotada: | L32: =IF(O35="",INDEX(O18:P18,MATCH(MIN(#REF!),#REF!,0)),O35) -> Outliers | N32: CV (Cotações) | O32: =IF(COUNTIF(O19:O29,"Sim")<3,"N/D (são necessários pelo menos 3 preços)",_xlfn.STDEV.S(IF(O19:O29="Sim",$K19:$K29))/AVERAGE(IF(O19:O29="Sim",$K19:$K29))) -> 0.1560834197 | P32: =IF(COUNTIF(P19:P29,"Sim")<3,"N/D (são necessários pelo menos 3 preços)",_xlfn.STDEV.S(IF(P19:P29="Sim",$K19:$K29))/AVERAGE(IF(P19:P29="Sim",$K19:$K29))) -> N/D (são necessários pelo menos 3 preços)
N33: Média | O33: =IF(SUM(COUNTIF($O$10:$O$16,"Sim")) + SUM(COUNTIF(O19:O29,"Sim")) < 3, "N/D (são necessários pelo menos 3 preços)", IFERROR(AVERAGE(_xlfn._xlws.FILTER($K$10:$K$16,$O$10:$O$16="Sim"), _xlfn._xlws.FILTER($K$19:$K$29,O19:O29="Sim")),O30)) -> 17.17333333 | P33: =IF(SUM(COUNTIF($P$10:$P$16,"Sim")) + SUM(COUNTIF(P19:P29,"Sim")) < 3, "N/D (são necessários pelo menos 3 preços)", IFERROR(AVERAGE(_xlfn._xlws.FILTER($K$10:$K$16,$P$10:$P$16="Sim"), _xlfn._xlws.FILTER($K$19:$K$29,P19:P29="Sim")),P30)) -> N/D (são necessários pelo menos 3 preços)
N34: Mediana | O34: =IF(SUM(COUNTIF($O$10:$O$16,"Sim")) + SUM(COUNTIF(O19:O29,"Sim")) < 3, "N/D (são necessários pelo menos 3 preços)", IFERROR(MEDIAN(_xlfn._xlws.FILTER($K$10:$K$16,$O$10:$O$16="Sim"), _xlfn._xlws.FILTER($K$19:$K$29,O19:O29="Sim")),O31)) -> 16.9 | P34: =IF(SUM(COUNTIF($P10:$P$16,"Sim")) + SUM(COUNTIF(P19:P29,"Sim")) < 3, "N/D (são necessários pelo menos 3 preços)", IFERROR(MEDIAN(_xlfn._xlws.FILTER($K$10:$K$16,$P$10:$P$16="Sim"), _xlfn._xlws.FILTER($K$19:$K$29,P19:P29="Sim")),P31)) -> N/D (são necessários pelo menos 3 preços)
B35: COSOLIDAÇÃO DOS PREÇOS | N35: Metodologia a adotar: | O35: =IF(INDEX(O18:P18,P35)=0,"",INDEX(O18:P18,P35)) -> Outliers | P35: 1
B37: PREÇO UNITÁRIO ESTIMADO ADOTADO: | L37: =IF($B$39="Mediana:",L31,L30) -> 16.9
A39: =O18 -> Outliers | B39: Mediana:

Sheet Tala Aramada (hidden)
B2: Processo
B3: Responsável
B4: Área de Origem
B5: Data da pesquisa
B7: ITEM: | C7: TALA moldável pequena (30cmx8x2) | I7: UNIDADE DE MEDIDA: | J7: Unidade | K7: QUANTIDADE: | L7: 2 | O7: Tabela auxiliar de metodologias para exclusão de preços
B8: LICITAÇÕES ANTERIORES | O8: Licitações Anteriores
B9: Órgão | C9: Edital/Ano - Nº do Lote / Item | D9: Quantidade | E9: Valor Unitário | F9: Data | G9: índice de atualização (nome) | H9: I0 | I9: If | J9: Variação acumulada do índice (%) | K9: Preço unitário atualizado | L9: Utilizar? (Sim/Não) | O9: Outliers | P9: Por critério do(a) analista
J10: =IF(ISBLANK(E10),"",IF(ISNUMBER(H10),(I10-H10)/H10,0)) ->  | K10: =IF(ISBLANK(E10),"",E10*(1+J10)) ->  | L10: =IF(ISNUMBER(K10),IF($L$32<>$P$9,O10,P10),"") ->  | O10: =IF(ISNUMBER(K10),IF(OR(K10<_xlfn.QUARTILE.INC($K$10:$K$29,1)-1.5*(_xlfn.QUARTILE.INC($K$10:K29,3)-_xlfn.QUARTILE.INC($K$10:$K$29,1)),K10>_xlfn.QUARTILE.INC($K$10:$K$29,3)+1.5*(_xlfn.QUARTILE.INC($K$10:$K$29,3)-_xlfn.QUARTILE.INC($K$10:$K$29,1))),"Não","Sim"),"") -> 
J11: =IF(ISBLANK(E11),"",IF(ISNUMBER(H11),(I11-H11)/H11,0)) ->  | K11: =IF(ISBLANK(E11),"",E11*(1+J11)) ->  | O11: =IF(ISNUMBER(K11),IF(OR(K11<_xlfn.QUARTILE.INC($K$10:$K$29,1)-1.5*(_xlfn.QUARTILE.INC($K$10:K29,3)-_xlfn.QUARTILE.INC($K$10:$K$29,1)),K11>_xlfn.QUARTILE.INC($K$10:$K$29,3)+1.5*(_xlfn.QUARTILE.INC($K$10:$K$29,3)-_xlfn.QUARTILE.INC($K$10:$K$29,1))),"Não","Sim"),"") -> 
O12: =IF(ISNUMBER(K12),IF(OR(K12<_xlfn.QUARTILE.INC($K$10:$K$29,1)-1.5*(_xlfn.QUARTILE.INC($K$10:K30,3)-_xlfn.QUARTILE.INC($K$10:$K$29,1)),K12>_xlfn.QUARTILE.INC($K$10:$K$29,3)+1.5*(_xlfn.QUARTILE.INC($K$10:$K$29,3)-_xlfn.QUARTILE.INC($K$10:$K$29,1))),"Não","Sim"),"") -> 
O13: =IF(ISNUMBER(K13),IF(OR(K13<_xlfn.QUARTILE.INC($K$10:$K$29,1)-1.5*(_xlfn.QUARTILE.INC($K$10:K31,3)-_xlfn.QUARTILE.INC($K$10:$K$29,1)),K13>_xlfn.QUARTILE.INC($K$10:$K$29,3)+1.5*(_xlfn.QUARTILE.INC($K$10:$K$29,3)-_xlfn.QUARTILE.INC($K$10:$K$29,1))),"Não","Sim"),"") -> 
O14: =IF(ISNUMBER(K14),IF(OR(K14<_xlfn.QUARTILE.INC($K$10:$K$29,1)-1.5*(_xlfn.QUARTILE.INC($K$10:K32,3)-_xlfn.QUARTILE.INC($K$10:$K$29,1)),K14>_xlfn.QUARTILE.INC($K$10:$K$29,3)+1.5*(_xlfn.QUARTILE.INC($K$10:$K$29,3)-_xlfn.QUARTILE.INC($K$10:$K$29,1))),"Não","Sim"),"") -> 
O15: =IF(ISNUMBER(K15),IF(OR(K15<_xlfn.QUARTILE.INC($K$10:$K$29,1)-1.5*(_xlfn.QUARTILE.INC($K$10:K35,3)-_xlfn.QUARTILE.INC($K$10:$K$29,1)),K15>_xlfn.QUARTILE.INC($K$10:$K$29,3)+1.5*(_xlfn.QUARTILE.INC($K$10:$K$29,3)-_xlfn.QUARTILE.INC($K$10:$K$29,1))),"Não","Sim"),"") -> 
O16: =IF(ISNUMBER(K16),IF(OR(K16<_xlfn.QUARTILE.INC($K$10:$K$29,1)-1.5*(_xlfn.QUARTILE.INC($I$10:I37,3)-_xlfn.QUARTILE.INC($K$10:$K$29,1)),K16>_xlfn.QUARTILE.INC($K$10:$K$29,3)+1.5*(_xlfn.QUARTILE.INC($K$10:$K$29,3)-_xlfn.QUARTILE.INC($K$10:$K$29,1))),"Não","Sim"),"") -> 
B17: COTAÇÕES DE MERCADO | O17: Cotações
B18: Empresa | J18: Data | K18: Preço Unitário | L18: Utilizar? (Sim/Não) | O18: Outliers | P18: Por critério do(a) analista
B19: Triomed - https://triomed.com.br/products/prod-tala-de-imobilizacao-aramada-em-eva-tam-resgate-s135?variant=46537896722673&country=BR&currency=BRL&utm_medium=product_sync&utm_source=google&utm_content=sag_organic&utm_campaign=sag_organic&gad_source=1&gad_campaignid=22849579101&gbraid=0AAAAABxBVVbd0j64HvsWIzhWN3f0fk5ZE&gclid=Cj0KCQjw2MbPBhCSARIsAP3jP9zYQ--oaf7y_weBLosEARE3-xHZRE3LW7TSY_kc9xC2Tzbvu6ESruQaAlhREALw_wcB | J19: 2026-04-29 | K19: 9.41 | L19: =IF(ISNUMBER(K19),IF($L$32=$O$18,O19,IF($L$32=$P$18,P19,"")),"") -> Sim | O19: =IF(ISNUMBER(K19),IF(OR(K19<_xlfn.QUARTILE.INC($K$10:$K$29,1)-1.5*(_xlfn.QUARTILE.INC($K$10:$K$29,3)-_xlfn.QUARTILE.INC($K$10:$K$29,1)),K19>_xlfn.QUARTILE.INC($K$10:$K$29,3)+1.5*(_xlfn.QUARTILE.INC($K$10:$K$29,3)-_xlfn.QUARTILE.INC($K$10:$K$29,1))),"Não","Sim"),"") -> Sim
B20: Magazine Médica - https://magazinemedica.com.br/produtos/visualiza/sku/1682/?gad_source=1&gad_campaignid=23257119241&gbraid=0AAAAA-LLl3TiEu2y6MTx5T-rxpkRQzg3F&gclid=Cj0KCQjw2MbPBhCSARIsAP3jP9zO54IrrY0zDhp-vF0jXyemgG8upmO1yb8gx-prrGhy-4MgVTl1htwaAgkoEALw_wcB | J20: 2026-04-29 | K20: 15.11 | L20: Sim | O20: Sim
B21: Althis - https://www.althis.com.br/tala-aramada-moldavel-eva-resgate-sp-p?utm_source=google&utm_medium=Shopping&utm_campaign=tala-aramada-moldavel-eva-resgate-sp-p&inStock&gad_source=1&gad_campaignid=17178626559&gbraid=0AAAAABjnm_OPE669OeagXWQYu1r4tOCiG&gclid=Cj0KCQjw2MbPBhCSARIsAP3jP9wbZzwiiuY8cdUcCnI8Z37CZhM1uSgSkpXX-ltm6FO8fQLfyzQZE4gaAnkgEALw_wcB | J21: 2026-04-29 | K21: 12.92 | L21: Sim | O21: Sim
B30: Observações: | K30: Média: | L30: =IF($L$32="","Selecione metodologia para exclusão de preços",AVERAGE(IF($L$10:$L$29="Sim",$K$10:$K$29))) -> 12.48 | N30: Média (Cotações) | O30: =IF(COUNTIF(O19:O29,"Sim")<3,"N/D (são necessários pelo menos 3 preços)",AVERAGE(IF(O19:O29="Sim",$K19:$K29))) -> 12.48 | P30: =IF(COUNTIF(P19:P29,"Sim")<3,"N/D (são necessários pelo menos 3 preços)",AVERAGE(IF(P19:P29="Sim",$K19:$K29))) -> N/D (são necessários pelo menos 3 preços)
K31: Mediana: | L31: =IF($L$32="","Selecione metodologia para exclusão de preços",MEDIAN(IF($L$10:$L$29="Sim",$K$10:$K$29))) -> 12.92 | N31: Mediana (Cotações) | O31: =IF(COUNTIF(O19:O29,"Sim")<3,"N/D (são necessários pelo menos 3 preços)",MEDIAN(IF(O19:O29="Sim",$K19:$K29))) -> 12.92 | P31: =IF(COUNTIF(P19:P29,"Sim")<3,"N/D (são necessários pelo menos 3 preços)",MEDIAN(IF(P19:P29="Sim",$K19:$K29))) -> N/D (são necessários pelo menos 3 preços)
B32: Metodologia de exclusão de preços adotada: | L32: =IF(O35="",INDEX(O18:P18,MATCH(MIN(#REF!),#REF!,0)),O35) -> Outliers | N32: CV (Cotações) | O32: =IF(COUNTIF(O19:O29,"Sim")<3,"N/D (são necessários pelo menos 3 preços)",_xlfn.STDEV.S(IF(O19:O29="Sim",$K19:$K29))/AVERAGE(IF(O19:O29="Sim",$K19:$K29))) -> 0.2303975038 | P32: =IF(COUNTIF(P19:P29,"Sim")<3,"N/D (são necessários pelo menos 3 preços)",_xlfn.STDEV.S(IF(P19:P29="Sim",$K19:$K29))/AVERAGE(IF(P19:P29="Sim",$K19:$K29))) -> N/D (são necessários pelo menos 3 preços)
N33: Média | O33: =IF(SUM(COUNTIF($O$10:$O$16,"Sim")) + SUM(COUNTIF(O19:O29,"Sim")) < 3, "N/D (são necessários pelo menos 3 preços)", IFERROR(AVERAGE(_xlfn._xlws.FILTER($K$10:$K$16,$O$10:$O$16="Sim"), _xlfn._xlws.FILTER($K$19:$K$29,O19:O29="Sim")),O30)) -> 12.48 | P33: =IF(SUM(COUNTIF($P$10:$P$16,"Sim")) + SUM(COUNTIF(P19:P29,"Sim")) < 3, "N/D (são necessários pelo menos 3 preços)", IFERROR(AVERAGE(_xlfn._xlws.FILTER($K$10:$K$16,$P$10:$P$16="Sim"), _xlfn._xlws.FILTER($K$19:$K$29,P19:P29="Sim")),P30)) -> N/D (são necessários pelo menos 3 preços)
N34: Mediana | O34: =IF(SUM(COUNTIF($O$10:$O$16,"Sim")) + SUM(COUNTIF(O19:O29,"Sim")) < 3, "N/D (são necessários pelo menos 3 preços)", IFERROR(MEDIAN(_xlfn._xlws.FILTER($K$10:$K$16,$O$10:$O$16="Sim"), _xlfn._xlws.FILTER($K$19:$K$29,O19:O29="Sim")),O31)) -> 12.92 | P34: =IF(SUM(COUNTIF($P10:$P$16,"Sim")) + SUM(COUNTIF(P19:P29,"Sim")) < 3, "N/D (são necessários pelo menos 3 preços)", IFERROR(MEDIAN(_xlfn._xlws.FILTER($K$10:$K$16,$P$10:$P$16="Sim"), _xlfn._xlws.FILTER($K$19:$K$29,P19:P29="Sim")),P31)) -> N/D (são necessários pelo menos 3 preços)
B35: COSOLIDAÇÃO DOS PREÇOS | N35: Metodologia a adotar: | O35: =IF(INDEX(O18:P18,P35)=0,"",INDEX(O18:P18,P35)) -> Outliers | P35: 1
B37: PREÇO UNITÁRIO ESTIMADO ADOTADO: | L37: =IF($B$39="Mediana:",L31,L30) -> 12.48
A39: =O18 -> Outliers | B39: Média:

Sheet Termometro (hidden)
B2: Processo
B3: Responsável
B4: Área de Origem
B5: Data da pesquisa
B7: ITEM: | C7: TERMÔMETRO clínico digital com no mínimo, aviso sonoro, visor de temperatura com 03 (três) dígitos, ponta flexível, desligamento automático, dimensões: 2cmx13cmx1cm (PxLxD), bateria substituível, erro máximo: 0,2ºC, 1 pilha LR41 de 1,5V | I7: UNIDADE DE MEDIDA: | J7: Unidade | K7: QUANTIDADE: | L7: 2 | O7: Tabela auxiliar de metodologias para exclusão de preços
B8: LICITAÇÕES ANTERIORES | O8: Licitações Anteriores
B9: Órgão | C9: Edital/Ano - Nº do Lote / Item | D9: Quantidade | E9: Valor Unitário | F9: Data | G9: índice de atualização (nome) | H9: I0 | I9: If | J9: Variação acumulada do índice (%) | K9: Preço unitário atualizado | L9: Utilizar? (Sim/Não) | O9: Outliers | P9: Por critério do(a) analista
J10: =IF(ISBLANK(E10),"",IF(ISNUMBER(H10),(I10-H10)/H10,0)) ->  | K10: =IF(ISBLANK(E10),"",E10*(1+J10)) ->  | L10: =IF(ISNUMBER(K10),IF($L$32<>$P$9,O10,P10),"") ->  | O10: =IF(ISNUMBER(K10),IF(OR(K10<_xlfn.QUARTILE.INC($K$10:$K$29,1)-1.5*(_xlfn.QUARTILE.INC($K$10:K29,3)-_xlfn.QUARTILE.INC($K$10:$K$29,1)),K10>_xlfn.QUARTILE.INC($K$10:$K$29,3)+1.5*(_xlfn.QUARTILE.INC($K$10:$K$29,3)-_xlfn.QUARTILE.INC($K$10:$K$29,1))),"Não","Sim"),"") -> 
J11: =IF(ISBLANK(E11),"",IF(ISNUMBER(H11),(I11-H11)/H11,0)) ->  | K11: =IF(ISBLANK(E11),"",E11*(1+J11)) ->  | O11: =IF(ISNUMBER(K11),IF(OR(K11<_xlfn.QUARTILE.INC($K$10:$K$29,1)-1.5*(_xlfn.QUARTILE.INC($K$10:K29,3)-_xlfn.QUARTILE.INC($K$10:$K$29,1)),K11>_xlfn.QUARTILE.INC($K$10:$K$29,3)+1.5*(_xlfn.QUARTILE.INC($K$10:$K$29,3)-_xlfn.QUARTILE.INC($K$10:$K$29,1))),"Não","Sim"),"") -> 
O12: =IF(ISNUMBER(K12),IF(OR(K12<_xlfn.QUARTILE.INC($K$10:$K$29,1)-1.5*(_xlfn.QUARTILE.INC($K$10:K30,3)-_xlfn.QUARTILE.INC($K$10:$K$29,1)),K12>_xlfn.QUARTILE.INC($K$10:$K$29,3)+1.5*(_xlfn.QUARTILE.INC($K$10:$K$29,3)-_xlfn.QUARTILE.INC($K$10:$K$29,1))),"Não","Sim"),"") -> 
O13: =IF(ISNUMBER(K13),IF(OR(K13<_xlfn.QUARTILE.INC($K$10:$K$29,1)-1.5*(_xlfn.QUARTILE.INC($K$10:K31,3)-_xlfn.QUARTILE.INC($K$10:$K$29,1)),K13>_xlfn.QUARTILE.INC($K$10:$K$29,3)+1.5*(_xlfn.QUARTILE.INC($K$10:$K$29,3)-_xlfn.QUARTILE.INC($K$10:$K$29,1))),"Não","Sim"),"") -> 
O14: =IF(ISNUMBER(K14),IF(OR(K14<_xlfn.QUARTILE.INC($K$10:$K$29,1)-1.5*(_xlfn.QUARTILE.INC($K$10:K32,3)-_xlfn.QUARTILE.INC($K$10:$K$29,1)),K14>_xlfn.QUARTILE.INC($K$10:$K$29,3)+1.5*(_xlfn.QUARTILE.INC($K$10:$K$29,3)-_xlfn.QUARTILE.INC($K$10:$K$29,1))),"Não","Sim"),"") -> 
O15: =IF(ISNUMBER(K15),IF(OR(K15<_xlfn.QUARTILE.INC($K$10:$K$29,1)-1.5*(_xlfn.QUARTILE.INC($K$10:K35,3)-_xlfn.QUARTILE.INC($K$10:$K$29,1)),K15>_xlfn.QUARTILE.INC($K$10:$K$29,3)+1.5*(_xlfn.QUARTILE.INC($K$10:$K$29,3)-_xlfn.QUARTILE.INC($K$10:$K$29,1))),"Não","Sim"),"") -> 
O16: =IF(ISNUMBER(K16),IF(OR(K16<_xlfn.QUARTILE.INC($K$10:$K$29,1)-1.5*(_xlfn.QUARTILE.INC($I$10:I37,3)-_xlfn.QUARTILE.INC($K$10:$K$29,1)),K16>_xlfn.QUARTILE.INC($K$10:$K$29,3)+1.5*(_xlfn.QUARTILE.INC($K$10:$K$29,3)-_xlfn.QUARTILE.INC($K$10:$K$29,1))),"Não","Sim"),"") -> 
B17: COTAÇÕES DE MERCADO | O17: Cotações
B18: Empresa | J18: Data | K18: Preço Unitário | L18: Utilizar? (Sim/Não) | O18: Outliers | P18: Por critério do(a) analista
B19: Nissei - https://www.farmaciasnissei.com.br/termometro-clinico-digital-g-tech-com-ponta-flexivel-th400?utm_campaign=PMax_Todos_os_Produtos&utm_source=google&utm_medium=cpc&gad_source=1&gad_campaignid=18958935481&gbraid=0AAAAADonTcB-3bFgugbZ-5TcTiPlym6sh&gclid=CjwKCAjwtcHPBhADEiwAWo3sJnhDM5ANAlDXze-d_mvtABDskhqSvxBRNrBwTeT3OxH3lHxcQe2u5RoCLC4QAvD_BwE | J19: 2026-04-28 | K19: 33.95 | L19: =IF(ISNUMBER(K19),IF($L$32=$O$18,O19,IF($L$32=$P$18,P19,"")),"") -> Sim | O19: =IF(ISNUMBER(K19),IF(OR(K19<_xlfn.QUARTILE.INC($K$10:$K$29,1)-1.5*(_xlfn.QUARTILE.INC($K$10:$K$29,3)-_xlfn.QUARTILE.INC($K$10:$K$29,1)),K19>_xlfn.QUARTILE.INC($K$10:$K$29,3)+1.5*(_xlfn.QUARTILE.INC($K$10:$K$29,3)-_xlfn.QUARTILE.INC($K$10:$K$29,1))),"Não","Sim"),"") -> Sim
B20: Mercado Livre - https://www.mercadolivre.com.br/termmetro-clinico-digital-branco-ponta-flexivel-1-minuto/p/MLB46376663?pdp_filters=item_id%3AMLB6635177714&from=gshop&matt_tool=35397717&matt_word=&matt_source=google&matt_campaign_id=22090354487&matt_ad_group_id=197094212371&matt_match_type=&matt_network=g&matt_device=c&matt_creative=792396419695&matt_keyword=&matt_ad_position=&matt_ad_type=pla&matt_merchant_id=735098660&matt_product_id=MLB46376663-product&matt_product_partition_id=2469475009611&matt_target_id=pla-2469475009611&cq_src=google_ads&cq_cmp=22090354487&cq_net=g&cq_plt=gp&cq_med=pla&gad_source=1&gad_campaignid=22090354487&gbraid=0AAAAAD93qcD9MlUhk0DsjOWe3HkL9bL24&gclid=CjwKCAjwtcHPBhADEiwAWo3sJqGZ9Ms4Qm1FzQ6c0eZ9XSJnz_g0TJ-Z1O8hXOntLm3IkxZR5lwCRRoCZzEQAvD_BwE | J20: 2026-04-28 | K20: 19.24 | L20: Sim | O20: Sim
B21: Amazon - https://www.amazon.com.br/Term%C3%B4metro-Digital-Ponta-Flex%C3%ADvel-G-Tech/dp/B076VYL3PX/ref=asc_df_B076VYL3PX?mcid=fc86704eae163ec68e7a3504f1effbbf&tag=googleshopp00-20&linkCode=df0&hvadid=709857204930&hvpos=&hvnetw=g&hvrand=10450406643330742267&hvpone=&hvptwo=&hvqmt=&hvdev=c&hvdvcmdl=&hvlocint=&hvlocphy=9196708&hvtargid=pla-835646429930&psc=1&hvocijid=10450406643330742267-B076VYL3PX-&hvexpln=0&language=pt_BR | J21: 2062-04-28 | K21: 22.09 | L21: Sim | O21: Sim
B30: Observações: | K30: Média: | L30: =IF($L$32="","Selecione metodologia para exclusão de preços",AVERAGE(IF($L$10:$L$29="Sim",$K$10:$K$29))) -> 25.09333333 | N30: Média (Cotações) | O30: =IF(COUNTIF(O19:O29,"Sim")<3,"N/D (são necessários pelo menos 3 preços)",AVERAGE(IF(O19:O29="Sim",$K19:$K29))) -> 25.09333333 | P30: =IF(COUNTIF(P19:P29,"Sim")<3,"N/D (são necessários pelo menos 3 preços)",AVERAGE(IF(P19:P29="Sim",$K19:$K29))) -> N/D (são necessários pelo menos 3 preços)
K31: Mediana: | L31: =IF($L$32="","Selecione metodologia para exclusão de preços",MEDIAN(IF($L$10:$L$29="Sim",$K$10:$K$29))) -> 22.09 | N31: Mediana (Cotações) | O31: =IF(COUNTIF(O19:O29,"Sim")<3,"N/D (são necessários pelo menos 3 preços)",MEDIAN(IF(O19:O29="Sim",$K19:$K29))) -> 22.09 | P31: =IF(COUNTIF(P19:P29,"Sim")<3,"N/D (são necessários pelo menos 3 preços)",MEDIAN(IF(P19:P29="Sim",$K19:$K29))) -> N/D (são necessários pelo menos 3 preços)
B32: Metodologia de exclusão de preços adotada: | L32: =IF(O35="",INDEX(O18:P18,MATCH(MIN(#REF!),#REF!,0)),O35) -> Outliers | N32: CV (Cotações) | O32: =IF(COUNTIF(O19:O29,"Sim")<3,"N/D (são necessários pelo menos 3 preços)",_xlfn.STDEV.S(IF(O19:O29="Sim",$K19:$K29))/AVERAGE(IF(O19:O29="Sim",$K19:$K29))) -> 0.3108932588 | P32: =IF(COUNTIF(P19:P29,"Sim")<3,"N/D (são necessários pelo menos 3 preços)",_xlfn.STDEV.S(IF(P19:P29="Sim",$K19:$K29))/AVERAGE(IF(P19:P29="Sim",$K19:$K29))) -> N/D (são necessários pelo menos 3 preços)
N33: Média | O33: =IF(SUM(COUNTIF($O$10:$O$16,"Sim")) + SUM(COUNTIF(O19:O29,"Sim")) < 3, "N/D (são necessários pelo menos 3 preços)", IFERROR(AVERAGE(_xlfn._xlws.FILTER($K$10:$K$16,$O$10:$O$16="Sim"), _xlfn._xlws.FILTER($K$19:$K$29,O19:O29="Sim")),O30)) -> 25.09333333 | P33: =IF(SUM(COUNTIF($P$10:$P$16,"Sim")) + SUM(COUNTIF(P19:P29,"Sim")) < 3, "N/D (são necessários pelo menos 3 preços)", IFERROR(AVERAGE(_xlfn._xlws.FILTER($K$10:$K$16,$P$10:$P$16="Sim"), _xlfn._xlws.FILTER($K$19:$K$29,P19:P29="Sim")),P30)) -> N/D (são necessários pelo menos 3 preços)
N34: Mediana | O34: =IF(SUM(COUNTIF($O$10:$O$16,"Sim")) + SUM(COUNTIF(O19:O29,"Sim")) < 3, "N/D (são necessários pelo menos 3 preços)", IFERROR(MEDIAN(_xlfn._xlws.FILTER($K$10:$K$16,$O$10:$O$16="Sim"), _xlfn._xlws.FILTER($K$19:$K$29,O19:O29="Sim")),O31)) -> 22.09 | P34: =IF(SUM(COUNTIF($P10:$P$16,"Sim")) + SUM(COUNTIF(P19:P29,"Sim")) < 3, "N/D (são necessários pelo menos 3 preços)", IFERROR(MEDIAN(_xlfn._xlws.FILTER($K$10:$K$16,$P$10:$P$16="Sim"), _xlfn._xlws.FILTER($K$19:$K$29,P19:P29="Sim")),P31)) -> N/D (são necessários pelo menos 3 preços)
B35: COSOLIDAÇÃO DOS PREÇOS | N35: Metodologia a adotar: | O35: =IF(INDEX(O18:P18,P35)=0,"",INDEX(O18:P18,P35)) -> Outliers | P35: 1
B37: PREÇO UNITÁRIO ESTIMADO ADOTADO: | L37: =IF($B$39="Mediana:",L31,L30) -> 22.09
A39: =O18 -> Outliers | B39: Mediana:

Sheet Tesoura (hidden)
B2: Processo
B3: Responsável
B4: Área de Origem
B5: Data da pesquisa
B7: ITEM: | C7: TESOURA de ponta romba especial para APH, destinado ao corte de roupas. Com lâminas ponta romba e com corte liso. A segunda lâmina contem apoio para corte semicircular e corte micro-serrilhado. | I7: UNIDADE DE MEDIDA: | J7: Unidade | K7: QUANTIDADE: | L7: 1 | O7: Tabela auxiliar de metodologias para exclusão de preços
B8: LICITAÇÕES ANTERIORES | O8: Licitações Anteriores
B9: Órgão | C9: Edital/Ano - Nº do Lote / Item | D9: Quantidade | E9: Valor Unitário | F9: Data | G9: índice de atualização (nome) | H9: I0 | I9: If | J9: Variação acumulada do índice (%) | K9: Preço unitário atualizado | L9: Utilizar? (Sim/Não) | O9: Outliers | P9: Por critério do(a) analista
J10: =IF(ISBLANK(E10),"",IF(ISNUMBER(H10),(I10-H10)/H10,0)) ->  | K10: =IF(ISBLANK(E10),"",E10*(1+J10)) ->  | L10: =IF(ISNUMBER(K10),IF($L$32<>$P$9,O10,P10),"") ->  | O10: =IF(ISNUMBER(K10),IF(OR(K10<_xlfn.QUARTILE.INC($K$10:$K$29,1)-1.5*(_xlfn.QUARTILE.INC($K$10:K29,3)-_xlfn.QUARTILE.INC($K$10:$K$29,1)),K10>_xlfn.QUARTILE.INC($K$10:$K$29,3)+1.5*(_xlfn.QUARTILE.INC($K$10:$K$29,3)-_xlfn.QUARTILE.INC($K$10:$K$29,1))),"Não","Sim"),"") -> 
J11: =IF(ISBLANK(E11),"",IF(ISNUMBER(H11),(I11-H11)/H11,0)) ->  | K11: =IF(ISBLANK(E11),"",E11*(1+J11)) ->  | O11: =IF(ISNUMBER(K11),IF(OR(K11<_xlfn.QUARTILE.INC($K$10:$K$29,1)-1.5*(_xlfn.QUARTILE.INC($K$10:K29,3)-_xlfn.QUARTILE.INC($K$10:$K$29,1)),K11>_xlfn.QUARTILE.INC($K$10:$K$29,3)+1.5*(_xlfn.QUARTILE.INC($K$10:$K$29,3)-_xlfn.QUARTILE.INC($K$10:$K$29,1))),"Não","Sim"),"") -> 
O12: =IF(ISNUMBER(K12),IF(OR(K12<_xlfn.QUARTILE.INC($K$10:$K$29,1)-1.5*(_xlfn.QUARTILE.INC($K$10:K30,3)-_xlfn.QUARTILE.INC($K$10:$K$29,1)),K12>_xlfn.QUARTILE.INC($K$10:$K$29,3)+1.5*(_xlfn.QUARTILE.INC($K$10:$K$29,3)-_xlfn.QUARTILE.INC($K$10:$K$29,1))),"Não","Sim"),"") -> 
O13: =IF(ISNUMBER(K13),IF(OR(K13<_xlfn.QUARTILE.INC($K$10:$K$29,1)-1.5*(_xlfn.QUARTILE.INC($K$10:K31,3)-_xlfn.QUARTILE.INC($K$10:$K$29,1)),K13>_xlfn.QUARTILE.INC($K$10:$K$29,3)+1.5*(_xlfn.QUARTILE.INC($K$10:$K$29,3)-_xlfn.QUARTILE.INC($K$10:$K$29,1))),"Não","Sim"),"") -> 
O14: =IF(ISNUMBER(K14),IF(OR(K14<_xlfn.QUARTILE.INC($K$10:$K$29,1)-1.5*(_xlfn.QUARTILE.INC($K$10:K32,3)-_xlfn.QUARTILE.INC($K$10:$K$29,1)),K14>_xlfn.QUARTILE.INC($K$10:$K$29,3)+1.5*(_xlfn.QUARTILE.INC($K$10:$K$29,3)-_xlfn.QUARTILE.INC($K$10:$K$29,1))),"Não","Sim"),"") -> 
O15: =IF(ISNUMBER(K15),IF(OR(K15<_xlfn.QUARTILE.INC($K$10:$K$29,1)-1.5*(_xlfn.QUARTILE.INC($K$10:K35,3)-_xlfn.QUARTILE.INC($K$10:$K$29,1)),K15>_xlfn.QUARTILE.INC($K$10:$K$29,3)+1.5*(_xlfn.QUARTILE.INC($K$10:$K$29,3)-_xlfn.QUARTILE.INC($K$10:$K$29,1))),"Não","Sim"),"") -> 
O16: =IF(ISNUMBER(K16),IF(OR(K16<_xlfn.QUARTILE.INC($K$10:$K$29,1)-1.5*(_xlfn.QUARTILE.INC($I$10:I37,3)-_xlfn.QUARTILE.INC($K$10:$K$29,1)),K16>_xlfn.QUARTILE.INC($K$10:$K$29,3)+1.5*(_xlfn.QUARTILE.INC($K$10:$K$29,3)-_xlfn.QUARTILE.INC($K$10:$K$29,1))),"Não","Sim"),"") -> 
B17: COTAÇÕES DE MERCADO | O17: Cotações
B18: Empresa | J18: Data | K18: Preço Unitário | L18: Utilizar? (Sim/Não) | O18: Outliers | P18: Por critério do(a) analista
B19: Magazine Luiza - https://www.magazineluiza.com.br/tesoura-edc-ponta-romba-aph-resgate-samu-bombeiros-original-minymix/p/hhka03he21/ud/comp/?seller_id=minymix1 | J19: 2026-04-28 | K19: 22.94 | L19: =IF(ISNUMBER(K19),IF($L$32=$O$18,O19,IF($L$32=$P$18,P19,"")),"") -> Sim | O19: =IF(ISNUMBER(K19),IF(OR(K19<_xlfn.QUARTILE.INC($K$10:$K$29,1)-1.5*(_xlfn.QUARTILE.INC($K$10:$K$29,3)-_xlfn.QUARTILE.INC($K$10:$K$29,1)),K19>_xlfn.QUARTILE.INC($K$10:$K$29,3)+1.5*(_xlfn.QUARTILE.INC($K$10:$K$29,3)-_xlfn.QUARTILE.INC($K$10:$K$29,1))),"Não","Sim"),"") -> Sim
B20: Mercado Livre - https://www.mercadolivre.com.br/tesoura-edc-ponta-romba-aph-resgate-samu-bombeiros-original/up/MLBU1730680810?pdp_filters=item_id%3AMLB3273385069&from=gshop&matt_tool=57986008&matt_internal_campaign_id=350544901&matt_word=&matt_source=google&matt_campaign_id=22060114741&matt_ad_group_id=182940533989&matt_match_type=&matt_network=g&matt_device=c&matt_creative=767100643836&matt_keyword=&matt_ad_position=&matt_ad_type=pla&matt_merchant_id=408680381&matt_product_id=MLBU1730680810&matt_product_partition_id=2434577796143&matt_target_id=pla-2434577796143&cq_src=google_ads&cq_cmp=22060114741&cq_net=g&cq_plt=gp&cq_med=pla&gad_source=1&gad_campaignid=22060114741&gbraid=0AAAAAD93qcAQyGDwu6zL92tXeXaKQjx22&gclid=CjwKCAjwtcHPBhADEiwAWo3sJoDKMWZpcDQzsls5djEAM9sUo5wvseyVnoKci389dipmKbvPGLGpbhoC-QYQAvD_BwE | J20: 2026-04-28 | K20: 29.7 | L20: Sim | O20: Sim
B21: Amazon - https://www.amazon.com.br/Tesoura-Ponta-Romba-Resgate-Bombeiros/dp/B0C15MX9J6/ref=asc_df_B0C15MX9J6?mcid=48d5b51a988a35c18d7582c594e73347&tag=googleshopp00-20&linkCode=df0&hvadid=709884702469&hvpos=&hvnetw=g&hvrand=13268143149865780991&hvpone=&hvptwo=&hvqmt=&hvdev=c&hvdvcmdl=&hvlocint=&hvlocphy=9196708&hvtargid=pla-2201427353455&hvocijid=13268143149865780991-B0C15MX9J6-&hvexpln=0&language=pt_BR&th=1 | J21: 2026-04-28 | K21: 31.37 | L21: Sim | O21: Sim
B30: Observações: | K30: Média: | L30: =IF($L$32="","Selecione metodologia para exclusão de preços",AVERAGE(IF($L$10:$L$29="Sim",$K$10:$K$29))) -> 28.00333333 | N30: Média (Cotações) | O30: =IF(COUNTIF(O19:O29,"Sim")<3,"N/D (são necessários pelo menos 3 preços)",AVERAGE(IF(O19:O29="Sim",$K19:$K29))) -> 28.00333333 | P30: =IF(COUNTIF(P19:P29,"Sim")<3,"N/D (são necessários pelo menos 3 preços)",AVERAGE(IF(P19:P29="Sim",$K19:$K29))) -> N/D (são necessários pelo menos 3 preços)
K31: Mediana: | L31: =IF($L$32="","Selecione metodologia para exclusão de preços",MEDIAN(IF($L$10:$L$29="Sim",$K$10:$K$29))) -> 29.7 | N31: Mediana (Cotações) | O31: =IF(COUNTIF(O19:O29,"Sim")<3,"N/D (são necessários pelo menos 3 preços)",MEDIAN(IF(O19:O29="Sim",$K19:$K29))) -> 29.7 | P31: =IF(COUNTIF(P19:P29,"Sim")<3,"N/D (são necessários pelo menos 3 preços)",MEDIAN(IF(P19:P29="Sim",$K19:$K29))) -> N/D (são necessários pelo menos 3 preços)
B32: Metodologia de exclusão de preços adotada: | L32: =IF(O35="",INDEX(O18:P18,MATCH(MIN(#REF!),#REF!,0)),O35) -> Outliers | N32: CV (Cotações) | O32: =IF(COUNTIF(O19:O29,"Sim")<3,"N/D (são necessários pelo menos 3 preços)",_xlfn.STDEV.S(IF(O19:O29="Sim",$K19:$K29))/AVERAGE(IF(O19:O29="Sim",$K19:$K29))) -> 0.1594013437 | P32: =IF(COUNTIF(P19:P29,"Sim")<3,"N/D (são necessários pelo menos 3 preços)",_xlfn.STDEV.S(IF(P19:P29="Sim",$K19:$K29))/AVERAGE(IF(P19:P29="Sim",$K19:$K29))) -> N/D (são necessários pelo menos 3 preços)
N33: Média | O33: =IF(SUM(COUNTIF($O$10:$O$16,"Sim")) + SUM(COUNTIF(O19:O29,"Sim")) < 3, "N/D (são necessários pelo menos 3 preços)", IFERROR(AVERAGE(_xlfn._xlws.FILTER($K$10:$K$16,$O$10:$O$16="Sim"), _xlfn._xlws.FILTER($K$19:$K$29,O19:O29="Sim")),O30)) -> 28.00333333 | P33: =IF(SUM(COUNTIF($P$10:$P$16,"Sim")) + SUM(COUNTIF(P19:P29,"Sim")) < 3, "N/D (são necessários pelo menos 3 preços)", IFERROR(AVERAGE(_xlfn._xlws.FILTER($K$10:$K$16,$P$10:$P$16="Sim"), _xlfn._xlws.FILTER($K$19:$K$29,P19:P29="Sim")),P30)) -> N/D (são necessários pelo menos 3 preços)
N34: Mediana | O34: =IF(SUM(COUNTIF($O$10:$O$16,"Sim")) + SUM(COUNTIF(O19:O29,"Sim")) < 3, "N/D (são necessários pelo menos 3 preços)", IFERROR(MEDIAN(_xlfn._xlws.FILTER($K$10:$K$16,$O$10:$O$16="Sim"), _xlfn._xlws.FILTER($K$19:$K$29,O19:O29="Sim")),O31)) -> 29.7 | P34: =IF(SUM(COUNTIF($P10:$P$16,"Sim")) + SUM(COUNTIF(P19:P29,"Sim")) < 3, "N/D (são necessários pelo menos 3 preços)", IFERROR(MEDIAN(_xlfn._xlws.FILTER($K$10:$K$16,$P$10:$P$16="Sim"), _xlfn._xlws.FILTER($K$19:$K$29,P19:P29="Sim")),P31)) -> N/D (são necessários pelo menos 3 preços)
B35: COSOLIDAÇÃO DOS PREÇOS | N35: Metodologia a adotar: | O35: =IF(INDEX(O18:P18,P35)=0,"",INDEX(O18:P18,P35)) -> Outliers | P35: 1
B37: PREÇO UNITÁRIO ESTIMADO ADOTADO: | L37: =IF($B$39="Mediana:",L31,L30) -> 28.00333333
A39: =O18 -> Outliers | B39: Média:

Sheet Padiola (hidden)
B2: Processo
B3: Responsável
B4: Área de Origem
B5: Data da pesquisa
B7: ITEM: | C7: PADIOLA dobrável no padrão (1,90m x 0,60m) com três cintos para afixar a vítima, confeccionada com material de alta qualidade com resistência mínima de 150 kg, em lona impermeável. | I7: UNIDADE DE MEDIDA: | J7: Unidade | K7: QUANTIDADE: | L7: 2 | O7: Tabela auxiliar de metodologias para exclusão de preços
B8: LICITAÇÕES ANTERIORES | O8: Licitações Anteriores
B9: Órgão | C9: Edital/Ano - Nº do Lote / Item | D9: Quantidade | E9: Valor Unitário | F9: Data | G9: índice de atualização (nome) | H9: I0 | I9: If | J9: Variação acumulada do índice (%) | K9: Preço unitário atualizado | L9: Utilizar? (Sim/Não) | O9: Outliers | P9: Por critério do(a) analista
J10: =IF(ISBLANK(E10),"",IF(ISNUMBER(H10),(I10-H10)/H10,0)) ->  | K10: =IF(ISBLANK(E10),"",E10*(1+J10)) ->  | L10: =IF(ISNUMBER(K10),IF($L$32<>$P$9,O10,P10),"") ->  | O10: =IF(ISNUMBER(K10),IF(OR(K10<_xlfn.QUARTILE.INC($K$10:$K$29,1)-1.5*(_xlfn.QUARTILE.INC($K$10:K29,3)-_xlfn.QUARTILE.INC($K$10:$K$29,1)),K10>_xlfn.QUARTILE.INC($K$10:$K$29,3)+1.5*(_xlfn.QUARTILE.INC($K$10:$K$29,3)-_xlfn.QUARTILE.INC($K$10:$K$29,1))),"Não","Sim"),"") -> 
J11: =IF(ISBLANK(E11),"",IF(ISNUMBER(H11),(I11-H11)/H11,0)) ->  | K11: =IF(ISBLANK(E11),"",E11*(1+J11)) ->  | O11: =IF(ISNUMBER(K11),IF(OR(K11<_xlfn.QUARTILE.INC($K$10:$K$29,1)-1.5*(_xlfn.QUARTILE.INC($K$10:K29,3)-_xlfn.QUARTILE.INC($K$10:$K$29,1)),K11>_xlfn.QUARTILE.INC($K$10:$K$29,3)+1.5*(_xlfn.QUARTILE.INC($K$10:$K$29,3)-_xlfn.QUARTILE.INC($K$10:$K$29,1))),"Não","Sim"),"") -> 
O12: =IF(ISNUMBER(K12),IF(OR(K12<_xlfn.QUARTILE.INC($K$10:$K$29,1)-1.5*(_xlfn.QUARTILE.INC($K$10:K30,3)-_xlfn.QUARTILE.INC($K$10:$K$29,1)),K12>_xlfn.QUARTILE.INC($K$10:$K$29,3)+1.5*(_xlfn.QUARTILE.INC($K$10:$K$29,3)-_xlfn.QUARTILE.INC($K$10:$K$29,1))),"Não","Sim"),"") -> 
O13: =IF(ISNUMBER(K13),IF(OR(K13<_xlfn.QUARTILE.INC($K$10:$K$29,1)-1.5*(_xlfn.QUARTILE.INC($K$10:K31,3)-_xlfn.QUARTILE.INC($K$10:$K$29,1)),K13>_xlfn.QUARTILE.INC($K$10:$K$29,3)+1.5*(_xlfn.QUARTILE.INC($K$10:$K$29,3)-_xlfn.QUARTILE.INC($K$10:$K$29,1))),"Não","Sim"),"") -> 
O14: =IF(ISNUMBER(K14),IF(OR(K14<_xlfn.QUARTILE.INC($K$10:$K$29,1)-1.5*(_xlfn.QUARTILE.INC($K$10:K32,3)-_xlfn.QUARTILE.INC($K$10:$K$29,1)),K14>_xlfn.QUARTILE.INC($K$10:$K$29,3)+1.5*(_xlfn.QUARTILE.INC($K$10:$K$29,3)-_xlfn.QUARTILE.INC($K$10:$K$29,1))),"Não","Sim"),"") -> 
O15: =IF(ISNUMBER(K15),IF(OR(K15<_xlfn.QUARTILE.INC($K$10:$K$29,1)-1.5*(_xlfn.QUARTILE.INC($K$10:K35,3)-_xlfn.QUARTILE.INC($K$10:$K$29,1)),K15>_xlfn.QUARTILE.INC($K$10:$K$29,3)+1.5*(_xlfn.QUARTILE.INC($K$10:$K$29,3)-_xlfn.QUARTILE.INC($K$10:$K$29,1))),"Não","Sim"),"") -> 
O16: =IF(ISNUMBER(K16),IF(OR(K16<_xlfn.QUARTILE.INC($K$10:$K$29,1)-1.5*(_xlfn.QUARTILE.INC($I$10:I37,3)-_xlfn.QUARTILE.INC($K$10:$K$29,1)),K16>_xlfn.QUARTILE.INC($K$10:$K$29,3)+1.5*(_xlfn.QUARTILE.INC($K$10:$K$29,3)-_xlfn.QUARTILE.INC($K$10:$K$29,1))),"Não","Sim"),"") -> 
B17: COTAÇÕES DE MERCADO | O17: Cotações
B18: Empresa | J18: Data | K18: Preço Unitário | L18: Utilizar? (Sim/Não) | O18: Outliers | P18: Por critério do(a) analista
B19: Mercado Livre - https://produto.mercadolivre.com.br/MLB-4575682440-padiola-dobravel-simples-para-transporte-medico-sem-rodas-_JM?matt_tool=35397717&matt_word=&matt_source=google&matt_campaign_id=22090354487&matt_ad_group_id=197094212811&matt_match_type=&matt_network=g&matt_device=c&matt_creative=792396419710&matt_keyword=&matt_ad_position=&matt_ad_type=pla&matt_merchant_id=5453613819&matt_product_id=MLB4575682440&matt_product_partition_id=2454528377974&matt_target_id=pla-2454528377974&cq_src=google_ads&cq_cmp=22090354487&cq_net=g&cq_plt=gp&cq_med=pla&gad_source=1&gad_campaignid=22090354487&gbraid=0AAAAAD93qcBfLFR1XdV3TTBDV-b1ql_pL&gclid=Cj0KCQjw2MbPBhCSARIsAP3jP9xWZXgel21n57t5t0O93oHTm8l5LLgIxKvnaELGyp8o1Vgg70_dA5gaAiPbEALw_wcB | J19: 2026-04-29 | K19: 855 | L19: =IF(ISNUMBER(K19),IF($L$32=$O$18,O19,IF($L$32=$P$18,P19,"")),"") -> Sim | O19: =IF(ISNUMBER(K19),IF(OR(K19<_xlfn.QUARTILE.INC($K$10:$K$29,1)-1.5*(_xlfn.QUARTILE.INC($K$10:$K$29,3)-_xlfn.QUARTILE.INC($K$10:$K$29,1)),K19>_xlfn.QUARTILE.INC($K$10:$K$29,3)+1.5*(_xlfn.QUARTILE.INC($K$10:$K$29,3)-_xlfn.QUARTILE.INC($K$10:$K$29,1))),"Não","Sim"),"") -> Sim
B20: Medical Company - https://www.medicalcompany.com.br/hn2hhr7v4-colchao-pneumatico-ortopedico-anti-escaras-dellamed-airplus-ate-135kg-220v?utm_source=Site&utm_medium=GoogleMerchant&utm_campaign=GoogleMerchant | J20: 2026-04-29 | K20: 1148.16 | L20: Sim | O20: Sim
B21: Amazon - https://www.amazon.com.br/port%C3%A1til-dobr%C3%A1vel-esportivos-capacidade-ambul%C3%A2ncia/dp/B0D3F9XC36?th=1 | J21: 2026-04-29 | K21: 1209.29 | L21: Sim | O21: Sim
B30: Observações: | K30: Média: | L30: =IF($L$32="","Selecione metodologia para exclusão de preços",AVERAGE(IF($L$10:$L$29="Sim",$K$10:$K$29))) -> 1070.816667 | N30: Média (Cotações) | O30: =IF(COUNTIF(O19:O29,"Sim")<3,"N/D (são necessários pelo menos 3 preços)",AVERAGE(IF(O19:O29="Sim",$K19:$K29))) -> 1070.816667 | P30: =IF(COUNTIF(P19:P29,"Sim")<3,"N/D (são necessários pelo menos 3 preços)",AVERAGE(IF(P19:P29="Sim",$K19:$K29))) -> N/D (são necessários pelo menos 3 preços)
K31: Mediana: | L31: =IF($L$32="","Selecione metodologia para exclusão de preços",MEDIAN(IF($L$10:$L$29="Sim",$K$10:$K$29))) -> 1148.16 | N31: Mediana (Cotações) | O31: =IF(COUNTIF(O19:O29,"Sim")<3,"N/D (são necessários pelo menos 3 preços)",MEDIAN(IF(O19:O29="Sim",$K19:$K29))) -> 1148.16 | P31: =IF(COUNTIF(P19:P29,"Sim")<3,"N/D (são necessários pelo menos 3 preços)",MEDIAN(IF(P19:P29="Sim",$K19:$K29))) -> N/D (são necessários pelo menos 3 preços)
B32: Metodologia de exclusão de preços adotada: | L32: =IF(O35="",INDEX(O18:P18,MATCH(MIN(#REF!),#REF!,0)),O35) -> Outliers | N32: CV (Cotações) | O32: =IF(COUNTIF(O19:O29,"Sim")<3,"N/D (são necessários pelo menos 3 preços)",_xlfn.STDEV.S(IF(O19:O29="Sim",$K19:$K29))/AVERAGE(IF(O19:O29="Sim",$K19:$K29))) -> 0.17686075 | P32: =IF(COUNTIF(P19:P29,"Sim")<3,"N/D (são necessários pelo menos 3 preços)",_xlfn.STDEV.S(IF(P19:P29="Sim",$K19:$K29))/AVERAGE(IF(P19:P29="Sim",$K19:$K29))) -> N/D (são necessários pelo menos 3 preços)
N33: Média | O33: =IF(SUM(COUNTIF($O$10:$O$16,"Sim")) + SUM(COUNTIF(O19:O29,"Sim")) < 3, "N/D (são necessários pelo menos 3 preços)", IFERROR(AVERAGE(_xlfn._xlws.FILTER($K$10:$K$16,$O$10:$O$16="Sim"), _xlfn._xlws.FILTER($K$19:$K$29,O19:O29="Sim")),O30)) -> 1070.816667 | P33: =IF(SUM(COUNTIF($P$10:$P$16,"Sim")) + SUM(COUNTIF(P19:P29,"Sim")) < 3, "N/D (são necessários pelo menos 3 preços)", IFERROR(AVERAGE(_xlfn._xlws.FILTER($K$10:$K$16,$P$10:$P$16="Sim"), _xlfn._xlws.FILTER($K$19:$K$29,P19:P29="Sim")),P30)) -> N/D (são necessários pelo menos 3 preços)
N34: Mediana | O34: =IF(SUM(COUNTIF($O$10:$O$16,"Sim")) + SUM(COUNTIF(O19:O29,"Sim")) < 3, "N/D (são necessários pelo menos 3 preços)", IFERROR(MEDIAN(_xlfn._xlws.FILTER($K$10:$K$16,$O$10:$O$16="Sim"), _xlfn._xlws.FILTER($K$19:$K$29,O19:O29="Sim")),O31)) -> 1148.16 | P34: =IF(SUM(COUNTIF($P10:$P$16,"Sim")) + SUM(COUNTIF(P19:P29,"Sim")) < 3, "N/D (são necessários pelo menos 3 preços)", IFERROR(MEDIAN(_xlfn._xlws.FILTER($K$10:$K$16,$P$10:$P$16="Sim"), _xlfn._xlws.FILTER($K$19:$K$29,P19:P29="Sim")),P31)) -> N/D (são necessários pelo menos 3 preços)
B35: COSOLIDAÇÃO DOS PREÇOS | N35: Metodologia a adotar: | O35: =IF(INDEX(O18:P18,P35)=0,"",INDEX(O18:P18,P35)) -> Outliers | P35: 1
B37: PREÇO UNITÁRIO ESTIMADO ADOTADO: | L37: =IF($B$39="Mediana:",L31,L30) -> 1070.816667
A39: =O18 -> Outliers | B39: Média:

Sheet Bolsa termica (hidden)
B2: Processo
B3: Responsável
B4: Área de Origem
B5: Data da pesquisa
B7: ITEM: | C7: BOLSA TÉRMICA de gel para uso quente ou gelado. 25 cm x 14 cm. | I7: UNIDADE DE MEDIDA: | J7: Unidade | K7: QUANTIDADE: | L7: 2 | O7: Tabela auxiliar de metodologias para exclusão de preços
B8: LICITAÇÕES ANTERIORES | O8: Licitações Anteriores
B9: Órgão | C9: Edital/Ano - Nº do Lote / Item | D9: Quantidade | E9: Valor Unitário | F9: Data | G9: índice de atualização (nome) | H9: I0 | I9: If | J9: Variação acumulada do índice (%) | K9: Preço unitário atualizado | L9: Utilizar? (Sim/Não) | O9: Outliers | P9: Por critério do(a) analista
J10: =IF(ISBLANK(E10),"",IF(ISNUMBER(H10),(I10-H10)/H10,0)) ->  | K10: =IF(ISBLANK(E10),"",E10*(1+J10)) ->  | L10: =IF(ISNUMBER(K10),IF($L$32<>$P$9,O10,P10),"") ->  | O10: =IF(ISNUMBER(K10),IF(OR(K10<_xlfn.QUARTILE.INC($K$10:$K$29,1)-1.5*(_xlfn.QUARTILE.INC($K$10:K29,3)-_xlfn.QUARTILE.INC($K$10:$K$29,1)),K10>_xlfn.QUARTILE.INC($K$10:$K$29,3)+1.5*(_xlfn.QUARTILE.INC($K$10:$K$29,3)-_xlfn.QUARTILE.INC($K$10:$K$29,1))),"Não","Sim"),"") -> 
J11: =IF(ISBLANK(E11),"",IF(ISNUMBER(H11),(I11-H11)/H11,0)) ->  | K11: =IF(ISBLANK(E11),"",E11*(1+J11)) ->  | O11: =IF(ISNUMBER(K11),IF(OR(K11<_xlfn.QUARTILE.INC($K$10:$K$29,1)-1.5*(_xlfn.QUARTILE.INC($K$10:K29,3)-_xlfn.QUARTILE.INC($K$10:$K$29,1)),K11>_xlfn.QUARTILE.INC($K$10:$K$29,3)+1.5*(_xlfn.QUARTILE.INC($K$10:$K$29,3)-_xlfn.QUARTILE.INC($K$10:$K$29,1))),"Não","Sim"),"") -> 
O12: =IF(ISNUMBER(K12),IF(OR(K12<_xlfn.QUARTILE.INC($K$10:$K$29,1)-1.5*(_xlfn.QUARTILE.INC($K$10:K30,3)-_xlfn.QUARTILE.INC($K$10:$K$29,1)),K12>_xlfn.QUARTILE.INC($K$10:$K$29,3)+1.5*(_xlfn.QUARTILE.INC($K$10:$K$29,3)-_xlfn.QUARTILE.INC($K$10:$K$29,1))),"Não","Sim"),"") -> 
O13: =IF(ISNUMBER(K13),IF(OR(K13<_xlfn.QUARTILE.INC($K$10:$K$29,1)-1.5*(_xlfn.QUARTILE.INC($K$10:K31,3)-_xlfn.QUARTILE.INC($K$10:$K$29,1)),K13>_xlfn.QUARTILE.INC($K$10:$K$29,3)+1.5*(_xlfn.QUARTILE.INC($K$10:$K$29,3)-_xlfn.QUARTILE.INC($K$10:$K$29,1))),"Não","Sim"),"") -> 
O14: =IF(ISNUMBER(K14),IF(OR(K14<_xlfn.QUARTILE.INC($K$10:$K$29,1)-1.5*(_xlfn.QUARTILE.INC($K$10:K32,3)-_xlfn.QUARTILE.INC($K$10:$K$29,1)),K14>_xlfn.QUARTILE.INC($K$10:$K$29,3)+1.5*(_xlfn.QUARTILE.INC($K$10:$K$29,3)-_xlfn.QUARTILE.INC($K$10:$K$29,1))),"Não","Sim"),"") -> 
O15: =IF(ISNUMBER(K15),IF(OR(K15<_xlfn.QUARTILE.INC($K$10:$K$29,1)-1.5*(_xlfn.QUARTILE.INC($K$10:K35,3)-_xlfn.QUARTILE.INC($K$10:$K$29,1)),K15>_xlfn.QUARTILE.INC($K$10:$K$29,3)+1.5*(_xlfn.QUARTILE.INC($K$10:$K$29,3)-_xlfn.QUARTILE.INC($K$10:$K$29,1))),"Não","Sim"),"") -> 
O16: =IF(ISNUMBER(K16),IF(OR(K16<_xlfn.QUARTILE.INC($K$10:$K$29,1)-1.5*(_xlfn.QUARTILE.INC($I$10:I37,3)-_xlfn.QUARTILE.INC($K$10:$K$29,1)),K16>_xlfn.QUARTILE.INC($K$10:$K$29,3)+1.5*(_xlfn.QUARTILE.INC($K$10:$K$29,3)-_xlfn.QUARTILE.INC($K$10:$K$29,1))),"Não","Sim"),"") -> 
B17: COTAÇÕES DE MERCADO | O17: Cotações
B18: Empresa | J18: Data | K18: Preço Unitário | L18: Utilizar? (Sim/Não) | O18: Outliers | P18: Por critério do(a) analista
B19: Amazon - https://www.amazon.com.br/Termogel-Bolsa-Grande/dp/B07KFQLBXL/ref=asc_df_B07KFQLBXL?mcid=8ddfe27a97f03a0296b8a8dbcb9cae29&tag=googleshopp00-20&linkCode=df0&hvadid=721147801917&hvpos=&hvnetw=g&hvrand=5311095459875978494&hvpone=&hvptwo=&hvqmt=&hvdev=c&hvdvcmdl=&hvlocint=&hvlocphy=9196708&hvtargid=pla-2374768376294&gad_source=1&th=1 | J19: 2026-04-29 | K19: 23.9 | L19: =IF(ISNUMBER(K19),IF($L$32=$O$18,O19,IF($L$32=$P$18,P19,"")),"") -> Sim | O19: =IF(ISNUMBER(K19),IF(OR(K19<_xlfn.QUARTILE.INC($K$10:$K$29,1)-1.5*(_xlfn.QUARTILE.INC($K$10:$K$29,3)-_xlfn.QUARTILE.INC($K$10:$K$29,1)),K19>_xlfn.QUARTILE.INC($K$10:$K$29,3)+1.5*(_xlfn.QUARTILE.INC($K$10:$K$29,3)-_xlfn.QUARTILE.INC($K$10:$K$29,1))),"Não","Sim"),"") -> Sim
B20: Mercado Livre - https://www.mercadolivre.com.br/termogel-bolsa-termica-unidade-1-155-cm-235-cm/p/MLB61518411?product_trigger_id=MLB33487850&pdp_filters=item_id%3AMLB5551198944&applied_product_filters=MLB33487850&from=gshop&picker=true&matt_tool=35397717&matt_word=&matt_source=google&matt_campaign_id=22090354487&matt_ad_group_id=194474639234&matt_match_type=&matt_network=g&matt_device=c&matt_creative=792396419728&matt_keyword=&matt_ad_position=&matt_ad_type=pla&matt_merchant_id=735128761&matt_product_id=MLB33487850-product&matt_product_partition_id=2453510989122&matt_target_id=pla-2453510989122&cq_src=google_ads&cq_cmp=22090354487&cq_net=g&cq_plt=gp&cq_med=pla&gad_source=1&gad_campaignid=22090354487&gbraid=0AAAAAD93qcBfLFR1XdV3TTBDV-b1ql_pL&gclid=Cj0KCQjw2MbPBhCSARIsAP3jP9wCF-jaO1lmC1U2oq-P4xzVokWMalHSBFFh6ARNDjewyCYkieVnNfMaAhqBEALw_wcB&quantity=1 | J20: 2026-04-29 | K20: 22.7 | L20: Sim | O20: Sim
B21: Rosário - https://www.drogariarosario.com.br/bolsa-termica-termogel-laranja-tam-g---termogel/p?idsku=1695&utm_source=googleshopping&utm_source=google&utm_medium=cpc&utm_campaign=pmax.compras&gad_source=1&gad_campaignid=23733391099&gbraid=0AAAAACRP8prqYmt8p-riAd52pyvjRwCm0&gclid=Cj0KCQjw2MbPBhCSARIsAP3jP9xacSAio9H3BeLvBXwqoQjIrKPtfKBG4ckAx-KIOPbPpHWlxJbC0EoaApYlEALw_wcB | J21: 2026-04-29 | K21: 21.99 | L21: Sim | O21: Sim
B30: Observações: | K30: Média: | L30: =IF($L$32="","Selecione metodologia para exclusão de preços",AVERAGE(IF($L$10:$L$29="Sim",$K$10:$K$29))) -> 22.86333333 | N30: Média (Cotações) | O30: =IF(COUNTIF(O19:O29,"Sim")<3,"N/D (são necessários pelo menos 3 preços)",AVERAGE(IF(O19:O29="Sim",$K19:$K29))) -> 22.86333333 | P30: =IF(COUNTIF(P19:P29,"Sim")<3,"N/D (são necessários pelo menos 3 preços)",AVERAGE(IF(P19:P29="Sim",$K19:$K29))) -> N/D (são necessários pelo menos 3 preços)
K31: Mediana: | L31: =IF($L$32="","Selecione metodologia para exclusão de preços",MEDIAN(IF($L$10:$L$29="Sim",$K$10:$K$29))) -> 22.7 | N31: Mediana (Cotações) | O31: =IF(COUNTIF(O19:O29,"Sim")<3,"N/D (são necessários pelo menos 3 preços)",MEDIAN(IF(O19:O29="Sim",$K19:$K29))) -> 22.7 | P31: =IF(COUNTIF(P19:P29,"Sim")<3,"N/D (são necessários pelo menos 3 preços)",MEDIAN(IF(P19:P29="Sim",$K19:$K29))) -> N/D (são necessários pelo menos 3 preços)
B32: Metodologia de exclusão de preços adotada: | L32: =IF(O35="",INDEX(O18:P18,MATCH(MIN(#REF!),#REF!,0)),O35) -> Outliers | N32: CV (Cotações) | O32: =IF(COUNTIF(O19:O29,"Sim")<3,"N/D (são necessários pelo menos 3 preços)",_xlfn.STDEV.S(IF(O19:O29="Sim",$K19:$K29))/AVERAGE(IF(O19:O29="Sim",$K19:$K29))) -> 0.04222563353 | P32: =IF(COUNTIF(P19:P29,"Sim")<3,"N/D (são necessários pelo menos 3 preços)",_xlfn.STDEV.S(IF(P19:P29="Sim",$K19:$K29))/AVERAGE(IF(P19:P29="Sim",$K19:$K29))) -> N/D (são necessários pelo menos 3 preços)
N33: Média | O33: =IF(SUM(COUNTIF($O$10:$O$16,"Sim")) + SUM(COUNTIF(O19:O29,"Sim")) < 3, "N/D (são necessários pelo menos 3 preços)", IFERROR(AVERAGE(_xlfn._xlws.FILTER($K$10:$K$16,$O$10:$O$16="Sim"), _xlfn._xlws.FILTER($K$19:$K$29,O19:O29="Sim")),O30)) -> 22.86333333 | P33: =IF(SUM(COUNTIF($P$10:$P$16,"Sim")) + SUM(COUNTIF(P19:P29,"Sim")) < 3, "N/D (são necessários pelo menos 3 preços)", IFERROR(AVERAGE(_xlfn._xlws.FILTER($K$10:$K$16,$P$10:$P$16="Sim"), _xlfn._xlws.FILTER($K$19:$K$29,P19:P29="Sim")),P30)) -> N/D (são necessários pelo menos 3 preços)
N34: Mediana | O34: =IF(SUM(COUNTIF($O$10:$O$16,"Sim")) + SUM(COUNTIF(O19:O29,"Sim")) < 3, "N/D (são necessários pelo menos 3 preços)", IFERROR(MEDIAN(_xlfn._xlws.FILTER($K$10:$K$16,$O$10:$O$16="Sim"), _xlfn._xlws.FILTER($K$19:$K$29,O19:O29="Sim")),O31)) -> 22.7 | P34: =IF(SUM(COUNTIF($P10:$P$16,"Sim")) + SUM(COUNTIF(P19:P29,"Sim")) < 3, "N/D (são necessários pelo menos 3 preços)", IFERROR(MEDIAN(_xlfn._xlws.FILTER($K$10:$K$16,$P$10:$P$16="Sim"), _xlfn._xlws.FILTER($K$19:$K$29,P19:P29="Sim")),P31)) -> N/D (são necessários pelo menos 3 preços)
B35: COSOLIDAÇÃO DOS PREÇOS | N35: Metodologia a adotar: | O35: =IF(INDEX(O18:P18,P35)=0,"",INDEX(O18:P18,P35)) -> Outliers | P35: 1
B37: PREÇO UNITÁRIO ESTIMADO ADOTADO: | L37: =IF($B$39="Mediana:",L31,L30) -> 22.86333333
A39: =O18 -> Outliers

Sheet Oximetro (hidden)
B2: Processo
B3: Responsável
B4: Área de Origem
B5: Data da pesquisa
B7: ITEM: | C7: OXIMETRO digital de dedo, medidor portátil de saturação de oxigenio no sangue | I7: UNIDADE DE MEDIDA: | J7: Unidade | K7: QUANTIDADE: | L7: 2 | O7: Tabela auxiliar de metodologias para exclusão de preços
B8: LICITAÇÕES ANTERIORES | O8: Licitações Anteriores
B9: Órgão | C9: Edital/Ano - Nº do Lote / Item | D9: Quantidade | E9: Valor Unitário | F9: Data | G9: índice de atualização (nome) | H9: I0 | I9: If | J9: Variação acumulada do índice (%) | K9: Preço unitário atualizado | L9: Utilizar? (Sim/Não) | O9: Outliers | P9: Por critério do(a) analista
J10: =IF(ISBLANK(E10),"",IF(ISNUMBER(H10),(I10-H10)/H10,0)) ->  | K10: =IF(ISBLANK(E10),"",E10*(1+J10)) ->  | L10: =IF(ISNUMBER(K10),IF($L$32<>$P$9,O10,P10),"") ->  | O10: =IF(ISNUMBER(K10),IF(OR(K10<_xlfn.QUARTILE.INC($K$10:$K$29,1)-1.5*(_xlfn.QUARTILE.INC($K$10:K29,3)-_xlfn.QUARTILE.INC($K$10:$K$29,1)),K10>_xlfn.QUARTILE.INC($K$10:$K$29,3)+1.5*(_xlfn.QUARTILE.INC($K$10:$K$29,3)-_xlfn.QUARTILE.INC($K$10:$K$29,1))),"Não","Sim"),"") -> 
J11: =IF(ISBLANK(E11),"",IF(ISNUMBER(H11),(I11-H11)/H11,0)) ->  | K11: =IF(ISBLANK(E11),"",E11*(1+J11)) ->  | O11: =IF(ISNUMBER(K11),IF(OR(K11<_xlfn.QUARTILE.INC($K$10:$K$29,1)-1.5*(_xlfn.QUARTILE.INC($K$10:K29,3)-_xlfn.QUARTILE.INC($K$10:$K$29,1)),K11>_xlfn.QUARTILE.INC($K$10:$K$29,3)+1.5*(_xlfn.QUARTILE.INC($K$10:$K$29,3)-_xlfn.QUARTILE.INC($K$10:$K$29,1))),"Não","Sim"),"") -> 
O12: =IF(ISNUMBER(K12),IF(OR(K12<_xlfn.QUARTILE.INC($K$10:$K$29,1)-1.5*(_xlfn.QUARTILE.INC($K$10:K30,3)-_xlfn.QUARTILE.INC($K$10:$K$29,1)),K12>_xlfn.QUARTILE.INC($K$10:$K$29,3)+1.5*(_xlfn.QUARTILE.INC($K$10:$K$29,3)-_xlfn.QUARTILE.INC($K$10:$K$29,1))),"Não","Sim"),"") -> 
O13: =IF(ISNUMBER(K13),IF(OR(K13<_xlfn.QUARTILE.INC($K$10:$K$29,1)-1.5*(_xlfn.QUARTILE.INC($K$10:K31,3)-_xlfn.QUARTILE.INC($K$10:$K$29,1)),K13>_xlfn.QUARTILE.INC($K$10:$K$29,3)+1.5*(_xlfn.QUARTILE.INC($K$10:$K$29,3)-_xlfn.QUARTILE.INC($K$10:$K$29,1))),"Não","Sim"),"") -> 
O14: =IF(ISNUMBER(K14),IF(OR(K14<_xlfn.QUARTILE.INC($K$10:$K$29,1)-1.5*(_xlfn.QUARTILE.INC($K$10:K32,3)-_xlfn.QUARTILE.INC($K$10:$K$29,1)),K14>_xlfn.QUARTILE.INC($K$10:$K$29,3)+1.5*(_xlfn.QUARTILE.INC($K$10:$K$29,3)-_xlfn.QUARTILE.INC($K$10:$K$29,1))),"Não","Sim"),"") -> 
O15: =IF(ISNUMBER(K15),IF(OR(K15<_xlfn.QUARTILE.INC($K$10:$K$29,1)-1.5*(_xlfn.QUARTILE.INC($K$10:K35,3)-_xlfn.QUARTILE.INC($K$10:$K$29,1)),K15>_xlfn.QUARTILE.INC($K$10:$K$29,3)+1.5*(_xlfn.QUARTILE.INC($K$10:$K$29,3)-_xlfn.QUARTILE.INC($K$10:$K$29,1))),"Não","Sim"),"") -> 
O16: =IF(ISNUMBER(K16),IF(OR(K16<_xlfn.QUARTILE.INC($K$10:$K$29,1)-1.5*(_xlfn.QUARTILE.INC($I$10:I37,3)-_xlfn.QUARTILE.INC($K$10:$K$29,1)),K16>_xlfn.QUARTILE.INC($K$10:$K$29,3)+1.5*(_xlfn.QUARTILE.INC($K$10:$K$29,3)-_xlfn.QUARTILE.INC($K$10:$K$29,1))),"Não","Sim"),"") -> 
B17: COTAÇÕES DE MERCADO | O17: Cotações
B18: Empresa | J18: Data | K18: Preço Unitário | L18: Utilizar? (Sim/Não) | O18: Outliers | P18: Por critério do(a) analista
B19: Magazine Médica - https://magazinemedica.com.br/produtos/visualiza/sku/9266/?gad_source=1&gad_campaignid=23257119241&gbraid=0AAAAA-LLl3RLzXqqgnGcdPho_yiSl5zbL&gclid=CjwKCAjwtcHPBhADEiwAWo3sJixplrs5khG2nU4AmIDyt6CKVKscfhK4lzIm9xYcMtA16RCDPMIL_BoCd3sQAvD_BwE | J19: 2026-04-28 | K19: 127 | L19: =IF(ISNUMBER(K19),IF($L$32=$O$18,O19,IF($L$32=$P$18,P19,"")),"") -> Sim | O19: =IF(ISNUMBER(K19),IF(OR(K19<_xlfn.QUARTILE.INC($K$10:$K$29,1)-1.5*(_xlfn.QUARTILE.INC($K$10:$K$29,3)-_xlfn.QUARTILE.INC($K$10:$K$29,1)),K19>_xlfn.QUARTILE.INC($K$10:$K$29,3)+1.5*(_xlfn.QUARTILE.INC($K$10:$K$29,3)-_xlfn.QUARTILE.INC($K$10:$K$29,1))),"Não","Sim"),"") -> Sim
B20: Amazon - https://www.amazon.com.br/G-Tech-Ox%C3%ADmetro-Pulso-Port%C3%A1til-Modelo/dp/B07MRZ2R3V/ref=asc_df_B07MRZ2R3V?mcid=05d2fc5a47553880bf23275e879a9caa&tag=googleshopp00-20&linkCode=df0&hvadid=709970993495&hvpos=&hvnetw=g&hvrand=16396232016077669903&hvpone=&hvptwo=&hvqmt=&hvdev=c&hvdvcmdl=&hvlocint=&hvlocphy=9196708&hvtargid=pla-809230318976&psc=1&hvocijid=16396232016077669903-B07MRZ2R3V-&hvexpln=0&language=pt_BR | J20: 2026-04-28 | K20: 101.42 | L20: Sim | O20: Sim
B21: Dental Speed - https://www.dentalspeed.com/oximetro-de-pulso-portatil-oled-graph-g-tech-acc21931a.html?gad_source=1&gad_campaignid=21627635641&gbraid=0AAAAAD1ZbgM-T4kH1CxewF6OSQySfJKkt&gclid=CjwKCAjwtcHPBhADEiwAWo3sJtjRek-FCcQU8FkoymrQtH4jnsMoILbxeIy75qyZD8xNmKrpzYOv7BoCmkkQAvD_BwE | J21: 2026-04-28 | K21: 139.9 | L21: Sim | O21: Sim
B30: Observações: | K30: Média: | L30: =IF($L$32="","Selecione metodologia para exclusão de preços",AVERAGE(IF($L$10:$L$29="Sim",$K$10:$K$29))) -> 122.7733333 | N30: Média (Cotações) | O30: =IF(COUNTIF(O19:O29,"Sim")<3,"N/D (são necessários pelo menos 3 preços)",AVERAGE(IF(O19:O29="Sim",$K19:$K29))) -> 122.7733333 | P30: =IF(COUNTIF(P19:P29,"Sim")<3,"N/D (são necessários pelo menos 3 preços)",AVERAGE(IF(P19:P29="Sim",$K19:$K29))) -> N/D (são necessários pelo menos 3 preços)
K31: Mediana: | L31: =IF($L$32="","Selecione metodologia para exclusão de preços",MEDIAN(IF($L$10:$L$29="Sim",$K$10:$K$29))) -> 127 | N31: Mediana (Cotações) | O31: =IF(COUNTIF(O19:O29,"Sim")<3,"N/D (são necessários pelo menos 3 preços)",MEDIAN(IF(O19:O29="Sim",$K19:$K29))) -> 127 | P31: =IF(COUNTIF(P19:P29,"Sim")<3,"N/D (são necessários pelo menos 3 preços)",MEDIAN(IF(P19:P29="Sim",$K19:$K29))) -> N/D (são necessários pelo menos 3 preços)
B32: Metodologia de exclusão de preços adotada: | L32: =IF(O35="",INDEX(O18:P18,MATCH(MIN(#REF!),#REF!,0)),O35) -> Outliers | N32: CV (Cotações) | O32: =IF(COUNTIF(O19:O29,"Sim")<3,"N/D (são necessários pelo menos 3 preços)",_xlfn.STDEV.S(IF(O19:O29="Sim",$K19:$K29))/AVERAGE(IF(O19:O29="Sim",$K19:$K29))) -> 0.1595224243 | P32: =IF(COUNTIF(P19:P29,"Sim")<3,"N/D (são necessários pelo menos 3 preços)",_xlfn.STDEV.S(IF(P19:P29="Sim",$K19:$K29))/AVERAGE(IF(P19:P29="Sim",$K19:$K29))) -> N/D (são necessários pelo menos 3 preços)
N33: Média | O33: =IF(SUM(COUNTIF($O$10:$O$16,"Sim")) + SUM(COUNTIF(O19:O29,"Sim")) < 3, "N/D (são necessários pelo menos 3 preços)", IFERROR(AVERAGE(_xlfn._xlws.FILTER($K$10:$K$16,$O$10:$O$16="Sim"), _xlfn._xlws.FILTER($K$19:$K$29,O19:O29="Sim")),O30)) -> 122.7733333 | P33: =IF(SUM(COUNTIF($P$10:$P$16,"Sim")) + SUM(COUNTIF(P19:P29,"Sim")) < 3, "N/D (são necessários pelo menos 3 preços)", IFERROR(AVERAGE(_xlfn._xlws.FILTER($K$10:$K$16,$P$10:$P$16="Sim"), _xlfn._xlws.FILTER($K$19:$K$29,P19:P29="Sim")),P30)) -> N/D (são necessários pelo menos 3 preços)
N34: Mediana | O34: =IF(SUM(COUNTIF($O$10:$O$16,"Sim")) + SUM(COUNTIF(O19:O29,"Sim")) < 3, "N/D (são necessários pelo menos 3 preços)", IFERROR(MEDIAN(_xlfn._xlws.FILTER($K$10:$K$16,$O$10:$O$16="Sim"), _xlfn._xlws.FILTER($K$19:$K$29,O19:O29="Sim")),O31)) -> 127 | P34: =IF(SUM(COUNTIF($P10:$P$16,"Sim")) + SUM(COUNTIF(P19:P29,"Sim")) < 3, "N/D (são necessários pelo menos 3 preços)", IFERROR(MEDIAN(_xlfn._xlws.FILTER($K$10:$K$16,$P$10:$P$16="Sim"), _xlfn._xlws.FILTER($K$19:$K$29,P19:P29="Sim")),P31)) -> N/D (são necessários pelo menos 3 preços)
B35: COSOLIDAÇÃO DOS PREÇOS | N35: Metodologia a adotar: | O35: =IF(INDEX(O18:P18,P35)=0,"",INDEX(O18:P18,P35)) -> Outliers | P35: 1
B37: PREÇO UNITÁRIO ESTIMADO ADOTADO: | L37: =IF($B$39="Mediana:",L31,L30) -> 122.7733333
A39: =O18 -> Outliers | B39: Média:

Sheet I-buttons (hidden)
B2: Processo
B3: Responsável
B4: Área de Origem
B5: Data da pesquisa
B7: ITEM: | C7: I-buttons avulsos com suporte | I7: UNIDADE DE MEDIDA: | J7: Unidade | K7: QUANTIDADE: | L7: 30 | O7: Tabela auxiliar de metodologias para exclusão de preços
B8: LICITAÇÕES ANTERIORES | O8: Licitações Anteriores
B9: Órgão | C9: Edital/Ano - Nº do Lote / Item | D9: Quantidade | E9: Valor Unitário | F9: Data | G9: índice de atualização (nome) | H9: I0 | I9: If | J9: Variação acumulada do índice (%) | K9: Preço unitário atualizado | L9: Utilizar? (Sim/Não) | O9: Outliers | P9: Por critério do(a) analista
J10: =IF(ISBLANK(E10),"",IF(ISNUMBER(H10),(I10-H10)/H10,0)) ->  | K10: =IF(ISBLANK(E10),"",E10*(1+J10)) ->  | L10: =IF(ISNUMBER(K10),IF($L$32<>$P$9,O10,P10),"") ->  | O10: =IF(ISNUMBER(K10),IF(OR(K10<_xlfn.QUARTILE.INC($K$10:$K$29,1)-1.5*(_xlfn.QUARTILE.INC($K$10:K29,3)-_xlfn.QUARTILE.INC($K$10:$K$29,1)),K10>_xlfn.QUARTILE.INC($K$10:$K$29,3)+1.5*(_xlfn.QUARTILE.INC($K$10:$K$29,3)-_xlfn.QUARTILE.INC($K$10:$K$29,1))),"Não","Sim"),"") -> 
J11: =IF(ISBLANK(E11),"",IF(ISNUMBER(H11),(I11-H11)/H11,0)) ->  | K11: =IF(ISBLANK(E11),"",E11*(1+J11)) ->  | O11: =IF(ISNUMBER(K11),IF(OR(K11<_xlfn.QUARTILE.INC($K$10:$K$29,1)-1.5*(_xlfn.QUARTILE.INC($K$10:K29,3)-_xlfn.QUARTILE.INC($K$10:$K$29,1)),K11>_xlfn.QUARTILE.INC($K$10:$K$29,3)+1.5*(_xlfn.QUARTILE.INC($K$10:$K$29,3)-_xlfn.QUARTILE.INC($K$10:$K$29,1))),"Não","Sim"),"") -> 
O12: =IF(ISNUMBER(K12),IF(OR(K12<_xlfn.QUARTILE.INC($K$10:$K$29,1)-1.5*(_xlfn.QUARTILE.INC($K$10:K30,3)-_xlfn.QUARTILE.INC($K$10:$K$29,1)),K12>_xlfn.QUARTILE.INC($K$10:$K$29,3)+1.5*(_xlfn.QUARTILE.INC($K$10:$K$29,3)-_xlfn.QUARTILE.INC($K$10:$K$29,1))),"Não","Sim"),"") -> 
O13: =IF(ISNUMBER(K13),IF(OR(K13<_xlfn.QUARTILE.INC($K$10:$K$29,1)-1.5*(_xlfn.QUARTILE.INC($K$10:K31,3)-_xlfn.QUARTILE.INC($K$10:$K$29,1)),K13>_xlfn.QUARTILE.INC($K$10:$K$29,3)+1.5*(_xlfn.QUARTILE.INC($K$10:$K$29,3)-_xlfn.QUARTILE.INC($K$10:$K$29,1))),"Não","Sim"),"") -> 
O14: =IF(ISNUMBER(K14),IF(OR(K14<_xlfn.QUARTILE.INC($K$10:$K$29,1)-1.5*(_xlfn.QUARTILE.INC($K$10:K32,3)-_xlfn.QUARTILE.INC($K$10:$K$29,1)),K14>_xlfn.QUARTILE.INC($K$10:$K$29,3)+1.5*(_xlfn.QUARTILE.INC($K$10:$K$29,3)-_xlfn.QUARTILE.INC($K$10:$K$29,1))),"Não","Sim"),"") -> 
O15: =IF(ISNUMBER(K15),IF(OR(K15<_xlfn.QUARTILE.INC($K$10:$K$29,1)-1.5*(_xlfn.QUARTILE.INC($K$10:K35,3)-_xlfn.QUARTILE.INC($K$10:$K$29,1)),K15>_xlfn.QUARTILE.INC($K$10:$K$29,3)+1.5*(_xlfn.QUARTILE.INC($K$10:$K$29,3)-_xlfn.QUARTILE.INC($K$10:$K$29,1))),"Não","Sim"),"") -> 
O16: =IF(ISNUMBER(K16),IF(OR(K16<_xlfn.QUARTILE.INC($K$10:$K$29,1)-1.5*(_xlfn.QUARTILE.INC($I$10:I37,3)-_xlfn.QUARTILE.INC($K$10:$K$29,1)),K16>_xlfn.QUARTILE.INC($K$10:$K$29,3)+1.5*(_xlfn.QUARTILE.INC($K$10:$K$29,3)-_xlfn.QUARTILE.INC($K$10:$K$29,1))),"Não","Sim"),"") -> 
B17: COTAÇÕES DE MERCADO | O17: Cotações
B18: Empresa | J18: Data | K18: Preço Unitário | L18: Utilizar? (Sim/Não) | O18: Outliers | P18: Por critério do(a) analista
B19: https://www.mercadolivre.com.br/kit-5-i-buttons-para-vigia-basto-com-suporte-de-fixaco/p/MLB28768331#polycard_client=search-desktop&be_origin=backend&search_layout=grid&position=7&type=product&tracking_id=cd58f068-1495-4f3f-b2fc-a12776e681a0&wid=MLB3541323259&sid=search | J19: 2026-04-29 | K19: 65.95 | L19: =IF(ISNUMBER(K19),IF($L$32=$O$18,O19,IF($L$32=$P$18,P19,"")),"") -> Sim | O19: =IF(ISNUMBER(K19),IF(OR(K19<_xlfn.QUARTILE.INC($K$10:$K$29,1)-1.5*(_xlfn.QUARTILE.INC($K$10:$K$29,3)-_xlfn.QUARTILE.INC($K$10:$K$29,1)),K19>_xlfn.QUARTILE.INC($K$10:$K$29,3)+1.5*(_xlfn.QUARTILE.INC($K$10:$K$29,3)-_xlfn.QUARTILE.INC($K$10:$K$29,1))),"Não","Sim"),"") -> Sim
B20: VGA Tecnologia - https://vgatecnologia.com.br/products/ibuttons-para-vigia-bastao-topdata-viggia-software?variant=49242013008162&country=BR&currency=BRL&utm_medium=product_sync&utm_source=google&utm_content=sag_organic&utm_campaign=sag_organic&utm_source=google&utm_medium=cpc&utm_campaign=pmax-sem-recurso&gad_source=1&gad_campaignid=23386948072&gbraid=0AAAAACxq1-kIJSThQ_WxjgbcaP67ZKGBv&gclid=Cj0KCQjw2MbPBhCSARIsAP3jP9zDBpkmRxcMK1KwW7Wn7tAfIu7x7xmuYMuSO0BO_WVapKrSEiRJ9rgaAtlrEALw_wcB | J20: 2026-04-29 | K20: 25 | L20: Sim | O20: Sim
B21: Iponto - https://www.ipontotecnologia.com.br/relogio-de-vigia/ibutton-topdata-2-unid?parceiro=3405&gad_source=1&gad_campaignid=250185612&gbraid=0AAAAAD9D5pQuQTTu32oQSH2Mjkn_NPGMh&gclid=Cj0KCQjw2MbPBhCSARIsAP3jP9xelaTWQtZteg1tjatse3VpgOMeGytdSl-S4IHwE4I8i1fttxZjg2UaAizWEALw_wcB | J21: 2026-04-29 | K21: 89 | L21: Sim | O21: Sim
B30: Observações: | C30: I Ponto Vende duas unidades | K30: Média: | L30: =IF($L$32="","Selecione metodologia para exclusão de preços",AVERAGE(IF($L$10:$L$29="Sim",$K$10:$K$29))) -> 59.98333333 | N30: Média (Cotações) | O30: =IF(COUNTIF(O19:O29,"Sim")<3,"N/D (são necessários pelo menos 3 preços)",AVERAGE(IF(O19:O29="Sim",$K19:$K29))) -> 59.98333333 | P30: =IF(COUNTIF(P19:P29,"Sim")<3,"N/D (são necessários pelo menos 3 preços)",AVERAGE(IF(P19:P29="Sim",$K19:$K29))) -> N/D (são necessários pelo menos 3 preços)
C31: Mercado Livre Vende 10 Unidades | K31: Mediana: | L31: =IF($L$32="","Selecione metodologia para exclusão de preços",MEDIAN(IF($L$10:$L$29="Sim",$K$10:$K$29))) -> 65.95 | N31: Mediana (Cotações) | O31: =IF(COUNTIF(O19:O29,"Sim")<3,"N/D (são necessários pelo menos 3 preços)",MEDIAN(IF(O19:O29="Sim",$K19:$K29))) -> 65.95 | P31: =IF(COUNTIF(P19:P29,"Sim")<3,"N/D (são necessários pelo menos 3 preços)",MEDIAN(IF(P19:P29="Sim",$K19:$K29))) -> N/D (são necessários pelo menos 3 preços)
B32: Metodologia de exclusão de preços adotada: | L32: =IF(O35="",INDEX(O18:P18,MATCH(MIN(#REF!),#REF!,0)),O35) -> Outliers | N32: CV (Cotações) | O32: =IF(COUNTIF(O19:O29,"Sim")<3,"N/D (são necessários pelo menos 3 preços)",_xlfn.STDEV.S(IF(O19:O29="Sim",$K19:$K29))/AVERAGE(IF(O19:O29="Sim",$K19:$K29))) -> 0.5403920386 | P32: =IF(COUNTIF(P19:P29,"Sim")<3,"N/D (são necessários pelo menos 3 preços)",_xlfn.STDEV.S(IF(P19:P29="Sim",$K19:$K29))/AVERAGE(IF(P19:P29="Sim",$K19:$K29))) -> N/D (são necessários pelo menos 3 preços)
N33: Média | O33: =IF(SUM(COUNTIF($O$10:$O$16,"Sim")) + SUM(COUNTIF(O19:O29,"Sim")) < 3, "N/D (são necessários pelo menos 3 preços)", IFERROR(AVERAGE(_xlfn._xlws.FILTER($K$10:$K$16,$O$10:$O$16="Sim"), _xlfn._xlws.FILTER($K$19:$K$29,O19:O29="Sim")),O30)) -> 59.98333333 | P33: =IF(SUM(COUNTIF($P$10:$P$16,"Sim")) + SUM(COUNTIF(P19:P29,"Sim")) < 3, "N/D (são necessários pelo menos 3 preços)", IFERROR(AVERAGE(_xlfn._xlws.FILTER($K$10:$K$16,$P$10:$P$16="Sim"), _xlfn._xlws.FILTER($K$19:$K$29,P19:P29="Sim")),P30)) -> N/D (são necessários pelo menos 3 preços)
N34: Mediana | O34: =IF(SUM(COUNTIF($O$10:$O$16,"Sim")) + SUM(COUNTIF(O19:O29,"Sim")) < 3, "N/D (são necessários pelo menos 3 preços)", IFERROR(MEDIAN(_xlfn._xlws.FILTER($K$10:$K$16,$O$10:$O$16="Sim"), _xlfn._xlws.FILTER($K$19:$K$29,O19:O29="Sim")),O31)) -> 65.95 | P34: =IF(SUM(COUNTIF($P10:$P$16,"Sim")) + SUM(COUNTIF(P19:P29,"Sim")) < 3, "N/D (são necessários pelo menos 3 preços)", IFERROR(MEDIAN(_xlfn._xlws.FILTER($K$10:$K$16,$P$10:$P$16="Sim"), _xlfn._xlws.FILTER($K$19:$K$29,P19:P29="Sim")),P31)) -> N/D (são necessários pelo menos 3 preços)
B35: COSOLIDAÇÃO DOS PREÇOS | N35: Metodologia a adotar: | O35: =IF(INDEX(O18:P18,P35)=0,"",INDEX(O18:P18,P35)) -> Outliers | P35: 1
B37: PREÇO UNITÁRIO ESTIMADO ADOTADO: | L37: =IF($B$39="Mediana:",L31,L30) -> 59.98333333
A39: =O18 -> Outliers | B39: Média:

Sheet Gandola (hidden)
B2: Processo
B3: Responsável
B4: Área de Origem
B5: Data da pesquisa
B7: ITEM: | C7: Gandola - Blusa com manga longa, tecido "Ripstop" padrão estipulado pelo CBMDF | I7: UNIDADE DE MEDIDA: | J7: Unidade | K7: QUANTIDADE: | L7: 2 | O7: Tabela auxiliar de metodologias para exclusão de preços
B8: LICITAÇÕES ANTERIORES | O8: Licitações Anteriores
B9: Órgão | C9: Edital/Ano - Nº do Lote / Item | D9: Quantidade | E9: Valor Unitário | F9: Data | G9: índice de atualização (nome) | H9: I0 | I9: If | J9: Variação acumulada do índice (%) | K9: Preço unitário atualizado | L9: Utilizar? (Sim/Não) | O9: Outliers | P9: Por critério do(a) analista
J10: =IF(ISBLANK(E10),"",IF(ISNUMBER(H10),(I10-H10)/H10,0)) ->  | K10: =IF(ISBLANK(E10),"",E10*(1+J10)) ->  | L10: =IF(ISNUMBER(K10),IF($L$32<>$P$9,O10,P10),"") ->  | O10: =IF(ISNUMBER(K10),IF(OR(K10<_xlfn.QUARTILE.INC($K$10:$K$29,1)-1.5*(_xlfn.QUARTILE.INC($K$10:K29,3)-_xlfn.QUARTILE.INC($K$10:$K$29,1)),K10>_xlfn.QUARTILE.INC($K$10:$K$29,3)+1.5*(_xlfn.QUARTILE.INC($K$10:$K$29,3)-_xlfn.QUARTILE.INC($K$10:$K$29,1))),"Não","Sim"),"") -> 
J11: =IF(ISBLANK(E11),"",IF(ISNUMBER(H11),(I11-H11)/H11,0)) ->  | K11: =IF(ISBLANK(E11),"",E11*(1+J11)) ->  | O11: =IF(ISNUMBER(K11),IF(OR(K11<_xlfn.QUARTILE.INC($K$10:$K$29,1)-1.5*(_xlfn.QUARTILE.INC($K$10:K29,3)-_xlfn.QUARTILE.INC($K$10:$K$29,1)),K11>_xlfn.QUARTILE.INC($K$10:$K$29,3)+1.5*(_xlfn.QUARTILE.INC($K$10:$K$29,3)-_xlfn.QUARTILE.INC($K$10:$K$29,1))),"Não","Sim"),"") -> 
O12: =IF(ISNUMBER(K12),IF(OR(K12<_xlfn.QUARTILE.INC($K$10:$K$29,1)-1.5*(_xlfn.QUARTILE.INC($K$10:K30,3)-_xlfn.QUARTILE.INC($K$10:$K$29,1)),K12>_xlfn.QUARTILE.INC($K$10:$K$29,3)+1.5*(_xlfn.QUARTILE.INC($K$10:$K$29,3)-_xlfn.QUARTILE.INC($K$10:$K$29,1))),"Não","Sim"),"") -> 
O13: =IF(ISNUMBER(K13),IF(OR(K13<_xlfn.QUARTILE.INC($K$10:$K$29,1)-1.5*(_xlfn.QUARTILE.INC($K$10:K31,3)-_xlfn.QUARTILE.INC($K$10:$K$29,1)),K13>_xlfn.QUARTILE.INC($K$10:$K$29,3)+1.5*(_xlfn.QUARTILE.INC($K$10:$K$29,3)-_xlfn.QUARTILE.INC($K$10:$K$29,1))),"Não","Sim"),"") -> 
O14: =IF(ISNUMBER(K14),IF(OR(K14<_xlfn.QUARTILE.INC($K$10:$K$29,1)-1.5*(_xlfn.QUARTILE.INC($K$10:K32,3)-_xlfn.QUARTILE.INC($K$10:$K$29,1)),K14>_xlfn.QUARTILE.INC($K$10:$K$29,3)+1.5*(_xlfn.QUARTILE.INC($K$10:$K$29,3)-_xlfn.QUARTILE.INC($K$10:$K$29,1))),"Não","Sim"),"") -> 
O15: =IF(ISNUMBER(K15),IF(OR(K15<_xlfn.QUARTILE.INC($K$10:$K$29,1)-1.5*(_xlfn.QUARTILE.INC($K$10:K35,3)-_xlfn.QUARTILE.INC($K$10:$K$29,1)),K15>_xlfn.QUARTILE.INC($K$10:$K$29,3)+1.5*(_xlfn.QUARTILE.INC($K$10:$K$29,3)-_xlfn.QUARTILE.INC($K$10:$K$29,1))),"Não","Sim"),"") -> 
O16: =IF(ISNUMBER(K16),IF(OR(K16<_xlfn.QUARTILE.INC($K$10:$K$29,1)-1.5*(_xlfn.QUARTILE.INC($I$10:I37,3)-_xlfn.QUARTILE.INC($K$10:$K$29,1)),K16>_xlfn.QUARTILE.INC($K$10:$K$29,3)+1.5*(_xlfn.QUARTILE.INC($K$10:$K$29,3)-_xlfn.QUARTILE.INC($K$10:$K$29,1))),"Não","Sim"),"") -> 
B17: COTAÇÕES DE MERCADO | O17: Cotações
B18: Empresa | J18: Data | K18: Preço Unitário | L18: Utilizar? (Sim/Não) | O18: Outliers | P18: Por critério do(a) analista
B19: Couro ART - https://couroart.com.br/produto/gandola-tatica-bombeiro-civil-caqui-manga-longa-c-refletivo-rip-stop/?attribute_pa_tamanho=pp&campaignid=17672119903&adgroupid=&keyword=&device=c&gad_source=1&gad_campaignid=17681361038&gbraid=0AAAAADBtTKkq3zoA70Az-BvCdRcV8YrIW&gclid=CjwKCAjw7vzOBhBxEiwAc7WNr0UzB8IPWQQ0tpAEfM-ApNPXYinMqrbiGtCeyNLq-r_a0PAW7lC8aBoCs88QAvD_BwE | J19: 2026-04-16 | K19: 198.55 | L19: =IF(ISNUMBER(K19),IF($L$32=$O$18,O19,IF($L$32=$P$18,P19,"")),"") -> Sim | O19: =IF(ISNUMBER(K19),IF(OR(K19<_xlfn.QUARTILE.INC($K$10:$K$29,1)-1.5*(_xlfn.QUARTILE.INC($K$10:$K$29,3)-_xlfn.QUARTILE.INC($K$10:$K$29,1)),K19>_xlfn.QUARTILE.INC($K$10:$K$29,3)+1.5*(_xlfn.QUARTILE.INC($K$10:$K$29,3)-_xlfn.QUARTILE.INC($K$10:$K$29,1))),"Não","Sim"),"") -> Sim
B20: Brasido - https://brasido.com.br/produtos/gandola-tatica-operacional-safo-assault-ripstop-azul-marinho-uv50-e-antimicrobial-17d1b/ | J20: 2026-04-16 | K20: 285 | L20: Sim | O20: Sim
B21: A Loja do Bombeiro - https://www.alojadobombeiro.com.br/gandola-verde-petroleo-bombeiro-civil-manga-longa-cfaixa-refletiva | J21: 2026-04-17 | K21: 185 | L21: Sim | O21: Sim
B30: Observações: | K30: Média: | L30: =IF($L$32="","Selecione metodologia para exclusão de preços",AVERAGE(IF($L$10:$L$29="Sim",$K$10:$K$29))) -> 222.85 | N30: Média (Cotações) | O30: =IF(COUNTIF(O19:O29,"Sim")<3,"N/D (são necessários pelo menos 3 preços)",AVERAGE(IF(O19:O29="Sim",$K19:$K29))) -> 222.85 | P30: =IF(COUNTIF(P19:P29,"Sim")<3,"N/D (são necessários pelo menos 3 preços)",AVERAGE(IF(P19:P29="Sim",$K19:$K29))) -> N/D (são necessários pelo menos 3 preços)
K31: Mediana: | L31: =IF($L$32="","Selecione metodologia para exclusão de preços",MEDIAN(IF($L$10:$L$29="Sim",$K$10:$K$29))) -> 198.55 | N31: Mediana (Cotações) | O31: =IF(COUNTIF(O19:O29,"Sim")<3,"N/D (são necessários pelo menos 3 preços)",MEDIAN(IF(O19:O29="Sim",$K19:$K29))) -> 198.55 | P31: =IF(COUNTIF(P19:P29,"Sim")<3,"N/D (são necessários pelo menos 3 preços)",MEDIAN(IF(P19:P29="Sim",$K19:$K29))) -> N/D (são necessários pelo menos 3 preços)
B32: Metodologia de exclusão de preços adotada: | L32: =IF(O35="",INDEX(O18:P18,MATCH(MIN(#REF!),#REF!,0)),O35) -> Outliers | N32: CV (Cotações) | O32: =IF(COUNTIF(O19:O29,"Sim")<3,"N/D (são necessários pelo menos 3 preços)",_xlfn.STDEV.S(IF(O19:O29="Sim",$K19:$K29))/AVERAGE(IF(O19:O29="Sim",$K19:$K29))) -> 0.2434292247 | P32: =IF(COUNTIF(P19:P29,"Sim")<3,"N/D (são necessários pelo menos 3 preços)",_xlfn.STDEV.S(IF(P19:P29="Sim",$K19:$K29))/AVERAGE(IF(P19:P29="Sim",$K19:$K29))) -> N/D (são necessários pelo menos 3 preços)
N33: Média | O33: =IF(SUM(COUNTIF($O$10:$O$16,"Sim")) + SUM(COUNTIF(O19:O29,"Sim")) < 3, "N/D (são necessários pelo menos 3 preços)", IFERROR(AVERAGE(_xlfn._xlws.FILTER($K$10:$K$16,$O$10:$O$16="Sim"), _xlfn._xlws.FILTER($K$19:$K$29,O19:O29="Sim")),O30)) -> 222.85 | P33: =IF(SUM(COUNTIF($P$10:$P$16,"Sim")) + SUM(COUNTIF(P19:P29,"Sim")) < 3, "N/D (são necessários pelo menos 3 preços)", IFERROR(AVERAGE(_xlfn._xlws.FILTER($K$10:$K$16,$P$10:$P$16="Sim"), _xlfn._xlws.FILTER($K$19:$K$29,P19:P29="Sim")),P30)) -> N/D (são necessários pelo menos 3 preços)
N34: Mediana | O34: =IF(SUM(COUNTIF($O$10:$O$16,"Sim")) + SUM(COUNTIF(O19:O29,"Sim")) < 3, "N/D (são necessários pelo menos 3 preços)", IFERROR(MEDIAN(_xlfn._xlws.FILTER($K$10:$K$16,$O$10:$O$16="Sim"), _xlfn._xlws.FILTER($K$19:$K$29,O19:O29="Sim")),O31)) -> 198.55 | P34: =IF(SUM(COUNTIF($P10:$P$16,"Sim")) + SUM(COUNTIF(P19:P29,"Sim")) < 3, "N/D (são necessários pelo menos 3 preços)", IFERROR(MEDIAN(_xlfn._xlws.FILTER($K$10:$K$16,$P$10:$P$16="Sim"), _xlfn._xlws.FILTER($K$19:$K$29,P19:P29="Sim")),P31)) -> N/D (são necessários pelo menos 3 preços)
B35: COSOLIDAÇÃO DOS PREÇOS | N35: Metodologia a adotar: | O35: =IF(INDEX(O18:P18,P35)=0,"",INDEX(O18:P18,P35)) -> Outliers | P35: 1
B37: PREÇO UNITÁRIO ESTIMADO ADOTADO: | L37: =IF($B$39="Mediana:",L31,L30) -> 198.55
A39: =O18 -> Outliers | B39: Mediana:

Sheet Calça (hidden)
B2: Processo
B3: Responsável
B4: Área de Origem
B5: Data da pesquisa
B7: ITEM: | C7: Calça tecido "Ripstop" padrão estipulado pelo CBMDF | I7: UNIDADE DE MEDIDA: | J7: Unidade | K7: QUANTIDADE: | L7: 2 | O7: Tabela auxiliar de metodologias para exclusão de preços
B8: LICITAÇÕES ANTERIORES | O8: Licitações Anteriores
B9: Órgão | C9: Edital/Ano - Nº do Lote / Item | D9: Quantidade | E9: Valor Unitário | F9: Data | G9: índice de atualização (nome) | H9: I0 | I9: If | J9: Variação acumulada do índice (%) | K9: Preço unitário atualizado | L9: Utilizar? (Sim/Não) | O9: Outliers | P9: Por critério do(a) analista
J10: =IF(ISBLANK(E10),"",IF(ISNUMBER(H10),(I10-H10)/H10,0)) ->  | K10: =IF(ISBLANK(E10),"",E10*(1+J10)) ->  | L10: =IF(ISNUMBER(K10),IF($L$32<>$P$9,O10,P10),"") ->  | O10: =IF(ISNUMBER(K10),IF(OR(K10<_xlfn.QUARTILE.INC($K$10:$K$29,1)-1.5*(_xlfn.QUARTILE.INC($K$10:K29,3)-_xlfn.QUARTILE.INC($K$10:$K$29,1)),K10>_xlfn.QUARTILE.INC($K$10:$K$29,3)+1.5*(_xlfn.QUARTILE.INC($K$10:$K$29,3)-_xlfn.QUARTILE.INC($K$10:$K$29,1))),"Não","Sim"),"") -> 
J11: =IF(ISBLANK(E11),"",IF(ISNUMBER(H11),(I11-H11)/H11,0)) ->  | K11: =IF(ISBLANK(E11),"",E11*(1+J11)) ->  | O11: =IF(ISNUMBER(K11),IF(OR(K11<_xlfn.QUARTILE.INC($K$10:$K$29,1)-1.5*(_xlfn.QUARTILE.INC($K$10:K29,3)-_xlfn.QUARTILE.INC($K$10:$K$29,1)),K11>_xlfn.QUARTILE.INC($K$10:$K$29,3)+1.5*(_xlfn.QUARTILE.INC($K$10:$K$29,3)-_xlfn.QUARTILE.INC($K$10:$K$29,1))),"Não","Sim"),"") -> 
O12: =IF(ISNUMBER(K12),IF(OR(K12<_xlfn.QUARTILE.INC($K$10:$K$29,1)-1.5*(_xlfn.QUARTILE.INC($K$10:K30,3)-_xlfn.QUARTILE.INC($K$10:$K$29,1)),K12>_xlfn.QUARTILE.INC($K$10:$K$29,3)+1.5*(_xlfn.QUARTILE.INC($K$10:$K$29,3)-_xlfn.QUARTILE.INC($K$10:$K$29,1))),"Não","Sim"),"") -> 
O13: =IF(ISNUMBER(K13),IF(OR(K13<_xlfn.QUARTILE.INC($K$10:$K$29,1)-1.5*(_xlfn.QUARTILE.INC($K$10:K31,3)-_xlfn.QUARTILE.INC($K$10:$K$29,1)),K13>_xlfn.QUARTILE.INC($K$10:$K$29,3)+1.5*(_xlfn.QUARTILE.INC($K$10:$K$29,3)-_xlfn.QUARTILE.INC($K$10:$K$29,1))),"Não","Sim"),"") -> 
O14: =IF(ISNUMBER(K14),IF(OR(K14<_xlfn.QUARTILE.INC($K$10:$K$29,1)-1.5*(_xlfn.QUARTILE.INC($K$10:K32,3)-_xlfn.QUARTILE.INC($K$10:$K$29,1)),K14>_xlfn.QUARTILE.INC($K$10:$K$29,3)+1.5*(_xlfn.QUARTILE.INC($K$10:$K$29,3)-_xlfn.QUARTILE.INC($K$10:$K$29,1))),"Não","Sim"),"") -> 
O15: =IF(ISNUMBER(K15),IF(OR(K15<_xlfn.QUARTILE.INC($K$10:$K$29,1)-1.5*(_xlfn.QUARTILE.INC($K$10:K35,3)-_xlfn.QUARTILE.INC($K$10:$K$29,1)),K15>_xlfn.QUARTILE.INC($K$10:$K$29,3)+1.5*(_xlfn.QUARTILE.INC($K$10:$K$29,3)-_xlfn.QUARTILE.INC($K$10:$K$29,1))),"Não","Sim"),"") -> 
O16: =IF(ISNUMBER(K16),IF(OR(K16<_xlfn.QUARTILE.INC($K$10:$K$29,1)-1.5*(_xlfn.QUARTILE.INC($I$10:I37,3)-_xlfn.QUARTILE.INC($K$10:$K$29,1)),K16>_xlfn.QUARTILE.INC($K$10:$K$29,3)+1.5*(_xlfn.QUARTILE.INC($K$10:$K$29,3)-_xlfn.QUARTILE.INC($K$10:$K$29,1))),"Não","Sim"),"") -> 
B17: COTAÇÕES DE MERCADO | O17: Cotações
B18: Empresa | J18: Data | K18: Preço Unitário | L18: Utilizar? (Sim/Não) | O18: Outliers | P18: Por critério do(a) analista
B19: Kaluci - https://www.lojakallucci.com.br/produto/calca-tatica-preta-6-bolsos-ripstop/?gad_source=1&gad_campaignid=22703324152&gbraid=0AAAAAC9sVHNXEub-EXJcSgNv4kqjYxwOo&gclid=CjwKCAjw7vzOBhBxEiwAc7WNrxatdSjftHKD-226iS9tbkHTqskQKiSziMG89ne6xUCnwABhPfx7IRoCm0cQAvD_BwE | J19: 2026-04-16 | K19: 219.9 | L19: =IF(ISNUMBER(K19),IF($L$32=$O$18,O19,IF($L$32=$P$18,P19,"")),"") -> Sim | O19: =IF(ISNUMBER(K19),IF(OR(K19<_xlfn.QUARTILE.INC($K$10:$K$29,1)-1.5*(_xlfn.QUARTILE.INC($K$10:$K$29,3)-_xlfn.QUARTILE.INC($K$10:$K$29,1)),K19>_xlfn.QUARTILE.INC($K$10:$K$29,3)+1.5*(_xlfn.QUARTILE.INC($K$10:$K$29,3)-_xlfn.QUARTILE.INC($K$10:$K$29,1))),"Não","Sim"),"") -> Sim
B20: Couro ART - https://couroart.com.br/produto/calca-tatica-caqui-c-refletivo-ripstop/?_gl=1*1v3o01o*_up*MQ..*_gs*MQ..&gclid=CjwKCAjw7vzOBhBxEiwAc7WNr835T4u4-mvsPE6sM1IRe9FWLWlJwCl0XlHDukCqU8NvYkBIrJMt-hoCG_4QAvD_BwE&gbraid=0AAAAADBtTKnIAyQsZ11VtUB3zvxbXB4zS | J20: 2026-04-16 | K20: 155 | L20: Sim | O20: Sim
B21: Invictus - https://www.invictus.com.br/products/calca-new-combat-azul-marinho?variant=51700207485246&country=BR&currency=BRL&utm_medium=product_sync&utm_source=google&utm_content=sag_organic&utm_campaign=sag_organic&utm_source=google&utm_content=724757830738&utm_campaign=21882389728&gad_source=1&gad_campaignid=21882389728&gbraid=0AAAAADMyss2ZEVq_7p2CDaUvJJ9SByCBv&gclid=Cj0KCQjwkYLPBhC3ARIsAIyHi3S89ZTejIEwRlss0YjILB-d5ktO52Jy8qIIS16R4J_7CWaMkmggDv8aApsDEALw_wcB | J21: 2026-04-16 | K21: 289 | L21: Sim | O21: Sim
B30: Observações: | K30: Média: | L30: =IF($L$32="","Selecione metodologia para exclusão de preços",AVERAGE(IF($L$10:$L$29="Sim",$K$10:$K$29))) -> 221.3 | N30: Média (Cotações) | O30: =IF(COUNTIF(O19:O29,"Sim")<3,"N/D (são necessários pelo menos 3 preços)",AVERAGE(IF(O19:O29="Sim",$K19:$K29))) -> 221.3 | P30: =IF(COUNTIF(P19:P29,"Sim")<3,"N/D (são necessários pelo menos 3 preços)",AVERAGE(IF(P19:P29="Sim",$K19:$K29))) -> N/D (são necessários pelo menos 3 preços)
K31: Mediana: | L31: =IF($L$32="","Selecione metodologia para exclusão de preços",MEDIAN(IF($L$10:$L$29="Sim",$K$10:$K$29))) -> 219.9 | N31: Mediana (Cotações) | O31: =IF(COUNTIF(O19:O29,"Sim")<3,"N/D (são necessários pelo menos 3 preços)",MEDIAN(IF(O19:O29="Sim",$K19:$K29))) -> 219.9 | P31: =IF(COUNTIF(P19:P29,"Sim")<3,"N/D (são necessários pelo menos 3 preços)",MEDIAN(IF(P19:P29="Sim",$K19:$K29))) -> N/D (são necessários pelo menos 3 preços)
B32: Metodologia de exclusão de preços adotada: | L32: =IF(O35="",INDEX(O18:P18,MATCH(MIN(#REF!),#REF!,0)),O35) -> Outliers | N32: CV (Cotações) | O32: =IF(COUNTIF(O19:O29,"Sim")<3,"N/D (são necessários pelo menos 3 preços)",_xlfn.STDEV.S(IF(O19:O29="Sim",$K19:$K29))/AVERAGE(IF(O19:O29="Sim",$K19:$K29))) -> 0.3028060066 | P32: =IF(COUNTIF(P19:P29,"Sim")<3,"N/D (são necessários pelo menos 3 preços)",_xlfn.STDEV.S(IF(P19:P29="Sim",$K19:$K29))/AVERAGE(IF(P19:P29="Sim",$K19:$K29))) -> N/D (são necessários pelo menos 3 preços)
N33: Média | O33: =IF(SUM(COUNTIF($O$10:$O$16,"Sim")) + SUM(COUNTIF(O19:O29,"Sim")) < 3, "N/D (são necessários pelo menos 3 preços)", IFERROR(AVERAGE(_xlfn._xlws.FILTER($K$10:$K$16,$O$10:$O$16="Sim"), _xlfn._xlws.FILTER($K$19:$K$29,O19:O29="Sim")),O30)) -> 221.3 | P33: =IF(SUM(COUNTIF($P$10:$P$16,"Sim")) + SUM(COUNTIF(P19:P29,"Sim")) < 3, "N/D (são necessários pelo menos 3 preços)", IFERROR(AVERAGE(_xlfn._xlws.FILTER($K$10:$K$16,$P$10:$P$16="Sim"), _xlfn._xlws.FILTER($K$19:$K$29,P19:P29="Sim")),P30)) -> N/D (são necessários pelo menos 3 preços)
N34: Mediana | O34: =IF(SUM(COUNTIF($O$10:$O$16,"Sim")) + SUM(COUNTIF(O19:O29,"Sim")) < 3, "N/D (são necessários pelo menos 3 preços)", IFERROR(MEDIAN(_xlfn._xlws.FILTER($K$10:$K$16,$O$10:$O$16="Sim"), _xlfn._xlws.FILTER($K$19:$K$29,O19:O29="Sim")),O31)) -> 219.9 | P34: =IF(SUM(COUNTIF($P10:$P$16,"Sim")) + SUM(COUNTIF(P19:P29,"Sim")) < 3, "N/D (são necessários pelo menos 3 preços)", IFERROR(MEDIAN(_xlfn._xlws.FILTER($K$10:$K$16,$P$10:$P$16="Sim"), _xlfn._xlws.FILTER($K$19:$K$29,P19:P29="Sim")),P31)) -> N/D (são necessários pelo menos 3 preços)
B35: COSOLIDAÇÃO DOS PREÇOS | N35: Metodologia a adotar: | O35: =IF(INDEX(O18:P18,P35)=0,"",INDEX(O18:P18,P35)) -> Outliers | P35: 1
B37: PREÇO UNITÁRIO ESTIMADO ADOTADO: | L37: =IF($B$39="Mediana:",L31,L30) -> 219.9
A39: =O18 -> Outliers | B39: Mediana:

Sheet Cinto (hidden)
B2: Processo
B3: Responsável
B4: Área de Origem
B5: Data da pesquisa
B7: ITEM: | C7: Cinto confeccionado em nylon e/ou poliéster, com fivela e ponteira prata | I7: UNIDADE DE MEDIDA: | J7: Unidade | K7: QUANTIDADE: | L7: 1 | O7: Tabela auxiliar de metodologias para exclusão de preços
B8: LICITAÇÕES ANTERIORES | O8: Licitações Anteriores
B9: Órgão | C9: Edital/Ano - Nº do Lote / Item | D9: Quantidade | E9: Valor Unitário | F9: Data | G9: índice de atualização (nome) | H9: I0 | I9: If | J9: Variação acumulada do índice (%) | K9: Preço unitário atualizado | L9: Utilizar? (Sim/Não) | O9: Outliers | P9: Por critério do(a) analista
J10: =IF(ISBLANK(E10),"",IF(ISNUMBER(H10),(I10-H10)/H10,0)) ->  | K10: =IF(ISBLANK(E10),"",E10*(1+J10)) ->  | L10: =IF(ISNUMBER(K10),IF($L$32<>$P$9,O10,P10),"") ->  | O10: =IF(ISNUMBER(K10),IF(OR(K10<_xlfn.QUARTILE.INC($K$10:$K$29,1)-1.5*(_xlfn.QUARTILE.INC($K$10:K29,3)-_xlfn.QUARTILE.INC($K$10:$K$29,1)),K10>_xlfn.QUARTILE.INC($K$10:$K$29,3)+1.5*(_xlfn.QUARTILE.INC($K$10:$K$29,3)-_xlfn.QUARTILE.INC($K$10:$K$29,1))),"Não","Sim"),"") -> 
J11: =IF(ISBLANK(E11),"",IF(ISNUMBER(H11),(I11-H11)/H11,0)) ->  | K11: =IF(ISBLANK(E11),"",E11*(1+J11)) ->  | O11: =IF(ISNUMBER(K11),IF(OR(K11<_xlfn.QUARTILE.INC($K$10:$K$29,1)-1.5*(_xlfn.QUARTILE.INC($K$10:K29,3)-_xlfn.QUARTILE.INC($K$10:$K$29,1)),K11>_xlfn.QUARTILE.INC($K$10:$K$29,3)+1.5*(_xlfn.QUARTILE.INC($K$10:$K$29,3)-_xlfn.QUARTILE.INC($K$10:$K$29,1))),"Não","Sim"),"") -> 
O12: =IF(ISNUMBER(K12),IF(OR(K12<_xlfn.QUARTILE.INC($K$10:$K$29,1)-1.5*(_xlfn.QUARTILE.INC($K$10:K30,3)-_xlfn.QUARTILE.INC($K$10:$K$29,1)),K12>_xlfn.QUARTILE.INC($K$10:$K$29,3)+1.5*(_xlfn.QUARTILE.INC($K$10:$K$29,3)-_xlfn.QUARTILE.INC($K$10:$K$29,1))),"Não","Sim"),"") -> 
O13: =IF(ISNUMBER(K13),IF(OR(K13<_xlfn.QUARTILE.INC($K$10:$K$29,1)-1.5*(_xlfn.QUARTILE.INC($K$10:K31,3)-_xlfn.QUARTILE.INC($K$10:$K$29,1)),K13>_xlfn.QUARTILE.INC($K$10:$K$29,3)+1.5*(_xlfn.QUARTILE.INC($K$10:$K$29,3)-_xlfn.QUARTILE.INC($K$10:$K$29,1))),"Não","Sim"),"") -> 
O14: =IF(ISNUMBER(K14),IF(OR(K14<_xlfn.QUARTILE.INC($K$10:$K$29,1)-1.5*(_xlfn.QUARTILE.INC($K$10:K32,3)-_xlfn.QUARTILE.INC($K$10:$K$29,1)),K14>_xlfn.QUARTILE.INC($K$10:$K$29,3)+1.5*(_xlfn.QUARTILE.INC($K$10:$K$29,3)-_xlfn.QUARTILE.INC($K$10:$K$29,1))),"Não","Sim"),"") -> 
O15: =IF(ISNUMBER(K15),IF(OR(K15<_xlfn.QUARTILE.INC($K$10:$K$29,1)-1.5*(_xlfn.QUARTILE.INC($K$10:K35,3)-_xlfn.QUARTILE.INC($K$10:$K$29,1)),K15>_xlfn.QUARTILE.INC($K$10:$K$29,3)+1.5*(_xlfn.QUARTILE.INC($K$10:$K$29,3)-_xlfn.QUARTILE.INC($K$10:$K$29,1))),"Não","Sim"),"") -> 
O16: =IF(ISNUMBER(K16),IF(OR(K16<_xlfn.QUARTILE.INC($K$10:$K$29,1)-1.5*(_xlfn.QUARTILE.INC($I$10:I37,3)-_xlfn.QUARTILE.INC($K$10:$K$29,1)),K16>_xlfn.QUARTILE.INC($K$10:$K$29,3)+1.5*(_xlfn.QUARTILE.INC($K$10:$K$29,3)-_xlfn.QUARTILE.INC($K$10:$K$29,1))),"Não","Sim"),"") -> 
B17: COTAÇÕES DE MERCADO | O17: Cotações
B18: Empresa | J18: Data | K18: Preço Unitário | L18: Utilizar? (Sim/Não) | O18: Outliers | P18: Por critério do(a) analista
B19: Julio Almeida - https://cintosjulioalmeida.com.br/produto/cinto-tatico-militar-nylon/?attribute_pa_cor-fivela=prata&gad_source=1&gad_campaignid=17339168383&gbraid=0AAAAADgk-hFhjIgJEI4LjrEvxBcWV1uO8&gclid=CjwKCAjw7vzOBhBxEiwAc7WNrxy1nx715M0r2MUfQZ_xlLZTbODdfmhg6xsc6wutR06oDVijRuOUtRoCJ3YQAvD_BwE | J19: 2026-04-17 | K19: 9 | L19: =IF(ISNUMBER(K19),IF($L$32=$O$18,O19,IF($L$32=$P$18,P19,"")),"") -> Sim | O19: =IF(ISNUMBER(K19),IF(OR(K19<_xlfn.QUARTILE.INC($K$10:$K$29,1)-1.5*(_xlfn.QUARTILE.INC($K$10:$K$29,3)-_xlfn.QUARTILE.INC($K$10:$K$29,1)),K19>_xlfn.QUARTILE.INC($K$10:$K$29,3)+1.5*(_xlfn.QUARTILE.INC($K$10:$K$29,3)-_xlfn.QUARTILE.INC($K$10:$K$29,1))),"Não","Sim"),"") -> Sim
B20: Couro ART - https://couroart.com.br/produto/cinto-em-nylon-fivela-lisa-garra-prata/?attribute_pa_cor=preto&attribute_pa_tamanho=140&gad_source=1&gad_campaignid=22316882581&gbraid=0AAAAADBtTKmr4_WcVrJ65GaHyoVvnzZFh&gclid=CjwKCAjw7vzOBhBxEiwAc7WNryx8cuiZ98m9nWRyfOhOTCulI1MmYHrTwxYI5tDfqsyrEc18He0__xoC06wQAvD_BwE | J20: 2026-04-17 | K20: 18.76 | L20: Sim | O20: Sim
B21: Amazon - https://www.amazon.com.br/Cinto-T%C3%A1tico-Militar-Nylon-Antial%C3%A9rgico/dp/B0GJ758LLB/ref=asc_df_B0GJ758LLB?mcid=2b35d6b9fb3131fb8c359cd0de991a83&tag=googleshopp00-20&linkCode=df0&hvadid=788924091514&hvpos=&hvnetw=g&hvrand=9998671533135262550&hvpone=&hvptwo=&hvqmt=&hvdev=c&hvdvcmdl=&hvlocint=&hvlocphy=9196708&hvtargid=pla-2465020145935&psc=1&hvocijid=9998671533135262550-B0GJ758LLB-&hvexpln=0&language=pt_BR | J21: 2026-04-17 | K21: 34.9 | L21: Sim | O21: Sim
B30: Observações: | K30: Média: | L30: =IF($L$32="","Selecione metodologia para exclusão de preços",AVERAGE(IF($L$10:$L$29="Sim",$K$10:$K$29))) -> 20.88666667 | N30: Média (Cotações) | O30: =IF(COUNTIF(O19:O29,"Sim")<3,"N/D (são necessários pelo menos 3 preços)",AVERAGE(IF(O19:O29="Sim",$K19:$K29))) -> 20.88666667 | P30: =IF(COUNTIF(P19:P29,"Sim")<3,"N/D (são necessários pelo menos 3 preços)",AVERAGE(IF(P19:P29="Sim",$K19:$K29))) -> N/D (são necessários pelo menos 3 preços)
K31: Mediana: | L31: =IF($L$32="","Selecione metodologia para exclusão de preços",MEDIAN(IF($L$10:$L$29="Sim",$K$10:$K$29))) -> 18.76 | N31: Mediana (Cotações) | O31: =IF(COUNTIF(O19:O29,"Sim")<3,"N/D (são necessários pelo menos 3 preços)",MEDIAN(IF(O19:O29="Sim",$K19:$K29))) -> 18.76 | P31: =IF(COUNTIF(P19:P29,"Sim")<3,"N/D (são necessários pelo menos 3 preços)",MEDIAN(IF(P19:P29="Sim",$K19:$K29))) -> N/D (são necessários pelo menos 3 preços)
B32: Metodologia de exclusão de preços adotada: | L32: =IF(O35="",INDEX(O18:P18,MATCH(MIN(#REF!),#REF!,0)),O35) -> Outliers | N32: CV (Cotações) | O32: =IF(COUNTIF(O19:O29,"Sim")<3,"N/D (são necessários pelo menos 3 preços)",_xlfn.STDEV.S(IF(O19:O29="Sim",$K19:$K29))/AVERAGE(IF(O19:O29="Sim",$K19:$K29))) -> 0.626251719 | P32: =IF(COUNTIF(P19:P29,"Sim")<3,"N/D (são necessários pelo menos 3 preços)",_xlfn.STDEV.S(IF(P19:P29="Sim",$K19:$K29))/AVERAGE(IF(P19:P29="Sim",$K19:$K29))) -> N/D (são necessários pelo menos 3 preços)
N33: Média | O33: =IF(SUM(COUNTIF($O$10:$O$16,"Sim")) + SUM(COUNTIF(O19:O29,"Sim")) < 3, "N/D (são necessários pelo menos 3 preços)", IFERROR(AVERAGE(_xlfn._xlws.FILTER($K$10:$K$16,$O$10:$O$16="Sim"), _xlfn._xlws.FILTER($K$19:$K$29,O19:O29="Sim")),O30)) -> 20.88666667 | P33: =IF(SUM(COUNTIF($P$10:$P$16,"Sim")) + SUM(COUNTIF(P19:P29,"Sim")) < 3, "N/D (são necessários pelo menos 3 preços)", IFERROR(AVERAGE(_xlfn._xlws.FILTER($K$10:$K$16,$P$10:$P$16="Sim"), _xlfn._xlws.FILTER($K$19:$K$29,P19:P29="Sim")),P30)) -> N/D (são necessários pelo menos 3 preços)
N34: Mediana | O34: =IF(SUM(COUNTIF($O$10:$O$16,"Sim")) + SUM(COUNTIF(O19:O29,"Sim")) < 3, "N/D (são necessários pelo menos 3 preços)", IFERROR(MEDIAN(_xlfn._xlws.FILTER($K$10:$K$16,$O$10:$O$16="Sim"), _xlfn._xlws.FILTER($K$19:$K$29,O19:O29="Sim")),O31)) -> 18.76 | P34: =IF(SUM(COUNTIF($P10:$P$16,"Sim")) + SUM(COUNTIF(P19:P29,"Sim")) < 3, "N/D (são necessários pelo menos 3 preços)", IFERROR(MEDIAN(_xlfn._xlws.FILTER($K$10:$K$16,$P$10:$P$16="Sim"), _xlfn._xlws.FILTER($K$19:$K$29,P19:P29="Sim")),P31)) -> N/D (são necessários pelo menos 3 preços)
B35: COSOLIDAÇÃO DOS PREÇOS | N35: Metodologia a adotar: | O35: =IF(INDEX(O18:P18,P35)=0,"",INDEX(O18:P18,P35)) -> Outliers | P35: 1
B37: PREÇO UNITÁRIO ESTIMADO ADOTADO: | L37: =IF($B$39="Mediana:",L31,L30) -> 18.76
A39: =O18 -> Outliers | B39: Mediana:

Sheet Japona (hidden)
B2: Processo
B3: Responsável
B4: Área de Origem
B5: Data da pesquisa
B7: ITEM: | C7: Blusão de frio tipo japona- Padrão aprovado pelo Corpo de Bombeiros Militar | I7: - | J7: Unidade | K7: QUANTIDADE: | L7: 1 | O7: Tabela auxiliar de metodologias para exclusão de preços
B8: LICITAÇÕES ANTERIORES | O8: Licitações Anteriores
B9: Órgão | C9: Edital/Ano - Nº do Lote / Item | D9: Quantidade | E9: Valor Unitário | F9: Data | G9: índice de atualização (nome) | H9: I0 | I9: If | J9: Variação acumulada do índice (%) | K9: Preço unitário atualizado | L9: Utilizar? (Sim/Não) | O9: Outliers | P9: Por critério do(a) analista
J10: =IF(ISBLANK(E10),"",IF(ISNUMBER(H10),(I10-H10)/H10,0)) ->  | K10: =IF(ISBLANK(E10),"",E10*(1+J10)) ->  | L10: =IF(ISNUMBER(K10),IF($L$32<>$P$9,O10,P10),"") ->  | O10: =IF(ISNUMBER(K10),IF(OR(K10<_xlfn.QUARTILE.INC($K$10:$K$29,1)-1.5*(_xlfn.QUARTILE.INC($K$10:K29,3)-_xlfn.QUARTILE.INC($K$10:$K$29,1)),K10>_xlfn.QUARTILE.INC($K$10:$K$29,3)+1.5*(_xlfn.QUARTILE.INC($K$10:$K$29,3)-_xlfn.QUARTILE.INC($K$10:$K$29,1))),"Não","Sim"),"") -> 
J11: =IF(ISBLANK(E11),"",IF(ISNUMBER(H11),(I11-H11)/H11,0)) ->  | K11: =IF(ISBLANK(E11),"",E11*(1+J11)) ->  | O11: =IF(ISNUMBER(K11),IF(OR(K11<_xlfn.QUARTILE.INC($K$10:$K$29,1)-1.5*(_xlfn.QUARTILE.INC($K$10:K29,3)-_xlfn.QUARTILE.INC($K$10:$K$29,1)),K11>_xlfn.QUARTILE.INC($K$10:$K$29,3)+1.5*(_xlfn.QUARTILE.INC($K$10:$K$29,3)-_xlfn.QUARTILE.INC($K$10:$K$29,1))),"Não","Sim"),"") -> 
O12: =IF(ISNUMBER(K12),IF(OR(K12<_xlfn.QUARTILE.INC($K$10:$K$29,1)-1.5*(_xlfn.QUARTILE.INC($K$10:K30,3)-_xlfn.QUARTILE.INC($K$10:$K$29,1)),K12>_xlfn.QUARTILE.INC($K$10:$K$29,3)+1.5*(_xlfn.QUARTILE.INC($K$10:$K$29,3)-_xlfn.QUARTILE.INC($K$10:$K$29,1))),"Não","Sim"),"") -> 
O13: =IF(ISNUMBER(K13),IF(OR(K13<_xlfn.QUARTILE.INC($K$10:$K$29,1)-1.5*(_xlfn.QUARTILE.INC($K$10:K31,3)-_xlfn.QUARTILE.INC($K$10:$K$29,1)),K13>_xlfn.QUARTILE.INC($K$10:$K$29,3)+1.5*(_xlfn.QUARTILE.INC($K$10:$K$29,3)-_xlfn.QUARTILE.INC($K$10:$K$29,1))),"Não","Sim"),"") -> 
O14: =IF(ISNUMBER(K14),IF(OR(K14<_xlfn.QUARTILE.INC($K$10:$K$29,1)-1.5*(_xlfn.QUARTILE.INC($K$10:K32,3)-_xlfn.QUARTILE.INC($K$10:$K$29,1)),K14>_xlfn.QUARTILE.INC($K$10:$K$29,3)+1.5*(_xlfn.QUARTILE.INC($K$10:$K$29,3)-_xlfn.QUARTILE.INC($K$10:$K$29,1))),"Não","Sim"),"") -> 
O15: =IF(ISNUMBER(K15),IF(OR(K15<_xlfn.QUARTILE.INC($K$10:$K$29,1)-1.5*(_xlfn.QUARTILE.INC($K$10:K35,3)-_xlfn.QUARTILE.INC($K$10:$K$29,1)),K15>_xlfn.QUARTILE.INC($K$10:$K$29,3)+1.5*(_xlfn.QUARTILE.INC($K$10:$K$29,3)-_xlfn.QUARTILE.INC($K$10:$K$29,1))),"Não","Sim"),"") -> 
